Workbook

Sheet Contents
C3: Sheet Tab | D3: Description | E3: Author
B4: 1 | C4: Contents
B5: 2 | C5: Notes
B6: 3 | C6: Summary
B7: 4 | C7: Operating assumptions
B8: 5 | C8: Financing assumptions
B9: 6 | C9: Master scenario
B10: 7 | C10: Working analysis
B11: 8 | C11: Annual
B12: 9 | C12: Audit
B13: 10 | C13: Tornado Diagram
B14: 11 | C14: NPV and IRR by Concession Life
B15: 12 | C15: Debt Repayment Exercise
B16: 13 | C16: Tax Carry Forward
B17: 14 | C17: Circular
B18: 15 | C18: Holding Period Analysis
B19: 16 | C19: IRR Exercise
B21: File Name: | D21: =File_name() -> C:\Users\Gebruiker\Course Materials\Chapter 1. Models and Analysis\2. Project Finance Models and Exercises\Featured Project Finance Models\Tollway Project Finance Model.xlsm
B23: Last Save Date | D23: =lastsaved1() -> 
B24: Last Save By | D24: =lastsaveby1() -> Monika Lewinski
B26: Colour Codes

Sheet Notes
C3: SHIFT, CNTL A | E3: Dates
C4: SHIFT, CNTL B | E4: Percent Decimals
C5: SHIFT, CNTL C | E5: Color Inputs
C6: SHIFT, CNTL D | E6: Comma, 2 Decimals
C7: SHIFT, CNTL E | E7: Comma, No Decimals
C11: IRR was going crazy because of development fee -- need to include a guess; problem of 2 IRR's that you already run into
C12: Fix the IDC depreciation
C13: Zero out maintenance with debt repayment switch
C14: Use copy and paste macro for risk analysis mode to fix repayments and debt amount
C15: Fix error in maintenance expense that showed up because of tornado diagram
C16: Create Copy and Paste Macro in Master Scenario
C17: Adjust cash flow for MRA cash flow
C18: Put in Sources and Uses, Debt Sizing and Debt Balance for Re-financing

Sheet Summary
A2: Key dates | H2: Key outputs | L2: Nominal | M2: Real | N2: MIRR
B3: Financial Close | E3: ='Operating assumptions'!G6 -> 2015-01-01 | I3: Equity IRR | L3: =Annual!E37 -> 0.0962510957 | M3: =Annual!E38 -> 0.07497238968 | N3: ='Working analysis'!H404 -> 0.07338166157 | U3: =Audit!G15 -> Model OK | V3: =Audit!F14 -> TRUE
B4: Revenue Operations | E4: ='Operating assumptions'!G8 -> 2020-01-01 | I4: Project IRR After Tax | L4: ='Working analysis'!F90 -> 0.06527864635 | M4: ='Working analysis'!G90 -> 0.04443719685 | N4: ='Working analysis'!I78 -> 0.05569161091
B5: Concession End | E5: ='Operating assumptions'!G10 -> 2061-01-01 | I5: Project IRR Pre Tax | L5: ='Working analysis'!F78 -> 0.08065695465 | M5: ='Working analysis'!G78 -> 0.05953982174 | N5: ='Working analysis'!I90 -> 0.05263634762 | P5: Holding Period | T5: ='Financing assumptions'!G9 -> 11
F6: Flex | I6: Debt IRR - Pre Tax | P6: IRR over Holding Period | T6: =Annual!E41 -> 0.0992573785
A7: Operating assumptions | F7: Case | P7: Optimal Holding Period | T7: ='Financing assumptions'!I105 -> 10
B8: Construction Period | E8: ='Operating assumptions'!G7 -> 60 | L8: Min | P8: IRR over Optimal Holding Period | T8: ='Financing assumptions'!I104 -> 0.1000458877
B9: Concession Period | E9: ='Operating assumptions'!G9 -> 46 | I9: DSCR | L9: ='Working analysis'!G409 -> 1.35
I10: LLCR | L10: ='Working analysis'!F413 -> 1.35
B11: EPC Cost | E11: ='Operating assumptions'!G56 -> 43000 | I11: PLCR | L11: ='Working analysis'!F418 -> 1.842621064
B12: Inflation Rate
B13: Base Traffic | E13: ='Operating assumptions'!G29 -> 4500 | H13: Sources and uses
B14: Base Toll Rate | E14: ='Operating assumptions'!G36 -> 2 | H14: Uses of funds
B15: Resurfacing Cost | E15: ='Operating assumptions'!H50 -> 1500 | I15: EPC Costs | M15: =SUM( 'Working analysis'!215:215) -> 45890.24683
I16: Contingencies | M16: =SUM( 'Working analysis'!216:216) -> 4589.024683
A17: Debt Structuring | I17: Development costs and Fees | M17: =SUM('Working analysis'!217:217)+SUM('Working analysis'!190:190) -> 5160
B18: Target DSCR | E18: ='Financing assumptions'!G23 -> 1.35 | I18: Funding of DSRA | M18: =SUM( 'Working analysis'!218:218) -> 2134.269758
B19: Maximum Debt/Capital | E19: ='Financing assumptions'!G25 -> 0.8 | I19: Funding of demand note | M19: =SUM( 'Working analysis'!219:219) -> 0
B20: Debt Tenor | E20: ='Financing assumptions'!G24 -> 33 | I20: Interest During Construction | M20: =SUM( 'Working analysis'!220:220) -> 6965.98466
B21: Debt Repayment | I21: Fees During Construction | M21: =SUM( 'Working analysis'!221:221) -> 1654.296904
J22: Total | M22: =SUM(M15:M21) -> 66393.82283
B23: Cash Flow Sweep | E23: ='Financing assumptions'!G49 -> 0
B24: DSRA Months | E24: ='Financing assumptions'!G48 -> 12 | H24: Sources of funds
I25: Bond financing | M25: =SUM( 'Working analysis'!225:225) -> 0
B26: Re-financing | E26: ='Financing assumptions'!$G$53 -> FALSE | I26: Bank financing | M26: =SUM( 'Working analysis'!226:226) -> 49266.05378 | N26: =M26/$M$28 -> 0.7420276718
B27: Re-financing Year | E27: ='Financing assumptions'!$G$54 -> 2022-01-01 | I27: Equity | M27: =SUM('Working analysis'!227:227)+SUM('Working analysis'!190:190) -> 17127.76905 | N27: =M27/$M$28 -> 0.2579723282
B28: Re-financing DSCR | E28: ='Financing assumptions'!G60 -> 1.38 | J28: Total | M28: =SUM(M25:M27) -> 66393.82283 | N28: =M28/M28 -> 1
B29: Re-financing Maturity | E29: ='Financing assumptions'!$G$57 -> 2056-01-01

Sheet Operating assumptions
A1: Operating assumptions
F2: Unit
A3: Timing
B4: Model start date | F4: Date | G4: 2013-07-01
B5: Development period | F5: Months | G5: 18
B6: Financial close date | F6: Date | G6: =EDATE(G4,G5) -> 2015-01-01
B7: Construction period | F7: Months | G7: ='Master scenario'!C37 -> 60
B8: Revenue operations date (ROD) | F8: Date | G8: =EDATE(G6,G7) -> 2020-01-01
B9: Concession period | F9: Years | G9: 46
B10: End of concession period | F10: Date | G10: =EDATE(G6,G9*12) -> 2061-01-01
B11: Periods per year - Pre ROD | F11: Periods | G11: 12
B12: Periods per year - Post ROD | F12: Periods | G12: 2
B13: Months per period - Pre ROD | F13: Months | G13: =12/G11 -> 1
B14: Months per period - Post ROD | F14: Months | G14: =12/G12 -> 6
B15: Years of High Risk Operation | F15: Years | G15: 3
B16: End of High Risk Period | F16: Date | G16: =EDATE(G8,G15*12) -> 2023-01-01
A18: General Economic Variables
B19: Year | G19: =YEAR(G4) -> 2013 | H19: =G19+1 -> 2014 | I19: =H19+1 -> 2015 | J19: 2016 | K19: 2017 | L19: 2018 | M19: 2019 | N19: 2020 | O19: 2021 | P19: 2022 | Q19: 2023 | R19: 2024 | S19: 2025 | T19: 2026 | U19: 2027 | V19: 2028 | W19: 2029 | X19: 2030
B20: Base inflation | G20: 0.01 | H20: 0.015 | I20: 0.015 | J20: 0.02 | K20: 0.02 | L20: 0.02 | M20: 0.02 | N20: 0.02 | O20: 0.02 | P20: 0.02 | Q20: 0.02 | R20: 0.02 | S20: 0.02 | T20: 0.02 | U20: 0.02 | V20: 0.02 | W20: 0.02 | X20: 0.02
B21: Low | G21: 0.01 | H21: 0.015 | I21: 0.015 | J21: 0.015 | K21: 0.015 | L21: 0.015 | M21: 0.015 | N21: 0.015 | O21: 0.015 | P21: 0.015 | Q21: 0.015 | R21: 0.015 | S21: 0.015 | T21: 0.015 | U21: 0.015 | V21: 0.015 | W21: 0.015 | X21: 0.015
B22: High | G22: 0.015 | H22: 0.02 | I22: 0.025 | J22: 0.03 | K22: 0.03 | L22: 0.03 | M22: 0.03 | N22: 0.03 | O22: 0.03 | P22: 0.03 | Q22: 0.03 | R22: 0.03 | S22: 0.03 | T22: 0.03 | U22: 0.03 | V22: 0.03 | W22: 0.03 | X22: 0.03
B23: Scenario # | F23: ='Master scenario'!J37 -> 1
B25: =INDEX(B20:B22,$F$23) -> Base inflation | G25: =INDEX(G20:G22,$F$23) -> 0.01 | H25: 0.015 | I25: 0.015 | J25: 0.02 | K25: 0.02 | L25: 0.02 | M25: 0.02 | N25: 0.02 | O25: 0.02 | P25: 0.02 | Q25: 0.02 | R25: 0.02 | S25: 0.02 | T25: 0.02 | U25: 0.02 | V25: 0.02 | W25: 0.02 | X25: 0.02
A27: Revenue assumptions
B28: Traffic
C29: Base traffic | F29: Vehicles/day | G29: ='Master scenario'!E37 -> 4500
C30: Growth rate | F30: Date | G30: Growth | H30: Years
F31: =G8 -> 2020-01-01 | G31: ='Master scenario'!F37 -> 0.05
F32: =EDATE(F31,H32*12) -> 2022-01-01 | G32: ='Master scenario'!G37 -> 0.03 | H32: 2
F33: =EDATE(F32,H33*12) -> 2025-01-01 | G33: ='Master scenario'!H37 -> 0.02 | H33: 3
F34: =EDATE(F33,H34*12) -> 2030-01-01 | G34: 0.015 | H34: 5
B35: Toll rates
C36: Base toll rate | F36: $/vehicle | G36: ='Master scenario'!I37 -> 2
C38: Inflation start date | F38: Date | G38: =G6 -> 2015-01-01
C39: Initial toll increase date | F39: Date | G39: =G8 -> 2020-01-01
C40: Periodic toll increase date | F40: Years | G40: ='Master scenario'!K37 -> 2
A42: Operating expenses
B43: Fixed expenses | F43: $/year | G43: ='Master scenario'!L37 -> 300
B44: Variable expenses | F44: $/Vehicle | G44: ='Master scenario'!M37 -> 0.1
B45: Start of Inflation | F45: Date | G45: =G4 -> 2013-07-01
B47: Extraordinary maintenance | H47: Real
B48: Maintenance periods | F48: Years | G48: Date | H48: Expenditure | I48: Periods
F49: 0 | G49: =G8 -> 2020-01-01 | I49: =DAYS360( G49, G50 ) / ( 360 / $G$12 ) -> 10
F50: 5 | G50: =EDATE(G8,F50*12) -> 2025-01-01 | H50: ='Master scenario'!N37 -> 1500 | I50: =DAYS360( G50, G51 ) / ( 360 / $G$12 ) -> 12
F51: 6 | G51: =EDATE(G50,F51*12) -> 2031-01-01 | H51: =H50*1.02 -> 1530 | I51: =DAYS360( G51, G52 ) / ( 360 / $G$12 ) -> 14
F52: 7 | G52: =EDATE(G51,F52*12) -> 2038-01-01 | H52: =H51*1.02 -> 1560.6 | I52: =DAYS360( G52, G53 ) / ( 360 / $G$12 ) -> 14
F53: 7 | G53: =EDATE(G52,F53*12) -> 2045-01-01 | H53: =H52 -> 1560.6 | I53: =DAYS360( G53, G54 ) / ( 360 / $G$12 ) -> 14
F54: 7 | G54: =EDATE(G53,F54*12) -> 2052-01-01 | H54: =H53 -> 1560.6
A55: Capital expenditures
B56: EPC costs | F56: $ '000 | G56: ='Master scenario'!D37 -> 43000
B57: Development costs | F57: % | G57: 0.04
B58: Development fee | F58: Times | G58: 2
B59: Contingencies | F59: % | G59: 0.1
A61: Taxes and depreciation
B62: Income tax rate | F62: % | G62: =0.09+0.35*(1-0.09) -> 0.4085
B63: Depreciation life | F63: Years | G63: 15
B65: Year | F65: =E65+1 -> 1 | G65: =F65+1 -> 2 | H65: 3 | I65: 4 | J65: 5 | K65: 6 | L65: 7 | M65: 8 | N65: 9 | O65: 10 | P65: 11 | Q65: 12 | R65: 13 | S65: 14 | T65: 15 | U65: 16 | V65: 17 | W65: 18 | X65: 19 | Y65: 20 | Z65: 21
B66: Rate | F66: =VDB(1,0,$G$63,E65,F65,1.5) -> 0.1 | G66: =VDB(1,0,$G$63,F65,G65,1.5) -> 0.09 | H66: 0.081 | I66: 0.0729 | J66: 0.06561 | K66: 0.059049 | L66: 0.059049 | M66: 0.059049 | N66: 0.059049 | O66: 0.059049 | P66: 0.059049 | Q66: 0.059049 | R66: 0.059049 | S66: 0.059049 | T66: 0.059049
B67: Half-year | F67: =E66/2+F66/2 -> 0.05 | G67: =F66/2+G66/2 -> 0.095 | H67: 0.0855 | I67: 0.07695 | J67: 0.069255 | K67: 0.0623295 | L67: 0.059049 | M67: 0.059049 | N67: 0.059049 | O67: 0.059049 | P67: 0.059049 | Q67: 0.059049 | R67: 0.059049 | S67: 0.059049 | T67: 0.059049 | U67: 0.0295245
B69: Discount rate | F69: 0.07
H73: ="EPC "&TEXT(H74,"###,###") -> EPC 7,000 | I73: ="EPC "&TEXT(I74,"###,###") -> EPC 10,000 | J73: EPC 15,000 | K73: EPC 30,000
G74: =CHOOSE(O75,N75,N76,N77) -> -2967.973649 | H74: 7000 | I74: 10000 | J74: 15000 | K74: 30000 | O74: 1
G75: 35 | H75: 18970.03635 | I75: 16755.70546 | J75: 13065.15397 | K75: 1993.499512 | M75: IRR | N75: ='Working analysis'!F78 -> 0.08065695465 | O75: 2
G76: 40 | H76: 21209.19753 | I76: 18994.86664 | J76: 15304.31515 | K76: 4232.660693 | M76: NPV | N76: ='Working analysis'!G91 -> -2967.973649
G77: 45 | H77: 23235.66569 | I77: 21021.3348 | J77: 17330.78331 | K77: 6259.128848 | M77: MIRR | N77: ='Working analysis'!I78 -> 0.05569161091
G78: 50 | H78: 24961.10215 | I78: 22746.77126 | J78: 19056.21977 | K78: 7984.56531
G79: 55 | H79: 26428.21843 | I79: 24213.88754 | J79: 20523.33605 | K79: 9451.681588
G80: 60 | H80: 27676.08696 | I80: 25461.75607 | J80: 21771.20458 | K80: 10699.55012

Sheet Financing assumptions
F1: Units
A3: Discount Rates for Valuation
B4: Development | F4: Annual % | G4: 0.18
B5: Construction | F5: Annual % | G5: 0.14
B6: High Risk Operation | F6: Annual % | G6: 0.12
B7: Low Risk Operation | F7: Annual % | G7: 0.1
B9: Holding Period Years since Start | F9: Years | G9: =I9 -> 11 | I9: 11
B10: Holding Period End | F10: Date | G10: =EDATE('Operating assumptions'!G4,'Financing assumptions'!G9*12) -> 2024-07-01
B12: Rates for MIRR
C13: Re-investment Rate - Project | F13: Annual % | G13: 0.05
C14: Re-investment Rate - Equity | F14: Annual % | G14: 0.07
A16: Model Method
C17: Debt Structuring
C18: Risk Analysis
G19: 1
C20: Code for Model | F20: Code Num | G20: 1
G21: 1
A22: Debt sizing
B23: Target DSCR | F23: Times | G23: =I23/100 -> 1.35 | I23: 135
B24: Debt tenor | F24: Years | G24: =I24 -> 33 | I24: 33
B25: Maximum Debt to Capital | F25: Percent | G25: 0.8
B27: End of Concession | F27: Date | G27: ='Operating assumptions'!G10 -> 2061-01-01
B28: Debt retirement | F28: Date | G28: =MIN(EDATE('Operating assumptions'!G6,G24*12),G27) -> 2048-01-01
B30: Repayment | F30: Code | G30: 1 | H30: Repay Code | J30: Sculping
J31: Level
J32: Annuity
A33: Interest rates
B34: LIBOR rate | F34: Rate | G34: =I34/1000 -> 0.025 | I34: 25
B36: Credit spread | F36: Date | G36: Rate
F37: ='Operating assumptions'!G6 -> 2015-01-01 | G37: 0.02
F38: ='Operating assumptions'!G8 -> 2020-01-01 | G38: 0.015
F39: =EDATE(F38,4*12) -> 2024-01-01 | G39: 0.025
B41: Capitalized Interest | F41: Switch | G41: FALSE
A43: Debt Fees
B44: Up-front fee | F44: =F37 -> 2015-01-01 | G44: 0.015
B45: Commitment fee | G45: =50%*G37 -> 0.01
A47: Credit enhancements
B48: DSRA | F48: Months | G48: 12
B49: Cash sweep | F49: Percent | G49: =I49/100 -> 0 | I49: 0
B50: Lock-up covenant | F50: Times | G50: 1.2
A52: Re-financing
B53: Re-finaning Switch | F53: Switch | G53: FALSE
B54: Re-financing Date | F54: Date | G54: =EDATE('Operating assumptions'!G8,'Financing assumptions'!H54*12) -> 2022-01-01 | H54: 2 | I54: Years
B55: Re-financing Amount | F55: USD 000's
B56: Re-financing Term | F56: Years | G56: 34
B57: Re-financing Maturity Date | F57: Date | G57: =MIN(EDATE(G54,G56*12),G27) -> 2056-01-01
B58: Re-financing Interest Rate | F58: Rate | G58: =G38+G34 -> 0.04
B59: Re-finananing Fees | F59: Pct | G59: 0.015
B60: Re-financing DSCR for Debt Size | F60: Times | G60: =I60/100 -> 1.38 | I60: 138
H65: Exit Year | I65: IRR
I66: =IFERROR(Annual!E41,FALSE) -> 0.0992573785
H67: 1 | I67: FALSE
H68: =H67+1 -> 2 | I68: FALSE
H69: =H68+1 -> 3 | I69: FALSE
H70: 4 | I70: FALSE
H71: 5 | I71: FALSE
H72: 6 | I72: FALSE
H73: 7 | I73: -0.1873328098
H74: 8 | I74: -0.04738798189
H75: 9 | I75: 0.005144954506
H76: 10 | I76: 0.1000458877
H77: 11 | I77: 0.0992573785
H78: 12 | I78: 0.09878394065
H79: 13 | I79: 0.09842343548
H80: 14 | I80: 0.09822347056
H81: 15 | I81: 0.09800801999
H82: 16 | I82: 0.0978600873
H83: 17 | I83: 0.09771895124
H84: 18 | I84: 0.0976356412
H85: 19 | I85: 0.09752629584
H86: 20 | I86: 0.09744852973
H87: 21 | I87: 0.09731332858
H88: 22 | I88: 0.09724111041
H89: 23 | I89: 0.09723280057
H90: 24 | I90: 0.09723275167
H91: 25 | I91: 0.09723398968
H92: 26 | I92: 0.09725178927
H93: 27 | I93: 0.09725663965
H94: 28 | I94: 0.0972681202
H95: 29 | I95: 0.09727788119
H96: 30 | I96: 0.09729973386
H97: 31 | I97: 0.09731879087
H98: 32 | I98: 0.0973325061
H99: 33 | I99: 0.09734501076
H100: 34 | I100: 0.0972405205
H101: 35 | I101: 0.09713792598
H102: 36 | I102: 0.09704291046
I104: =MAX(I67:I102) -> 0.1000458877
I105: =MATCH(I104,I67:I102,0) -> 10

Sheet Master scenario
B2: Scenario number | C2: 1
B3: Concession Period | C3: ='Operating assumptions'!G9 -> 46 | P3: hurdle rate | Q3: 0.08
C6: Construction Period | D6: EPC Expenditure | E6: Base Traffic | F6: 1st Growth | G6: 2nd Growth | H6: 3rd Growth | I6: Toll Rate | J6: Inflation Rate | K6: Rev Infl Period | L6: Fixed Expense | M6: Variable Expense | N6: Resurfacing Expense | P6: Project Pre-Tax IRR | Q6: Real Project Pre-Tax IRR | R6: Project Post-Tax IRR | S6: Real Project Post-Tax IRR | T6: Equity IRR Nominal | U6: Equity IRR Real | V6: DSCR | W6: LLCR | X6: PLCR
P7: =Summary!L5 -> 0.08065695465 | Q7: =Summary!M5 -> 0.05953982174 | R7: =Summary!L4 -> 0.06527864635 | S7: =Summary!M4 -> 0.04443719685
B8: Base Case | C8: 60 | D8: 43000 | E8: 4500 | F8: 0.05 | G8: 0.03 | H8: 0.02 | I8: 2 | J8: 1 | K8: 2 | L8: 300 | M8: 0.1 | N8: 1500 | O8: 1 | P8: 0.08065695465 | Q8: 0.05953982174 | R8: 0.06527864635 | S8: 0.04443719685
B9: Downside Case | C9: 70 | D9: 50000 | E9: 3600 | F9: 0.03 | G9: 0.02 | H9: 0.015 | I9: 1.5 | J9: 2 | K9: 3 | L9: 400 | M9: 0.12 | N9: 2000 | O9: 2 | P9: 0.02579229772 | Q9: 0.01065839827 | R9: 0.02076728046 | S9: 0.005692782998
B10: Upside Case | C10: 55 | D10: 42000 | E10: 5500 | F10: 0.07 | G10: 0.04 | H10: 0.03 | I10: 3 | J10: 3 | K10: 1 | L10: 260 | M10: 0.09 | N10: 1300 | O10: 3 | P10: 0.1528987944 | Q10: 0.119477278 | R10: 0.1227143586 | S10: 0.09009979665
B11: =TRANSPOSE(C6:N6)&" Low" -> Construction Period Low | C11: =C9 -> 70 | D11: =D$8 -> 43000 | E11: 4500 | F11: 0.05 | G11: 0.03 | H11: 0.02 | I11: 2 | J11: 1 | K11: 2 | L11: 300 | M11: 0.1 | N11: 1500 | O11: 4 | P11: 0.07886523902 | Q11: 0.05777976215 | R11: 0.06369751394 | S11: 0.0428838402
B12: EPC Expenditure Low | C12: =C$8 -> 60 | D12: =D9 -> 50000 | E12: 4500 | F12: 0.05 | G12: 0.03 | H12: 0.02 | I12: 2 | J12: 1 | K12: 2 | L12: 300 | M12: 0.1 | N12: 1500 | O12: 5 | P12: 0.07195763886 | Q12: 0.05100619495 | R12: 0.05835041702 | S12: 0.03764300644
B13: Base Traffic Low | C13: 60 | D13: 43000 | E13: =E9 -> 3600 | F13: 0.05 | G13: 0.03 | H13: 0.02 | I13: 2 | J13: 1 | K13: 2 | L13: 300 | M13: 0.1 | N13: 1500 | O13: 6 | P13: 0.06618477404 | Q13: 0.0453433305 | R13: 0.05376559794 | S13: 0.033146891
B14: 1st Growth Low | C14: 60 | D14: 43000 | E14: 4500 | F14: =F9 -> 0.03 | G14: 0.03 | H14: 0.02 | I14: 2 | J14: 1 | K14: 2 | L14: 300 | M14: 0.1 | N14: 1500 | O14: 7 | P14: 0.07816758454 | Q14: 0.05709786713 | R14: 0.06329505146 | S14: 0.04249198735
B15: 2nd Growth Low | C15: 60 | D15: 43000 | E15: 4500 | F15: 0.05 | G15: =G9 -> 0.02 | H15: 0.02 | I15: 2 | J15: 1 | K15: 2 | L15: 300 | M15: 0.1 | N15: 1500 | O15: 8 | P15: 0.07897886336 | Q15: 0.0578938514 | R15: 0.06390973032 | S15: 0.04309483469
B16: 3rd Growth Low | C16: 60 | D16: 43000 | E16: 4500 | F16: 0.05 | G16: 0.03 | H16: =H9 -> 0.015 | I16: 2 | J16: 1 | K16: 2 | L16: 300 | M16: 0.1 | N16: 1500 | O16: 9 | P16: 0.07951585352 | Q16: 0.05842073262 | R16: 0.0643114537 | S16: 0.04348883927
B17: Toll Rate Low | C17: 60 | D17: 43000 | E17: 4500 | F17: 0.05 | G17: 0.03 | H17: 0.02 | I17: =I9 -> 1.5 | J17: 1 | K17: 2 | L17: 300 | M17: 0.1 | N17: 1500 | O17: 10 | P17: 0.06107405126 | Q17: 0.04033021033 | R17: 0.04966687262 | S17: 0.02912754714
B18: Inflation Rate Low | C18: 60 | D18: 43000 | E18: 4500 | F18: 0.05 | G18: 0.03 | H18: 0.02 | I18: 2 | J18: =J9 -> 2 | K18: 2 | L18: 300 | M18: 0.1 | N18: 1500 | O18: 11 | P18: 0.07564296424 | Q18: 0.05978355706 | R18: 0.0608902961 | S18: 0.04522365034
B19: Rev Infl Period Low | C19: 60 | D19: 43000 | E19: 4500 | F19: 0.05 | G19: 0.03 | H19: 0.02 | I19: 2 | J19: 1 | K19: =K9 -> 3 | L19: 300 | M19: 0.1 | N19: 1500 | O19: 12 | P19: 0.0799985081 | Q19: 0.05889392793 | R19: 0.06475097835 | S19: 0.04391974509
B20: Fixed Expense Low | C20: 60 | D20: 43000 | E20: 4500 | F20: 0.05 | G20: 0.03 | H20: 0.02 | I20: 2 | J20: 1 | K20: 2 | L20: =L9 -> 400 | M20: 0.1 | N20: 1500 | O20: 13 | P20: 0.07904003561 | Q20: 0.05795348585 | R20: 0.06403518021 | S20: 0.04321769774
B21: Variable Expense Low | C21: 60 | D21: 43000 | E21: 4500 | F21: 0.05 | G21: 0.03 | H21: 0.02 | I21: 2 | J21: 1 | K21: 2 | L21: 300 | M21: =M9 -> 0.12 | N21: 1500 | O21: 14 | P21: 0.07991833389 | Q21: 0.05881524384 | R21: 0.06469445527 | S21: 0.04386430681
B22: Resurfacing Expense Low | C22: 60 | D22: 43000 | E22: 4500 | F22: 0.05 | G22: 0.03 | H22: 0.02 | I22: 2 | J22: 1 | K22: 2 | L22: 300 | M22: =M8 -> 0.1 | N22: =N9 -> 2000 | O22: 15 | P22: 0.0796083957 | Q22: 0.05851116478 | R22: 0.06446928084 | S22: 0.04364346564
B23: =TRANSPOSE(C6:N6)&" High" -> Construction Period High | C23: =C10 -> 55 | D23: 43000 | E23: 4500 | F23: 0.05 | G23: 0.03 | H23: 0.02 | I23: 2 | J23: 1 | K23: 2 | L23: 300 | M23: =M8 -> 0.1 | N23: 1500 | O23: 16 | P23: 0.08171384037 | Q23: 0.06057940423 | R23: 0.06624545753 | S23: 0.0453884989
B24: EPC Expenditure High | C24: 60 | D24: =D10 -> 42000 | E24: 4500 | F24: 0.05 | G24: 0.03 | H24: 0.02 | I24: 2 | J24: 1 | K24: 2 | L24: 300 | M24: =M8 -> 0.1 | N24: 1500 | O24: 17 | P24: 0.08206421435 | Q24: 0.06092031896 | R24: 0.06639439762 | S24: 0.0455313772
B25: Base Traffic High | C25: 60 | D25: 43000 | E25: =E10 -> 5500 | F25: 0.05 | G25: 0.03 | H25: 0.02 | I25: 2 | J25: 1 | K25: 2 | L25: 300 | M25: =M11 -> 0.1 | N25: 1500 | O25: 18 | P25: 0.09474194944 | Q25: 0.07335750759 | R25: 0.07634420693 | S25: 0.05528902113
B26: 1st Growth High | C26: 60 | D26: 43000 | E26: 4500 | F26: =F10 -> 0.07 | G26: 0.03 | H26: 0.02 | I26: 2 | J26: 1 | K26: 2 | L26: 300 | M26: 0.1 | N26: 1500 | O26: 19 | P26: 0.08312924802 | Q26: 0.06196505129 | R26: 0.06724548042 | S26: 0.04636599123
B27: 2nd Growth High | C27: 60 | D27: 43000 | E27: 4500 | F27: 0.05 | G27: =G10 -> 0.04 | H27: 0.02 | I27: 2 | J27: 1 | K27: 2 | L27: 300 | M27: 0.1 | N27: 1500 | O27: 20 | P27: 0.08232842386 | Q27: 0.06117931306 | R27: 0.06664209664 | S27: 0.04577421248
B28: 3rd Growth High | C28: =C$8 -> 60 | D28: 43000 | E28: 4500 | F28: 0.05 | G28: 0.03 | H28: =H10 -> 0.03 | I28: 2 | J28: 1 | K28: 2 | L28: 300 | M28: 0.1 | N28: 1500 | O28: 21 | P28: 0.08292935193 | Q28: 0.06176839173 | R28: 0.06720698178 | S28: 0.04632799327
B29: Toll Rate High | C29: 60 | D29: 43000 | E29: 4500 | F29: 0.05 | G29: 0.03 | H29: 0.02 | I29: =I10 -> 3 | J29: 1 | K29: 2 | L29: 300 | M29: 0.1 | N29: 1500 | O29: 22 | P29: 0.11184569 | Q29: 0.09013796747 | R29: 0.08959997594 | S29: 0.06828918755
B30: Inflation Rate High | C30: 60 | D30: 43000 | E30: 4500 | F30: 0.05 | G30: 0.03 | H30: 0.02 | I30: 2 | J30: =J10 -> 3 | K30: 2 | L30: 300 | M30: 0.1 | N30: 1500 | O30: 23 | P30: 0.09022072852 | Q30: 0.05856195986 | R30: 0.07377271354 | S30: 0.04255815446
B31: Rev Infl Period High | C31: 60 | D31: 43000 | E31: 4500 | F31: 0.05 | G31: 0.03 | H31: 0.02 | I31: 2 | J31: 1 | K31: =K10 -> 1 | L31: 300 | M31: 0.1 | N31: 1500 | O31: 24 | P31: 0.08132598102 | Q31: 0.06019610465 | R31: 0.06581242383 | S31: 0.0449606508
B32: Fixed Expense High | C32: 60 | D32: 43000 | E32: 4500 | F32: 0.05 | G32: 0.03 | H32: 0.02 | I32: 2 | J32: 1 | K32: 2 | L32: =L10 -> 260 | M32: 0.1 | N32: 1500 | O32: 25 | P32: 0.0812995404 | Q32: 0.06017026007 | R32: 0.06577217281 | S32: 0.04492121637
B33: Variable Expense High | C33: 60 | D33: 43000 | E33: 4500 | F33: 0.05 | G33: 0.03 | H33: 0.02 | I33: 2 | J33: 1 | K33: 2 | L33: 300 | M33: =M10 -> 0.09 | N33: 1500 | O33: 26 | P33: 0.08102437556 | Q33: 0.05990025699 | R33: 0.06556909978 | S33: 0.04472204149
B34: Resurfacing Expense High | C34: 60 | D34: 43000 | E34: 4500 | F34: 0.05 | G34: 0.03 | H34: 0.02 | I34: 2 | J34: 1 | K34: 2 | L34: 300 | M34: 0.1 | N34: =N10 -> 1300 | O34: 27 | P34: 0.08107430041 | Q34: 0.05994924605 | R34: 0.06560073793 | S34: 0.04475307763
B35: Flex Case | C35: =C42/C40 -> 60 | D35: =D42/D40 -> 43000 | E35: 4500 | F35: 0.05 | G35: 0.03 | H35: 0.02 | I35: 2 | J35: 1 | K35: =K42/K40 -> 2 | L35: =L42/L40 -> 300 | M35: =M42/M40 -> 0.1 | N35: =N42/N40 -> 1500 | O35: 28 | P35: 0.08065695465 | Q35: 0.05953982174 | R35: 0.06527864635 | S35: 0.04443719685
B37: =INDEX(B8:B35,$C$2) -> Base Case | C37: =INDEX(C8:C35,$C$2) -> 60 | D37: =INDEX(D8:D35,$C$2) -> 43000 | E37: 4500 | F37: 0.05 | G37: 0.03 | H37: 0.02 | I37: 2 | J37: 1 | K37: 2 | L37: 300 | M37: 0.1 | N37: 1500
B39: Copied | C39: 60 | D39: 43000 | E39: 4500 | F39: 0.05 | G39: 0.03 | H39: 0.02 | I39: 2 | J39: 1 | K39: 2 | L39: 300 | M39: 0.1 | N39: 1500
B40: Multiplier | C40: 1 | D40: 0.01 | E40: 1 | F40: 100 | G40: 100 | H40: 100 | I40: 100 | K40: 1 | L40: 1 | M40: 100 | N40: 1
B41: Adjusted | C41: =C39*C40 -> 60 | D41: =D39*D40 -> 430 | E41: 4500 | F41: 5 | G41: 3 | H41: 2 | I41: 200 | J41: 0 | K41: 2 | L41: 300 | M41: 10 | N41: 1500
B42: Spinner/Combo Box | C42: 60 | D42: 430 | E42: 4500 | F42: 5 | G42: 3 | H42: 2 | I42: 200 | J42: 0 | K42: 2 | L42: 300 | M42: 10 | N42: 1500
C46: Low vs Base | D46: High vs Base | F46: Total | G46: Small | H46: Match | I46: Index | J46: Low vs Base | K46: High vs Base
B47: =TRANSPOSE(C6:N6) -> Construction Period | C47: =-$P$8+P11 -> -0.001791715622 | D47: =-$P$8+P23 -> 0.001056885719 | E47: 1 | F47: =D47-C47 -> 0.002848601341 | G47: =SMALL($F$47:$F$58,E47) -> 0.00110604167 | H47: =MATCH(G47,$F$47:$F$58,0) -> 11 | I47: =INDEX($B$47:$B$58,H47) -> Variable Expense | J47: =INDEX($C$47:$C$58,H47) -> -0.0007386207581 | K47: =INDEX($D$47:$D$58,H47) -> 0.0003674209118
B48: EPC Expenditure | C48: -0.008699315786 | D48: 0.001407259703 | E48: =E47+1 -> 2 | F48: =D48-C48 -> 0.01010657549 | G48: =SMALL($F$47:$F$58,E48) -> 0.001327472925 | H48: =MATCH(G48,$F$47:$F$58,0) -> 9 | I48: =INDEX($B$47:$B$58,H48) -> Rev Infl Period | J48: =INDEX($C$47:$C$58,H48) -> -0.0006584465504 | K48: =INDEX($D$47:$D$58,H48) -> 0.0006690263748
B49: Base Traffic | C49: -0.0144721806 | D49: 0.01408499479 | E49: =E48+1 -> 3 | F49: 0.0285571754 | G49: 0.001465904713 | H49: 12 | I49: Resurfacing Expense | J49: -0.00104855895 | K49: 0.0004173457623
B50: 1st Growth | C50: -0.002489370108 | D50: 0.002472293377 | E50: 4 | F50: 0.004961663485 | G50: 0.002259504795 | H50: 10 | I50: Fixed Expense | J50: -0.001616919041 | K50: 0.0006425857544
B51: 2nd Growth | C51: -0.001678091288 | D51: 0.001671469212 | E51: 5 | F51: 0.003349560499 | G51: 0.002848601341 | H51: 1 | I51: Construction Period | J51: -0.001791715622 | K51: 0.001056885719
B52: 3rd Growth | C52: -0.001141101122 | D52: 0.00227239728 | E52: 6 | F52: 0.003413498402 | G52: 0.003349560499 | H52: 5 | I52: 2nd Growth | J52: -0.001678091288 | K52: 0.001671469212
B53: Toll Rate | C53: -0.01958290339 | D53: 0.03118873537 | E53: 7 | F53: 0.05077163875 | G53: 0.003413498402 | H53: 6 | I53: 3rd Growth | J53: -0.001141101122 | K53: 0.00227239728
B54: Inflation Rate | C54: -0.005013990402 | D54: 0.00956377387 | E54: 8 | F54: 0.01457776427 | G54: 0.004961663485 | H54: 4 | I54: 1st Growth | J54: -0.002489370108 | K54: 0.002472293377
B55: Rev Infl Period | C55: -0.0006584465504 | D55: 0.0006690263748 | E55: 9 | F55: 0.001327472925 | G55: 0.01010657549 | H55: 2 | I55: EPC Expenditure | J55: -0.008699315786 | K55: 0.001407259703
B56: Fixed Expense | C56: -0.001616919041 | D56: 0.0006425857544 | E56: 10 | F56: 0.002259504795 | G56: 0.01457776427 | H56: 8 | I56: Inflation Rate | J56: -0.005013990402 | K56: 0.00956377387
B57: Variable Expense | C57: -0.0007386207581 | D57: 0.0003674209118 | E57: 11 | F57: 0.00110604167 | G57: 0.0285571754 | H57: 3 | I57: Base Traffic | J57: -0.0144721806 | K57: 0.01408499479
B58: Resurfacing Expense | C58: -0.00104855895 | D58: 0.0004173457623 | E58: 12 | F58: 0.001465904713 | G58: 0.05077163875 | H58: 7 | I58: Toll Rate | J58: -0.01958290339 | K58: 0.03118873537

Sheet Working analysis
B1: Start of the period | F1: Date | L1: =K2+1 -> 2013-07-01 | M1: =L2+1 -> 2013-08-01 | N1: 2013-09-01 | O1: 2013-10-01 | P1: 2013-11-01 | Q1: 2013-12-01 | R1: 2014-01-01 | S1: 2014-02-01 | T1: 2014-03-01 | U1: 2014-04-01 | V1: 2014-05-01 | W1: 2014-06-01 | X1: 2014-07-01 | Y1: 2014-08-01 | Z1: 2014-09-01 | AA1: 2014-10-01 | AB1: 2014-11-01 | AC1: 2014-12-01 | AD1: 2015-01-01 | AE1: 2015-02-01 | AF1: 2015-03-01 | AG1: 2015-04-01 | AH1: 2015-05-01 | AI1: 2015-06-01 | AJ1: 2015-07-01 | AK1: 2015-08-01 | AL1: 2015-09-01 | AM1: 2015-10-01 | AN1: 2015-11-01 | AO1: 2015-12-01 | AP1: 2016-01-01 | AQ1: 2016-02-01 | AR1: 2016-03-01 | AS1: 2016-04-01 | AT1: 2016-05-01 | AU1: 2016-06-01 | AV1: 2016-07-01 | AW1: 2016-08-01 | AX1: 2016-09-01 | AY1: 2016-10-01 | AZ1: 2016-11-01 | BA1: 2016-12-01 | BB1: 2017-01-01 | BC1: 2017-02-01 | BD1: 2017-03-01 | BE1: 2017-04-01 | BF1: 2017-05-01 | BG1: 2017-06-01 | BH1: 2017-07-01 | BI1: 2017-08-01 | BJ1: 2017-09-01 | BK1: 2017-10-01 | BL1: 2017-11-01 | BM1: 2017-12-01 | BN1: 2018-01-01 | BO1: 2018-02-01 | BP1: 2018-03-01 | BQ1: 2018-04-01 | BR1: 2018-05-01 | BS1: 2018-06-01 | BT1: 2018-07-01 | BU1: 2018-08-01 | BV1: 2018-09-01 | BW1: 2018-10-01 | BX1: 2018-11-01 | BY1: =BX2+1 -> 2018-12-01 | BZ1: 2019-01-01 | CA1: 2019-02-01 | CB1: 2019-03-01 | CC1: 2019-04-01 | CD1: 2019-05-01 | CE1: 2019-06-01 | CF1: 2019-07-01 | CG1: 2019-08-01 | CH1: 2019-09-01 | CI1: 2019-10-01 | CJ1: 2019-11-01 | CK1: 2019-12-01 | CL1: 2020-01-01 | CM1: 2020-07-01 | CN1: 2021-01-01 | CO1: 2021-07-01 | CP1: 2022-01-01 | CQ1: 2022-07-01 | CR1: 2023-01-01 | CS1: 2023-07-01 | CT1: 2024-01-01 | CU1: 2024-07-01 | CV1: 2025-01-01 | CW1: 2025-07-01 | CX1: 2026-01-01 | CY1: 2026-07-01 | CZ1: 2027-01-01 | DA1: 2027-07-01 | DB1: 2028-01-01 | DC1: 2028-07-01 | DD1: 2029-01-01 | DE1: 2029-07-01 | DF1: 2030-01-01 | DG1: 2030-07-01 | DH1: 2031-01-01 | DI1: 2031-07-01 | DJ1: 2032-01-01 | DK1: 2032-07-01 | DL1: 2033-01-01 | DM1: 2033-07-01 | DN1: 2034-01-01 | DO1: 2034-07-01 | DP1: 2035-01-01 | DQ1: 2035-07-01 | DR1: 2036-01-01 | DS1: 2036-07-01 | DT1: 2037-01-01 | DU1: 2037-07-01 | DV1: 2038-01-01 | DW1: 2038-07-01 | DX1: 2039-01-01 | DY1: 2039-07-01 | DZ1: 2040-01-01 | EA1: 2040-07-01 | EB1: 2041-01-01 | EC1: 2041-07-01 | ED1: 2042-01-01 | EE1: 2042-07-01 | EF1: 2043-01-01 | EG1: 2043-07-01 | EH1: 2044-01-01 | EI1: 2044-07-01 | EJ1: 2045-01-01 | EK1: =EJ2+1 -> 2045-07-01 | EL1: 2046-01-01 | EM1: 2046-07-01 | EN1: 2047-01-01 | EO1: 2047-07-01 | EP1: 2048-01-01 | EQ1: 2048-07-01 | ER1: 2049-01-01 | ES1: 2049-07-01 | ET1: 2050-01-01 | EU1: 2050-07-01 | EV1: 2051-01-01 | EW1: 2051-07-01 | EX1: 2052-01-01 | EY1: 2052-07-01 | EZ1: 2053-01-01 | FA1: 2053-07-01 | FB1: 2054-01-01 | FC1: 2054-07-01 | FD1: 2055-01-01 | FE1: 2055-07-01 | FF1: 2056-01-01 | FG1: 2056-07-01 | FH1: 2057-01-01 | FI1: 2057-07-01 | FJ1: 2058-01-01 | FK1: 2058-07-01 | FL1: 2059-01-01 | FM1: 2059-07-01 | FN1: 2060-01-01 | FO1: 2060-07-01 | FP1: 2061-01-01 | FQ1: 2061-07-01 | FR1: 2062-01-01 | FS1: 2062-07-01 | FT1: 2063-01-01 | FU1: 2063-07-01 | FV1: 2064-01-01 | FW1: 2064-07-01 | FX1: 2065-01-01 | FY1: 2065-07-01 | FZ1: 2066-01-01 | GA1: 2066-07-01 | GB1: 2067-01-01 | GC1: 2067-07-01 | GD1: 2068-01-01 | GE1: 2068-07-01 | GF1: 2069-01-01 | GG1: 2069-07-01 | GH1: 2070-01-01 | GI1: 2070-07-01 | GJ1: 2071-01-01 | GK1: 2071-07-01 | GL1: 2072-01-01 | GM1: 2072-07-01 | GN1: 2073-01-01 | GO1: 2073-07-01 | GP1: 2074-01-01 | GQ1: 2074-07-01 | GR1: 2075-01-01 | GS1: 2075-07-01 | GT1: 2076-01-01 | GU1: 2076-07-01 | GV1: 2077-01-01 | GW1: =GV2+1 -> 2077-07-01 | GX1: 2078-01-01 | GY1: 2078-07-01 | GZ1: 2079-01-01 | HA1: 2079-07-01 | HB1: 2080-01-01 | HC1: 2080-07-01 | HD1: 2081-01-01 | HE1: 2081-07-01 | HF1: 2082-01-01 | HG1: 2082-07-01 | HH1: 2083-01-01 | HI1: 2083-07-01 | HJ1: 2084-01-01 | HK1: 2084-07-01 | HL1: 2085-01-01 | HM1: 2085-07-01 | HN1: 2086-01-01 | HO1: 2086-07-01 | HP1: 2087-01-01 | HQ1: 2087-07-01 | HR1: 2088-01-01 | HS1: 2088-07-01 | HT1: 2089-01-01 | HU1: 2089-07-01 | HV1: 2090-01-01 | HW1: 2090-07-01 | HX1: 2091-01-01 | HY1: 2091-07-01 | HZ1: 2092-01-01 | IA1: 2092-07-01 | IB1: 2093-01-01 | IC1: 2093-07-01 | ID1: 2094-01-01 | IE1: 2094-07-01 | IF1: 2095-01-01 | IG1: 2095-07-01 | IH1: 2096-01-01 | II1: 2096-07-01 | IJ1: 2097-01-01 | IK1: 2097-07-01 | IL1: 2098-01-01 | IM1: 2098-07-01 | IN1: 2099-01-01 | IO1: 2099-07-01 | IP1: 2100-01-01 | IQ1: 2100-07-01 | IR1: 2101-01-01 | IS1: 2101-07-01 | IT1: 2102-01-01 | IU1: 2102-07-01 | IV1: 2103-01-01 | IW1: 2103-07-01 | IX1: 2104-01-01 | IY1: 2104-07-01 | IZ1: 2105-01-01 | JA1: 2105-07-01 | JB1: 2106-01-01 | JC1: 2106-07-01 | JD1: 2107-01-01 | JE1: 2107-07-01 | JF1: 2108-01-01 | JG1: 2108-07-01 | JH1: 2109-01-01 | JI1: =JH2+1 -> 2109-07-01 | JJ1: 2110-01-01 | JK1: 2110-07-01 | JL1: 2111-01-01 | JM1: 2111-07-01 | JN1: 2112-01-01 | JO1: 2112-07-01 | JP1: 2113-01-01 | JQ1: 2113-07-01 | JR1: 2114-01-01 | JS1: 2114-07-01 | JT1: 2115-01-01 | JU1: 2115-07-01 | JV1: 2116-01-01 | JW1: 2116-07-01 | JX1: 2117-01-01 | JY1: 2117-07-01 | JZ1: 2118-01-01 | KA1: 2118-07-01 | KB1: 2119-01-01 | KC1: 2119-07-01
B2: End of the period | F2: Date | G2: ='Operating assumptions'!G4 -> 2013-07-01 | J2: =INDEX(1:1,MATCH(1,5:5))='Operating assumptions'!G8 -> TRUE | K2: =G2-1 -> 2013-06-30 | L2: =EOMONTH(L1,L7-1) -> 2013-07-31 | M2: 2013-08-31 | N2: 2013-09-30 | O2: 2013-10-31 | P2: 2013-11-30 | Q2: 2013-12-31 | R2: 2014-01-31 | S2: 2014-02-28 | T2: 2014-03-31 | U2: 2014-04-30 | V2: 2014-05-31 | W2: 2014-06-30 | X2: 2014-07-31 | Y2: 2014-08-31 | Z2: 2014-09-30 | AA2: 2014-10-31 | AB2: 2014-11-30 | AC2: 2014-12-31 | AD2: 2015-01-31 | AE2: 2015-02-28 | AF2: 2015-03-31 | AG2: 2015-04-30 | AH2: 2015-05-31 | AI2: 2015-06-30 | AJ2: 2015-07-31 | AK2: 2015-08-31 | AL2: 2015-09-30 | AM2: 2015-10-31 | AN2: 2015-11-30 | AO2: 2015-12-31 | AP2: 2016-01-31 | AQ2: 2016-02-29 | AR2: 2016-03-31 | AS2: 2016-04-30 | AT2: 2016-05-31 | AU2: 2016-06-30 | AV2: 2016-07-31 | AW2: 2016-08-31 | AX2: 2016-09-30 | AY2: 2016-10-31 | AZ2: 2016-11-30 | BA2: 2016-12-31 | BB2: 2017-01-31 | BC2: 2017-02-28 | BD2: 2017-03-31 | BE2: 2017-04-30 | BF2: 2017-05-31 | BG2: 2017-06-30 | BH2: 2017-07-31 | BI2: 2017-08-31 | BJ2: 2017-09-30 | BK2: 2017-10-31 | BL2: 2017-11-30 | BM2: 2017-12-31 | BN2: 2018-01-31 | BO2: 2018-02-28 | BP2: 2018-03-31 | BQ2: 2018-04-30 | BR2: 2018-05-31 | BS2: 2018-06-30 | BT2: 2018-07-31 | BU2: 2018-08-31 | BV2: 2018-09-30 | BW2: 2018-10-31 | BX2: =EOMONTH(BX1,BX7-1) -> 2018-11-30 | BY2: 2018-12-31 | BZ2: 2019-01-31 | CA2: 2019-02-28 | CB2: 2019-03-31 | CC2: 2019-04-30 | CD2: 2019-05-31 | CE2: 2019-06-30 | CF2: 2019-07-31 | CG2: 2019-08-31 | CH2: 2019-09-30 | CI2: 2019-10-31 | CJ2: 2019-11-30 | CK2: 2019-12-31 | CL2: 2020-06-30 | CM2: 2020-12-31 | CN2: 2021-06-30 | CO2: 2021-12-31 | CP2: 2022-06-30 | CQ2: 2022-12-31 | CR2: 2023-06-30 | CS2: 2023-12-31 | CT2: 2024-06-30 | CU2: 2024-12-31 | CV2: 2025-06-30 | CW2: 2025-12-31 | CX2: 2026-06-30 | CY2: 2026-12-31 | CZ2: 2027-06-30 | DA2: 2027-12-31 | DB2: 2028-06-30 | DC2: 2028-12-31 | DD2: 2029-06-30 | DE2: 2029-12-31 | DF2: 2030-06-30 | DG2: 2030-12-31 | DH2: 2031-06-30 | DI2: 2031-12-31 | DJ2: 2032-06-30 | DK2: 2032-12-31 | DL2: 2033-06-30 | DM2: 2033-12-31 | DN2: 2034-06-30 | DO2: 2034-12-31 | DP2: 2035-06-30 | DQ2: 2035-12-31 | DR2: 2036-06-30 | DS2: 2036-12-31 | DT2: 2037-06-30 | DU2: 2037-12-31 | DV2: 2038-06-30 | DW2: 2038-12-31 | DX2: 2039-06-30 | DY2: 2039-12-31 | DZ2: 2040-06-30 | EA2: 2040-12-31 | EB2: 2041-06-30 | EC2: 2041-12-31 | ED2: 2042-06-30 | EE2: 2042-12-31 | EF2: 2043-06-30 | EG2: 2043-12-31 | EH2: 2044-06-30 | EI2: 2044-12-31 | EJ2: =EOMONTH(EJ1,EJ7-1) -> 2045-06-30 | EK2: 2045-12-31 | EL2: 2046-06-30 | EM2: 2046-12-31 | EN2: 2047-06-30 | EO2: 2047-12-31 | EP2: 2048-06-30 | EQ2: 2048-12-31 | ER2: 2049-06-30 | ES2: 2049-12-31 | ET2: 2050-06-30 | EU2: 2050-12-31 | EV2: 2051-06-30 | EW2: 2051-12-31 | EX2: 2052-06-30 | EY2: 2052-12-31 | EZ2: 2053-06-30 | FA2: 2053-12-31 | FB2: 2054-06-30 | FC2: 2054-12-31 | FD2: 2055-06-30 | FE2: 2055-12-31 | FF2: 2056-06-30 | FG2: 2056-12-31 | FH2: 2057-06-30 | FI2: 2057-12-31 | FJ2: 2058-06-30 | FK2: 2058-12-31 | FL2: 2059-06-30 | FM2: 2059-12-31 | FN2: 2060-06-30 | FO2: 2060-12-31 | FP2: 2061-06-30 | FQ2: 2061-12-31 | FR2: 2062-06-30 | FS2: 2062-12-31 | FT2: 2063-06-30 | FU2: 2063-12-31 | FV2: 2064-06-30 | FW2: 2064-12-31 | FX2: 2065-06-30 | FY2: 2065-12-31 | FZ2: 2066-06-30 | GA2: 2066-12-31 | GB2: 2067-06-30 | GC2: 2067-12-31 | GD2: 2068-06-30 | GE2: 2068-12-31 | GF2: 2069-06-30 | GG2: 2069-12-31 | GH2: 2070-06-30 | GI2: 2070-12-31 | GJ2: 2071-06-30 | GK2: 2071-12-31 | GL2: 2072-06-30 | GM2: 2072-12-31 | GN2: 2073-06-30 | GO2: 2073-12-31 | GP2: 2074-06-30 | GQ2: 2074-12-31 | GR2: 2075-06-30 | GS2: 2075-12-31 | GT2: 2076-06-30 | GU2: 2076-12-31 | GV2: =EOMONTH(GV1,GV7-1) -> 2077-06-30 | GW2: 2077-12-31 | GX2: 2078-06-30 | GY2: 2078-12-31 | GZ2: 2079-06-30 | HA2: 2079-12-31 | HB2: 2080-06-30 | HC2: 2080-12-31 | HD2: 2081-06-30 | HE2: 2081-12-31 | HF2: 2082-06-30 | HG2: 2082-12-31 | HH2: 2083-06-30 | HI2: 2083-12-31 | HJ2: 2084-06-30 | HK2: 2084-12-31 | HL2: 2085-06-30 | HM2: 2085-12-31 | HN2: 2086-06-30 | HO2: 2086-12-31 | HP2: 2087-06-30 | HQ2: 2087-12-31 | HR2: 2088-06-30 | HS2: 2088-12-31 | HT2: 2089-06-30 | HU2: 2089-12-31 | HV2: 2090-06-30 | HW2: 2090-12-31 | HX2: 2091-06-30 | HY2: 2091-12-31 | HZ2: 2092-06-30 | IA2: 2092-12-31 | IB2: 2093-06-30 | IC2: 2093-12-31 | ID2: 2094-06-30 | IE2: 2094-12-31 | IF2: 2095-06-30 | IG2: 2095-12-31 | IH2: 2096-06-30 | II2: 2096-12-31 | IJ2: 2097-06-30 | IK2: 2097-12-31 | IL2: 2098-06-30 | IM2: 2098-12-31 | IN2: 2099-06-30 | IO2: 2099-12-31 | IP2: 2100-06-30 | IQ2: 2100-12-31 | IR2: 2101-06-30 | IS2: 2101-12-31 | IT2: 2102-06-30 | IU2: 2102-12-31 | IV2: 2103-06-30 | IW2: 2103-12-31 | IX2: 2104-06-30 | IY2: 2104-12-31 | IZ2: 2105-06-30 | JA2: 2105-12-31 | JB2: 2106-06-30 | JC2: 2106-12-31 | JD2: 2107-06-30 | JE2: 2107-12-31 | JF2: 2108-06-30 | JG2: 2108-12-31 | JH2: =EOMONTH(JH1,JH7-1) -> 2109-06-30 | JI2: 2109-12-31 | JJ2: 2110-06-30 | JK2: 2110-12-31 | JL2: 2111-06-30 | JM2: 2111-12-31 | JN2: 2112-06-30 | JO2: 2112-12-31 | JP2: 2113-06-30 | JQ2: 2113-12-31 | JR2: 2114-06-30 | JS2: 2114-12-31 | JT2: 2115-06-30 | JU2: 2115-12-31 | JV2: 2116-06-30 | JW2: 2116-12-31 | JX2: 2117-06-30 | JY2: 2117-12-31 | JZ2: 2118-06-30 | KA2: 2118-12-31 | KB2: 2119-06-30 | KC2: 2119-12-31
B3: Year | L3: =YEAR(L1) -> 2013 | M3: =YEAR(M1) -> 2013 | N3: 2013 | O3: 2013 | P3: 2013 | Q3: 2013 | R3: 2014 | S3: 2014 | T3: 2014 | U3: 2014 | V3: 2014 | W3: 2014 | X3: 2014 | Y3: 2014 | Z3: 2014 | AA3: 2014 | AB3: 2014 | AC3: 2014 | AD3: 2015 | AE3: 2015 | AF3: 2015 | AG3: 2015 | AH3: 2015 | AI3: 2015 | AJ3: 2015 | AK3: 2015 | AL3: 2015 | AM3: 2015 | AN3: 2015 | AO3: 2015 | AP3: 2016 | AQ3: 2016 | AR3: 2016 | AS3: 2016 | AT3: 2016 | AU3: 2016 | AV3: 2016 | AW3: 2016 | AX3: 2016 | AY3: 2016 | AZ3: 2016 | BA3: 2016 | BB3: 2017 | BC3: 2017 | BD3: 2017 | BE3: 2017 | BF3: 2017 | BG3: 2017 | BH3: 2017 | BI3: 2017 | BJ3: 2017 | BK3: 2017 | BL3: 2017 | BM3: 2017 | BN3: 2018 | BO3: 2018 | BP3: 2018 | BQ3: 2018 | BR3: 2018 | BS3: 2018 | BT3: 2018 | BU3: 2018 | BV3: 2018 | BW3: 2018 | BX3: 2018 | BY3: =YEAR(BY1) -> 2018 | BZ3: 2019 | CA3: 2019 | CB3: 2019 | CC3: 2019 | CD3: 2019 | CE3: 2019 | CF3: 2019 | CG3: 2019 | CH3: 2019 | CI3: 2019 | CJ3: 2019 | CK3: 2019 | CL3: 2020 | CM3: 2020 | CN3: 2021 | CO3: 2021 | CP3: 2022 | CQ3: 2022 | CR3: 2023 | CS3: 2023 | CT3: 2024 | CU3: 2024 | CV3: 2025 | CW3: 2025 | CX3: 2026 | CY3: 2026 | CZ3: 2027 | DA3: 2027 | DB3: 2028 | DC3: 2028 | DD3: 2029 | DE3: 2029 | DF3: 2030 | DG3: 2030 | DH3: 2031 | DI3: 2031 | DJ3: 2032 | DK3: 2032 | DL3: 2033 | DM3: 2033 | DN3: 2034 | DO3: 2034 | DP3: 2035 | DQ3: 2035 | DR3: 2036 | DS3: 2036 | DT3: 2037 | DU3: 2037 | DV3: 2038 | DW3: 2038 | DX3: 2039 | DY3: 2039 | DZ3: 2040 | EA3: 2040 | EB3: 2041 | EC3: 2041 | ED3: 2042 | EE3: 2042 | EF3: 2043 | EG3: 2043 | EH3: 2044 | EI3: 2044 | EJ3: 2045 | EK3: =YEAR(EK1) -> 2045 | EL3: 2046 | EM3: 2046 | EN3: 2047 | EO3: 2047 | EP3: 2048 | EQ3: 2048 | ER3: 2049 | ES3: 2049 | ET3: 2050 | EU3: 2050 | EV3: 2051 | EW3: 2051 | EX3: 2052 | EY3: 2052 | EZ3: 2053 | FA3: 2053 | FB3: 2054 | FC3: 2054 | FD3: 2055 | FE3: 2055 | FF3: 2056 | FG3: 2056 | FH3: 2057 | FI3: 2057 | FJ3: 2058 | FK3: 2058 | FL3: 2059 | FM3: 2059 | FN3: 2060 | FO3: 2060 | FP3: 2061 | FQ3: 2061 | FR3: 2062 | FS3: 2062 | FT3: 2063 | FU3: 2063 | FV3: 2064 | FW3: 2064 | FX3: 2065 | FY3: 2065 | FZ3: 2066 | GA3: 2066 | GB3: 2067 | GC3: 2067 | GD3: 2068 | GE3: 2068 | GF3: 2069 | GG3: 2069 | GH3: 2070 | GI3: 2070 | GJ3: 2071 | GK3: 2071 | GL3: 2072 | GM3: 2072 | GN3: 2073 | GO3: 2073 | GP3: 2074 | GQ3: 2074 | GR3: 2075 | GS3: 2075 | GT3: 2076 | GU3: 2076 | GV3: 2077 | GW3: =YEAR(GW1) -> 2077 | GX3: 2078 | GY3: 2078 | GZ3: 2079 | HA3: 2079 | HB3: 2080 | HC3: 2080 | HD3: 2081 | HE3: 2081 | HF3: 2082 | HG3: 2082 | HH3: 2083 | HI3: 2083 | HJ3: 2084 | HK3: 2084 | HL3: 2085 | HM3: 2085 | HN3: 2086 | HO3: 2086 | HP3: 2087 | HQ3: 2087 | HR3: 2088 | HS3: 2088 | HT3: 2089 | HU3: 2089 | HV3: 2090 | HW3: 2090 | HX3: 2091 | HY3: 2091 | HZ3: 2092 | IA3: 2092 | IB3: 2093 | IC3: 2093 | ID3: 2094 | IE3: 2094 | IF3: 2095 | IG3: 2095 | IH3: 2096 | II3: 2096 | IJ3: 2097 | IK3: 2097 | IL3: 2098 | IM3: 2098 | IN3: 2099 | IO3: 2099 | IP3: 2100 | IQ3: 2100 | IR3: 2101 | IS3: 2101 | IT3: 2102 | IU3: 2102 | IV3: 2103 | IW3: 2103 | IX3: 2104 | IY3: 2104 | IZ3: 2105 | JA3: 2105 | JB3: 2106 | JC3: 2106 | JD3: 2107 | JE3: 2107 | JF3: 2108 | JG3: 2108 | JH3: 2109 | JI3: =YEAR(JI1) -> 2109 | JJ3: 2110 | JK3: 2110 | JL3: 2111 | JM3: 2111 | JN3: 2112 | JO3: 2112 | JP3: 2113 | JQ3: 2113 | JR3: 2114 | JS3: 2114 | JT3: 2115 | JU3: 2115 | JV3: 2116 | JW3: 2116 | JX3: 2117 | JY3: 2117 | JZ3: 2118 | KA3: 2118 | KB3: 2119 | KC3: 2119
A4: Timing | F4: Unit | J4: Test
B5: Period | G5: ='Operating assumptions'!G5+'Operating assumptions'!G7 -> 78 | K5: =-G5 -> -78 | L5: =K5+1 -> -77 | M5: =L5+1 -> -76 | N5: -75 | O5: -74 | P5: -73 | Q5: -72 | R5: -71 | S5: -70 | T5: -69 | U5: -68 | V5: -67 | W5: -66 | X5: -65 | Y5: -64 | Z5: -63 | AA5: -62 | AB5: -61 | AC5: -60 | AD5: -59 | AE5: -58 | AF5: -57 | AG5: -56 | AH5: -55 | AI5: -54 | AJ5: -53 | AK5: -52 | AL5: -51 | AM5: -50 | AN5: -49 | AO5: -48 | AP5: -47 | AQ5: -46 | AR5: -45 | AS5: -44 | AT5: -43 | AU5: -42 | AV5: -41 | AW5: -40 | AX5: -39 | AY5: -38 | AZ5: -37 | BA5: -36 | BB5: -35 | BC5: -34 | BD5: -33 | BE5: -32 | BF5: -31 | BG5: -30 | BH5: -29 | BI5: -28 | BJ5: -27 | BK5: -26 | BL5: -25 | BM5: -24 | BN5: -23 | BO5: -22 | BP5: -21 | BQ5: -20 | BR5: -19 | BS5: -18 | BT5: -17 | BU5: -16 | BV5: -15 | BW5: -14 | BX5: -13 | BY5: =BX5+1 -> -12 | BZ5: -11 | CA5: -10 | CB5: -9 | CC5: -8 | CD5: -7 | CE5: -6 | CF5: -5 | CG5: -4 | CH5: -3 | CI5: -2 | CJ5: -1 | CK5: 0 | CL5: 1 | CM5: 2 | CN5: 3 | CO5: 4 | CP5: 5 | CQ5: 6 | CR5: 7 | CS5: 8 | CT5: 9 | CU5: 10 | CV5: 11 | CW5: 12 | CX5: 13 | CY5: 14 | CZ5: 15 | DA5: 16 | DB5: 17 | DC5: 18 | DD5: 19 | DE5: 20 | DF5: 21 | DG5: 22 | DH5: 23 | DI5: 24 | DJ5: 25 | DK5: 26 | DL5: 27 | DM5: 28 | DN5: 29 | DO5: 30 | DP5: 31 | DQ5: 32 | DR5: 33 | DS5: 34 | DT5: 35 | DU5: 36 | DV5: 37 | DW5: 38 | DX5: 39 | DY5: 40 | DZ5: 41 | EA5: 42 | EB5: 43 | EC5: 44 | ED5: 45 | EE5: 46 | EF5: 47 | EG5: 48 | EH5: 49 | EI5: 50 | EJ5: 51 | EK5: =EJ5+1 -> 52 | EL5: 53 | EM5: 54 | EN5: 55 | EO5: 56 | EP5: 57 | EQ5: 58 | ER5: 59 | ES5: 60 | ET5: 61 | EU5: 62 | EV5: 63 | EW5: 64 | EX5: 65 | EY5: 66 | EZ5: 67 | FA5: 68 | FB5: 69 | FC5: 70 | FD5: 71 | FE5: 72 | FF5: 73 | FG5: 74 | FH5: 75 | FI5: 76 | FJ5: 77 | FK5: 78 | FL5: 79 | FM5: 80 | FN5: 81 | FO5: 82 | FP5: 83 | FQ5: 84 | FR5: 85 | FS5: 86 | FT5: 87 | FU5: 88 | FV5: 89 | FW5: 90 | FX5: 91 | FY5: 92 | FZ5: 93 | GA5: 94 | GB5: 95 | GC5: 96 | GD5: 97 | GE5: 98 | GF5: 99 | GG5: 100 | GH5: 101 | GI5: 102 | GJ5: 103 | GK5: 104 | GL5: 105 | GM5: 106 | GN5: 107 | GO5: 108 | GP5: 109 | GQ5: 110 | GR5: 111 | GS5: 112 | GT5: 113 | GU5: 114 | GV5: 115 | GW5: =GV5+1 -> 116 | GX5: 117 | GY5: 118 | GZ5: 119 | HA5: 120 | HB5: 121 | HC5: 122 | HD5: 123 | HE5: 124 | HF5: 125 | HG5: 126 | HH5: 127 | HI5: 128 | HJ5: 129 | HK5: 130 | HL5: 131 | HM5: 132 | HN5: 133 | HO5: 134 | HP5: 135 | HQ5: 136 | HR5: 137 | HS5: 138 | HT5: 139 | HU5: 140 | HV5: 141 | HW5: 142 | HX5: 143 | HY5: 144 | HZ5: 145 | IA5: 146 | IB5: 147 | IC5: 148 | ID5: 149 | IE5: 150 | IF5: 151 | IG5: 152 | IH5: 153 | II5: 154 | IJ5: 155 | IK5: 156 | IL5: 157 | IM5: 158 | IN5: 159 | IO5: 160 | IP5: 161 | IQ5: 162 | IR5: 163 | IS5: 164 | IT5: 165 | IU5: 166 | IV5: 167 | IW5: 168 | IX5: 169 | IY5: 170 | IZ5: 171 | JA5: 172 | JB5: 173 | JC5: 174 | JD5: 175 | JE5: 176 | JF5: 177 | JG5: 178 | JH5: 179 | JI5: =JH5+1 -> 180 | JJ5: 181 | JK5: 182 | JL5: 183 | JM5: 184 | JN5: 185 | JO5: 186 | JP5: 187 | JQ5: 188 | JR5: 189 | JS5: 190 | JT5: 191 | JU5: 192 | JV5: 193 | JW5: 194 | JX5: 195 | JY5: 196 | JZ5: 197 | KA5: 198 | KB5: 199 | KC5: 200
B6: Pre ROD switch | J6: =COUNTIF(K6:KC6,TRUE) -> 79 | K6: =K5<1 -> TRUE | L6: =L5<1 -> TRUE | M6: TRUE | N6: TRUE | O6: TRUE | P6: TRUE | Q6: TRUE | R6: TRUE | S6: TRUE | T6: TRUE | U6: TRUE | V6: TRUE | W6: TRUE | X6: TRUE | Y6: TRUE | Z6: TRUE | AA6: TRUE | AB6: TRUE | AC6: TRUE | AD6: TRUE | AE6: TRUE | AF6: TRUE | AG6: TRUE | AH6: TRUE | AI6: TRUE | AJ6: TRUE | AK6: TRUE | AL6: TRUE | AM6: TRUE | AN6: TRUE | AO6: TRUE | AP6: TRUE | AQ6: TRUE | AR6: TRUE | AS6: TRUE | AT6: TRUE | AU6: TRUE | AV6: TRUE | AW6: TRUE | AX6: TRUE | AY6: TRUE | AZ6: TRUE | BA6: TRUE | BB6: TRUE | BC6: TRUE | BD6: TRUE | BE6: TRUE | BF6: TRUE | BG6: TRUE | BH6: TRUE | BI6: TRUE | BJ6: TRUE | BK6: TRUE | BL6: TRUE | BM6: TRUE | BN6: TRUE | BO6: TRUE | BP6: TRUE | BQ6: TRUE | BR6: TRUE | BS6: TRUE | BT6: TRUE | BU6: TRUE | BV6: TRUE | BW6: TRUE | BX6: =BX5<1 -> TRUE | BY6: TRUE | BZ6: TRUE | CA6: TRUE | CB6: TRUE | CC6: TRUE | CD6: TRUE | CE6: TRUE | CF6: TRUE | CG6: TRUE | CH6: TRUE | CI6: TRUE | CJ6: TRUE | CK6: TRUE | CL6: FALSE | CM6: FALSE | CN6: FALSE | CO6: FALSE | CP6: FALSE | CQ6: FALSE | CR6: FALSE | CS6: FALSE | CT6: FALSE | CU6: FALSE | CV6: FALSE | CW6: FALSE | CX6: FALSE | CY6: FALSE | CZ6: FALSE | DA6: FALSE | DB6: FALSE | DC6: FALSE | DD6: FALSE | DE6: FALSE | DF6: FALSE | DG6: FALSE | DH6: FALSE | DI6: FALSE | DJ6: FALSE | DK6: FALSE | DL6: FALSE | DM6: FALSE | DN6: FALSE | DO6: FALSE | DP6: FALSE | DQ6: FALSE | DR6: FALSE | DS6: FALSE | DT6: FALSE | DU6: FALSE | DV6: FALSE | DW6: FALSE | DX6: FALSE | DY6: FALSE | DZ6: FALSE | EA6: FALSE | EB6: FALSE | EC6: FALSE | ED6: FALSE | EE6: FALSE | EF6: FALSE | EG6: FALSE | EH6: FALSE | EI6: FALSE | EJ6: =EJ5<1 -> FALSE | EK6: FALSE | EL6: FALSE | EM6: FALSE | EN6: FALSE | EO6: FALSE | EP6: FALSE | EQ6: FALSE | ER6: FALSE | ES6: FALSE | ET6: FALSE | EU6: FALSE | EV6: FALSE | EW6: FALSE | EX6: FALSE | EY6: FALSE | EZ6: FALSE | FA6: FALSE | FB6: FALSE | FC6: FALSE | FD6: FALSE | FE6: FALSE | FF6: FALSE | FG6: FALSE | FH6: FALSE | FI6: FALSE | FJ6: FALSE | FK6: FALSE | FL6: FALSE | FM6: FALSE | FN6: FALSE | FO6: FALSE | FP6: FALSE | FQ6: FALSE | FR6: FALSE | FS6: FALSE | FT6: FALSE | FU6: FALSE | FV6: FALSE | FW6: FALSE | FX6: FALSE | FY6: FALSE | FZ6: FALSE | GA6: FALSE | GB6: FALSE | GC6: FALSE | GD6: FALSE | GE6: FALSE | GF6: FALSE | GG6: FALSE | GH6: FALSE | GI6: FALSE | GJ6: FALSE | GK6: FALSE | GL6: FALSE | GM6: FALSE | GN6: FALSE | GO6: FALSE | GP6: FALSE | GQ6: FALSE | GR6: FALSE | GS6: FALSE | GT6: FALSE | GU6: FALSE | GV6: =GV5<1 -> FALSE | GW6: FALSE | GX6: FALSE | GY6: FALSE | GZ6: FALSE | HA6: FALSE | HB6: FALSE | HC6: FALSE | HD6: FALSE | HE6: FALSE | HF6: FALSE | HG6: FALSE | HH6: FALSE | HI6: FALSE | HJ6: FALSE | HK6: FALSE | HL6: FALSE | HM6: FALSE | HN6: FALSE | HO6: FALSE | HP6: FALSE | HQ6: FALSE | HR6: FALSE | HS6: FALSE | HT6: FALSE | HU6: FALSE | HV6: FALSE | HW6: FALSE | HX6: FALSE | HY6: FALSE | HZ6: FALSE | IA6: FALSE | IB6: FALSE | IC6: FALSE | ID6: FALSE | IE6: FALSE | IF6: FALSE | IG6: FALSE | IH6: FALSE | II6: FALSE | IJ6: FALSE | IK6: FALSE | IL6: FALSE | IM6: FALSE | IN6: FALSE | IO6: FALSE | IP6: FALSE | IQ6: FALSE | IR6: FALSE | IS6: FALSE | IT6: FALSE | IU6: FALSE | IV6: FALSE | IW6: FALSE | IX6: FALSE | IY6: FALSE | IZ6: FALSE | JA6: FALSE | JB6: FALSE | JC6: FALSE | JD6: FALSE | JE6: FALSE | JF6: FALSE | JG6: FALSE | JH6: =JH5<1 -> FALSE | JI6: FALSE | JJ6: FALSE | JK6: FALSE | JL6: FALSE | JM6: FALSE | JN6: FALSE | JO6: FALSE | JP6: FALSE | JQ6: FALSE | JR6: FALSE | JS6: FALSE | JT6: FALSE | JU6: FALSE | JV6: FALSE | JW6: FALSE | JX6: FALSE | JY6: FALSE | JZ6: FALSE | KA6: FALSE | KB6: FALSE | KC6: FALSE
B7: Months per period | F7: Months | G7: ='Operating assumptions'!G13 -> 1 | I7: ='Operating assumptions'!G14 -> 6 | K7: =IF(K6,$G$7,$I$7) -> 1 | L7: =IF(L6,$G$7,$I$7) -> 1 | M7: 1 | N7: 1 | O7: 1 | P7: 1 | Q7: 1 | R7: 1 | S7: 1 | T7: 1 | U7: 1 | V7: 1 | W7: 1 | X7: 1 | Y7: 1 | Z7: 1 | AA7: 1 | AB7: 1 | AC7: 1 | AD7: 1 | AE7: 1 | AF7: 1 | AG7: 1 | AH7: 1 | AI7: 1 | AJ7: 1 | AK7: 1 | AL7: 1 | AM7: 1 | AN7: 1 | AO7: 1 | AP7: 1 | AQ7: 1 | AR7: 1 | AS7: 1 | AT7: 1 | AU7: 1 | AV7: 1 | AW7: 1 | AX7: 1 | AY7: 1 | AZ7: 1 | BA7: 1 | BB7: 1 | BC7: 1 | BD7: 1 | BE7: 1 | BF7: 1 | BG7: 1 | BH7: 1 | BI7: 1 | BJ7: 1 | BK7: 1 | BL7: 1 | BM7: 1 | BN7: 1 | BO7: 1 | BP7: 1 | BQ7: 1 | BR7: 1 | BS7: 1 | BT7: 1 | BU7: 1 | BV7: 1 | BW7: 1 | BX7: =IF(BX6,$G$7,$I$7) -> 1 | BY7: 1 | BZ7: 1 | CA7: 1 | CB7: 1 | CC7: 1 | CD7: 1 | CE7: 1 | CF7: 1 | CG7: 1 | CH7: 1 | CI7: 1 | CJ7: 1 | CK7: 1 | CL7: 6 | CM7: 6 | CN7: 6 | CO7: 6 | CP7: 6 | CQ7: 6 | CR7: 6 | CS7: 6 | CT7: 6 | CU7: 6 | CV7: 6 | CW7: 6 | CX7: 6 | CY7: 6 | CZ7: 6 | DA7: 6 | DB7: 6 | DC7: 6 | DD7: 6 | DE7: 6 | DF7: 6 | DG7: 6 | DH7: 6 | DI7: 6 | DJ7: 6 | DK7: 6 | DL7: 6 | DM7: 6 | DN7: 6 | DO7: 6 | DP7: 6 | DQ7: 6 | DR7: 6 | DS7: 6 | DT7: 6 | DU7: 6 | DV7: 6 | DW7: 6 | DX7: 6 | DY7: 6 | DZ7: 6 | EA7: 6 | EB7: 6 | EC7: 6 | ED7: 6 | EE7: 6 | EF7: 6 | EG7: 6 | EH7: 6 | EI7: 6 | EJ7: =IF(EJ6,$G$7,$I$7) -> 6 | EK7: 6 | EL7: 6 | EM7: 6 | EN7: 6 | EO7: 6 | EP7: 6 | EQ7: 6 | ER7: 6 | ES7: 6 | ET7: 6 | EU7: 6 | EV7: 6 | EW7: 6 | EX7: 6 | EY7: 6 | EZ7: 6 | FA7: 6 | FB7: 6 | FC7: 6 | FD7: 6 | FE7: 6 | FF7: 6 | FG7: 6 | FH7: 6 | FI7: 6 | FJ7: 6 | FK7: 6 | FL7: 6 | FM7: 6 | FN7: 6 | FO7: 6 | FP7: 6 | FQ7: 6 | FR7: 6 | FS7: 6 | FT7: 6 | FU7: 6 | FV7: 6 | FW7: 6 | FX7: 6 | FY7: 6 | FZ7: 6 | GA7: 6 | GB7: 6 | GC7: 6 | GD7: 6 | GE7: 6 | GF7: 6 | GG7: 6 | GH7: 6 | GI7: 6 | GJ7: 6 | GK7: 6 | GL7: 6 | GM7: 6 | GN7: 6 | GO7: 6 | GP7: 6 | GQ7: 6 | GR7: 6 | GS7: 6 | GT7: 6 | GU7: 6 | GV7: =IF(GV6,$G$7,$I$7) -> 6 | GW7: 6 | GX7: 6 | GY7: 6 | GZ7: 6 | HA7: 6 | HB7: 6 | HC7: 6 | HD7: 6 | HE7: 6 | HF7: 6 | HG7: 6 | HH7: 6 | HI7: 6 | HJ7: 6 | HK7: 6 | HL7: 6 | HM7: 6 | HN7: 6 | HO7: 6 | HP7: 6 | HQ7: 6 | HR7: 6 | HS7: 6 | HT7: 6 | HU7: 6 | HV7: 6 | HW7: 6 | HX7: 6 | HY7: 6 | HZ7: 6 | IA7: 6 | IB7: 6 | IC7: 6 | ID7: 6 | IE7: 6 | IF7: 6 | IG7: 6 | IH7: 6 | II7: 6 | IJ7: 6 | IK7: 6 | IL7: 6 | IM7: 6 | IN7: 6 | IO7: 6 | IP7: 6 | IQ7: 6 | IR7: 6 | IS7: 6 | IT7: 6 | IU7: 6 | IV7: 6 | IW7: 6 | IX7: 6 | IY7: 6 | IZ7: 6 | JA7: 6 | JB7: 6 | JC7: 6 | JD7: 6 | JE7: 6 | JF7: 6 | JG7: 6 | JH7: =IF(JH6,$G$7,$I$7) -> 6 | JI7: 6 | JJ7: 6 | JK7: 6 | JL7: 6 | JM7: 6 | JN7: 6 | JO7: 6 | JP7: 6 | JQ7: 6 | JR7: 6 | JS7: 6 | JT7: 6 | JU7: 6 | JV7: 6 | JW7: 6 | JX7: 6 | JY7: 6 | JZ7: 6 | KA7: 6 | KB7: 6 | KC7: 6
B8: Periods per year | K8: =12/K7 -> 12 | L8: =12/L7 -> 12 | M8: 12 | N8: 12 | O8: 12 | P8: 12 | Q8: 12 | R8: 12 | S8: 12 | T8: 12 | U8: 12 | V8: 12 | W8: 12 | X8: 12 | Y8: 12 | Z8: 12 | AA8: 12 | AB8: 12 | AC8: 12 | AD8: 12 | AE8: 12 | AF8: 12 | AG8: 12 | AH8: 12 | AI8: 12 | AJ8: 12 | AK8: 12 | AL8: 12 | AM8: 12 | AN8: 12 | AO8: 12 | AP8: 12 | AQ8: 12 | AR8: 12 | AS8: 12 | AT8: 12 | AU8: 12 | AV8: 12 | AW8: 12 | AX8: 12 | AY8: 12 | AZ8: 12 | BA8: 12 | BB8: 12 | BC8: 12 | BD8: 12 | BE8: 12 | BF8: 12 | BG8: 12 | BH8: 12 | BI8: 12 | BJ8: 12 | BK8: 12 | BL8: 12 | BM8: 12 | BN8: 12 | BO8: 12 | BP8: 12 | BQ8: 12 | BR8: 12 | BS8: 12 | BT8: 12 | BU8: 12 | BV8: 12 | BW8: 12 | BX8: =12/BX7 -> 12 | BY8: 12 | BZ8: 12 | CA8: 12 | CB8: 12 | CC8: 12 | CD8: 12 | CE8: 12 | CF8: 12 | CG8: 12 | CH8: 12 | CI8: 12 | CJ8: 12 | CK8: 12 | CL8: 2 | CM8: 2 | CN8: 2 | CO8: 2 | CP8: 2 | CQ8: 2 | CR8: 2 | CS8: 2 | CT8: 2 | CU8: 2 | CV8: 2 | CW8: 2 | CX8: 2 | CY8: 2 | CZ8: 2 | DA8: 2 | DB8: 2 | DC8: 2 | DD8: 2 | DE8: 2 | DF8: 2 | DG8: 2 | DH8: 2 | DI8: 2 | DJ8: 2 | DK8: 2 | DL8: 2 | DM8: 2 | DN8: 2 | DO8: 2 | DP8: 2 | DQ8: 2 | DR8: 2 | DS8: 2 | DT8: 2 | DU8: 2 | DV8: 2 | DW8: 2 | DX8: 2 | DY8: 2 | DZ8: 2 | EA8: 2 | EB8: 2 | EC8: 2 | ED8: 2 | EE8: 2 | EF8: 2 | EG8: 2 | EH8: 2 | EI8: 2 | EJ8: =12/EJ7 -> 2 | EK8: 2 | EL8: 2 | EM8: 2 | EN8: 2 | EO8: 2 | EP8: 2 | EQ8: 2 | ER8: 2 | ES8: 2 | ET8: 2 | EU8: 2 | EV8: 2 | EW8: 2 | EX8: 2 | EY8: 2 | EZ8: 2 | FA8: 2 | FB8: 2 | FC8: 2 | FD8: 2 | FE8: 2 | FF8: 2 | FG8: 2 | FH8: 2 | FI8: 2 | FJ8: 2 | FK8: 2 | FL8: 2 | FM8: 2 | FN8: 2 | FO8: 2 | FP8: 2 | FQ8: 2 | FR8: 2 | FS8: 2 | FT8: 2 | FU8: 2 | FV8: 2 | FW8: 2 | FX8: 2 | FY8: 2 | FZ8: 2 | GA8: 2 | GB8: 2 | GC8: 2 | GD8: 2 | GE8: 2 | GF8: 2 | GG8: 2 | GH8: 2 | GI8: 2 | GJ8: 2 | GK8: 2 | GL8: 2 | GM8: 2 | GN8: 2 | GO8: 2 | GP8: 2 | GQ8: 2 | GR8: 2 | GS8: 2 | GT8: 2 | GU8: 2 | GV8: =12/GV7 -> 2 | GW8: 2 | GX8: 2 | GY8: 2 | GZ8: 2 | HA8: 2 | HB8: 2 | HC8: 2 | HD8: 2 | HE8: 2 | HF8: 2 | HG8: 2 | HH8: 2 | HI8: 2 | HJ8: 2 | HK8: 2 | HL8: 2 | HM8: 2 | HN8: 2 | HO8: 2 | HP8: 2 | HQ8: 2 | HR8: 2 | HS8: 2 | HT8: 2 | HU8: 2 | HV8: 2 | HW8: 2 | HX8: 2 | HY8: 2 | HZ8: 2 | IA8: 2 | IB8: 2 | IC8: 2 | ID8: 2 | IE8: 2 | IF8: 2 | IG8: 2 | IH8: 2 | II8: 2 | IJ8: 2 | IK8: 2 | IL8: 2 | IM8: 2 | IN8: 2 | IO8: 2 | IP8: 2 | IQ8: 2 | IR8: 2 | IS8: 2 | IT8: 2 | IU8: 2 | IV8: 2 | IW8: 2 | IX8: 2 | IY8: 2 | IZ8: 2 | JA8: 2 | JB8: 2 | JC8: 2 | JD8: 2 | JE8: 2 | JF8: 2 | JG8: 2 | JH8: =12/JH7 -> 2 | JI8: 2 | JJ8: 2 | JK8: 2 | JL8: 2 | JM8: 2 | JN8: 2 | JO8: 2 | JP8: 2 | JQ8: 2 | JR8: 2 | JS8: 2 | JT8: 2 | JU8: 2 | JV8: 2 | JW8: 2 | JX8: 2 | JY8: 2 | JZ8: 2 | KA8: 2 | KB8: 2 | KC8: 2
B9: Age in years | L9: =ROUNDUP(L5/L8,0) -> -7 | M9: =ROUNDUP(M5/M8,0) -> -7 | N9: -7 | O9: -7 | P9: -7 | Q9: -6 | R9: -6 | S9: -6 | T9: -6 | U9: -6 | V9: -6 | W9: -6 | X9: -6 | Y9: -6 | Z9: -6 | AA9: -6 | AB9: -6 | AC9: -5 | AD9: -5 | AE9: -5 | AF9: -5 | AG9: -5 | AH9: -5 | AI9: -5 | AJ9: -5 | AK9: -5 | AL9: -5 | AM9: -5 | AN9: -5 | AO9: -4 | AP9: -4 | AQ9: -4 | AR9: -4 | AS9: -4 | AT9: -4 | AU9: -4 | AV9: -4 | AW9: -4 | AX9: -4 | AY9: -4 | AZ9: -4 | BA9: -3 | BB9: -3 | BC9: -3 | BD9: -3 | BE9: -3 | BF9: -3 | BG9: -3 | BH9: -3 | BI9: -3 | BJ9: -3 | BK9: -3 | BL9: -3 | BM9: -2 | BN9: -2 | BO9: -2 | BP9: -2 | BQ9: -2 | BR9: -2 | BS9: -2 | BT9: -2 | BU9: -2 | BV9: -2 | BW9: -2 | BX9: -2 | BY9: =ROUNDUP(BY5/BY8,0) -> -1 | BZ9: -1 | CA9: -1 | CB9: -1 | CC9: -1 | CD9: -1 | CE9: -1 | CF9: -1 | CG9: -1 | CH9: -1 | CI9: -1 | CJ9: -1 | CK9: 0 | CL9: 1 | CM9: 1 | CN9: 2 | CO9: 2 | CP9: 3 | CQ9: 3 | CR9: 4 | CS9: 4 | CT9: 5 | CU9: 5 | CV9: 6 | CW9: 6 | CX9: 7 | CY9: 7 | CZ9: 8 | DA9: 8 | DB9: 9 | DC9: 9 | DD9: 10 | DE9: 10 | DF9: 11 | DG9: 11 | DH9: 12 | DI9: 12 | DJ9: 13 | DK9: 13 | DL9: 14 | DM9: 14 | DN9: 15 | DO9: 15 | DP9: 16 | DQ9: 16 | DR9: 17 | DS9: 17 | DT9: 18 | DU9: 18 | DV9: 19 | DW9: 19 | DX9: 20 | DY9: 20 | DZ9: 21 | EA9: 21 | EB9: 22 | EC9: 22 | ED9: 23 | EE9: 23 | EF9: 24 | EG9: 24 | EH9: 25 | EI9: 25 | EJ9: 26 | EK9: =ROUNDUP(EK5/EK8,0) -> 26 | EL9: 27 | EM9: 27 | EN9: 28 | EO9: 28 | EP9: 29 | EQ9: 29 | ER9: 30 | ES9: 30 | ET9: 31 | EU9: 31 | EV9: 32 | EW9: 32 | EX9: 33 | EY9: 33 | EZ9: 34 | FA9: 34 | FB9: 35 | FC9: 35 | FD9: 36 | FE9: 36 | FF9: 37 | FG9: 37 | FH9: 38 | FI9: 38 | FJ9: 39 | FK9: 39 | FL9: 40 | FM9: 40 | FN9: 41 | FO9: 41 | FP9: 42 | FQ9: 42 | FR9: 43 | FS9: 43 | FT9: 44 | FU9: 44 | FV9: 45 | FW9: 45 | FX9: 46 | FY9: 46 | FZ9: 47 | GA9: 47 | GB9: 48 | GC9: 48 | GD9: 49 | GE9: 49 | GF9: 50 | GG9: 50 | GH9: 51 | GI9: 51 | GJ9: 52 | GK9: 52 | GL9: 53 | GM9: 53 | GN9: 54 | GO9: 54 | GP9: 55 | GQ9: 55 | GR9: 56 | GS9: 56 | GT9: 57 | GU9: 57 | GV9: 58 | GW9: =ROUNDUP(GW5/GW8,0) -> 58 | GX9: 59 | GY9: 59 | GZ9: 60 | HA9: 60 | HB9: 61 | HC9: 61 | HD9: 62 | HE9: 62 | HF9: 63 | HG9: 63 | HH9: 64 | HI9: 64 | HJ9: 65 | HK9: 65 | HL9: 66 | HM9: 66 | HN9: 67 | HO9: 67 | HP9: 68 | HQ9: 68 | HR9: 69 | HS9: 69 | HT9: 70 | HU9: 70 | HV9: 71 | HW9: 71 | HX9: 72 | HY9: 72 | HZ9: 73 | IA9: 73 | IB9: 74 | IC9: 74 | ID9: 75 | IE9: 75 | IF9: 76 | IG9: 76 | IH9: 77 | II9: 77 | IJ9: 78 | IK9: 78 | IL9: 79 | IM9: 79 | IN9: 80 | IO9: 80 | IP9: 81 | IQ9: 81 | IR9: 82 | IS9: 82 | IT9: 83 | IU9: 83 | IV9: 84 | IW9: 84 | IX9: 85 | IY9: 85 | IZ9: 86 | JA9: 86 | JB9: 87 | JC9: 87 | JD9: 88 | JE9: 88 | JF9: 89 | JG9: 89 | JH9: 90 | JI9: =ROUNDUP(JI5/JI8,0) -> 90 | JJ9: 91 | JK9: 91 | JL9: 92 | JM9: 92 | JN9: 93 | JO9: 93 | JP9: 94 | JQ9: 94 | JR9: 95 | JS9: 95 | JT9: 96 | JU9: 96 | JV9: 97 | JW9: 97 | JX9: 98 | JY9: 98 | JZ9: 99 | KA9: 99 | KB9: 100 | KC9: 100
B11: Development phase | F11: Switch | G11: ='Operating assumptions'!G6 -> 2015-01-01 | H11: Fin. Close | J11: =COUNTIF(K11:KC11,TRUE)='Operating assumptions'!G5 -> TRUE | L11: =L1<$G$11 -> TRUE | M11: TRUE | N11: TRUE | O11: TRUE | P11: TRUE | Q11: TRUE | R11: TRUE | S11: TRUE | T11: TRUE | U11: TRUE | V11: TRUE | W11: TRUE | X11: TRUE | Y11: TRUE | Z11: TRUE | AA11: TRUE | AB11: TRUE | AC11: TRUE | AD11: FALSE | AE11: FALSE | AF11: FALSE | AG11: FALSE | AH11: FALSE | AI11: FALSE | AJ11: FALSE | AK11: FALSE | AL11: FALSE | AM11: FALSE | AN11: FALSE | AO11: FALSE | AP11: FALSE | AQ11: FALSE | AR11: FALSE | AS11: FALSE | AT11: FALSE | AU11: FALSE | AV11: FALSE | AW11: FALSE | AX11: FALSE | AY11: FALSE | AZ11: FALSE | BA11: FALSE | BB11: FALSE | BC11: FALSE | BD11: FALSE | BE11: FALSE | BF11: FALSE | BG11: FALSE | BH11: FALSE | BI11: FALSE | BJ11: FALSE | BK11: FALSE | BL11: FALSE | BM11: FALSE | BN11: FALSE | BO11: FALSE | BP11: FALSE | BQ11: FALSE | BR11: FALSE | BS11: FALSE | BT11: FALSE | BU11: FALSE | BV11: FALSE | BW11: FALSE | BX11: =BX1<$G$11 -> FALSE | BY11: FALSE | BZ11: FALSE | CA11: FALSE | CB11: FALSE | CC11: FALSE | CD11: FALSE | CE11: FALSE | CF11: FALSE | CG11: FALSE | CH11: FALSE | CI11: FALSE | CJ11: FALSE | CK11: FALSE | CL11: FALSE | CM11: FALSE | CN11: FALSE | CO11: FALSE | CP11: FALSE | CQ11: FALSE | CR11: FALSE | CS11: FALSE | CT11: FALSE | CU11: FALSE | CV11: FALSE | CW11: FALSE | CX11: FALSE | CY11: FALSE | CZ11: FALSE | DA11: FALSE | DB11: FALSE | DC11: FALSE | DD11: FALSE | DE11: FALSE | DF11: FALSE | DG11: FALSE | DH11: FALSE | DI11: FALSE | DJ11: FALSE | DK11: FALSE | DL11: FALSE | DM11: FALSE | DN11: FALSE | DO11: FALSE | DP11: FALSE | DQ11: FALSE | DR11: FALSE | DS11: FALSE | DT11: FALSE | DU11: FALSE | DV11: FALSE | DW11: FALSE | DX11: FALSE | DY11: FALSE | DZ11: FALSE | EA11: FALSE | EB11: FALSE | EC11: FALSE | ED11: FALSE | EE11: FALSE | EF11: FALSE | EG11: FALSE | EH11: FALSE | EI11: FALSE | EJ11: =EJ1<$G$11 -> FALSE | EK11: FALSE | EL11: FALSE | EM11: FALSE | EN11: FALSE | EO11: FALSE | EP11: FALSE | EQ11: FALSE | ER11: FALSE | ES11: FALSE | ET11: FALSE | EU11: FALSE | EV11: FALSE | EW11: FALSE | EX11: FALSE | EY11: FALSE | EZ11: FALSE | FA11: FALSE | FB11: FALSE | FC11: FALSE | FD11: FALSE | FE11: FALSE | FF11: FALSE | FG11: FALSE | FH11: FALSE | FI11: FALSE | FJ11: FALSE | FK11: FALSE | FL11: FALSE | FM11: FALSE | FN11: FALSE | FO11: FALSE | FP11: FALSE | FQ11: FALSE | FR11: FALSE | FS11: FALSE | FT11: FALSE | FU11: FALSE | FV11: FALSE | FW11: FALSE | FX11: FALSE | FY11: FALSE | FZ11: FALSE | GA11: FALSE | GB11: FALSE | GC11: FALSE | GD11: FALSE | GE11: FALSE | GF11: FALSE | GG11: FALSE | GH11: FALSE | GI11: FALSE | GJ11: FALSE | GK11: FALSE | GL11: FALSE | GM11: FALSE | GN11: FALSE | GO11: FALSE | GP11: FALSE | GQ11: FALSE | GR11: FALSE | GS11: FALSE | GT11: FALSE | GU11: FALSE | GV11: =GV1<$G$11 -> FALSE | GW11: FALSE | GX11: FALSE | GY11: FALSE | GZ11: FALSE | HA11: FALSE | HB11: FALSE | HC11: FALSE | HD11: FALSE | HE11: FALSE | HF11: FALSE | HG11: FALSE | HH11: FALSE | HI11: FALSE | HJ11: FALSE | HK11: FALSE | HL11: FALSE | HM11: FALSE | HN11: FALSE | HO11: FALSE | HP11: FALSE | HQ11: FALSE | HR11: FALSE | HS11: FALSE | HT11: FALSE | HU11: FALSE | HV11: FALSE | HW11: FALSE | HX11: FALSE | HY11: FALSE | HZ11: FALSE | IA11: FALSE | IB11: FALSE | IC11: FALSE | ID11: FALSE | IE11: FALSE | IF11: FALSE | IG11: FALSE | IH11: FALSE | II11: FALSE | IJ11: FALSE | IK11: FALSE | IL11: FALSE | IM11: FALSE | IN11: FALSE | IO11: FALSE | IP11: FALSE | IQ11: FALSE | IR11: FALSE | IS11: FALSE | IT11: FALSE | IU11: FALSE | IV11: FALSE | IW11: FALSE | IX11: FALSE | IY11: FALSE | IZ11: FALSE | JA11: FALSE | JB11: FALSE | JC11: FALSE | JD11: FALSE | JE11: FALSE | JF11: FALSE | JG11: FALSE | JH11: =JH1<$G$11 -> FALSE | JI11: FALSE | JJ11: FALSE | JK11: FALSE | JL11: FALSE | JM11: FALSE | JN11: FALSE | JO11: FALSE | JP11: FALSE | JQ11: FALSE | JR11: FALSE | JS11: FALSE | JT11: FALSE | JU11: FALSE | JV11: FALSE | JW11: FALSE | JX11: FALSE | JY11: FALSE | JZ11: FALSE | KA11: FALSE | KB11: FALSE | KC11: FALSE
B12: Construction phase | F12: Switch | G12: ='Operating assumptions'!G8 -> 2020-01-01 | H12: ROD | J12: =COUNTIF(K12:KC12,TRUE)='Operating assumptions'!G7 -> TRUE | L12: =AND(L1>=$G$11,L1<$G$12) -> FALSE | M12: FALSE | N12: FALSE | O12: FALSE | P12: FALSE | Q12: FALSE | R12: FALSE | S12: FALSE | T12: FALSE | U12: FALSE | V12: FALSE | W12: FALSE | X12: FALSE | Y12: FALSE | Z12: FALSE | AA12: FALSE | AB12: FALSE | AC12: FALSE | AD12: TRUE | AE12: TRUE | AF12: TRUE | AG12: TRUE | AH12: TRUE | AI12: TRUE | AJ12: TRUE | AK12: TRUE | AL12: TRUE | AM12: TRUE | AN12: TRUE | AO12: TRUE | AP12: TRUE | AQ12: TRUE | AR12: TRUE | AS12: TRUE | AT12: TRUE | AU12: TRUE | AV12: TRUE | AW12: TRUE | AX12: TRUE | AY12: TRUE | AZ12: TRUE | BA12: TRUE | BB12: TRUE | BC12: TRUE | BD12: TRUE | BE12: TRUE | BF12: TRUE | BG12: TRUE | BH12: TRUE | BI12: TRUE | BJ12: TRUE | BK12: TRUE | BL12: TRUE | BM12: TRUE | BN12: TRUE | BO12: TRUE | BP12: TRUE | BQ12: TRUE | BR12: TRUE | BS12: TRUE | BT12: TRUE | BU12: TRUE | BV12: TRUE | BW12: TRUE | BX12: =AND(BX1>=$G$11,BX1<$G$12) -> TRUE | BY12: TRUE | BZ12: TRUE | CA12: TRUE | CB12: TRUE | CC12: TRUE | CD12: TRUE | CE12: TRUE | CF12: TRUE | CG12: TRUE | CH12: TRUE | CI12: TRUE | CJ12: TRUE | CK12: TRUE | CL12: FALSE | CM12: FALSE | CN12: FALSE | CO12: FALSE | CP12: FALSE | CQ12: FALSE | CR12: FALSE | CS12: FALSE | CT12: FALSE | CU12: FALSE | CV12: FALSE | CW12: FALSE | CX12: FALSE | CY12: FALSE | CZ12: FALSE | DA12: FALSE | DB12: FALSE | DC12: FALSE | DD12: FALSE | DE12: FALSE | DF12: FALSE | DG12: FALSE | DH12: FALSE | DI12: FALSE | DJ12: FALSE | DK12: FALSE | DL12: FALSE | DM12: FALSE | DN12: FALSE | DO12: FALSE | DP12: FALSE | DQ12: FALSE | DR12: FALSE | DS12: FALSE | DT12: FALSE | DU12: FALSE | DV12: FALSE | DW12: FALSE | DX12: FALSE | DY12: FALSE | DZ12: FALSE | EA12: FALSE | EB12: FALSE | EC12: FALSE | ED12: FALSE | EE12: FALSE | EF12: FALSE | EG12: FALSE | EH12: FALSE | EI12: FALSE | EJ12: =AND(EJ1>=$G$11,EJ1<$G$12) -> FALSE | EK12: FALSE | EL12: FALSE | EM12: FALSE | EN12: FALSE | EO12: FALSE | EP12: FALSE | EQ12: FALSE | ER12: FALSE | ES12: FALSE | ET12: FALSE | EU12: FALSE | EV12: FALSE | EW12: FALSE | EX12: FALSE | EY12: FALSE | EZ12: FALSE | FA12: FALSE | FB12: FALSE | FC12: FALSE | FD12: FALSE | FE12: FALSE | FF12: FALSE | FG12: FALSE | FH12: FALSE | FI12: FALSE | FJ12: FALSE | FK12: FALSE | FL12: FALSE | FM12: FALSE | FN12: FALSE | FO12: FALSE | FP12: FALSE | FQ12: FALSE | FR12: FALSE | FS12: FALSE | FT12: FALSE | FU12: FALSE | FV12: FALSE | FW12: FALSE | FX12: FALSE | FY12: FALSE | FZ12: FALSE | GA12: FALSE | GB12: FALSE | GC12: FALSE | GD12: FALSE | GE12: FALSE | GF12: FALSE | GG12: FALSE | GH12: FALSE | GI12: FALSE | GJ12: FALSE | GK12: FALSE | GL12: FALSE | GM12: FALSE | GN12: FALSE | GO12: FALSE | GP12: FALSE | GQ12: FALSE | GR12: FALSE | GS12: FALSE | GT12: FALSE | GU12: FALSE | GV12: =AND(GV1>=$G$11,GV1<$G$12) -> FALSE | GW12: FALSE | GX12: FALSE | GY12: FALSE | GZ12: FALSE | HA12: FALSE | HB12: FALSE | HC12: FALSE | HD12: FALSE | HE12: FALSE | HF12: FALSE | HG12: FALSE | HH12: FALSE | HI12: FALSE | HJ12: FALSE | HK12: FALSE | HL12: FALSE | HM12: FALSE | HN12: FALSE | HO12: FALSE | HP12: FALSE | HQ12: FALSE | HR12: FALSE | HS12: FALSE | HT12: FALSE | HU12: FALSE | HV12: FALSE | HW12: FALSE | HX12: FALSE | HY12: FALSE | HZ12: FALSE | IA12: FALSE | IB12: FALSE | IC12: FALSE | ID12: FALSE | IE12: FALSE | IF12: FALSE | IG12: FALSE | IH12: FALSE | II12: FALSE | IJ12: FALSE | IK12: FALSE | IL12: FALSE | IM12: FALSE | IN12: FALSE | IO12: FALSE | IP12: FALSE | IQ12: FALSE | IR12: FALSE | IS12: FALSE | IT12: FALSE | IU12: FALSE | IV12: FALSE | IW12: FALSE | IX12: FALSE | IY12: FALSE | IZ12: FALSE | JA12: FALSE | JB12: FALSE | JC12: FALSE | JD12: FALSE | JE12: FALSE | JF12: FALSE | JG12: FALSE | JH12: =AND(JH1>=$G$11,JH1<$G$12) -> FALSE | JI12: FALSE | JJ12: FALSE | JK12: FALSE | JL12: FALSE | JM12: FALSE | JN12: FALSE | JO12: FALSE | JP12: FALSE | JQ12: FALSE | JR12: FALSE | JS12: FALSE | JT12: FALSE | JU12: FALSE | JV12: FALSE | JW12: FALSE | JX12: FALSE | JY12: FALSE | JZ12: FALSE | KA12: FALSE | KB12: FALSE | KC12: FALSE
B13: Operation phase | F13: Switch | G13: ='Operating assumptions'!G10 -> 2061-01-01 | H13: Concession End | J13: =COUNTIF(K13:KC13,TRUE) -> 82 | L13: =AND(L1>=$G$12,L1<$G$13) -> FALSE | M13: FALSE | N13: FALSE | O13: FALSE | P13: FALSE | Q13: FALSE | R13: FALSE | S13: FALSE | T13: FALSE | U13: FALSE | V13: FALSE | W13: FALSE | X13: FALSE | Y13: FALSE | Z13: FALSE | AA13: FALSE | AB13: FALSE | AC13: FALSE | AD13: FALSE | AE13: FALSE | AF13: FALSE | AG13: FALSE | AH13: FALSE | AI13: FALSE | AJ13: FALSE | AK13: FALSE | AL13: FALSE | AM13: FALSE | AN13: FALSE | AO13: FALSE | AP13: FALSE | AQ13: FALSE | AR13: FALSE | AS13: FALSE | AT13: FALSE | AU13: FALSE | AV13: FALSE | AW13: FALSE | AX13: FALSE | AY13: FALSE | AZ13: FALSE | BA13: FALSE | BB13: FALSE | BC13: FALSE | BD13: FALSE | BE13: FALSE | BF13: FALSE | BG13: FALSE | BH13: FALSE | BI13: FALSE | BJ13: FALSE | BK13: FALSE | BL13: FALSE | BM13: FALSE | BN13: FALSE | BO13: FALSE | BP13: FALSE | BQ13: FALSE | BR13: FALSE | BS13: FALSE | BT13: FALSE | BU13: FALSE | BV13: FALSE | BW13: FALSE | BX13: =AND(BX1>=$G$12,BX1<$G$13) -> FALSE | BY13: FALSE | BZ13: FALSE | CA13: FALSE | CB13: FALSE | CC13: FALSE | CD13: FALSE | CE13: FALSE | CF13: FALSE | CG13: FALSE | CH13: FALSE | CI13: FALSE | CJ13: FALSE | CK13: FALSE | CL13: TRUE | CM13: TRUE | CN13: TRUE | CO13: TRUE | CP13: TRUE | CQ13: TRUE | CR13: TRUE | CS13: TRUE | CT13: TRUE | CU13: TRUE | CV13: TRUE | CW13: TRUE | CX13: TRUE | CY13: TRUE | CZ13: TRUE | DA13: TRUE | DB13: TRUE | DC13: TRUE | DD13: TRUE | DE13: TRUE | DF13: TRUE | DG13: TRUE | DH13: TRUE | DI13: TRUE | DJ13: TRUE | DK13: TRUE | DL13: TRUE | DM13: TRUE | DN13: TRUE | DO13: TRUE | DP13: TRUE | DQ13: TRUE | DR13: TRUE | DS13: TRUE | DT13: TRUE | DU13: TRUE | DV13: TRUE | DW13: TRUE | DX13: TRUE | DY13: TRUE | DZ13: TRUE | EA13: TRUE | EB13: TRUE | EC13: TRUE | ED13: TRUE | EE13: TRUE | EF13: TRUE | EG13: TRUE | EH13: TRUE | EI13: TRUE | EJ13: =AND(EJ1>=$G$12,EJ1<$G$13) -> TRUE | EK13: TRUE | EL13: TRUE | EM13: TRUE | EN13: TRUE | EO13: TRUE | EP13: TRUE | EQ13: TRUE | ER13: TRUE | ES13: TRUE | ET13: TRUE | EU13: TRUE | EV13: TRUE | EW13: TRUE | EX13: TRUE | EY13: TRUE | EZ13: TRUE | FA13: TRUE | FB13: TRUE | FC13: TRUE | FD13: TRUE | FE13: TRUE | FF13: TRUE | FG13: TRUE | FH13: TRUE | FI13: TRUE | FJ13: TRUE | FK13: TRUE | FL13: TRUE | FM13: TRUE | FN13: TRUE | FO13: TRUE | FP13: FALSE | FQ13: FALSE | FR13: FALSE | FS13: FALSE | FT13: FALSE | FU13: FALSE | FV13: FALSE | FW13: FALSE | FX13: FALSE | FY13: FALSE | FZ13: FALSE | GA13: FALSE | GB13: FALSE | GC13: FALSE | GD13: FALSE | GE13: FALSE | GF13: FALSE | GG13: FALSE | GH13: FALSE | GI13: FALSE | GJ13: FALSE | GK13: FALSE | GL13: FALSE | GM13: FALSE | GN13: FALSE | GO13: FALSE | GP13: FALSE | GQ13: FALSE | GR13: FALSE | GS13: FALSE | GT13: FALSE | GU13: FALSE | GV13: =AND(GV1>=$G$12,GV1<$G$13) -> FALSE | GW13: FALSE | GX13: FALSE | GY13: FALSE | GZ13: FALSE | HA13: FALSE | HB13: FALSE | HC13: FALSE | HD13: FALSE | HE13: FALSE | HF13: FALSE | HG13: FALSE | HH13: FALSE | HI13: FALSE | HJ13: FALSE | HK13: FALSE | HL13: FALSE | HM13: FALSE | HN13: FALSE | HO13: FALSE | HP13: FALSE | HQ13: FALSE | HR13: FALSE | HS13: FALSE | HT13: FALSE | HU13: FALSE | HV13: FALSE | HW13: FALSE | HX13: FALSE | HY13: FALSE | HZ13: FALSE | IA13: FALSE | IB13: FALSE | IC13: FALSE | ID13: FALSE | IE13: FALSE | IF13: FALSE | IG13: FALSE | IH13: FALSE | II13: FALSE | IJ13: FALSE | IK13: FALSE | IL13: FALSE | IM13: FALSE | IN13: FALSE | IO13: FALSE | IP13: FALSE | IQ13: FALSE | IR13: FALSE | IS13: FALSE | IT13: FALSE | IU13: FALSE | IV13: FALSE | IW13: FALSE | IX13: FALSE | IY13: FALSE | IZ13: FALSE | JA13: FALSE | JB13: FALSE | JC13: FALSE | JD13: FALSE | JE13: FALSE | JF13: FALSE | JG13: FALSE | JH13: =AND(JH1>=$G$12,JH1<$G$13) -> FALSE | JI13: FALSE | JJ13: FALSE | JK13: FALSE | JL13: FALSE | JM13: FALSE | JN13: FALSE | JO13: FALSE | JP13: FALSE | JQ13: FALSE | JR13: FALSE | JS13: FALSE | JT13: FALSE | JU13: FALSE | JV13: FALSE | JW13: FALSE | JX13: FALSE | JY13: FALSE | JZ13: FALSE | KA13: FALSE | KB13: FALSE | KC13: FALSE
B14: Low-risk phase | F14: Switch | G14: ='Operating assumptions'!G16 -> 2023-01-01 | H14: High Risk End | J14: =COUNTIF(K14:KC14,TRUE) -> 6 | L14: =AND(L1>=$G$12,L1<$G$14) -> FALSE | M14: =AND(M1>=$G$12,M1<$G$14) -> FALSE | N14: FALSE | O14: FALSE | P14: FALSE | Q14: FALSE | R14: FALSE | S14: FALSE | T14: FALSE | U14: FALSE | V14: FALSE | W14: FALSE | X14: FALSE | Y14: FALSE | Z14: FALSE | AA14: FALSE | AB14: FALSE | AC14: FALSE | AD14: FALSE | AE14: FALSE | AF14: FALSE | AG14: FALSE | AH14: FALSE | AI14: FALSE | AJ14: FALSE | AK14: FALSE | AL14: FALSE | AM14: FALSE | AN14: FALSE | AO14: FALSE | AP14: FALSE | AQ14: FALSE | AR14: FALSE | AS14: FALSE | AT14: FALSE | AU14: FALSE | AV14: FALSE | AW14: FALSE | AX14: FALSE | AY14: FALSE | AZ14: FALSE | BA14: FALSE | BB14: FALSE | BC14: FALSE | BD14: FALSE | BE14: FALSE | BF14: FALSE | BG14: FALSE | BH14: FALSE | BI14: FALSE | BJ14: FALSE | BK14: FALSE | BL14: FALSE | BM14: FALSE | BN14: FALSE | BO14: FALSE | BP14: FALSE | BQ14: FALSE | BR14: FALSE | BS14: FALSE | BT14: FALSE | BU14: FALSE | BV14: FALSE | BW14: FALSE | BX14: FALSE | BY14: =AND(BY1>=$G$12,BY1<$G$14) -> FALSE | BZ14: FALSE | CA14: FALSE | CB14: FALSE | CC14: FALSE | CD14: FALSE | CE14: FALSE | CF14: FALSE | CG14: FALSE | CH14: FALSE | CI14: FALSE | CJ14: FALSE | CK14: FALSE | CL14: TRUE | CM14: TRUE | CN14: TRUE | CO14: TRUE | CP14: TRUE | CQ14: TRUE | CR14: FALSE | CS14: FALSE | CT14: FALSE | CU14: FALSE | CV14: FALSE | CW14: FALSE | CX14: FALSE | CY14: FALSE | CZ14: FALSE | DA14: FALSE | DB14: FALSE | DC14: FALSE | DD14: FALSE | DE14: FALSE | DF14: FALSE | DG14: FALSE | DH14: FALSE | DI14: FALSE | DJ14: FALSE | DK14: FALSE | DL14: FALSE | DM14: FALSE | DN14: FALSE | DO14: FALSE | DP14: FALSE | DQ14: FALSE | DR14: FALSE | DS14: FALSE | DT14: FALSE | DU14: FALSE | DV14: FALSE | DW14: FALSE | DX14: FALSE | DY14: FALSE | DZ14: FALSE | EA14: FALSE | EB14: FALSE | EC14: FALSE | ED14: FALSE | EE14: FALSE | EF14: FALSE | EG14: FALSE | EH14: FALSE | EI14: FALSE | EJ14: FALSE | EK14: =AND(EK1>=$G$12,EK1<$G$14) -> FALSE | EL14: FALSE | EM14: FALSE | EN14: FALSE | EO14: FALSE | EP14: FALSE | EQ14: FALSE | ER14: FALSE | ES14: FALSE | ET14: FALSE | EU14: FALSE | EV14: FALSE | EW14: FALSE | EX14: FALSE | EY14: FALSE | EZ14: FALSE | FA14: FALSE | FB14: FALSE | FC14: FALSE | FD14: FALSE | FE14: FALSE | FF14: FALSE | FG14: FALSE | FH14: FALSE | FI14: FALSE | FJ14: FALSE | FK14: FALSE | FL14: FALSE | FM14: FALSE | FN14: FALSE | FO14: FALSE | FP14: FALSE | FQ14: FALSE | FR14: FALSE | FS14: FALSE | FT14: FALSE | FU14: FALSE | FV14: FALSE | FW14: FALSE | FX14: FALSE | FY14: FALSE | FZ14: FALSE | GA14: FALSE | GB14: FALSE | GC14: FALSE | GD14: FALSE | GE14: FALSE | GF14: FALSE | GG14: FALSE | GH14: FALSE | GI14: FALSE | GJ14: FALSE | GK14: FALSE | GL14: FALSE | GM14: FALSE | GN14: FALSE | GO14: FALSE | GP14: FALSE | GQ14: FALSE | GR14: FALSE | GS14: FALSE | GT14: FALSE | GU14: FALSE | GV14: FALSE | GW14: =AND(GW1>=$G$12,GW1<$G$14) -> FALSE | GX14: FALSE | GY14: FALSE | GZ14: FALSE | HA14: FALSE | HB14: FALSE | HC14: FALSE | HD14: FALSE | HE14: FALSE | HF14: FALSE | HG14: FALSE | HH14: FALSE | HI14: FALSE | HJ14: FALSE | HK14: FALSE | HL14: FALSE | HM14: FALSE | HN14: FALSE | HO14: FALSE | HP14: FALSE | HQ14: FALSE | HR14: FALSE | HS14: FALSE | HT14: FALSE | HU14: FALSE | HV14: FALSE | HW14: FALSE | HX14: FALSE | HY14: FALSE | HZ14: FALSE | IA14: FALSE | IB14: FALSE | IC14: FALSE | ID14: FALSE | IE14: FALSE | IF14: FALSE | IG14: FALSE | IH14: FALSE | II14: FALSE | IJ14: FALSE | IK14: FALSE | IL14: FALSE | IM14: FALSE | IN14: FALSE | IO14: FALSE | IP14: FALSE | IQ14: FALSE | IR14: FALSE | IS14: FALSE | IT14: FALSE | IU14: FALSE | IV14: FALSE | IW14: FALSE | IX14: FALSE | IY14: FALSE | IZ14: FALSE | JA14: FALSE | JB14: FALSE | JC14: FALSE | JD14: FALSE | JE14: FALSE | JF14: FALSE | JG14: FALSE | JH14: FALSE | JI14: =AND(JI1>=$G$12,JI1<$G$14) -> FALSE | JJ14: FALSE | JK14: FALSE | JL14: FALSE | JM14: FALSE | JN14: FALSE | JO14: FALSE | JP14: FALSE | JQ14: FALSE | JR14: FALSE | JS14: FALSE | JT14: FALSE | JU14: FALSE | JV14: FALSE | JW14: FALSE | JX14: FALSE | JY14: FALSE | JZ14: FALSE | KA14: FALSE | KB14: FALSE | KC14: FALSE
B15: Concession phase | F15: Switch | G15: ='Operating assumptions'!G10 -> 2061-01-01 | J15: =COUNTIF(K15:KC15,TRUE) -> 142 | L15: =AND(L1>=$G$11,L1<$G$15) -> FALSE | M15: FALSE | N15: FALSE | O15: FALSE | P15: FALSE | Q15: FALSE | R15: FALSE | S15: FALSE | T15: FALSE | U15: FALSE | V15: FALSE | W15: FALSE | X15: FALSE | Y15: FALSE | Z15: FALSE | AA15: FALSE | AB15: FALSE | AC15: FALSE | AD15: TRUE | AE15: TRUE | AF15: TRUE | AG15: TRUE | AH15: TRUE | AI15: TRUE | AJ15: TRUE | AK15: TRUE | AL15: TRUE | AM15: TRUE | AN15: TRUE | AO15: TRUE | AP15: TRUE | AQ15: TRUE | AR15: TRUE | AS15: TRUE | AT15: TRUE | AU15: TRUE | AV15: TRUE | AW15: TRUE | AX15: TRUE | AY15: TRUE | AZ15: TRUE | BA15: TRUE | BB15: TRUE | BC15: TRUE | BD15: TRUE | BE15: TRUE | BF15: TRUE | BG15: TRUE | BH15: TRUE | BI15: TRUE | BJ15: TRUE | BK15: TRUE | BL15: TRUE | BM15: TRUE | BN15: TRUE | BO15: TRUE | BP15: TRUE | BQ15: TRUE | BR15: TRUE | BS15: TRUE | BT15: TRUE | BU15: TRUE | BV15: TRUE | BW15: TRUE | BX15: =AND(BX1>=$G$11,BX1<$G$15) -> TRUE | BY15: TRUE | BZ15: TRUE | CA15: TRUE | CB15: TRUE | CC15: TRUE | CD15: TRUE | CE15: TRUE | CF15: TRUE | CG15: TRUE | CH15: TRUE | CI15: TRUE | CJ15: TRUE | CK15: TRUE | CL15: TRUE | CM15: TRUE | CN15: TRUE | CO15: TRUE | CP15: TRUE | CQ15: TRUE | CR15: TRUE | CS15: TRUE | CT15: TRUE | CU15: TRUE | CV15: TRUE | CW15: TRUE | CX15: TRUE | CY15: TRUE | CZ15: TRUE | DA15: TRUE | DB15: TRUE | DC15: TRUE | DD15: TRUE | DE15: TRUE | DF15: TRUE | DG15: TRUE | DH15: TRUE | DI15: TRUE | DJ15: TRUE | DK15: TRUE | DL15: TRUE | DM15: TRUE | DN15: TRUE | DO15: TRUE | DP15: TRUE | DQ15: TRUE | DR15: TRUE | DS15: TRUE | DT15: TRUE | DU15: TRUE | DV15: TRUE | DW15: TRUE | DX15: TRUE | DY15: TRUE | DZ15: TRUE | EA15: TRUE | EB15: TRUE | EC15: TRUE | ED15: TRUE | EE15: TRUE | EF15: TRUE | EG15: TRUE | EH15: TRUE | EI15: TRUE | EJ15: =AND(EJ1>=$G$11,EJ1<$G$15) -> TRUE | EK15: TRUE | EL15: TRUE | EM15: TRUE | EN15: TRUE | EO15: TRUE | EP15: TRUE | EQ15: TRUE | ER15: TRUE | ES15: TRUE | ET15: TRUE | EU15: TRUE | EV15: TRUE | EW15: TRUE | EX15: TRUE | EY15: TRUE | EZ15: TRUE | FA15: TRUE | FB15: TRUE | FC15: TRUE | FD15: TRUE | FE15: TRUE | FF15: TRUE | FG15: TRUE | FH15: TRUE | FI15: TRUE | FJ15: TRUE | FK15: TRUE | FL15: TRUE | FM15: TRUE | FN15: TRUE | FO15: TRUE | FP15: FALSE | FQ15: FALSE | FR15: FALSE | FS15: FALSE | FT15: FALSE | FU15: FALSE | FV15: FALSE | FW15: FALSE | FX15: FALSE | FY15: FALSE | FZ15: FALSE | GA15: FALSE | GB15: FALSE | GC15: FALSE | GD15: FALSE | GE15: FALSE | GF15: FALSE | GG15: FALSE | GH15: FALSE | GI15: FALSE | GJ15: FALSE | GK15: FALSE | GL15: FALSE | GM15: FALSE | GN15: FALSE | GO15: FALSE | GP15: FALSE | GQ15: FALSE | GR15: FALSE | GS15: FALSE | GT15: FALSE | GU15: FALSE | GV15: =AND(GV1>=$G$11,GV1<$G$15) -> FALSE | GW15: FALSE | GX15: FALSE | GY15: FALSE | GZ15: FALSE | HA15: FALSE | HB15: FALSE | HC15: FALSE | HD15: FALSE | HE15: FALSE | HF15: FALSE | HG15: FALSE | HH15: FALSE | HI15: FALSE | HJ15: FALSE | HK15: FALSE | HL15: FALSE | HM15: FALSE | HN15: FALSE | HO15: FALSE | HP15: FALSE | HQ15: FALSE | HR15: FALSE | HS15: FALSE | HT15: FALSE | HU15: FALSE | HV15: FALSE | HW15: FALSE | HX15: FALSE | HY15: FALSE | HZ15: FALSE | IA15: FALSE | IB15: FALSE | IC15: FALSE | ID15: FALSE | IE15: FALSE | IF15: FALSE | IG15: FALSE | IH15: FALSE | II15: FALSE | IJ15: FALSE | IK15: FALSE | IL15: FALSE | IM15: FALSE | IN15: FALSE | IO15: FALSE | IP15: FALSE | IQ15: FALSE | IR15: FALSE | IS15: FALSE | IT15: FALSE | IU15: FALSE | IV15: FALSE | IW15: FALSE | IX15: FALSE | IY15: FALSE | IZ15: FALSE | JA15: FALSE | JB15: FALSE | JC15: FALSE | JD15: FALSE | JE15: FALSE | JF15: FALSE | JG15: FALSE | JH15: =AND(JH1>=$G$11,JH1<$G$15) -> FALSE | JI15: FALSE | JJ15: FALSE | JK15: FALSE | JL15: FALSE | JM15: FALSE | JN15: FALSE | JO15: FALSE | JP15: FALSE | JQ15: FALSE | JR15: FALSE | JS15: FALSE | JT15: FALSE | JU15: FALSE | JV15: FALSE | JW15: FALSE | JX15: FALSE | JY15: FALSE | JZ15: FALSE | KA15: FALSE | KB15: FALSE | KC15: FALSE
B16: ROD switch | F16: Switch | G16: =G12 -> 2020-01-01 | H16: ROD | J16: =COUNTIF(K16:KC16,TRUE) -> 1 | L16: =L1=$G$12 -> FALSE | M16: FALSE | N16: FALSE | O16: FALSE | P16: FALSE | Q16: FALSE | R16: FALSE | S16: FALSE | T16: FALSE | U16: FALSE | V16: FALSE | W16: FALSE | X16: FALSE | Y16: FALSE | Z16: FALSE | AA16: FALSE | AB16: FALSE | AC16: FALSE | AD16: FALSE | AE16: FALSE | AF16: FALSE | AG16: FALSE | AH16: FALSE | AI16: FALSE | AJ16: FALSE | AK16: FALSE | AL16: FALSE | AM16: FALSE | AN16: FALSE | AO16: FALSE | AP16: FALSE | AQ16: FALSE | AR16: FALSE | AS16: FALSE | AT16: FALSE | AU16: FALSE | AV16: FALSE | AW16: FALSE | AX16: FALSE | AY16: FALSE | AZ16: FALSE | BA16: FALSE | BB16: FALSE | BC16: FALSE | BD16: FALSE | BE16: FALSE | BF16: FALSE | BG16: FALSE | BH16: FALSE | BI16: FALSE | BJ16: FALSE | BK16: FALSE | BL16: FALSE | BM16: FALSE | BN16: FALSE | BO16: FALSE | BP16: FALSE | BQ16: FALSE | BR16: FALSE | BS16: FALSE | BT16: FALSE | BU16: FALSE | BV16: FALSE | BW16: FALSE | BX16: =BX1=$G$12 -> FALSE | BY16: FALSE | BZ16: FALSE | CA16: FALSE | CB16: FALSE | CC16: FALSE | CD16: FALSE | CE16: FALSE | CF16: FALSE | CG16: FALSE | CH16: FALSE | CI16: FALSE | CJ16: FALSE | CK16: FALSE | CL16: TRUE | CM16: FALSE | CN16: FALSE | CO16: FALSE | CP16: FALSE | CQ16: FALSE | CR16: FALSE | CS16: FALSE | CT16: FALSE | CU16: FALSE | CV16: FALSE | CW16: FALSE | CX16: FALSE | CY16: FALSE | CZ16: FALSE | DA16: FALSE | DB16: FALSE | DC16: FALSE | DD16: FALSE | DE16: FALSE | DF16: FALSE | DG16: FALSE | DH16: FALSE | DI16: FALSE | DJ16: FALSE | DK16: FALSE | DL16: FALSE | DM16: FALSE | DN16: FALSE | DO16: FALSE | DP16: FALSE | DQ16: FALSE | DR16: FALSE | DS16: FALSE | DT16: FALSE | DU16: FALSE | DV16: FALSE | DW16: FALSE | DX16: FALSE | DY16: FALSE | DZ16: FALSE | EA16: FALSE | EB16: FALSE | EC16: FALSE | ED16: FALSE | EE16: FALSE | EF16: FALSE | EG16: FALSE | EH16: FALSE | EI16: FALSE | EJ16: =EJ1=$G$12 -> FALSE | EK16: FALSE | EL16: FALSE | EM16: FALSE | EN16: FALSE | EO16: FALSE | EP16: FALSE | EQ16: FALSE | ER16: FALSE | ES16: FALSE | ET16: FALSE | EU16: FALSE | EV16: FALSE | EW16: FALSE | EX16: FALSE | EY16: FALSE | EZ16: FALSE | FA16: FALSE | FB16: FALSE | FC16: FALSE | FD16: FALSE | FE16: FALSE | FF16: FALSE | FG16: FALSE | FH16: FALSE | FI16: FALSE | FJ16: FALSE | FK16: FALSE | FL16: FALSE | FM16: FALSE | FN16: FALSE | FO16: FALSE | FP16: FALSE | FQ16: FALSE | FR16: FALSE | FS16: FALSE | FT16: FALSE | FU16: FALSE | FV16: FALSE | FW16: FALSE | FX16: FALSE | FY16: FALSE | FZ16: FALSE | GA16: FALSE | GB16: FALSE | GC16: FALSE | GD16: FALSE | GE16: FALSE | GF16: FALSE | GG16: FALSE | GH16: FALSE | GI16: FALSE | GJ16: FALSE | GK16: FALSE | GL16: FALSE | GM16: FALSE | GN16: FALSE | GO16: FALSE | GP16: FALSE | GQ16: FALSE | GR16: FALSE | GS16: FALSE | GT16: FALSE | GU16: FALSE | GV16: =GV1=$G$12 -> FALSE | GW16: FALSE | GX16: FALSE | GY16: FALSE | GZ16: FALSE | HA16: FALSE | HB16: FALSE | HC16: FALSE | HD16: FALSE | HE16: FALSE | HF16: FALSE | HG16: FALSE | HH16: FALSE | HI16: FALSE | HJ16: FALSE | HK16: FALSE | HL16: FALSE | HM16: FALSE | HN16: FALSE | HO16: FALSE | HP16: FALSE | HQ16: FALSE | HR16: FALSE | HS16: FALSE | HT16: FALSE | HU16: FALSE | HV16: FALSE | HW16: FALSE | HX16: FALSE | HY16: FALSE | HZ16: FALSE | IA16: FALSE | IB16: FALSE | IC16: FALSE | ID16: FALSE | IE16: FALSE | IF16: FALSE | IG16: FALSE | IH16: FALSE | II16: FALSE | IJ16: FALSE | IK16: FALSE | IL16: FALSE | IM16: FALSE | IN16: FALSE | IO16: FALSE | IP16: FALSE | IQ16: FALSE | IR16: FALSE | IS16: FALSE | IT16: FALSE | IU16: FALSE | IV16: FALSE | IW16: FALSE | IX16: FALSE | IY16: FALSE | IZ16: FALSE | JA16: FALSE | JB16: FALSE | JC16: FALSE | JD16: FALSE | JE16: FALSE | JF16: FALSE | JG16: FALSE | JH16: =JH1=$G$12 -> FALSE | JI16: FALSE | JJ16: FALSE | JK16: FALSE | JL16: FALSE | JM16: FALSE | JN16: FALSE | JO16: FALSE | JP16: FALSE | JQ16: FALSE | JR16: FALSE | JS16: FALSE | JT16: FALSE | JU16: FALSE | JV16: FALSE | JW16: FALSE | JX16: FALSE | JY16: FALSE | JZ16: FALSE | KA16: FALSE | KB16: FALSE | KC16: FALSE
B17: Financial close switch | F17: Switch | G17: =G11 -> 2015-01-01 | H17: Fin. Close | J17: =COUNTIF(K17:KC17,TRUE) -> 1 | L17: =L1=$G$11 -> FALSE | M17: FALSE | N17: FALSE | O17: FALSE | P17: FALSE | Q17: FALSE | R17: FALSE | S17: FALSE | T17: FALSE | U17: FALSE | V17: FALSE | W17: FALSE | X17: FALSE | Y17: FALSE | Z17: FALSE | AA17: FALSE | AB17: FALSE | AC17: FALSE | AD17: TRUE | AE17: FALSE | AF17: FALSE | AG17: FALSE | AH17: FALSE | AI17: FALSE | AJ17: FALSE | AK17: FALSE | AL17: FALSE | AM17: FALSE | AN17: FALSE | AO17: FALSE | AP17: FALSE | AQ17: FALSE | AR17: FALSE | AS17: FALSE | AT17: FALSE | AU17: FALSE | AV17: FALSE | AW17: FALSE | AX17: FALSE | AY17: FALSE | AZ17: FALSE | BA17: FALSE | BB17: FALSE | BC17: FALSE | BD17: FALSE | BE17: FALSE | BF17: FALSE | BG17: FALSE | BH17: FALSE | BI17: FALSE | BJ17: FALSE | BK17: FALSE | BL17: FALSE | BM17: FALSE | BN17: FALSE | BO17: FALSE | BP17: FALSE | BQ17: FALSE | BR17: FALSE | BS17: FALSE | BT17: FALSE | BU17: FALSE | BV17: FALSE | BW17: FALSE | BX17: =BX1=$G$11 -> FALSE | BY17: FALSE | BZ17: FALSE | CA17: FALSE | CB17: FALSE | CC17: FALSE | CD17: FALSE | CE17: FALSE | CF17: FALSE | CG17: FALSE | CH17: FALSE | CI17: FALSE | CJ17: FALSE | CK17: FALSE | CL17: FALSE | CM17: FALSE | CN17: FALSE | CO17: FALSE | CP17: FALSE | CQ17: FALSE | CR17: FALSE | CS17: FALSE | CT17: FALSE | CU17: FALSE | CV17: FALSE | CW17: FALSE | CX17: FALSE | CY17: FALSE | CZ17: FALSE | DA17: FALSE | DB17: FALSE | DC17: FALSE | DD17: FALSE | DE17: FALSE | DF17: FALSE | DG17: FALSE | DH17: FALSE | DI17: FALSE | DJ17: FALSE | DK17: FALSE | DL17: FALSE | DM17: FALSE | DN17: FALSE | DO17: FALSE | DP17: FALSE | DQ17: FALSE | DR17: FALSE | DS17: FALSE | DT17: FALSE | DU17: FALSE | DV17: FALSE | DW17: FALSE | DX17: FALSE | DY17: FALSE | DZ17: FALSE | EA17: FALSE | EB17: FALSE | EC17: FALSE | ED17: FALSE | EE17: FALSE | EF17: FALSE | EG17: FALSE | EH17: FALSE | EI17: FALSE | EJ17: =EJ1=$G$11 -> FALSE | EK17: FALSE | EL17: FALSE | EM17: FALSE | EN17: FALSE | EO17: FALSE | EP17: FALSE | EQ17: FALSE | ER17: FALSE | ES17: FALSE | ET17: FALSE | EU17: FALSE | EV17: FALSE | EW17: FALSE | EX17: FALSE | EY17: FALSE | EZ17: FALSE | FA17: FALSE | FB17: FALSE | FC17: FALSE | FD17: FALSE | FE17: FALSE | FF17: FALSE | FG17: FALSE | FH17: FALSE | FI17: FALSE | FJ17: FALSE | FK17: FALSE | FL17: FALSE | FM17: FALSE | FN17: FALSE | FO17: FALSE | FP17: FALSE | FQ17: FALSE | FR17: FALSE | FS17: FALSE | FT17: FALSE | FU17: FALSE | FV17: FALSE | FW17: FALSE | FX17: FALSE | FY17: FALSE | FZ17: FALSE | GA17: FALSE | GB17: FALSE | GC17: FALSE | GD17: FALSE | GE17: FALSE | GF17: FALSE | GG17: FALSE | GH17: FALSE | GI17: FALSE | GJ17: FALSE | GK17: FALSE | GL17: FALSE | GM17: FALSE | GN17: FALSE | GO17: FALSE | GP17: FALSE | GQ17: FALSE | GR17: FALSE | GS17: FALSE | GT17: FALSE | GU17: FALSE | GV17: =GV1=$G$11 -> FALSE | GW17: FALSE | GX17: FALSE | GY17: FALSE | GZ17: FALSE | HA17: FALSE | HB17: FALSE | HC17: FALSE | HD17: FALSE | HE17: FALSE | HF17: FALSE | HG17: FALSE | HH17: FALSE | HI17: FALSE | HJ17: FALSE | HK17: FALSE | HL17: FALSE | HM17: FALSE | HN17: FALSE | HO17: FALSE | HP17: FALSE | HQ17: FALSE | HR17: FALSE | HS17: FALSE | HT17: FALSE | HU17: FALSE | HV17: FALSE | HW17: FALSE | HX17: FALSE | HY17: FALSE | HZ17: FALSE | IA17: FALSE | IB17: FALSE | IC17: FALSE | ID17: FALSE | IE17: FALSE | IF17: FALSE | IG17: FALSE | IH17: FALSE | II17: FALSE | IJ17: FALSE | IK17: FALSE | IL17: FALSE | IM17: FALSE | IN17: FALSE | IO17: FALSE | IP17: FALSE | IQ17: FALSE | IR17: FALSE | IS17: FALSE | IT17: FALSE | IU17: FALSE | IV17: FALSE | IW17: FALSE | IX17: FALSE | IY17: FALSE | IZ17: FALSE | JA17: FALSE | JB17: FALSE | JC17: FALSE | JD17: FALSE | JE17: FALSE | JF17: FALSE | JG17: FALSE | JH17: =JH1=$G$11 -> FALSE | JI17: FALSE | JJ17: FALSE | JK17: FALSE | JL17: FALSE | JM17: FALSE | JN17: FALSE | JO17: FALSE | JP17: FALSE | JQ17: FALSE | JR17: FALSE | JS17: FALSE | JT17: FALSE | JU17: FALSE | JV17: FALSE | JW17: FALSE | JX17: FALSE | JY17: FALSE | JZ17: FALSE | KA17: FALSE | KB17: FALSE | KC17: FALSE
B18: Revenue Inflation Period | F18: Switch | G18: ='Operating assumptions'!G38 -> 2015-01-01 | H18: Revenue Infl | L18: =L1>=$G$18 -> FALSE | M18: FALSE | N18: FALSE | O18: FALSE | P18: FALSE | Q18: FALSE | R18: FALSE | S18: FALSE | T18: FALSE | U18: FALSE | V18: FALSE | W18: FALSE | X18: FALSE | Y18: FALSE | Z18: FALSE | AA18: FALSE | AB18: FALSE | AC18: FALSE | AD18: TRUE | AE18: TRUE | AF18: TRUE | AG18: TRUE | AH18: TRUE | AI18: TRUE | AJ18: TRUE | AK18: TRUE | AL18: TRUE | AM18: TRUE | AN18: TRUE | AO18: TRUE | AP18: TRUE | AQ18: TRUE | AR18: TRUE | AS18: TRUE | AT18: TRUE | AU18: TRUE | AV18: TRUE | AW18: TRUE | AX18: TRUE | AY18: TRUE | AZ18: TRUE | BA18: TRUE | BB18: TRUE | BC18: TRUE | BD18: TRUE | BE18: TRUE | BF18: TRUE | BG18: TRUE | BH18: TRUE | BI18: TRUE | BJ18: TRUE | BK18: TRUE | BL18: TRUE | BM18: TRUE | BN18: TRUE | BO18: TRUE | BP18: TRUE | BQ18: TRUE | BR18: TRUE | BS18: TRUE | BT18: TRUE | BU18: TRUE | BV18: TRUE | BW18: TRUE | BX18: =BX1>=$G$18 -> TRUE | BY18: TRUE | BZ18: TRUE | CA18: TRUE | CB18: TRUE | CC18: TRUE | CD18: TRUE | CE18: TRUE | CF18: TRUE | CG18: TRUE | CH18: TRUE | CI18: TRUE | CJ18: TRUE | CK18: TRUE | CL18: TRUE | CM18: TRUE | CN18: TRUE | CO18: TRUE | CP18: TRUE | CQ18: TRUE | CR18: TRUE | CS18: TRUE | CT18: TRUE | CU18: TRUE | CV18: TRUE | CW18: TRUE | CX18: TRUE | CY18: TRUE | CZ18: TRUE | DA18: TRUE | DB18: TRUE | DC18: TRUE | DD18: TRUE | DE18: TRUE | DF18: TRUE | DG18: TRUE | DH18: TRUE | DI18: TRUE | DJ18: TRUE | DK18: TRUE | DL18: TRUE | DM18: TRUE | DN18: TRUE | DO18: TRUE | DP18: TRUE | DQ18: TRUE | DR18: TRUE | DS18: TRUE | DT18: TRUE | DU18: TRUE | DV18: TRUE | DW18: TRUE | DX18: TRUE | DY18: TRUE | DZ18: TRUE | EA18: TRUE | EB18: TRUE | EC18: TRUE | ED18: TRUE | EE18: TRUE | EF18: TRUE | EG18: TRUE | EH18: TRUE | EI18: TRUE | EJ18: =EJ1>=$G$18 -> TRUE | EK18: TRUE | EL18: TRUE | EM18: TRUE | EN18: TRUE | EO18: TRUE | EP18: TRUE | EQ18: TRUE | ER18: TRUE | ES18: TRUE | ET18: TRUE | EU18: TRUE | EV18: TRUE | EW18: TRUE | EX18: TRUE | EY18: TRUE | EZ18: TRUE | FA18: TRUE | FB18: TRUE | FC18: TRUE | FD18: TRUE | FE18: TRUE | FF18: TRUE | FG18: TRUE | FH18: TRUE | FI18: TRUE | FJ18: TRUE | FK18: TRUE | FL18: TRUE | FM18: TRUE | FN18: TRUE | FO18: TRUE | FP18: TRUE | FQ18: TRUE | FR18: TRUE | FS18: TRUE | FT18: TRUE | FU18: TRUE | FV18: TRUE | FW18: TRUE | FX18: TRUE | FY18: TRUE | FZ18: TRUE | GA18: TRUE | GB18: TRUE | GC18: TRUE | GD18: TRUE | GE18: TRUE | GF18: TRUE | GG18: TRUE | GH18: TRUE | GI18: TRUE | GJ18: TRUE | GK18: TRUE | GL18: TRUE | GM18: TRUE | GN18: TRUE | GO18: TRUE | GP18: TRUE | GQ18: TRUE | GR18: TRUE | GS18: TRUE | GT18: TRUE | GU18: TRUE | GV18: =GV1>=$G$18 -> TRUE | GW18: TRUE | GX18: TRUE | GY18: TRUE | GZ18: TRUE | HA18: TRUE | HB18: TRUE | HC18: TRUE | HD18: TRUE | HE18: TRUE | HF18: TRUE | HG18: TRUE | HH18: TRUE | HI18: TRUE | HJ18: TRUE | HK18: TRUE | HL18: TRUE | HM18: TRUE | HN18: TRUE | HO18: TRUE | HP18: TRUE | HQ18: TRUE | HR18: TRUE | HS18: TRUE | HT18: TRUE | HU18: TRUE | HV18: TRUE | HW18: TRUE | HX18: TRUE | HY18: TRUE | HZ18: TRUE | IA18: TRUE | IB18: TRUE | IC18: TRUE | ID18: TRUE | IE18: TRUE | IF18: TRUE | IG18: TRUE | IH18: TRUE | II18: TRUE | IJ18: TRUE | IK18: TRUE | IL18: TRUE | IM18: TRUE | IN18: TRUE | IO18: TRUE | IP18: TRUE | IQ18: TRUE | IR18: TRUE | IS18: TRUE | IT18: TRUE | IU18: TRUE | IV18: TRUE | IW18: TRUE | IX18: TRUE | IY18: TRUE | IZ18: TRUE | JA18: TRUE | JB18: TRUE | JC18: TRUE | JD18: TRUE | JE18: TRUE | JF18: TRUE | JG18: TRUE | JH18: =JH1>=$G$18 -> TRUE | JI18: TRUE | JJ18: TRUE | JK18: TRUE | JL18: TRUE | JM18: TRUE | JN18: TRUE | JO18: TRUE | JP18: TRUE | JQ18: TRUE | JR18: TRUE | JS18: TRUE | JT18: TRUE | JU18: TRUE | JV18: TRUE | JW18: TRUE | JX18: TRUE | JY18: TRUE | JZ18: TRUE | KA18: TRUE | KB18: TRUE | KC18: TRUE
B19: Remainder of Period and Toll Date | F19: Switch | G19: ='Operating assumptions'!G12*'Operating assumptions'!G40 -> 4 | L19: =MOD(L5,$G$19) -> 3 | M19: 0 | N19: 1 | O19: 2 | P19: 3 | Q19: 0 | R19: 1 | S19: 2 | T19: 3 | U19: 0 | V19: 1 | W19: 2 | X19: 3 | Y19: 0 | Z19: 1 | AA19: 2 | AB19: 3 | AC19: 0 | AD19: 1 | AE19: 2 | AF19: 3 | AG19: 0 | AH19: 1 | AI19: 2 | AJ19: 3 | AK19: 0 | AL19: 1 | AM19: 2 | AN19: 3 | AO19: 0 | AP19: 1 | AQ19: 2 | AR19: 3 | AS19: 0 | AT19: 1 | AU19: 2 | AV19: 3 | AW19: 0 | AX19: 1 | AY19: 2 | AZ19: 3 | BA19: 0 | BB19: 1 | BC19: 2 | BD19: 3 | BE19: 0 | BF19: 1 | BG19: 2 | BH19: 3 | BI19: 0 | BJ19: 1 | BK19: 2 | BL19: 3 | BM19: 0 | BN19: 1 | BO19: 2 | BP19: 3 | BQ19: 0 | BR19: 1 | BS19: 2 | BT19: 3 | BU19: 0 | BV19: 1 | BW19: 2 | BX19: =MOD(BX5,$G$19) -> 3 | BY19: 0 | BZ19: 1 | CA19: 2 | CB19: 3 | CC19: 0 | CD19: 1 | CE19: 2 | CF19: 3 | CG19: 0 | CH19: 1 | CI19: 2 | CJ19: 3 | CK19: 0 | CL19: 1 | CM19: 2 | CN19: 3 | CO19: 0 | CP19: 1 | CQ19: 2 | CR19: 3 | CS19: 0 | CT19: 1 | CU19: 2 | CV19: 3 | CW19: 0 | CX19: 1 | CY19: 2 | CZ19: 3 | DA19: 0 | DB19: 1 | DC19: 2 | DD19: 3 | DE19: 0 | DF19: 1 | DG19: 2 | DH19: 3 | DI19: 0 | DJ19: 1 | DK19: 2 | DL19: 3 | DM19: 0 | DN19: 1 | DO19: 2 | DP19: 3 | DQ19: 0 | DR19: 1 | DS19: 2 | DT19: 3 | DU19: 0 | DV19: 1 | DW19: 2 | DX19: 3 | DY19: 0 | DZ19: 1 | EA19: 2 | EB19: 3 | EC19: 0 | ED19: 1 | EE19: 2 | EF19: 3 | EG19: 0 | EH19: 1 | EI19: 2 | EJ19: =MOD(EJ5,$G$19) -> 3 | EK19: 0 | EL19: 1 | EM19: 2 | EN19: 3 | EO19: 0 | EP19: 1 | EQ19: 2 | ER19: 3 | ES19: 0 | ET19: 1 | EU19: 2 | EV19: 3 | EW19: 0 | EX19: 1 | EY19: 2 | EZ19: 3 | FA19: 0 | FB19: 1 | FC19: 2 | FD19: 3 | FE19: 0 | FF19: 1 | FG19: 2 | FH19: 3 | FI19: 0 | FJ19: 1 | FK19: 2 | FL19: 3 | FM19: 0 | FN19: 1 | FO19: 2 | FP19: 3 | FQ19: 0 | FR19: 1 | FS19: 2 | FT19: 3 | FU19: 0 | FV19: 1 | FW19: 2 | FX19: 3 | FY19: 0 | FZ19: 1 | GA19: 2 | GB19: 3 | GC19: 0 | GD19: 1 | GE19: 2 | GF19: 3 | GG19: 0 | GH19: 1 | GI19: 2 | GJ19: 3 | GK19: 0 | GL19: 1 | GM19: 2 | GN19: 3 | GO19: 0 | GP19: 1 | GQ19: 2 | GR19: 3 | GS19: 0 | GT19: 1 | GU19: 2 | GV19: =MOD(GV5,$G$19) -> 3 | GW19: 0 | GX19: 1 | GY19: 2 | GZ19: 3 | HA19: 0 | HB19: 1 | HC19: 2 | HD19: 3 | HE19: 0 | HF19: 1 | HG19: 2 | HH19: 3 | HI19: 0 | HJ19: 1 | HK19: 2 | HL19: 3 | HM19: 0 | HN19: 1 | HO19: 2 | HP19: 3 | HQ19: 0 | HR19: 1 | HS19: 2 | HT19: 3 | HU19: 0 | HV19: 1 | HW19: 2 | HX19: 3 | HY19: 0 | HZ19: 1 | IA19: 2 | IB19: 3 | IC19: 0 | ID19: 1 | IE19: 2 | IF19: 3 | IG19: 0 | IH19: 1 | II19: 2 | IJ19: 3 | IK19: 0 | IL19: 1 | IM19: 2 | IN19: 3 | IO19: 0 | IP19: 1 | IQ19: 2 | IR19: 3 | IS19: 0 | IT19: 1 | IU19: 2 | IV19: 3 | IW19: 0 | IX19: 1 | IY19: 2 | IZ19: 3 | JA19: 0 | JB19: 1 | JC19: 2 | JD19: 3 | JE19: 0 | JF19: 1 | JG19: 2 | JH19: =MOD(JH5,$G$19) -> 3 | JI19: 0 | JJ19: 1 | JK19: 2 | JL19: 3 | JM19: 0 | JN19: 1 | JO19: 2 | JP19: 3 | JQ19: 0 | JR19: 1 | JS19: 2 | JT19: 3 | JU19: 0 | JV19: 1 | JW19: 2 | JX19: 3 | JY19: 0 | JZ19: 1 | KA19: 2 | KB19: 3 | KC19: 0
B20: Apply Toll Increases | F20: Switch | J20: =COUNTIF(K20:KC20,TRUE) -> 21 | L20: =OR(L16,IF(L13,L19=0)) -> FALSE | M20: FALSE | N20: FALSE | O20: FALSE | P20: FALSE | Q20: FALSE | R20: FALSE | S20: FALSE | T20: FALSE | U20: FALSE | V20: FALSE | W20: FALSE | X20: FALSE | Y20: FALSE | Z20: FALSE | AA20: FALSE | AB20: FALSE | AC20: FALSE | AD20: FALSE | AE20: FALSE | AF20: FALSE | AG20: FALSE | AH20: FALSE | AI20: FALSE | AJ20: FALSE | AK20: FALSE | AL20: FALSE | AM20: FALSE | AN20: FALSE | AO20: FALSE | AP20: FALSE | AQ20: FALSE | AR20: FALSE | AS20: FALSE | AT20: FALSE | AU20: FALSE | AV20: FALSE | AW20: FALSE | AX20: FALSE | AY20: FALSE | AZ20: FALSE | BA20: FALSE | BB20: FALSE | BC20: FALSE | BD20: FALSE | BE20: FALSE | BF20: FALSE | BG20: FALSE | BH20: FALSE | BI20: FALSE | BJ20: FALSE | BK20: FALSE | BL20: FALSE | BM20: FALSE | BN20: FALSE | BO20: FALSE | BP20: FALSE | BQ20: FALSE | BR20: FALSE | BS20: FALSE | BT20: FALSE | BU20: FALSE | BV20: FALSE | BW20: FALSE | BX20: =OR(BX16,IF(BX13,BX19=0)) -> FALSE | BY20: FALSE | BZ20: FALSE | CA20: FALSE | CB20: FALSE | CC20: FALSE | CD20: FALSE | CE20: FALSE | CF20: FALSE | CG20: FALSE | CH20: FALSE | CI20: FALSE | CJ20: FALSE | CK20: FALSE | CL20: TRUE | CM20: FALSE | CN20: FALSE | CO20: TRUE | CP20: FALSE | CQ20: FALSE | CR20: FALSE | CS20: TRUE | CT20: FALSE | CU20: FALSE | CV20: FALSE | CW20: TRUE | CX20: FALSE | CY20: FALSE | CZ20: FALSE | DA20: TRUE | DB20: FALSE | DC20: FALSE | DD20: FALSE | DE20: TRUE | DF20: FALSE | DG20: FALSE | DH20: FALSE | DI20: TRUE | DJ20: FALSE | DK20: FALSE | DL20: FALSE | DM20: TRUE | DN20: FALSE | DO20: FALSE | DP20: FALSE | DQ20: TRUE | DR20: FALSE | DS20: FALSE | DT20: FALSE | DU20: TRUE | DV20: FALSE | DW20: FALSE | DX20: FALSE | DY20: TRUE | DZ20: FALSE | EA20: FALSE | EB20: FALSE | EC20: TRUE | ED20: FALSE | EE20: FALSE | EF20: FALSE | EG20: TRUE | EH20: FALSE | EI20: FALSE | EJ20: =OR(EJ16,IF(EJ13,EJ19=0)) -> FALSE | EK20: TRUE | EL20: FALSE | EM20: FALSE | EN20: FALSE | EO20: TRUE | EP20: FALSE | EQ20: FALSE | ER20: FALSE | ES20: TRUE | ET20: FALSE | EU20: FALSE | EV20: FALSE | EW20: TRUE | EX20: FALSE | EY20: FALSE | EZ20: FALSE | FA20: TRUE | FB20: FALSE | FC20: FALSE | FD20: FALSE | FE20: TRUE | FF20: FALSE | FG20: FALSE | FH20: FALSE | FI20: TRUE | FJ20: FALSE | FK20: FALSE | FL20: FALSE | FM20: TRUE | FN20: FALSE | FO20: FALSE | FP20: FALSE | FQ20: FALSE | FR20: FALSE | FS20: FALSE | FT20: FALSE | FU20: FALSE | FV20: FALSE | FW20: FALSE | FX20: FALSE | FY20: FALSE | FZ20: FALSE | GA20: FALSE | GB20: FALSE | GC20: FALSE | GD20: FALSE | GE20: FALSE | GF20: FALSE | GG20: FALSE | GH20: FALSE | GI20: FALSE | GJ20: FALSE | GK20: FALSE | GL20: FALSE | GM20: FALSE | GN20: FALSE | GO20: FALSE | GP20: FALSE | GQ20: FALSE | GR20: FALSE | GS20: FALSE | GT20: FALSE | GU20: FALSE | GV20: =OR(GV16,IF(GV13,GV19=0)) -> FALSE | GW20: FALSE | GX20: FALSE | GY20: FALSE | GZ20: FALSE | HA20: FALSE | HB20: FALSE | HC20: FALSE | HD20: FALSE | HE20: FALSE | HF20: FALSE | HG20: FALSE | HH20: FALSE | HI20: FALSE | HJ20: FALSE | HK20: FALSE | HL20: FALSE | HM20: FALSE | HN20: FALSE | HO20: FALSE | HP20: FALSE | HQ20: FALSE | HR20: FALSE | HS20: FALSE | HT20: FALSE | HU20: FALSE | HV20: FALSE | HW20: FALSE | HX20: FALSE | HY20: FALSE | HZ20: FALSE | IA20: FALSE | IB20: FALSE | IC20: FALSE | ID20: FALSE | IE20: FALSE | IF20: FALSE | IG20: FALSE | IH20: FALSE | II20: FALSE | IJ20: FALSE | IK20: FALSE | IL20: FALSE | IM20: FALSE | IN20: FALSE | IO20: FALSE | IP20: FALSE | IQ20: FALSE | IR20: FALSE | IS20: FALSE | IT20: FALSE | IU20: FALSE | IV20: FALSE | IW20: FALSE | IX20: FALSE | IY20: FALSE | IZ20: FALSE | JA20: FALSE | JB20: FALSE | JC20: FALSE | JD20: FALSE | JE20: FALSE | JF20: FALSE | JG20: FALSE | JH20: =OR(JH16,IF(JH13,JH19=0)) -> FALSE | JI20: FALSE | JJ20: FALSE | JK20: FALSE | JL20: FALSE | JM20: FALSE | JN20: FALSE | JO20: FALSE | JP20: FALSE | JQ20: FALSE | JR20: FALSE | JS20: FALSE | JT20: FALSE | JU20: FALSE | JV20: FALSE | JW20: FALSE | JX20: FALSE | JY20: FALSE | JZ20: FALSE | KA20: FALSE | KB20: FALSE | KC20: FALSE
B21: Expense Inflation Period | F21: Switch | G21: ='Operating assumptions'!G45 -> 2013-07-01 | L21: =L1>=$G$21 -> TRUE | M21: TRUE | N21: TRUE | O21: TRUE | P21: TRUE | Q21: TRUE | R21: TRUE | S21: TRUE | T21: TRUE | U21: TRUE | V21: TRUE | W21: TRUE | X21: TRUE | Y21: TRUE | Z21: TRUE | AA21: TRUE | AB21: TRUE | AC21: TRUE | AD21: TRUE | AE21: TRUE | AF21: TRUE | AG21: TRUE | AH21: TRUE | AI21: TRUE | AJ21: TRUE | AK21: TRUE | AL21: TRUE | AM21: TRUE | AN21: TRUE | AO21: TRUE | AP21: TRUE | AQ21: TRUE | AR21: TRUE | AS21: TRUE | AT21: TRUE | AU21: TRUE | AV21: TRUE | AW21: TRUE | AX21: TRUE | AY21: TRUE | AZ21: TRUE | BA21: TRUE | BB21: TRUE | BC21: TRUE | BD21: TRUE | BE21: TRUE | BF21: TRUE | BG21: TRUE | BH21: TRUE | BI21: TRUE | BJ21: TRUE | BK21: TRUE | BL21: TRUE | BM21: TRUE | BN21: TRUE | BO21: TRUE | BP21: TRUE | BQ21: TRUE | BR21: TRUE | BS21: TRUE | BT21: TRUE | BU21: TRUE | BV21: TRUE | BW21: TRUE | BX21: =BX1>=$G$21 -> TRUE | BY21: TRUE | BZ21: TRUE | CA21: TRUE | CB21: TRUE | CC21: TRUE | CD21: TRUE | CE21: TRUE | CF21: TRUE | CG21: TRUE | CH21: TRUE | CI21: TRUE | CJ21: TRUE | CK21: TRUE | CL21: TRUE | CM21: TRUE | CN21: TRUE | CO21: TRUE | CP21: TRUE | CQ21: TRUE | CR21: TRUE | CS21: TRUE | CT21: TRUE | CU21: TRUE | CV21: TRUE | CW21: TRUE | CX21: TRUE | CY21: TRUE | CZ21: TRUE | DA21: TRUE | DB21: TRUE | DC21: TRUE | DD21: TRUE | DE21: TRUE | DF21: TRUE | DG21: TRUE | DH21: TRUE | DI21: TRUE | DJ21: TRUE | DK21: TRUE | DL21: TRUE | DM21: TRUE | DN21: TRUE | DO21: TRUE | DP21: TRUE | DQ21: TRUE | DR21: TRUE | DS21: TRUE | DT21: TRUE | DU21: TRUE | DV21: TRUE | DW21: TRUE | DX21: TRUE | DY21: TRUE | DZ21: TRUE | EA21: TRUE | EB21: TRUE | EC21: TRUE | ED21: TRUE | EE21: TRUE | EF21: TRUE | EG21: TRUE | EH21: TRUE | EI21: TRUE | EJ21: =EJ1>=$G$21 -> TRUE | EK21: TRUE | EL21: TRUE | EM21: TRUE | EN21: TRUE | EO21: TRUE | EP21: TRUE | EQ21: TRUE | ER21: TRUE | ES21: TRUE | ET21: TRUE | EU21: TRUE | EV21: TRUE | EW21: TRUE | EX21: TRUE | EY21: TRUE | EZ21: TRUE | FA21: TRUE | FB21: TRUE | FC21: TRUE | FD21: TRUE | FE21: TRUE | FF21: TRUE | FG21: TRUE | FH21: TRUE | FI21: TRUE | FJ21: TRUE | FK21: TRUE | FL21: TRUE | FM21: TRUE | FN21: TRUE | FO21: TRUE | FP21: TRUE | FQ21: TRUE | FR21: TRUE | FS21: TRUE | FT21: TRUE | FU21: TRUE | FV21: TRUE | FW21: TRUE | FX21: TRUE | FY21: TRUE | FZ21: TRUE | GA21: TRUE | GB21: TRUE | GC21: TRUE | GD21: TRUE | GE21: TRUE | GF21: TRUE | GG21: TRUE | GH21: TRUE | GI21: TRUE | GJ21: TRUE | GK21: TRUE | GL21: TRUE | GM21: TRUE | GN21: TRUE | GO21: TRUE | GP21: TRUE | GQ21: TRUE | GR21: TRUE | GS21: TRUE | GT21: TRUE | GU21: TRUE | GV21: =GV1>=$G$21 -> TRUE | GW21: TRUE | GX21: TRUE | GY21: TRUE | GZ21: TRUE | HA21: TRUE | HB21: TRUE | HC21: TRUE | HD21: TRUE | HE21: TRUE | HF21: TRUE | HG21: TRUE | HH21: TRUE | HI21: TRUE | HJ21: TRUE | HK21: TRUE | HL21: TRUE | HM21: TRUE | HN21: TRUE | HO21: TRUE | HP21: TRUE | HQ21: TRUE | HR21: TRUE | HS21: TRUE | HT21: TRUE | HU21: TRUE | HV21: TRUE | HW21: TRUE | HX21: TRUE | HY21: TRUE | HZ21: TRUE | IA21: TRUE | IB21: TRUE | IC21: TRUE | ID21: TRUE | IE21: TRUE | IF21: TRUE | IG21: TRUE | IH21: TRUE | II21: TRUE | IJ21: TRUE | IK21: TRUE | IL21: TRUE | IM21: TRUE | IN21: TRUE | IO21: TRUE | IP21: TRUE | IQ21: TRUE | IR21: TRUE | IS21: TRUE | IT21: TRUE | IU21: TRUE | IV21: TRUE | IW21: TRUE | IX21: TRUE | IY21: TRUE | IZ21: TRUE | JA21: TRUE | JB21: TRUE | JC21: TRUE | JD21: TRUE | JE21: TRUE | JF21: TRUE | JG21: TRUE | JH21: =JH1>=$G$21 -> TRUE | JI21: TRUE | JJ21: TRUE | JK21: TRUE | JL21: TRUE | JM21: TRUE | JN21: TRUE | JO21: TRUE | JP21: TRUE | JQ21: TRUE | JR21: TRUE | JS21: TRUE | JT21: TRUE | JU21: TRUE | JV21: TRUE | JW21: TRUE | JX21: TRUE | JY21: TRUE | JZ21: TRUE | KA21: TRUE | KB21: TRUE | KC21: TRUE
B22: Maintenance Period Code | L22: =MATCH(L1,'Operating assumptions'!$G$50:$G$54,0) ->  | M22: =MATCH(M1,'Operating assumptions'!$G$50:$G$54,0) ->  | N22: =MATCH(N1,'Operating assumptions'!$G$50:$G$54,0) ->  | O22: =MATCH(O1,'Operating assumptions'!$G$50:$G$54,0) ->  | P22: =MATCH(P1,'Operating assumptions'!$G$50:$G$54,0) ->  | Q22: =MATCH(Q1,'Operating assumptions'!$G$50:$G$54,0) ->  | R22: =MATCH(R1,'Operating assumptions'!$G$50:$G$54,0) ->  | S22: =MATCH(S1,'Operating assumptions'!$G$50:$G$54,0) ->  | T22: =MATCH(T1,'Operating assumptions'!$G$50:$G$54,0) ->  | U22: =MATCH(U1,'Operating assumptions'!$G$50:$G$54,0) ->  | V22: =MATCH(V1,'Operating assumptions'!$G$50:$G$54,0) ->  | W22: =MATCH(W1,'Operating assumptions'!$G$50:$G$54,0) ->  | X22: =MATCH(X1,'Operating assumptions'!$G$50:$G$54,0) ->  | Y22: =MATCH(Y1,'Operating assumptions'!$G$50:$G$54,0) ->  | Z22: =MATCH(Z1,'Operating assumptions'!$G$50:$G$54,0) ->  | AA22: =MATCH(AA1,'Operating assumptions'!$G$50:$G$54,0) ->  | AB22: =MATCH(AB1,'Operating assumptions'!$G$50:$G$54,0) ->  | AC22: =MATCH(AC1,'Operating assumptions'!$G$50:$G$54,0) ->  | AD22: =MATCH(AD1,'Operating assumptions'!$G$50:$G$54,0) ->  | AE22: =MATCH(AE1,'Operating assumptions'!$G$50:$G$54,0) ->  | AF22: =MATCH(AF1,'Operating assumptions'!$G$50:$G$54,0) ->  | AG22: =MATCH(AG1,'Operating assumptions'!$G$50:$G$54,0) ->  | AH22: =MATCH(AH1,'Operating assumptions'!$G$50:$G$54,0) ->  | AI22: =MATCH(AI1,'Operating assumptions'!$G$50:$G$54,0) ->  | AJ22: =MATCH(AJ1,'Operating assumptions'!$G$50:$G$54,0) ->  | AK22: =MATCH(AK1,'Operating assumptions'!$G$50:$G$54,0) ->  | AL22: =MATCH(AL1,'Operating assumptions'!$G$50:$G$54,0) ->  | AM22: =MATCH(AM1,'Operating assumptions'!$G$50:$G$54,0) ->  | AN22: =MATCH(AN1,'Operating assumptions'!$G$50:$G$54,0) ->  | AO22: =MATCH(AO1,'Operating assumptions'!$G$50:$G$54,0) ->  | AP22: =MATCH(AP1,'Operating assumptions'!$G$50:$G$54,0) ->  | AQ22: =MATCH(AQ1,'Operating assumptions'!$G$50:$G$54,0) ->  | AR22: =MATCH(AR1,'Operating assumptions'!$G$50:$G$54,0) ->  | AS22: =MATCH(AS1,'Operating assumptions'!$G$50:$G$54,0) ->  | AT22: =MATCH(AT1,'Operating assumptions'!$G$50:$G$54,0) ->  | AU22: =MATCH(AU1,'Operating assumptions'!$G$50:$G$54,0) ->  | AV22: =MATCH(AV1,'Operating assumptions'!$G$50:$G$54,0) ->  | AW22: =MATCH(AW1,'Operating assumptions'!$G$50:$G$54,0) ->  | AX22: =MATCH(AX1,'Operating assumptions'!$G$50:$G$54,0) ->  | AY22: =MATCH(AY1,'Operating assumptions'!$G$50:$G$54,0) ->  | AZ22: =MATCH(AZ1,'Operating assumptions'!$G$50:$G$54,0) ->  | BA22: =MATCH(BA1,'Operating assumptions'!$G$50:$G$54,0) ->  | BB22: =MATCH(BB1,'Operating assumptions'!$G$50:$G$54,0) ->  | BC22: =MATCH(BC1,'Operating assumptions'!$G$50:$G$54,0) ->  | BD22: =MATCH(BD1,'Operating assumptions'!$G$50:$G$54,0) ->  | BE22: =MATCH(BE1,'Operating assumptions'!$G$50:$G$54,0) ->  | BF22: =MATCH(BF1,'Operating assumptions'!$G$50:$G$54,0) ->  | BG22: =MATCH(BG1,'Operating assumptions'!$G$50:$G$54,0) ->  | BH22: =MATCH(BH1,'Operating assumptions'!$G$50:$G$54,0) ->  | BI22: =MATCH(BI1,'Operating assumptions'!$G$50:$G$54,0) ->  | BJ22: =MATCH(BJ1,'Operating assumptions'!$G$50:$G$54,0) ->  | BK22: =MATCH(BK1,'Operating assumptions'!$G$50:$G$54,0) ->  | BL22: =MATCH(BL1,'Operating assumptions'!$G$50:$G$54,0) ->  | BM22: =MATCH(BM1,'Operating assumptions'!$G$50:$G$54,0) ->  | BN22: =MATCH(BN1,'Operating assumptions'!$G$50:$G$54,0) ->  | BO22: =MATCH(BO1,'Operating assumptions'!$G$50:$G$54,0) ->  | BP22: =MATCH(BP1,'Operating assumptions'!$G$50:$G$54,0) ->  | BQ22: =MATCH(BQ1,'Operating assumptions'!$G$50:$G$54,0) ->  | BR22: =MATCH(BR1,'Operating assumptions'!$G$50:$G$54,0) ->  | BS22: =MATCH(BS1,'Operating assumptions'!$G$50:$G$54,0) ->  | BT22: =MATCH(BT1,'Operating assumptions'!$G$50:$G$54,0) ->  | BU22: =MATCH(BU1,'Operating assumptions'!$G$50:$G$54,0) ->  | BV22: =MATCH(BV1,'Operating assumptions'!$G$50:$G$54,0) ->  | BW22: =MATCH(BW1,'Operating assumptions'!$G$50:$G$54,0) ->  | BX22: =MATCH(BX1,'Operating assumptions'!$G$50:$G$54,0) ->  | BY22: =MATCH(BY1,'Operating assumptions'!$G$50:$G$54,0) ->  | BZ22: =MATCH(BZ1,'Operating assumptions'!$G$50:$G$54,0) ->  | CA22: =MATCH(CA1,'Operating assumptions'!$G$50:$G$54,0) ->  | CB22: =MATCH(CB1,'Operating assumptions'!$G$50:$G$54,0) ->  | CC22: =MATCH(CC1,'Operating assumptions'!$G$50:$G$54,0) ->  | CD22: =MATCH(CD1,'Operating assumptions'!$G$50:$G$54,0) ->  | CE22: =MATCH(CE1,'Operating assumptions'!$G$50:$G$54,0) ->  | CF22: =MATCH(CF1,'Operating assumptions'!$G$50:$G$54,0) ->  | CG22: =MATCH(CG1,'Operating assumptions'!$G$50:$G$54,0) ->  | CH22: =MATCH(CH1,'Operating assumptions'!$G$50:$G$54,0) ->  | CI22: =MATCH(CI1,'Operating assumptions'!$G$50:$G$54,0) ->  | CJ22: =MATCH(CJ1,'Operating assumptions'!$G$50:$G$54,0) ->  | CK22: =MATCH(CK1,'Operating assumptions'!$G$50:$G$54,0) ->  | CL22: =MATCH(CL1,'Operating assumptions'!$G$50:$G$54,0) ->  | CM22: =MATCH(CM1,'Operating assumptions'!$G$50:$G$54,0) ->  | CN22: =MATCH(CN1,'Operating assumptions'!$G$50:$G$54,0) ->  | CO22: =MATCH(CO1,'Operating assumptions'!$G$50:$G$54,0) ->  | CP22: =MATCH(CP1,'Operating assumptions'!$G$50:$G$54,0) ->  | CQ22: =MATCH(CQ1,'Operating assumptions'!$G$50:$G$54,0) ->  | CR22: =MATCH(CR1,'Operating assumptions'!$G$50:$G$54,0) ->  | CS22: =MATCH(CS1,'Operating assumptions'!$G$50:$G$54,0) ->  | CT22: =MATCH(CT1,'Operating assumptions'!$G$50:$G$54,0) ->  | CU22: =MATCH(CU1,'Operating assumptions'!$G$50:$G$54,0) ->  | CV22: =MATCH(CV1,'Operating assumptions'!$G$50:$G$54,0) -> 1 | CW22: =MATCH(CW1,'Operating assumptions'!$G$50:$G$54,0) ->  | CX22: =MATCH(CX1,'Operating assumptions'!$G$50:$G$54,0) ->  | CY22: =MATCH(CY1,'Operating assumptions'!$G$50:$G$54,0) ->  | CZ22: =MATCH(CZ1,'Operating assumptions'!$G$50:$G$54,0) ->  | DA22: =MATCH(DA1,'Operating assumptions'!$G$50:$G$54,0) ->  | DB22: =MATCH(DB1,'Operating assumptions'!$G$50:$G$54,0) ->  | DC22: =MATCH(DC1,'Operating assumptions'!$G$50:$G$54,0) ->  | DD22: =MATCH(DD1,'Operating assumptions'!$G$50:$G$54,0) ->  | DE22: =MATCH(DE1,'Operating assumptions'!$G$50:$G$54,0) ->  | DF22: =MATCH(DF1,'Operating assumptions'!$G$50:$G$54,0) ->  | DG22: =MATCH(DG1,'Operating assumptions'!$G$50:$G$54,0) ->  | DH22: =MATCH(DH1,'Operating assumptions'!$G$50:$G$54,0) -> 2 | DI22: =MATCH(DI1,'Operating assumptions'!$G$50:$G$54,0) ->  | DJ22: =MATCH(DJ1,'Operating assumptions'!$G$50:$G$54,0) ->  | DK22: =MATCH(DK1,'Operating assumptions'!$G$50:$G$54,0) ->  | DL22: =MATCH(DL1,'Operating assumptions'!$G$50:$G$54,0) ->  | DM22: =MATCH(DM1,'Operating assumptions'!$G$50:$G$54,0) ->  | DN22: =MATCH(DN1,'Operating assumptions'!$G$50:$G$54,0) ->  | DO22: =MATCH(DO1,'Operating assumptions'!$G$50:$G$54,0) ->  | DP22: =MATCH(DP1,'Operating assumptions'!$G$50:$G$54,0) ->  | DQ22: =MATCH(DQ1,'Operating assumptions'!$G$50:$G$54,0) ->  | DR22: =MATCH(DR1,'Operating assumptions'!$G$50:$G$54,0) ->  | DS22: =MATCH(DS1,'Operating assumptions'!$G$50:$G$54,0) ->  | DT22: =MATCH(DT1,'Operating assumptions'!$G$50:$G$54,0) ->  | DU22: =MATCH(DU1,'Operating assumptions'!$G$50:$G$54,0) ->  | DV22: =MATCH(DV1,'Operating assumptions'!$G$50:$G$54,0) -> 3 | DW22: =MATCH(DW1,'Operating assumptions'!$G$50:$G$54,0) ->  | DX22: =MATCH(DX1,'Operating assumptions'!$G$50:$G$54,0) ->  | DY22: =MATCH(DY1,'Operating assumptions'!$G$50:$G$54,0) ->  | DZ22: =MATCH(DZ1,'Operating assumptions'!$G$50:$G$54,0) ->  | EA22: =MATCH(EA1,'Operating assumptions'!$G$50:$G$54,0) ->  | EB22: =MATCH(EB1,'Operating assumptions'!$G$50:$G$54,0) ->  | EC22: =MATCH(EC1,'Operating assumptions'!$G$50:$G$54,0) ->  | ED22: =MATCH(ED1,'Operating assumptions'!$G$50:$G$54,0) ->  | EE22: =MATCH(EE1,'Operating assumptions'!$G$50:$G$54,0) ->  | EF22: =MATCH(EF1,'Operating assumptions'!$G$50:$G$54,0) ->  | EG22: =MATCH(EG1,'Operating assumptions'!$G$50:$G$54,0) ->  | EH22: =MATCH(EH1,'Operating assumptions'!$G$50:$G$54,0) ->  | EI22: =MATCH(EI1,'Operating assumptions'!$G$50:$G$54,0) ->  | EJ22: =MATCH(EJ1,'Operating assumptions'!$G$50:$G$54,0) -> 4 | EK22: =MATCH(EK1,'Operating assumptions'!$G$50:$G$54,0) ->  | EL22: =MATCH(EL1,'Operating assumptions'!$G$50:$G$54,0) ->  | EM22: =MATCH(EM1,'Operating assumptions'!$G$50:$G$54,0) ->  | EN22: =MATCH(EN1,'Operating assumptions'!$G$50:$G$54,0) ->  | EO22: =MATCH(EO1,'Operating assumptions'!$G$50:$G$54,0) ->  | EP22: =MATCH(EP1,'Operating assumptions'!$G$50:$G$54,0) ->  | EQ22: =MATCH(EQ1,'Operating assumptions'!$G$50:$G$54,0) ->  | ER22: =MATCH(ER1,'Operating assumptions'!$G$50:$G$54,0) ->  | ES22: =MATCH(ES1,'Operating assumptions'!$G$50:$G$54,0) ->  | ET22: =MATCH(ET1,'Operating assumptions'!$G$50:$G$54,0) ->  | EU22: =MATCH(EU1,'Operating assumptions'!$G$50:$G$54,0) ->  | EV22: =MATCH(EV1,'Operating assumptions'!$G$50:$G$54,0) ->  | EW22: =MATCH(EW1,'Operating assumptions'!$G$50:$G$54,0) ->  | EX22: =MATCH(EX1,'Operating assumptions'!$G$50:$G$54,0) -> 5 | EY22: =MATCH(EY1,'Operating assumptions'!$G$50:$G$54,0) ->  | EZ22: =MATCH(EZ1,'Operating assumptions'!$G$50:$G$54,0) ->  | FA22: =MATCH(FA1,'Operating assumptions'!$G$50:$G$54,0) ->  | FB22: =MATCH(FB1,'Operating assumptions'!$G$50:$G$54,0) ->  | FC22: =MATCH(FC1,'Operating assumptions'!$G$50:$G$54,0) ->  | FD22: =MATCH(FD1,'Operating assumptions'!$G$50:$G$54,0) ->  | FE22: =MATCH(FE1,'Operating assumptions'!$G$50:$G$54,0) ->  | FF22: =MATCH(FF1,'Operating assumptions'!$G$50:$G$54,0) ->  | FG22: =MATCH(FG1,'Operating assumptions'!$G$50:$G$54,0) ->  | FH22: =MATCH(FH1,'Operating assumptions'!$G$50:$G$54,0) ->  | FI22: =MATCH(FI1,'Operating assumptions'!$G$50:$G$54,0) ->  | FJ22: =MATCH(FJ1,'Operating assumptions'!$G$50:$G$54,0) ->  | FK22: =MATCH(FK1,'Operating assumptions'!$G$50:$G$54,0) ->  | FL22: =MATCH(FL1,'Operating assumptions'!$G$50:$G$54,0) ->  | FM22: =MATCH(FM1,'Operating assumptions'!$G$50:$G$54,0) ->  | FN22: =MATCH(FN1,'Operating assumptions'!$G$50:$G$54,0) ->  | FO22: =MATCH(FO1,'Operating assumptions'!$G$50:$G$54,0) ->  | FP22: =MATCH(FP1,'Operating assumptions'!$G$50:$G$54,0) ->  | FQ22: =MATCH(FQ1,'Operating assumptions'!$G$50:$G$54,0) ->  | FR22: =MATCH(FR1,'Operating assumptions'!$G$50:$G$54,0) ->  | FS22: =MATCH(FS1,'Operating assumptions'!$G$50:$G$54,0) ->  | FT22: =MATCH(FT1,'Operating assumptions'!$G$50:$G$54,0) ->  | FU22: =MATCH(FU1,'Operating assumptions'!$G$50:$G$54,0) ->  | FV22: =MATCH(FV1,'Operating assumptions'!$G$50:$G$54,0) ->  | FW22: =MATCH(FW1,'Operating assumptions'!$G$50:$G$54,0) ->  | FX22: =MATCH(FX1,'Operating assumptions'!$G$50:$G$54,0) ->  | FY22: =MATCH(FY1,'Operating assumptions'!$G$50:$G$54,0) ->  | FZ22: =MATCH(FZ1,'Operating assumptions'!$G$50:$G$54,0) ->  | GA22: =MATCH(GA1,'Operating assumptions'!$G$50:$G$54,0) ->  | GB22: =MATCH(GB1,'Operating assumptions'!$G$50:$G$54,0) ->  | GC22: =MATCH(GC1,'Operating assumptions'!$G$50:$G$54,0) ->  | GD22: =MATCH(GD1,'Operating assumptions'!$G$50:$G$54,0) ->  | GE22: =MATCH(GE1,'Operating assumptions'!$G$50:$G$54,0) ->  | GF22: =MATCH(GF1,'Operating assumptions'!$G$50:$G$54,0) ->  | GG22: =MATCH(GG1,'Operating assumptions'!$G$50:$G$54,0) ->  | GH22: =MATCH(GH1,'Operating assumptions'!$G$50:$G$54,0) ->  | GI22: =MATCH(GI1,'Operating assumptions'!$G$50:$G$54,0) ->  | GJ22: =MATCH(GJ1,'Operating assumptions'!$G$50:$G$54,0) ->  | GK22: =MATCH(GK1,'Operating assumptions'!$G$50:$G$54,0) ->  | GL22: =MATCH(GL1,'Operating assumptions'!$G$50:$G$54,0) ->  | GM22: =MATCH(GM1,'Operating assumptions'!$G$50:$G$54,0) ->  | GN22: =MATCH(GN1,'Operating assumptions'!$G$50:$G$54,0) ->  | GO22: =MATCH(GO1,'Operating assumptions'!$G$50:$G$54,0) ->  | GP22: =MATCH(GP1,'Operating assumptions'!$G$50:$G$54,0) ->  | GQ22: =MATCH(GQ1,'Operating assumptions'!$G$50:$G$54,0) ->  | GR22: =MATCH(GR1,'Operating assumptions'!$G$50:$G$54,0) ->  | GS22: =MATCH(GS1,'Operating assumptions'!$G$50:$G$54,0) ->  | GT22: =MATCH(GT1,'Operating assumptions'!$G$50:$G$54,0) ->  | GU22: =MATCH(GU1,'Operating assumptions'!$G$50:$G$54,0) ->  | GV22: =MATCH(GV1,'Operating assumptions'!$G$50:$G$54,0) ->  | GW22: =MATCH(GW1,'Operating assumptions'!$G$50:$G$54,0) ->  | GX22: =MATCH(GX1,'Operating assumptions'!$G$50:$G$54,0) ->  | GY22: =MATCH(GY1,'Operating assumptions'!$G$50:$G$54,0) ->  | GZ22: =MATCH(GZ1,'Operating assumptions'!$G$50:$G$54,0) ->  | HA22: =MATCH(HA1,'Operating assumptions'!$G$50:$G$54,0) ->  | HB22: =MATCH(HB1,'Operating assumptions'!$G$50:$G$54,0) ->  | HC22: =MATCH(HC1,'Operating assumptions'!$G$50:$G$54,0) ->  | HD22: =MATCH(HD1,'Operating assumptions'!$G$50:$G$54,0) ->  | HE22: =MATCH(HE1,'Operating assumptions'!$G$50:$G$54,0) ->  | HF22: =MATCH(HF1,'Operating assumptions'!$G$50:$G$54,0) ->  | HG22: =MATCH(HG1,'Operating assumptions'!$G$50:$G$54,0) ->  | HH22: =MATCH(HH1,'Operating assumptions'!$G$50:$G$54,0) ->  | HI22: =MATCH(HI1,'Operating assumptions'!$G$50:$G$54,0) ->  | HJ22: =MATCH(HJ1,'Operating assumptions'!$G$50:$G$54,0) ->  | HK22: =MATCH(HK1,'Operating assumptions'!$G$50:$G$54,0) ->  | HL22: =MATCH(HL1,'Operating assumptions'!$G$50:$G$54,0) ->  | HM22: =MATCH(HM1,'Operating assumptions'!$G$50:$G$54,0) ->  | HN22: =MATCH(HN1,'Operating assumptions'!$G$50:$G$54,0) ->  | HO22: =MATCH(HO1,'Operating assumptions'!$G$50:$G$54,0) ->  | HP22: =MATCH(HP1,'Operating assumptions'!$G$50:$G$54,0) ->  | HQ22: =MATCH(HQ1,'Operating assumptions'!$G$50:$G$54,0) ->  | HR22: =MATCH(HR1,'Operating assumptions'!$G$50:$G$54,0) ->  | HS22: =MATCH(HS1,'Operating assumptions'!$G$50:$G$54,0) ->  | HT22: =MATCH(HT1,'Operating assumptions'!$G$50:$G$54,0) ->  | HU22: =MATCH(HU1,'Operating assumptions'!$G$50:$G$54,0) ->  | HV22: =MATCH(HV1,'Operating assumptions'!$G$50:$G$54,0) ->  | HW22: =MATCH(HW1,'Operating assumptions'!$G$50:$G$54,0) ->  | HX22: =MATCH(HX1,'Operating assumptions'!$G$50:$G$54,0) ->  | HY22: =MATCH(HY1,'Operating assumptions'!$G$50:$G$54,0) ->  | HZ22: =MATCH(HZ1,'Operating assumptions'!$G$50:$G$54,0) ->  | IA22: =MATCH(IA1,'Operating assumptions'!$G$50:$G$54,0) ->  | IB22: =MATCH(IB1,'Operating assumptions'!$G$50:$G$54,0) ->  | IC22: =MATCH(IC1,'Operating assumptions'!$G$50:$G$54,0) ->  | ID22: =MATCH(ID1,'Operating assumptions'!$G$50:$G$54,0) ->  | IE22: =MATCH(IE1,'Operating assumptions'!$G$50:$G$54,0) ->  | IF22: =MATCH(IF1,'Operating assumptions'!$G$50:$G$54,0) ->  | IG22: =MATCH(IG1,'Operating assumptions'!$G$50:$G$54,0) ->  | IH22: =MATCH(IH1,'Operating assumptions'!$G$50:$G$54,0) ->  | II22: =MATCH(II1,'Operating assumptions'!$G$50:$G$54,0) ->  | IJ22: =MATCH(IJ1,'Operating assumptions'!$G$50:$G$54,0) ->  | IK22: =MATCH(IK1,'Operating assumptions'!$G$50:$G$54,0) ->  | IL22: =MATCH(IL1,'Operating assumptions'!$G$50:$G$54,0) ->  | IM22: =MATCH(IM1,'Operating assumptions'!$G$50:$G$54,0) ->  | IN22: =MATCH(IN1,'Operating assumptions'!$G$50:$G$54,0) ->  | IO22: =MATCH(IO1,'Operating assumptions'!$G$50:$G$54,0) ->  | IP22: =MATCH(IP1,'Operating assumptions'!$G$50:$G$54,0) ->  | IQ22: =MATCH(IQ1,'Operating assumptions'!$G$50:$G$54,0) ->  | IR22: =MATCH(IR1,'Operating assumptions'!$G$50:$G$54,0) ->  | IS22: =MATCH(IS1,'Operating assumptions'!$G$50:$G$54,0) ->  | IT22: =MATCH(IT1,'Operating assumptions'!$G$50:$G$54,0) ->  | IU22: =MATCH(IU1,'Operating assumptions'!$G$50:$G$54,0) ->  | IV22: =MATCH(IV1,'Operating assumptions'!$G$50:$G$54,0) ->  | IW22: =MATCH(IW1,'Operating assumptions'!$G$50:$G$54,0) ->  | IX22: =MATCH(IX1,'Operating assumptions'!$G$50:$G$54,0) ->  | IY22: =MATCH(IY1,'Operating assumptions'!$G$50:$G$54,0) ->  | IZ22: =MATCH(IZ1,'Operating assumptions'!$G$50:$G$54,0) ->  | JA22: =MATCH(JA1,'Operating assumptions'!$G$50:$G$54,0) ->  | JB22: =MATCH(JB1,'Operating assumptions'!$G$50:$G$54,0) ->  | JC22: =MATCH(JC1,'Operating assumptions'!$G$50:$G$54,0) ->  | JD22: =MATCH(JD1,'Operating assumptions'!$G$50:$G$54,0) ->  | JE22: =MATCH(JE1,'Operating assumptions'!$G$50:$G$54,0) ->  | JF22: =MATCH(JF1,'Operating assumptions'!$G$50:$G$54,0) ->  | JG22: =MATCH(JG1,'Operating assumptions'!$G$50:$G$54,0) ->  | JH22: =MATCH(JH1,'Operating assumptions'!$G$50:$G$54,0) ->  | JI22: =MATCH(JI1,'Operating assumptions'!$G$50:$G$54,0) ->  | JJ22: =MATCH(JJ1,'Operating assumptions'!$G$50:$G$54,0) ->  | JK22: =MATCH(JK1,'Operating assumptions'!$G$50:$G$54,0) ->  | JL22: =MATCH(JL1,'Operating assumptions'!$G$50:$G$54,0) ->  | JM22: =MATCH(JM1,'Operating assumptions'!$G$50:$G$54,0) ->  | JN22: =MATCH(JN1,'Operating assumptions'!$G$50:$G$54,0) ->  | JO22: =MATCH(JO1,'Operating assumptions'!$G$50:$G$54,0) ->  | JP22: =MATCH(JP1,'Operating assumptions'!$G$50:$G$54,0) ->  | JQ22: =MATCH(JQ1,'Operating assumptions'!$G$50:$G$54,0) ->  | JR22: =MATCH(JR1,'Operating assumptions'!$G$50:$G$54,0) ->  | JS22: =MATCH(JS1,'Operating assumptions'!$G$50:$G$54,0) ->  | JT22: =MATCH(JT1,'Operating assumptions'!$G$50:$G$54,0) ->  | JU22: =MATCH(JU1,'Operating assumptions'!$G$50:$G$54,0) ->  | JV22: =MATCH(JV1,'Operating assumptions'!$G$50:$G$54,0) ->  | JW22: =MATCH(JW1,'Operating assumptions'!$G$50:$G$54,0) ->  | JX22: =MATCH(JX1,'Operating assumptions'!$G$50:$G$54,0) ->  | JY22: =MATCH(JY1,'Operating assumptions'!$G$50:$G$54,0) ->  | JZ22: =MATCH(JZ1,'Operating assumptions'!$G$50:$G$54,0) ->  | KA22: =MATCH(KA1,'Operating assumptions'!$G$50:$G$54,0) ->  | KB22: =MATCH(KB1,'Operating assumptions'!$G$50:$G$54,0) ->  | KC22: =MATCH(KC1,'Operating assumptions'!$G$50:$G$54,0) -> 
B23: Maintenance Period Switch | F23: Switch | J23: =SUMPRODUCT(L23:KC23*1) -> 5 | L23: =ISNUMBER(L22) -> FALSE | M23: =ISNUMBER(M22) -> FALSE | N23: FALSE | O23: FALSE | P23: FALSE | Q23: FALSE | R23: FALSE | S23: FALSE | T23: FALSE | U23: FALSE | V23: FALSE | W23: FALSE | X23: FALSE | Y23: FALSE | Z23: FALSE | AA23: FALSE | AB23: FALSE | AC23: FALSE | AD23: FALSE | AE23: FALSE | AF23: FALSE | AG23: FALSE | AH23: FALSE | AI23: FALSE | AJ23: FALSE | AK23: FALSE | AL23: FALSE | AM23: FALSE | AN23: FALSE | AO23: FALSE | AP23: FALSE | AQ23: FALSE | AR23: FALSE | AS23: FALSE | AT23: FALSE | AU23: FALSE | AV23: FALSE | AW23: FALSE | AX23: FALSE | AY23: FALSE | AZ23: FALSE | BA23: FALSE | BB23: FALSE | BC23: FALSE | BD23: FALSE | BE23: FALSE | BF23: FALSE | BG23: FALSE | BH23: FALSE | BI23: FALSE | BJ23: FALSE | BK23: FALSE | BL23: FALSE | BM23: FALSE | BN23: FALSE | BO23: FALSE | BP23: FALSE | BQ23: FALSE | BR23: FALSE | BS23: FALSE | BT23: FALSE | BU23: FALSE | BV23: FALSE | BW23: FALSE | BX23: FALSE | BY23: =ISNUMBER(BY22) -> FALSE | BZ23: FALSE | CA23: FALSE | CB23: FALSE | CC23: FALSE | CD23: FALSE | CE23: FALSE | CF23: FALSE | CG23: FALSE | CH23: FALSE | CI23: FALSE | CJ23: FALSE | CK23: FALSE | CL23: FALSE | CM23: FALSE | CN23: FALSE | CO23: FALSE | CP23: FALSE | CQ23: FALSE | CR23: FALSE | CS23: FALSE | CT23: FALSE | CU23: FALSE | CV23: TRUE | CW23: FALSE | CX23: FALSE | CY23: FALSE | CZ23: FALSE | DA23: FALSE | DB23: FALSE | DC23: FALSE | DD23: FALSE | DE23: FALSE | DF23: FALSE | DG23: FALSE | DH23: TRUE | DI23: FALSE | DJ23: FALSE | DK23: FALSE | DL23: FALSE | DM23: FALSE | DN23: FALSE | DO23: FALSE | DP23: FALSE | DQ23: FALSE | DR23: FALSE | DS23: FALSE | DT23: FALSE | DU23: FALSE | DV23: TRUE | DW23: FALSE | DX23: FALSE | DY23: FALSE | DZ23: FALSE | EA23: FALSE | EB23: FALSE | EC23: FALSE | ED23: FALSE | EE23: FALSE | EF23: FALSE | EG23: FALSE | EH23: FALSE | EI23: FALSE | EJ23: TRUE | EK23: =ISNUMBER(EK22) -> FALSE | EL23: FALSE | EM23: FALSE | EN23: FALSE | EO23: FALSE | EP23: FALSE | EQ23: FALSE | ER23: FALSE | ES23: FALSE | ET23: FALSE | EU23: FALSE | EV23: FALSE | EW23: FALSE | EX23: TRUE | EY23: FALSE | EZ23: FALSE | FA23: FALSE | FB23: FALSE | FC23: FALSE | FD23: FALSE | FE23: FALSE | FF23: FALSE | FG23: FALSE | FH23: FALSE | FI23: FALSE | FJ23: FALSE | FK23: FALSE | FL23: FALSE | FM23: FALSE | FN23: FALSE | FO23: FALSE | FP23: FALSE | FQ23: FALSE | FR23: FALSE | FS23: FALSE | FT23: FALSE | FU23: FALSE | FV23: FALSE | FW23: FALSE | FX23: FALSE | FY23: FALSE | FZ23: FALSE | GA23: FALSE | GB23: FALSE | GC23: FALSE | GD23: FALSE | GE23: FALSE | GF23: FALSE | GG23: FALSE | GH23: FALSE | GI23: FALSE | GJ23: FALSE | GK23: FALSE | GL23: FALSE | GM23: FALSE | GN23: FALSE | GO23: FALSE | GP23: FALSE | GQ23: FALSE | GR23: FALSE | GS23: FALSE | GT23: FALSE | GU23: FALSE | GV23: FALSE | GW23: =ISNUMBER(GW22) -> FALSE | GX23: FALSE | GY23: FALSE | GZ23: FALSE | HA23: FALSE | HB23: FALSE | HC23: FALSE | HD23: FALSE | HE23: FALSE | HF23: FALSE | HG23: FALSE | HH23: FALSE | HI23: FALSE | HJ23: FALSE | HK23: FALSE | HL23: FALSE | HM23: FALSE | HN23: FALSE | HO23: FALSE | HP23: FALSE | HQ23: FALSE | HR23: FALSE | HS23: FALSE | HT23: FALSE | HU23: FALSE | HV23: FALSE | HW23: FALSE | HX23: FALSE | HY23: FALSE | HZ23: FALSE | IA23: FALSE | IB23: FALSE | IC23: FALSE | ID23: FALSE | IE23: FALSE | IF23: FALSE | IG23: FALSE | IH23: FALSE | II23: FALSE | IJ23: FALSE | IK23: FALSE | IL23: FALSE | IM23: FALSE | IN23: FALSE | IO23: FALSE | IP23: FALSE | IQ23: FALSE | IR23: FALSE | IS23: FALSE | IT23: FALSE | IU23: FALSE | IV23: FALSE | IW23: FALSE | IX23: FALSE | IY23: FALSE | IZ23: FALSE | JA23: FALSE | JB23: FALSE | JC23: FALSE | JD23: FALSE | JE23: FALSE | JF23: FALSE | JG23: FALSE | JH23: FALSE | JI23: =ISNUMBER(JI22) -> FALSE | JJ23: FALSE | JK23: FALSE | JL23: FALSE | JM23: FALSE | JN23: FALSE | JO23: FALSE | JP23: FALSE | JQ23: FALSE | JR23: FALSE | JS23: FALSE | JT23: FALSE | JU23: FALSE | JV23: FALSE | JW23: FALSE | JX23: FALSE | JY23: FALSE | JZ23: FALSE | KA23: FALSE | KB23: FALSE | KC23: FALSE
B24: Debt repayment phase | F24: Switch | G24: ='Financing assumptions'!G28 -> 2048-01-01 | J24: =SUMPRODUCT(L24:KC24*1) -> 56 | L24: =AND(L1>=$G$12,L1<$G$24) -> FALSE | M24: =AND(M1>=$G$12,M1<$G$24) -> FALSE | N24: FALSE | O24: FALSE | P24: FALSE | Q24: FALSE | R24: FALSE | S24: FALSE | T24: FALSE | U24: FALSE | V24: FALSE | W24: FALSE | X24: FALSE | Y24: FALSE | Z24: FALSE | AA24: FALSE | AB24: FALSE | AC24: FALSE | AD24: FALSE | AE24: FALSE | AF24: FALSE | AG24: FALSE | AH24: FALSE | AI24: FALSE | AJ24: FALSE | AK24: FALSE | AL24: FALSE | AM24: FALSE | AN24: FALSE | AO24: FALSE | AP24: FALSE | AQ24: FALSE | AR24: FALSE | AS24: FALSE | AT24: FALSE | AU24: FALSE | AV24: FALSE | AW24: FALSE | AX24: FALSE | AY24: FALSE | AZ24: FALSE | BA24: FALSE | BB24: FALSE | BC24: FALSE | BD24: FALSE | BE24: FALSE | BF24: FALSE | BG24: FALSE | BH24: FALSE | BI24: FALSE | BJ24: FALSE | BK24: FALSE | BL24: FALSE | BM24: FALSE | BN24: FALSE | BO24: FALSE | BP24: FALSE | BQ24: FALSE | BR24: FALSE | BS24: FALSE | BT24: FALSE | BU24: FALSE | BV24: FALSE | BW24: FALSE | BX24: FALSE | BY24: =AND(BY1>=$G$12,BY1<$G$24) -> FALSE | BZ24: FALSE | CA24: FALSE | CB24: FALSE | CC24: FALSE | CD24: FALSE | CE24: FALSE | CF24: FALSE | CG24: FALSE | CH24: FALSE | CI24: FALSE | CJ24: FALSE | CK24: FALSE | CL24: TRUE | CM24: TRUE | CN24: TRUE | CO24: TRUE | CP24: TRUE | CQ24: TRUE | CR24: TRUE | CS24: TRUE | CT24: TRUE | CU24: TRUE | CV24: TRUE | CW24: TRUE | CX24: TRUE | CY24: TRUE | CZ24: TRUE | DA24: TRUE | DB24: TRUE | DC24: TRUE | DD24: TRUE | DE24: TRUE | DF24: TRUE | DG24: TRUE | DH24: TRUE | DI24: TRUE | DJ24: TRUE | DK24: TRUE | DL24: TRUE | DM24: TRUE | DN24: TRUE | DO24: TRUE | DP24: TRUE | DQ24: TRUE | DR24: TRUE | DS24: TRUE | DT24: TRUE | DU24: TRUE | DV24: TRUE | DW24: TRUE | DX24: TRUE | DY24: TRUE | DZ24: TRUE | EA24: TRUE | EB24: TRUE | EC24: TRUE | ED24: TRUE | EE24: TRUE | EF24: TRUE | EG24: TRUE | EH24: TRUE | EI24: TRUE | EJ24: TRUE | EK24: =AND(EK1>=$G$12,EK1<$G$24) -> TRUE | EL24: TRUE | EM24: TRUE | EN24: TRUE | EO24: TRUE | EP24: FALSE | EQ24: FALSE | ER24: FALSE | ES24: FALSE | ET24: FALSE | EU24: FALSE | EV24: FALSE | EW24: FALSE | EX24: FALSE | EY24: FALSE | EZ24: FALSE | FA24: FALSE | FB24: FALSE | FC24: FALSE | FD24: FALSE | FE24: FALSE | FF24: FALSE | FG24: FALSE | FH24: FALSE | FI24: FALSE | FJ24: FALSE | FK24: FALSE | FL24: FALSE | FM24: FALSE | FN24: FALSE | FO24: FALSE | FP24: FALSE | FQ24: FALSE | FR24: FALSE | FS24: FALSE | FT24: FALSE | FU24: FALSE | FV24: FALSE | FW24: FALSE | FX24: FALSE | FY24: FALSE | FZ24: FALSE | GA24: FALSE | GB24: FALSE | GC24: FALSE | GD24: FALSE | GE24: FALSE | GF24: FALSE | GG24: FALSE | GH24: FALSE | GI24: FALSE | GJ24: FALSE | GK24: FALSE | GL24: FALSE | GM24: FALSE | GN24: FALSE | GO24: FALSE | GP24: FALSE | GQ24: FALSE | GR24: FALSE | GS24: FALSE | GT24: FALSE | GU24: FALSE | GV24: FALSE | GW24: =AND(GW1>=$G$12,GW1<$G$24) -> FALSE | GX24: FALSE | GY24: FALSE | GZ24: FALSE | HA24: FALSE | HB24: FALSE | HC24: FALSE | HD24: FALSE | HE24: FALSE | HF24: FALSE | HG24: FALSE | HH24: FALSE | HI24: FALSE | HJ24: FALSE | HK24: FALSE | HL24: FALSE | HM24: FALSE | HN24: FALSE | HO24: FALSE | HP24: FALSE | HQ24: FALSE | HR24: FALSE | HS24: FALSE | HT24: FALSE | HU24: FALSE | HV24: FALSE | HW24: FALSE | HX24: FALSE | HY24: FALSE | HZ24: FALSE | IA24: FALSE | IB24: FALSE | IC24: FALSE | ID24: FALSE | IE24: FALSE | IF24: FALSE | IG24: FALSE | IH24: FALSE | II24: FALSE | IJ24: FALSE | IK24: FALSE | IL24: FALSE | IM24: FALSE | IN24: FALSE | IO24: FALSE | IP24: FALSE | IQ24: FALSE | IR24: FALSE | IS24: FALSE | IT24: FALSE | IU24: FALSE | IV24: FALSE | IW24: FALSE | IX24: FALSE | IY24: FALSE | IZ24: FALSE | JA24: FALSE | JB24: FALSE | JC24: FALSE | JD24: FALSE | JE24: FALSE | JF24: FALSE | JG24: FALSE | JH24: FALSE | JI24: =AND(JI1>=$G$12,JI1<$G$24) -> FALSE | JJ24: FALSE | JK24: FALSE | JL24: FALSE | JM24: FALSE | JN24: FALSE | JO24: FALSE | JP24: FALSE | JQ24: FALSE | JR24: FALSE | JS24: FALSE | JT24: FALSE | JU24: FALSE | JV24: FALSE | JW24: FALSE | JX24: FALSE | JY24: FALSE | JZ24: FALSE | KA24: FALSE | KB24: FALSE | KC24: FALSE
B25: Last debt repayment | F25: Switch | G25: =EDATE(G24,-I7) -> 2047-07-01 | J25: =SUMPRODUCT(L25:KC25*1) -> 1 | L25: =L1=$G$25 -> FALSE | M25: =M1=$G$25 -> FALSE | N25: FALSE | O25: FALSE | P25: FALSE | Q25: FALSE | R25: FALSE | S25: FALSE | T25: FALSE | U25: FALSE | V25: FALSE | W25: FALSE | X25: FALSE | Y25: FALSE | Z25: FALSE | AA25: FALSE | AB25: FALSE | AC25: FALSE | AD25: FALSE | AE25: FALSE | AF25: FALSE | AG25: FALSE | AH25: FALSE | AI25: FALSE | AJ25: FALSE | AK25: FALSE | AL25: FALSE | AM25: FALSE | AN25: FALSE | AO25: FALSE | AP25: FALSE | AQ25: FALSE | AR25: FALSE | AS25: FALSE | AT25: FALSE | AU25: FALSE | AV25: FALSE | AW25: FALSE | AX25: FALSE | AY25: FALSE | AZ25: FALSE | BA25: FALSE | BB25: FALSE | BC25: FALSE | BD25: FALSE | BE25: FALSE | BF25: FALSE | BG25: FALSE | BH25: FALSE | BI25: FALSE | BJ25: FALSE | BK25: FALSE | BL25: FALSE | BM25: FALSE | BN25: FALSE | BO25: FALSE | BP25: FALSE | BQ25: FALSE | BR25: FALSE | BS25: FALSE | BT25: FALSE | BU25: FALSE | BV25: FALSE | BW25: FALSE | BX25: FALSE | BY25: =BY1=$G$25 -> FALSE | BZ25: FALSE | CA25: FALSE | CB25: FALSE | CC25: FALSE | CD25: FALSE | CE25: FALSE | CF25: FALSE | CG25: FALSE | CH25: FALSE | CI25: FALSE | CJ25: FALSE | CK25: FALSE | CL25: FALSE | CM25: FALSE | CN25: FALSE | CO25: FALSE | CP25: FALSE | CQ25: FALSE | CR25: FALSE | CS25: FALSE | CT25: FALSE | CU25: FALSE | CV25: FALSE | CW25: FALSE | CX25: FALSE | CY25: FALSE | CZ25: FALSE | DA25: FALSE | DB25: FALSE | DC25: FALSE | DD25: FALSE | DE25: FALSE | DF25: FALSE | DG25: FALSE | DH25: FALSE | DI25: FALSE | DJ25: FALSE | DK25: FALSE | DL25: FALSE | DM25: FALSE | DN25: FALSE | DO25: FALSE | DP25: FALSE | DQ25: FALSE | DR25: FALSE | DS25: FALSE | DT25: FALSE | DU25: FALSE | DV25: FALSE | DW25: FALSE | DX25: FALSE | DY25: FALSE | DZ25: FALSE | EA25: FALSE | EB25: FALSE | EC25: FALSE | ED25: FALSE | EE25: FALSE | EF25: FALSE | EG25: FALSE | EH25: FALSE | EI25: FALSE | EJ25: FALSE | EK25: =EK1=$G$25 -> FALSE | EL25: FALSE | EM25: FALSE | EN25: FALSE | EO25: TRUE | EP25: FALSE | EQ25: FALSE | ER25: FALSE | ES25: FALSE | ET25: FALSE | EU25: FALSE | EV25: FALSE | EW25: FALSE | EX25: FALSE | EY25: FALSE | EZ25: FALSE | FA25: FALSE | FB25: FALSE | FC25: FALSE | FD25: FALSE | FE25: FALSE | FF25: FALSE | FG25: FALSE | FH25: FALSE | FI25: FALSE | FJ25: FALSE | FK25: FALSE | FL25: FALSE | FM25: FALSE | FN25: FALSE | FO25: FALSE | FP25: FALSE | FQ25: FALSE | FR25: FALSE | FS25: FALSE | FT25: FALSE | FU25: FALSE | FV25: FALSE | FW25: FALSE | FX25: FALSE | FY25: FALSE | FZ25: FALSE | GA25: FALSE | GB25: FALSE | GC25: FALSE | GD25: FALSE | GE25: FALSE | GF25: FALSE | GG25: FALSE | GH25: FALSE | GI25: FALSE | GJ25: FALSE | GK25: FALSE | GL25: FALSE | GM25: FALSE | GN25: FALSE | GO25: FALSE | GP25: FALSE | GQ25: FALSE | GR25: FALSE | GS25: FALSE | GT25: FALSE | GU25: FALSE | GV25: FALSE | GW25: =GW1=$G$25 -> FALSE | GX25: FALSE | GY25: FALSE | GZ25: FALSE | HA25: FALSE | HB25: FALSE | HC25: FALSE | HD25: FALSE | HE25: FALSE | HF25: FALSE | HG25: FALSE | HH25: FALSE | HI25: FALSE | HJ25: FALSE | HK25: FALSE | HL25: FALSE | HM25: FALSE | HN25: FALSE | HO25: FALSE | HP25: FALSE | HQ25: FALSE | HR25: FALSE | HS25: FALSE | HT25: FALSE | HU25: FALSE | HV25: FALSE | HW25: FALSE | HX25: FALSE | HY25: FALSE | HZ25: FALSE | IA25: FALSE | IB25: FALSE | IC25: FALSE | ID25: FALSE | IE25: FALSE | IF25: FALSE | IG25: FALSE | IH25: FALSE | II25: FALSE | IJ25: FALSE | IK25: FALSE | IL25: FALSE | IM25: FALSE | IN25: FALSE | IO25: FALSE | IP25: FALSE | IQ25: FALSE | IR25: FALSE | IS25: FALSE | IT25: FALSE | IU25: FALSE | IV25: FALSE | IW25: FALSE | IX25: FALSE | IY25: FALSE | IZ25: FALSE | JA25: FALSE | JB25: FALSE | JC25: FALSE | JD25: FALSE | JE25: FALSE | JF25: FALSE | JG25: FALSE | JH25: FALSE | JI25: =JI1=$G$25 -> FALSE | JJ25: FALSE | JK25: FALSE | JL25: FALSE | JM25: FALSE | JN25: FALSE | JO25: FALSE | JP25: FALSE | JQ25: FALSE | JR25: FALSE | JS25: FALSE | JT25: FALSE | JU25: FALSE | JV25: FALSE | JW25: FALSE | JX25: FALSE | JY25: FALSE | JZ25: FALSE | KA25: FALSE | KB25: FALSE | KC25: FALSE
B26: Pre-ROD Date | F26: Switch | G26: =EDATE(G16,-G7) -> 2019-12-01 | J26: =SUMPRODUCT(L26:KC26*1) -> 1 | L26: =L1=$G$26 -> FALSE | M26: =M1=$G$26 -> FALSE | N26: FALSE | O26: FALSE | P26: FALSE | Q26: FALSE | R26: FALSE | S26: FALSE | T26: FALSE | U26: FALSE | V26: FALSE | W26: FALSE | X26: FALSE | Y26: FALSE | Z26: FALSE | AA26: FALSE | AB26: FALSE | AC26: FALSE | AD26: FALSE | AE26: FALSE | AF26: FALSE | AG26: FALSE | AH26: FALSE | AI26: FALSE | AJ26: FALSE | AK26: FALSE | AL26: FALSE | AM26: FALSE | AN26: FALSE | AO26: FALSE | AP26: FALSE | AQ26: FALSE | AR26: FALSE | AS26: FALSE | AT26: FALSE | AU26: FALSE | AV26: FALSE | AW26: FALSE | AX26: FALSE | AY26: FALSE | AZ26: FALSE | BA26: FALSE | BB26: FALSE | BC26: FALSE | BD26: FALSE | BE26: FALSE | BF26: FALSE | BG26: FALSE | BH26: FALSE | BI26: FALSE | BJ26: FALSE | BK26: FALSE | BL26: FALSE | BM26: FALSE | BN26: FALSE | BO26: FALSE | BP26: FALSE | BQ26: FALSE | BR26: FALSE | BS26: FALSE | BT26: FALSE | BU26: FALSE | BV26: FALSE | BW26: FALSE | BX26: FALSE | BY26: =BY1=$G$26 -> FALSE | BZ26: FALSE | CA26: FALSE | CB26: FALSE | CC26: FALSE | CD26: FALSE | CE26: FALSE | CF26: FALSE | CG26: FALSE | CH26: FALSE | CI26: FALSE | CJ26: FALSE | CK26: TRUE | CL26: FALSE | CM26: FALSE | CN26: FALSE | CO26: FALSE | CP26: FALSE | CQ26: FALSE | CR26: FALSE | CS26: FALSE | CT26: FALSE | CU26: FALSE | CV26: FALSE | CW26: FALSE | CX26: FALSE | CY26: FALSE | CZ26: FALSE | DA26: FALSE | DB26: FALSE | DC26: FALSE | DD26: FALSE | DE26: FALSE | DF26: FALSE | DG26: FALSE | DH26: FALSE | DI26: FALSE | DJ26: FALSE | DK26: FALSE | DL26: FALSE | DM26: FALSE | DN26: FALSE | DO26: FALSE | DP26: FALSE | DQ26: FALSE | DR26: FALSE | DS26: FALSE | DT26: FALSE | DU26: FALSE | DV26: FALSE | DW26: FALSE | DX26: FALSE | DY26: FALSE | DZ26: FALSE | EA26: FALSE | EB26: FALSE | EC26: FALSE | ED26: FALSE | EE26: FALSE | EF26: FALSE | EG26: FALSE | EH26: FALSE | EI26: FALSE | EJ26: FALSE | EK26: =EK1=$G$26 -> FALSE | EL26: FALSE | EM26: FALSE | EN26: FALSE | EO26: FALSE | EP26: FALSE | EQ26: FALSE | ER26: FALSE | ES26: FALSE | ET26: FALSE | EU26: FALSE | EV26: FALSE | EW26: FALSE | EX26: FALSE | EY26: FALSE | EZ26: FALSE | FA26: FALSE | FB26: FALSE | FC26: FALSE | FD26: FALSE | FE26: FALSE | FF26: FALSE | FG26: FALSE | FH26: FALSE | FI26: FALSE | FJ26: FALSE | FK26: FALSE | FL26: FALSE | FM26: FALSE | FN26: FALSE | FO26: FALSE | FP26: FALSE | FQ26: FALSE | FR26: FALSE | FS26: FALSE | FT26: FALSE | FU26: FALSE | FV26: FALSE | FW26: FALSE | FX26: FALSE | FY26: FALSE | FZ26: FALSE | GA26: FALSE | GB26: FALSE | GC26: FALSE | GD26: FALSE | GE26: FALSE | GF26: FALSE | GG26: FALSE | GH26: FALSE | GI26: FALSE | GJ26: FALSE | GK26: FALSE | GL26: FALSE | GM26: FALSE | GN26: FALSE | GO26: FALSE | GP26: FALSE | GQ26: FALSE | GR26: FALSE | GS26: FALSE | GT26: FALSE | GU26: FALSE | GV26: FALSE | GW26: =GW1=$G$26 -> FALSE | GX26: FALSE | GY26: FALSE | GZ26: FALSE | HA26: FALSE | HB26: FALSE | HC26: FALSE | HD26: FALSE | HE26: FALSE | HF26: FALSE | HG26: FALSE | HH26: FALSE | HI26: FALSE | HJ26: FALSE | HK26: FALSE | HL26: FALSE | HM26: FALSE | HN26: FALSE | HO26: FALSE | HP26: FALSE | HQ26: FALSE | HR26: FALSE | HS26: FALSE | HT26: FALSE | HU26: FALSE | HV26: FALSE | HW26: FALSE | HX26: FALSE | HY26: FALSE | HZ26: FALSE | IA26: FALSE | IB26: FALSE | IC26: FALSE | ID26: FALSE | IE26: FALSE | IF26: FALSE | IG26: FALSE | IH26: FALSE | II26: FALSE | IJ26: FALSE | IK26: FALSE | IL26: FALSE | IM26: FALSE | IN26: FALSE | IO26: FALSE | IP26: FALSE | IQ26: FALSE | IR26: FALSE | IS26: FALSE | IT26: FALSE | IU26: FALSE | IV26: FALSE | IW26: FALSE | IX26: FALSE | IY26: FALSE | IZ26: FALSE | JA26: FALSE | JB26: FALSE | JC26: FALSE | JD26: FALSE | JE26: FALSE | JF26: FALSE | JG26: FALSE | JH26: FALSE | JI26: =JI1=$G$26 -> FALSE | JJ26: FALSE | JK26: FALSE | JL26: FALSE | JM26: FALSE | JN26: FALSE | JO26: FALSE | JP26: FALSE | JQ26: FALSE | JR26: FALSE | JS26: FALSE | JT26: FALSE | JU26: FALSE | JV26: FALSE | JW26: FALSE | JX26: FALSE | JY26: FALSE | JZ26: FALSE | KA26: FALSE | KB26: FALSE | KC26: FALSE
B28: Days in period | L28: =L2-L1+1 -> 31 | M28: 31 | N28: 30 | O28: 31 | P28: 30 | Q28: 31 | R28: 31 | S28: 28 | T28: 31 | U28: 30 | V28: 31 | W28: 30 | X28: 31 | Y28: 31 | Z28: 30 | AA28: 31 | AB28: 30 | AC28: 31 | AD28: 31 | AE28: 28 | AF28: 31 | AG28: 30 | AH28: 31 | AI28: 30 | AJ28: 31 | AK28: 31 | AL28: 30 | AM28: 31 | AN28: 30 | AO28: 31 | AP28: 31 | AQ28: 29 | AR28: 31 | AS28: 30 | AT28: 31 | AU28: 30 | AV28: 31 | AW28: 31 | AX28: 30 | AY28: 31 | AZ28: 30 | BA28: 31 | BB28: 31 | BC28: 28 | BD28: 31 | BE28: 30 | BF28: 31 | BG28: 30 | BH28: 31 | BI28: 31 | BJ28: 30 | BK28: 31 | BL28: 30 | BM28: 31 | BN28: 31 | BO28: 28 | BP28: 31 | BQ28: 30 | BR28: 31 | BS28: 30 | BT28: 31 | BU28: 31 | BV28: 30 | BW28: 31 | BX28: =BX2-BX1+1 -> 30 | BY28: 31 | BZ28: 31 | CA28: 28 | CB28: 31 | CC28: 30 | CD28: 31 | CE28: 30 | CF28: 31 | CG28: 31 | CH28: 30 | CI28: 31 | CJ28: 30 | CK28: 31 | CL28: 182 | CM28: 184 | CN28: 181 | CO28: 184 | CP28: 181 | CQ28: 184 | CR28: 181 | CS28: 184 | CT28: 182 | CU28: 184 | CV28: 181 | CW28: 184 | CX28: 181 | CY28: 184 | CZ28: 181 | DA28: 184 | DB28: 182 | DC28: 184 | DD28: 181 | DE28: 184 | DF28: 181 | DG28: 184 | DH28: 181 | DI28: 184 | DJ28: 182 | DK28: 184 | DL28: 181 | DM28: 184 | DN28: 181 | DO28: 184 | DP28: 181 | DQ28: 184 | DR28: 182 | DS28: 184 | DT28: 181 | DU28: 184 | DV28: 181 | DW28: 184 | DX28: 181 | DY28: 184 | DZ28: 182 | EA28: 184 | EB28: 181 | EC28: 184 | ED28: 181 | EE28: 184 | EF28: 181 | EG28: 184 | EH28: 182 | EI28: 184 | EJ28: =EJ2-EJ1+1 -> 181 | EK28: 184 | EL28: 181 | EM28: 184 | EN28: 181 | EO28: 184 | EP28: 182 | EQ28: 184 | ER28: 181 | ES28: 184 | ET28: 181 | EU28: 184 | EV28: 181 | EW28: 184 | EX28: 182 | EY28: 184 | EZ28: 181 | FA28: 184 | FB28: 181 | FC28: 184 | FD28: 181 | FE28: 184 | FF28: 182 | FG28: 184 | FH28: 181 | FI28: 184 | FJ28: 181 | FK28: 184 | FL28: 181 | FM28: 184 | FN28: 182 | FO28: 184 | FP28: 181 | FQ28: 184 | FR28: 181 | FS28: 184 | FT28: 181 | FU28: 184 | FV28: 182 | FW28: 184 | FX28: 181 | FY28: 184 | FZ28: 181 | GA28: 184 | GB28: 181 | GC28: 184 | GD28: 182 | GE28: 184 | GF28: 181 | GG28: 184 | GH28: 181 | GI28: 184 | GJ28: 181 | GK28: 184 | GL28: 182 | GM28: 184 | GN28: 181 | GO28: 184 | GP28: 181 | GQ28: 184 | GR28: 181 | GS28: 184 | GT28: 182 | GU28: 184 | GV28: =GV2-GV1+1 -> 181 | GW28: 184 | GX28: 181 | GY28: 184 | GZ28: 181 | HA28: 184 | HB28: 182 | HC28: 184 | HD28: 181 | HE28: 184 | HF28: 181 | HG28: 184 | HH28: 181 | HI28: 184 | HJ28: 182 | HK28: 184 | HL28: 181 | HM28: 184 | HN28: 181 | HO28: 184 | HP28: 181 | HQ28: 184 | HR28: 182 | HS28: 184 | HT28: 181 | HU28: 184 | HV28: 181 | HW28: 184 | HX28: 181 | HY28: 184 | HZ28: 182 | IA28: 184 | IB28: 181 | IC28: 184 | ID28: 181 | IE28: 184 | IF28: 181 | IG28: 184 | IH28: 182 | II28: 184 | IJ28: 181 | IK28: 184 | IL28: 181 | IM28: 184 | IN28: 181 | IO28: 184 | IP28: 181 | IQ28: 184 | IR28: 181 | IS28: 184 | IT28: 181 | IU28: 184 | IV28: 181 | IW28: 184 | IX28: 182 | IY28: 184 | IZ28: 181 | JA28: 184 | JB28: 181 | JC28: 184 | JD28: 181 | JE28: 184 | JF28: 182 | JG28: 184 | JH28: =JH2-JH1+1 -> 181 | JI28: 184 | JJ28: 181 | JK28: 184 | JL28: 181 | JM28: 184 | JN28: 182 | JO28: 184 | JP28: 181 | JQ28: 184 | JR28: 181 | JS28: 184 | JT28: 181 | JU28: 184 | JV28: 182 | JW28: 184 | JX28: 181 | JY28: 184 | JZ28: 181 | KA28: 184 | KB28: 181 | KC28: 184
B29: Days in 365 period | L29: =DAYS360(L1,L2+1) -> 30 | M29: 30 | N29: 30 | O29: 30 | P29: 30 | Q29: 30 | R29: 30 | S29: 30 | T29: 30 | U29: 30 | V29: 30 | W29: 30 | X29: 30 | Y29: 30 | Z29: 30 | AA29: 30 | AB29: 30 | AC29: 30 | AD29: 30 | AE29: 30 | AF29: 30 | AG29: 30 | AH29: 30 | AI29: 30 | AJ29: 30 | AK29: 30 | AL29: 30 | AM29: 30 | AN29: 30 | AO29: 30 | AP29: 30 | AQ29: 30 | AR29: 30 | AS29: 30 | AT29: 30 | AU29: 30 | AV29: 30 | AW29: 30 | AX29: 30 | AY29: 30 | AZ29: 30 | BA29: 30 | BB29: 30 | BC29: 30 | BD29: 30 | BE29: 30 | BF29: 30 | BG29: 30 | BH29: 30 | BI29: 30 | BJ29: 30 | BK29: 30 | BL29: 30 | BM29: 30 | BN29: 30 | BO29: 30 | BP29: 30 | BQ29: 30 | BR29: 30 | BS29: 30 | BT29: 30 | BU29: 30 | BV29: 30 | BW29: 30 | BX29: =DAYS360(BX1,BX2+1) -> 30 | BY29: 30 | BZ29: 30 | CA29: 30 | CB29: 30 | CC29: 30 | CD29: 30 | CE29: 30 | CF29: 30 | CG29: 30 | CH29: 30 | CI29: 30 | CJ29: 30 | CK29: 30 | CL29: 180 | CM29: 180 | CN29: 180 | CO29: 180 | CP29: 180 | CQ29: 180 | CR29: 180 | CS29: 180 | CT29: 180 | CU29: 180 | CV29: 180 | CW29: 180 | CX29: 180 | CY29: 180 | CZ29: 180 | DA29: 180 | DB29: 180 | DC29: 180 | DD29: 180 | DE29: 180 | DF29: 180 | DG29: 180 | DH29: 180 | DI29: 180 | DJ29: 180 | DK29: 180 | DL29: 180 | DM29: 180 | DN29: 180 | DO29: 180 | DP29: 180 | DQ29: 180 | DR29: 180 | DS29: 180 | DT29: 180 | DU29: 180 | DV29: 180 | DW29: 180 | DX29: 180 | DY29: 180 | DZ29: 180 | EA29: 180 | EB29: 180 | EC29: 180 | ED29: 180 | EE29: 180 | EF29: 180 | EG29: 180 | EH29: 180 | EI29: 180 | EJ29: =DAYS360(EJ1,EJ2+1) -> 180 | EK29: 180 | EL29: 180 | EM29: 180 | EN29: 180 | EO29: 180 | EP29: 180 | EQ29: 180 | ER29: 180 | ES29: 180 | ET29: 180 | EU29: 180 | EV29: 180 | EW29: 180 | EX29: 180 | EY29: 180 | EZ29: 180 | FA29: 180 | FB29: 180 | FC29: 180 | FD29: 180 | FE29: 180 | FF29: 180 | FG29: 180 | FH29: 180 | FI29: 180 | FJ29: 180 | FK29: 180 | FL29: 180 | FM29: 180 | FN29: 180 | FO29: 180 | FP29: 180 | FQ29: 180 | FR29: 180 | FS29: 180 | FT29: 180 | FU29: 180 | FV29: 180 | FW29: 180 | FX29: 180 | FY29: 180 | FZ29: 180 | GA29: 180 | GB29: 180 | GC29: 180 | GD29: 180 | GE29: 180 | GF29: 180 | GG29: 180 | GH29: 180 | GI29: 180 | GJ29: 180 | GK29: 180 | GL29: 180 | GM29: 180 | GN29: 180 | GO29: 180 | GP29: 180 | GQ29: 180 | GR29: 180 | GS29: 180 | GT29: 180 | GU29: 180 | GV29: =DAYS360(GV1,GV2+1) -> 180 | GW29: 180 | GX29: 180 | GY29: 180 | GZ29: 180 | HA29: 180 | HB29: 180 | HC29: 180 | HD29: 180 | HE29: 180 | HF29: 180 | HG29: 180 | HH29: 180 | HI29: 180 | HJ29: 180 | HK29: 180 | HL29: 180 | HM29: 180 | HN29: 180 | HO29: 180 | HP29: 180 | HQ29: 180 | HR29: 180 | HS29: 180 | HT29: 180 | HU29: 180 | HV29: 180 | HW29: 180 | HX29: 180 | HY29: 180 | HZ29: 180 | IA29: 180 | IB29: 180 | IC29: 180 | ID29: 180 | IE29: 180 | IF29: 180 | IG29: 180 | IH29: 180 | II29: 180 | IJ29: 180 | IK29: 180 | IL29: 180 | IM29: 180 | IN29: 180 | IO29: 180 | IP29: 180 | IQ29: 180 | IR29: 180 | IS29: 180 | IT29: 180 | IU29: 180 | IV29: 180 | IW29: 180 | IX29: 180 | IY29: 180 | IZ29: 180 | JA29: 180 | JB29: 180 | JC29: 180 | JD29: 180 | JE29: 180 | JF29: 180 | JG29: 180 | JH29: =DAYS360(JH1,JH2+1) -> 180 | JI29: 180 | JJ29: 180 | JK29: 180 | JL29: 180 | JM29: 180 | JN29: 180 | JO29: 180 | JP29: 180 | JQ29: 180 | JR29: 180 | JS29: 180 | JT29: 180 | JU29: 180 | JV29: 180 | JW29: 180 | JX29: 180 | JY29: 180 | JZ29: 180 | KA29: 180 | KB29: 180 | KC29: 180
A31: Revenues
B32: Base traffic | F32: Vehicles | G32: ='Operating assumptions'!G29 -> 4500 | H32: Vehicles/day | L32: =$G$32*L13*L28 -> 0 | M32: =$G$32*M13*M28 -> 0 | N32: 0 | O32: 0 | P32: 0 | Q32: 0 | R32: 0 | S32: 0 | T32: 0 | U32: 0 | V32: 0 | W32: 0 | X32: 0 | Y32: 0 | Z32: 0 | AA32: 0 | AB32: 0 | AC32: 0 | AD32: 0 | AE32: 0 | AF32: 0 | AG32: 0 | AH32: 0 | AI32: 0 | AJ32: 0 | AK32: 0 | AL32: 0 | AM32: 0 | AN32: 0 | AO32: 0 | AP32: 0 | AQ32: 0 | AR32: 0 | AS32: 0 | AT32: 0 | AU32: 0 | AV32: 0 | AW32: 0 | AX32: 0 | AY32: 0 | AZ32: 0 | BA32: 0 | BB32: 0 | BC32: 0 | BD32: 0 | BE32: 0 | BF32: 0 | BG32: 0 | BH32: 0 | BI32: 0 | BJ32: 0 | BK32: 0 | BL32: 0 | BM32: 0 | BN32: 0 | BO32: 0 | BP32: 0 | BQ32: 0 | BR32: 0 | BS32: 0 | BT32: 0 | BU32: 0 | BV32: 0 | BW32: 0 | BX32: =$G$32*BX13*BX28 -> 0 | BY32: 0 | BZ32: 0 | CA32: 0 | CB32: 0 | CC32: 0 | CD32: 0 | CE32: 0 | CF32: 0 | CG32: 0 | CH32: 0 | CI32: 0 | CJ32: 0 | CK32: 0 | CL32: 819000 | CM32: 828000 | CN32: 814500 | CO32: 828000 | CP32: 814500 | CQ32: 828000 | CR32: 814500 | CS32: 828000 | CT32: 819000 | CU32: 828000 | CV32: 814500 | CW32: 828000 | CX32: 814500 | CY32: 828000 | CZ32: 814500 | DA32: 828000 | DB32: 819000 | DC32: 828000 | DD32: 814500 | DE32: 828000 | DF32: 814500 | DG32: 828000 | DH32: 814500 | DI32: 828000 | DJ32: 819000 | DK32: 828000 | DL32: 814500 | DM32: 828000 | DN32: 814500 | DO32: 828000 | DP32: 814500 | DQ32: 828000 | DR32: 819000 | DS32: 828000 | DT32: 814500 | DU32: 828000 | DV32: 814500 | DW32: 828000 | DX32: 814500 | DY32: 828000 | DZ32: 819000 | EA32: 828000 | EB32: 814500 | EC32: 828000 | ED32: 814500 | EE32: 828000 | EF32: 814500 | EG32: 828000 | EH32: 819000 | EI32: 828000 | EJ32: =$G$32*EJ13*EJ28 -> 814500 | EK32: 828000 | EL32: 814500 | EM32: 828000 | EN32: 814500 | EO32: 828000 | EP32: 819000 | EQ32: 828000 | ER32: 814500 | ES32: 828000 | ET32: 814500 | EU32: 828000 | EV32: 814500 | EW32: 828000 | EX32: 819000 | EY32: 828000 | EZ32: 814500 | FA32: 828000 | FB32: 814500 | FC32: 828000 | FD32: 814500 | FE32: 828000 | FF32: 819000 | FG32: 828000 | FH32: 814500 | FI32: 828000 | FJ32: 814500 | FK32: 828000 | FL32: 814500 | FM32: 828000 | FN32: 819000 | FO32: 828000 | FP32: 0 | FQ32: 0 | FR32: 0 | FS32: 0 | FT32: 0 | FU32: 0 | FV32: 0 | FW32: 0 | FX32: 0 | FY32: 0 | FZ32: 0 | GA32: 0 | GB32: 0 | GC32: 0 | GD32: 0 | GE32: 0 | GF32: 0 | GG32: 0 | GH32: 0 | GI32: 0 | GJ32: 0 | GK32: 0 | GL32: 0 | GM32: 0 | GN32: 0 | GO32: 0 | GP32: 0 | GQ32: 0 | GR32: 0 | GS32: 0 | GT32: 0 | GU32: 0 | GV32: =$G$32*GV13*GV28 -> 0 | GW32: 0 | GX32: 0 | GY32: 0 | GZ32: 0 | HA32: 0 | HB32: 0 | HC32: 0 | HD32: 0 | HE32: 0 | HF32: 0 | HG32: 0 | HH32: 0 | HI32: 0 | HJ32: 0 | HK32: 0 | HL32: 0 | HM32: 0 | HN32: 0 | HO32: 0 | HP32: 0 | HQ32: 0 | HR32: 0 | HS32: 0 | HT32: 0 | HU32: 0 | HV32: 0 | HW32: 0 | HX32: 0 | HY32: 0 | HZ32: 0 | IA32: 0 | IB32: 0 | IC32: 0 | ID32: 0 | IE32: 0 | IF32: 0 | IG32: 0 | IH32: 0 | II32: 0 | IJ32: 0 | IK32: 0 | IL32: 0 | IM32: 0 | IN32: 0 | IO32: 0 | IP32: 0 | IQ32: 0 | IR32: 0 | IS32: 0 | IT32: 0 | IU32: 0 | IV32: 0 | IW32: 0 | IX32: 0 | IY32: 0 | IZ32: 0 | JA32: 0 | JB32: 0 | JC32: 0 | JD32: 0 | JE32: 0 | JF32: 0 | JG32: 0 | JH32: =$G$32*JH13*JH28 -> 0 | JI32: 0 | JJ32: 0 | JK32: 0 | JL32: 0 | JM32: 0 | JN32: 0 | JO32: 0 | JP32: 0 | JQ32: 0 | JR32: 0 | JS32: 0 | JT32: 0 | JU32: 0 | JV32: 0 | JW32: 0 | JX32: 0 | JY32: 0 | JZ32: 0 | KA32: 0 | KB32: 0 | KC32: 0
C33: Traffic growth - Annual | F33: Annual % | L33: =IFERROR(LOOKUP(L1,'Operating assumptions'!$F$31:$F$34,'Operating assumptions'!$G$31:$G$34),) -> 0 | M33: =IFERROR(LOOKUP(M1,'Operating assumptions'!$F$31:$F$34,'Operating assumptions'!$G$31:$G$34),) -> 0 | N33: =IFERROR(LOOKUP(N1,'Operating assumptions'!$F$31:$F$34,'Operating assumptions'!$G$31:$G$34),) -> 0 | O33: =IFERROR(LOOKUP(O1,'Operating assumptions'!$F$31:$F$34,'Operating assumptions'!$G$31:$G$34),) -> 0 | P33: =IFERROR(LOOKUP(P1,'Operating assumptions'!$F$31:$F$34,'Operating assumptions'!$G$31:$G$34),) -> 0 | Q33: =IFERROR(LOOKUP(Q1,'Operating assumptions'!$F$31:$F$34,'Operating assumptions'!$G$31:$G$34),) -> 0 | R33: =IFERROR(LOOKUP(R1,'Operating assumptions'!$F$31:$F$34,'Operating assumptions'!$G$31:$G$34),) -> 0 | S33: =IFERROR(LOOKUP(S1,'Operating assumptions'!$F$31:$F$34,'Operating assumptions'!$G$31:$G$34),) -> 0 | T33: =IFERROR(LOOKUP(T1,'Operating assumptions'!$F$31:$F$34,'Operating assumptions'!$G$31:$G$34),) -> 0 | U33: =IFERROR(LOOKUP(U1,'Operating assumptions'!$F$31:$F$34,'Operating assumptions'!$G$31:$G$34),) -> 0 | V33: =IFERROR(LOOKUP(V1,'Operating assumptions'!$F$31:$F$34,'Operating assumptions'!$G$31:$G$34),) -> 0 | W33: =IFERROR(LOOKUP(W1,'Operating assumptions'!$F$31:$F$34,'Operating assumptions'!$G$31:$G$34),) -> 0 | X33: =IFERROR(LOOKUP(X1,'Operating assumptions'!$F$31:$F$34,'Operating assumptions'!$G$31:$G$34),) -> 0 | Y33: =IFERROR(LOOKUP(Y1,'Operating assumptions'!$F$31:$F$34,'Operating assumptions'!$G$31:$G$34),) -> 0 | Z33: =IFERROR(LOOKUP(Z1,'Operating assumptions'!$F$31:$F$34,'Operating assumptions'!$G$31:$G$34),) -> 0 | AA33: =IFERROR(LOOKUP(AA1,'Operating assumptions'!$F$31:$F$34,'Operating assumptions'!$G$31:$G$34),) -> 0 | AB33: =IFERROR(LOOKUP(AB1,'Operating assumptions'!$F$31:$F$34,'Operating assumptions'!$G$31:$G$34),) -> 0 | AC33: =IFERROR(LOOKUP(AC1,'Operating assumptions'!$F$31:$F$34,'Operating assumptions'!$G$31:$G$34),) -> 0 | AD33: =IFERROR(LOOKUP(AD1,'Operating assumptions'!$F$31:$F$34,'Operating assumptions'!$G$31:$G$34),) -> 0 | AE33: =IFERROR(LOOKUP(AE1,'Operating assumptions'!$F$31:$F$34,'Operating assumptions'!$G$31:$G$34),) -> 0 | AF33: =IFERROR(LOOKUP(AF1,'Operating assumptions'!$F$31:$F$34,'Operating assumptions'!$G$31:$G$34),) -> 0 | AG33: =IFERROR(LOOKUP(AG1,'Operating assumptions'!$F$31:$F$34,'Operating assumptions'!$G$31:$G$34),) -> 0 | AH33: =IFERROR(LOOKUP(AH1,'Operating assumptions'!$F$31:$F$34,'Operating assumptions'!$G$31:$G$34),) -> 0 | AI33: =IFERROR(LOOKUP(AI1,'Operating assumptions'!$F$31:$F$34,'Operating assumptions'!$G$31:$G$34),) -> 0 | AJ33: =IFERROR(LOOKUP(AJ1,'Operating assumptions'!$F$31:$F$34,'Operating assumptions'!$G$31:$G$34),) -> 0 | AK33: =IFERROR(LOOKUP(AK1,'Operating assumptions'!$F$31:$F$34,'Operating assumptions'!$G$31:$G$34),) -> 0 | AL33: =IFERROR(LOOKUP(AL1,'Operating assumptions'!$F$31:$F$34,'Operating assumptions'!$G$31:$G$34),) -> 0 | AM33: =IFERROR(LOOKUP(AM1,'Operating assumptions'!$F$31:$F$34,'Operating assumptions'!$G$31:$G$34),) -> 0 | AN33: =IFERROR(LOOKUP(AN1,'Operating assumptions'!$F$31:$F$34,'Operating assumptions'!$G$31:$G$34),) -> 0 | AO33: =IFERROR(LOOKUP(AO1,'Operating assumptions'!$F$31:$F$34,'Operating assumptions'!$G$31:$G$34),) -> 0 | AP33: =IFERROR(LOOKUP(AP1,'Operating assumptions'!$F$31:$F$34,'Operating assumptions'!$G$31:$G$34),) -> 0 | AQ33: =IFERROR(LOOKUP(AQ1,'Operating assumptions'!$F$31:$F$34,'Operating assumptions'!$G$31:$G$34),) -> 0 | AR33: =IFERROR(LOOKUP(AR1,'Operating assumptions'!$F$31:$F$34,'Operating assumptions'!$G$31:$G$34),) -> 0 | AS33: =IFERROR(LOOKUP(AS1,'Operating assumptions'!$F$31:$F$34,'Operating assumptions'!$G$31:$G$34),) -> 0 | AT33: =IFERROR(LOOKUP(AT1,'Operating assumptions'!$F$31:$F$34,'Operating assumptions'!$G$31:$G$34),) -> 0 | AU33: =IFERROR(LOOKUP(AU1,'Operating assumptions'!$F$31:$F$34,'Operating assumptions'!$G$31:$G$34),) -> 0 | AV33: =IFERROR(LOOKUP(AV1,'Operating assumptions'!$F$31:$F$34,'Operating assumptions'!$G$31:$G$34),) -> 0 | AW33: =IFERROR(LOOKUP(AW1,'Operating assumptions'!$F$31:$F$34,'Operating assumptions'!$G$31:$G$34),) -> 0 | AX33: =IFERROR(LOOKUP(AX1,'Operating assumptions'!$F$31:$F$34,'Operating assumptions'!$G$31:$G$34),) -> 0 | AY33: =IFERROR(LOOKUP(AY1,'Operating assumptions'!$F$31:$F$34,'Operating assumptions'!$G$31:$G$34),) -> 0 | AZ33: =IFERROR(LOOKUP(AZ1,'Operating assumptions'!$F$31:$F$34,'Operating assumptions'!$G$31:$G$34),) -> 0 | BA33: =IFERROR(LOOKUP(BA1,'Operating assumptions'!$F$31:$F$34,'Operating assumptions'!$G$31:$G$34),) -> 0 | BB33: =IFERROR(LOOKUP(BB1,'Operating assumptions'!$F$31:$F$34,'Operating assumptions'!$G$31:$G$34),) -> 0 | BC33: =IFERROR(LOOKUP(BC1,'Operating assumptions'!$F$31:$F$34,'Operating assumptions'!$G$31:$G$34),) -> 0 | BD33: =IFERROR(LOOKUP(BD1,'Operating assumptions'!$F$31:$F$34,'Operating assumptions'!$G$31:$G$34),) -> 0 | BE33: =IFERROR(LOOKUP(BE1,'Operating assumptions'!$F$31:$F$34,'Operating assumptions'!$G$31:$G$34),) -> 0 | BF33: =IFERROR(LOOKUP(BF1,'Operating assumptions'!$F$31:$F$34,'Operating assumptions'!$G$31:$G$34),) -> 0 | BG33: =IFERROR(LOOKUP(BG1,'Operating assumptions'!$F$31:$F$34,'Operating assumptions'!$G$31:$G$34),) -> 0 | BH33: =IFERROR(LOOKUP(BH1,'Operating assumptions'!$F$31:$F$34,'Operating assumptions'!$G$31:$G$34),) -> 0 | BI33: =IFERROR(LOOKUP(BI1,'Operating assumptions'!$F$31:$F$34,'Operating assumptions'!$G$31:$G$34),) -> 0 | BJ33: =IFERROR(LOOKUP(BJ1,'Operating assumptions'!$F$31:$F$34,'Operating assumptions'!$G$31:$G$34),) -> 0 | BK33: =IFERROR(LOOKUP(BK1,'Operating assumptions'!$F$31:$F$34,'Operating assumptions'!$G$31:$G$34),) -> 0 | BL33: =IFERROR(LOOKUP(BL1,'Operating assumptions'!$F$31:$F$34,'Operating assumptions'!$G$31:$G$34),) -> 0 | BM33: =IFERROR(LOOKUP(BM1,'Operating assumptions'!$F$31:$F$34,'Operating assumptions'!$G$31:$G$34),) -> 0 | BN33: =IFERROR(LOOKUP(BN1,'Operating assumptions'!$F$31:$F$34,'Operating assumptions'!$G$31:$G$34),) -> 0 | BO33: =IFERROR(LOOKUP(BO1,'Operating assumptions'!$F$31:$F$34,'Operating assumptions'!$G$31:$G$34),) -> 0 | BP33: =IFERROR(LOOKUP(BP1,'Operating assumptions'!$F$31:$F$34,'Operating assumptions'!$G$31:$G$34),) -> 0 | BQ33: =IFERROR(LOOKUP(BQ1,'Operating assumptions'!$F$31:$F$34,'Operating assumptions'!$G$31:$G$34),) -> 0 | BR33: =IFERROR(LOOKUP(BR1,'Operating assumptions'!$F$31:$F$34,'Operating assumptions'!$G$31:$G$34),) -> 0 | BS33: =IFERROR(LOOKUP(BS1,'Operating assumptions'!$F$31:$F$34,'Operating assumptions'!$G$31:$G$34),) -> 0 | BT33: =IFERROR(LOOKUP(BT1,'Operating assumptions'!$F$31:$F$34,'Operating assumptions'!$G$31:$G$34),) -> 0 | BU33: =IFERROR(LOOKUP(BU1,'Operating assumptions'!$F$31:$F$34,'Operating assumptions'!$G$31:$G$34),) -> 0 | BV33: =IFERROR(LOOKUP(BV1,'Operating assumptions'!$F$31:$F$34,'Operating assumptions'!$G$31:$G$34),) -> 0 | BW33: =IFERROR(LOOKUP(BW1,'Operating assumptions'!$F$31:$F$34,'Operating assumptions'!$G$31:$G$34),) -> 0 | BX33: =IFERROR(LOOKUP(BX1,'Operating assumptions'!$F$31:$F$34,'Operating assumptions'!$G$31:$G$34),) -> 0 | BY33: =IFERROR(LOOKUP(BY1,'Operating assumptions'!$F$31:$F$34,'Operating assumptions'!$G$31:$G$34),) -> 0 | BZ33: =IFERROR(LOOKUP(BZ1,'Operating assumptions'!$F$31:$F$34,'Operating assumptions'!$G$31:$G$34),) -> 0 | CA33: =IFERROR(LOOKUP(CA1,'Operating assumptions'!$F$31:$F$34,'Operating assumptions'!$G$31:$G$34),) -> 0 | CB33: =IFERROR(LOOKUP(CB1,'Operating assumptions'!$F$31:$F$34,'Operating assumptions'!$G$31:$G$34),) -> 0 | CC33: =IFERROR(LOOKUP(CC1,'Operating assumptions'!$F$31:$F$34,'Operating assumptions'!$G$31:$G$34),) -> 0 | CD33: =IFERROR(LOOKUP(CD1,'Operating assumptions'!$F$31:$F$34,'Operating assumptions'!$G$31:$G$34),) -> 0 | CE33: =IFERROR(LOOKUP(CE1,'Operating assumptions'!$F$31:$F$34,'Operating assumptions'!$G$31:$G$34),) -> 0 | CF33: =IFERROR(LOOKUP(CF1,'Operating assumptions'!$F$31:$F$34,'Operating assumptions'!$G$31:$G$34),) -> 0 | CG33: =IFERROR(LOOKUP(CG1,'Operating assumptions'!$F$31:$F$34,'Operating assumptions'!$G$31:$G$34),) -> 0 | CH33: =IFERROR(LOOKUP(CH1,'Operating assumptions'!$F$31:$F$34,'Operating assumptions'!$G$31:$G$34),) -> 0 | CI33: =IFERROR(LOOKUP(CI1,'Operating assumptions'!$F$31:$F$34,'Operating assumptions'!$G$31:$G$34),) -> 0 | CJ33: =IFERROR(LOOKUP(CJ1,'Operating assumptions'!$F$31:$F$34,'Operating assumptions'!$G$31:$G$34),) -> 0 | CK33: =IFERROR(LOOKUP(CK1,'Operating assumptions'!$F$31:$F$34,'Operating assumptions'!$G$31:$G$34),) -> 0 | CL33: =IFERROR(LOOKUP(CL1,'Operating assumptions'!$F$31:$F$34,'Operating assumptions'!$G$31:$G$34),) -> 0.05 | CM33: =IFERROR(LOOKUP(CM1,'Operating assumptions'!$F$31:$F$34,'Operating assumptions'!$G$31:$G$34),) -> 0.05 | CN33: =IFERROR(LOOKUP(CN1,'Operating assumptions'!$F$31:$F$34,'Operating assumptions'!$G$31:$G$34),) -> 0.05 | CO33: =IFERROR(LOOKUP(CO1,'Operating assumptions'!$F$31:$F$34,'Operating assumptions'!$G$31:$G$34),) -> 0.05 | CP33: =IFERROR(LOOKUP(CP1,'Operating assumptions'!$F$31:$F$34,'Operating assumptions'!$G$31:$G$34),) -> 0.03 | CQ33: =IFERROR(LOOKUP(CQ1,'Operating assumptions'!$F$31:$F$34,'Operating assumptions'!$G$31:$G$34),) -> 0.03 | CR33: =IFERROR(LOOKUP(CR1,'Operating assumptions'!$F$31:$F$34,'Operating assumptions'!$G$31:$G$34),) -> 0.03 | CS33: =IFERROR(LOOKUP(CS1,'Operating assumptions'!$F$31:$F$34,'Operating assumptions'!$G$31:$G$34),) -> 0.03 | CT33: =IFERROR(LOOKUP(CT1,'Operating assumptions'!$F$31:$F$34,'Operating assumptions'!$G$31:$G$34),) -> 0.03 | CU33: =IFERROR(LOOKUP(CU1,'Operating assumptions'!$F$31:$F$34,'Operating assumptions'!$G$31:$G$34),) -> 0.03 | CV33: =IFERROR(LOOKUP(CV1,'Operating assumptions'!$F$31:$F$34,'Operating assumptions'!$G$31:$G$34),) -> 0.02 | CW33: =IFERROR(LOOKUP(CW1,'Operating assumptions'!$F$31:$F$34,'Operating assumptions'!$G$31:$G$34),) -> 0.02 | CX33: =IFERROR(LOOKUP(CX1,'Operating assumptions'!$F$31:$F$34,'Operating assumptions'!$G$31:$G$34),) -> 0.02 | CY33: =IFERROR(LOOKUP(CY1,'Operating assumptions'!$F$31:$F$34,'Operating assumptions'!$G$31:$G$34),) -> 0.02 | CZ33: =IFERROR(LOOKUP(CZ1,'Operating assumptions'!$F$31:$F$34,'Operating assumptions'!$G$31:$G$34),) -> 0.02 | DA33: =IFERROR(LOOKUP(DA1,'Operating assumptions'!$F$31:$F$34,'Operating assumptions'!$G$31:$G$34),) -> 0.02 | DB33: =IFERROR(LOOKUP(DB1,'Operating assumptions'!$F$31:$F$34,'Operating assumptions'!$G$31:$G$34),) -> 0.02 | DC33: =IFERROR(LOOKUP(DC1,'Operating assumptions'!$F$31:$F$34,'Operating assumptions'!$G$31:$G$34),) -> 0.02 | DD33: =IFERROR(LOOKUP(DD1,'Operating assumptions'!$F$31:$F$34,'Operating assumptions'!$G$31:$G$34),) -> 0.02 | DE33: =IFERROR(LOOKUP(DE1,'Operating assumptions'!$F$31:$F$34,'Operating assumptions'!$G$31:$G$34),) -> 0.02 | DF33: =IFERROR(LOOKUP(DF1,'Operating assumptions'!$F$31:$F$34,'Operating assumptions'!$G$31:$G$34),) -> 0.015 | DG33: =IFERROR(LOOKUP(DG1,'Operating assumptions'!$F$31:$F$34,'Operating assumptions'!$G$31:$G$34),) -> 0.015 | DH33: =IFERROR(LOOKUP(DH1,'Operating assumptions'!$F$31:$F$34,'Operating assumptions'!$G$31:$G$34),) -> 0.015 | DI33: =IFERROR(LOOKUP(DI1,'Operating assumptions'!$F$31:$F$34,'Operating assumptions'!$G$31:$G$34),) -> 0.015 | DJ33: =IFERROR(LOOKUP(DJ1,'Operating assumptions'!$F$31:$F$34,'Operating assumptions'!$G$31:$G$34),) -> 0.015 | DK33: =IFERROR(LOOKUP(DK1,'Operating assumptions'!$F$31:$F$34,'Operating assumptions'!$G$31:$G$34),) -> 0.015 | DL33: =IFERROR(LOOKUP(DL1,'Operating assumptions'!$F$31:$F$34,'Operating assumptions'!$G$31:$G$34),) -> 0.015 | DM33: =IFERROR(LOOKUP(DM1,'Operating assumptions'!$F$31:$F$34,'Operating assumptions'!$G$31:$G$34),) -> 0.015 | DN33: =IFERROR(LOOKUP(DN1,'Operating assumptions'!$F$31:$F$34,'Operating assumptions'!$G$31:$G$34),) -> 0.015 | DO33: =IFERROR(LOOKUP(DO1,'Operating assumptions'!$F$31:$F$34,'Operating assumptions'!$G$31:$G$34),) -> 0.015 | DP33: =IFERROR(LOOKUP(DP1,'Operating assumptions'!$F$31:$F$34,'Operating assumptions'!$G$31:$G$34),) -> 0.015 | DQ33: =IFERROR(LOOKUP(DQ1,'Operating assumptions'!$F$31:$F$34,'Operating assumptions'!$G$31:$G$34),) -> 0.015 | DR33: =IFERROR(LOOKUP(DR1,'Operating assumptions'!$F$31:$F$34,'Operating assumptions'!$G$31:$G$34),) -> 0.015 | DS33: =IFERROR(LOOKUP(DS1,'Operating assumptions'!$F$31:$F$34,'Operating assumptions'!$G$31:$G$34),) -> 0.015 | DT33: =IFERROR(LOOKUP(DT1,'Operating assumptions'!$F$31:$F$34,'Operating assumptions'!$G$31:$G$34),) -> 0.015 | DU33: =IFERROR(LOOKUP(DU1,'Operating assumptions'!$F$31:$F$34,'Operating assumptions'!$G$31:$G$34),) -> 0.015 | DV33: =IFERROR(LOOKUP(DV1,'Operating assumptions'!$F$31:$F$34,'Operating assumptions'!$G$31:$G$34),) -> 0.015 | DW33: =IFERROR(LOOKUP(DW1,'Operating assumptions'!$F$31:$F$34,'Operating assumptions'!$G$31:$G$34),) -> 0.015 | DX33: =IFERROR(LOOKUP(DX1,'Operating assumptions'!$F$31:$F$34,'Operating assumptions'!$G$31:$G$34),) -> 0.015 | DY33: =IFERROR(LOOKUP(DY1,'Operating assumptions'!$F$31:$F$34,'Operating assumptions'!$G$31:$G$34),) -> 0.015 | DZ33: =IFERROR(LOOKUP(DZ1,'Operating assumptions'!$F$31:$F$34,'Operating assumptions'!$G$31:$G$34),) -> 0.015 | EA33: =IFERROR(LOOKUP(EA1,'Operating assumptions'!$F$31:$F$34,'Operating assumptions'!$G$31:$G$34),) -> 0.015 | EB33: =IFERROR(LOOKUP(EB1,'Operating assumptions'!$F$31:$F$34,'Operating assumptions'!$G$31:$G$34),) -> 0.015 | EC33: =IFERROR(LOOKUP(EC1,'Operating assumptions'!$F$31:$F$34,'Operating assumptions'!$G$31:$G$34),) -> 0.015 | ED33: =IFERROR(LOOKUP(ED1,'Operating assumptions'!$F$31:$F$34,'Operating assumptions'!$G$31:$G$34),) -> 0.015 | EE33: =IFERROR(LOOKUP(EE1,'Operating assumptions'!$F$31:$F$34,'Operating assumptions'!$G$31:$G$34),) -> 0.015 | EF33: =IFERROR(LOOKUP(EF1,'Operating assumptions'!$F$31:$F$34,'Operating assumptions'!$G$31:$G$34),) -> 0.015 | EG33: =IFERROR(LOOKUP(EG1,'Operating assumptions'!$F$31:$F$34,'Operating assumptions'!$G$31:$G$34),) -> 0.015 | EH33: =IFERROR(LOOKUP(EH1,'Operating assumptions'!$F$31:$F$34,'Operating assumptions'!$G$31:$G$34),) -> 0.015 | EI33: =IFERROR(LOOKUP(EI1,'Operating assumptions'!$F$31:$F$34,'Operating assumptions'!$G$31:$G$34),) -> 0.015 | EJ33: =IFERROR(LOOKUP(EJ1,'Operating assumptions'!$F$31:$F$34,'Operating assumptions'!$G$31:$G$34),) -> 0.015 | EK33: =IFERROR(LOOKUP(EK1,'Operating assumptions'!$F$31:$F$34,'Operating assumptions'!$G$31:$G$34),) -> 0.015 | EL33: =IFERROR(LOOKUP(EL1,'Operating assumptions'!$F$31:$F$34,'Operating assumptions'!$G$31:$G$34),) -> 0.015 | EM33: =IFERROR(LOOKUP(EM1,'Operating assumptions'!$F$31:$F$34,'Operating assumptions'!$G$31:$G$34),) -> 0.015 | EN33: =IFERROR(LOOKUP(EN1,'Operating assumptions'!$F$31:$F$34,'Operating assumptions'!$G$31:$G$34),) -> 0.015 | EO33: =IFERROR(LOOKUP(EO1,'Operating assumptions'!$F$31:$F$34,'Operating assumptions'!$G$31:$G$34),) -> 0.015 | EP33: =IFERROR(LOOKUP(EP1,'Operating assumptions'!$F$31:$F$34,'Operating assumptions'!$G$31:$G$34),) -> 0.015 | EQ33: =IFERROR(LOOKUP(EQ1,'Operating assumptions'!$F$31:$F$34,'Operating assumptions'!$G$31:$G$34),) -> 0.015 | ER33: =IFERROR(LOOKUP(ER1,'Operating assumptions'!$F$31:$F$34,'Operating assumptions'!$G$31:$G$34),) -> 0.015 | ES33: =IFERROR(LOOKUP(ES1,'Operating assumptions'!$F$31:$F$34,'Operating assumptions'!$G$31:$G$34),) -> 0.015 | ET33: =IFERROR(LOOKUP(ET1,'Operating assumptions'!$F$31:$F$34,'Operating assumptions'!$G$31:$G$34),) -> 0.015 | EU33: =IFERROR(LOOKUP(EU1,'Operating assumptions'!$F$31:$F$34,'Operating assumptions'!$G$31:$G$34),) -> 0.015 | EV33: =IFERROR(LOOKUP(EV1,'Operating assumptions'!$F$31:$F$34,'Operating assumptions'!$G$31:$G$34),) -> 0.015 | EW33: =IFERROR(LOOKUP(EW1,'Operating assumptions'!$F$31:$F$34,'Operating assumptions'!$G$31:$G$34),) -> 0.015 | EX33: =IFERROR(LOOKUP(EX1,'Operating assumptions'!$F$31:$F$34,'Operating assumptions'!$G$31:$G$34),) -> 0.015 | EY33: =IFERROR(LOOKUP(EY1,'Operating assumptions'!$F$31:$F$34,'Operating assumptions'!$G$31:$G$34),) -> 0.015 | EZ33: =IFERROR(LOOKUP(EZ1,'Operating assumptions'!$F$31:$F$34,'Operating assumptions'!$G$31:$G$34),) -> 0.015 | FA33: =IFERROR(LOOKUP(FA1,'Operating assumptions'!$F$31:$F$34,'Operating assumptions'!$G$31:$G$34),) -> 0.015 | FB33: =IFERROR(LOOKUP(FB1,'Operating assumptions'!$F$31:$F$34,'Operating assumptions'!$G$31:$G$34),) -> 0.015 | FC33: =IFERROR(LOOKUP(FC1,'Operating assumptions'!$F$31:$F$34,'Operating assumptions'!$G$31:$G$34),) -> 0.015 | FD33: =IFERROR(LOOKUP(FD1,'Operating assumptions'!$F$31:$F$34,'Operating assumptions'!$G$31:$G$34),) -> 0.015 | FE33: =IFERROR(LOOKUP(FE1,'Operating assumptions'!$F$31:$F$34,'Operating assumptions'!$G$31:$G$34),) -> 0.015 | FF33: =IFERROR(LOOKUP(FF1,'Operating assumptions'!$F$31:$F$34,'Operating assumptions'!$G$31:$G$34),) -> 0.015 | FG33: =IFERROR(LOOKUP(FG1,'Operating assumptions'!$F$31:$F$34,'Operating assumptions'!$G$31:$G$34),) -> 0.015 | FH33: =IFERROR(LOOKUP(FH1,'Operating assumptions'!$F$31:$F$34,'Operating assumptions'!$G$31:$G$34),) -> 0.015 | FI33: =IFERROR(LOOKUP(FI1,'Operating assumptions'!$F$31:$F$34,'Operating assumptions'!$G$31:$G$34),) -> 0.015 | FJ33: =IFERROR(LOOKUP(FJ1,'Operating assumptions'!$F$31:$F$34,'Operating assumptions'!$G$31:$G$34),) -> 0.015 | FK33: =IFERROR(LOOKUP(FK1,'Operating assumptions'!$F$31:$F$34,'Operating assumptions'!$G$31:$G$34),) -> 0.015 | FL33: =IFERROR(LOOKUP(FL1,'Operating assumptions'!$F$31:$F$34,'Operating assumptions'!$G$31:$G$34),) -> 0.015 | FM33: =IFERROR(LOOKUP(FM1,'Operating assumptions'!$F$31:$F$34,'Operating assumptions'!$G$31:$G$34),) -> 0.015 | FN33: =IFERROR(LOOKUP(FN1,'Operating assumptions'!$F$31:$F$34,'Operating assumptions'!$G$31:$G$34),) -> 0.015 | FO33: =IFERROR(LOOKUP(FO1,'Operating assumptions'!$F$31:$F$34,'Operating assumptions'!$G$31:$G$34),) -> 0.015 | FP33: =IFERROR(LOOKUP(FP1,'Operating assumptions'!$F$31:$F$34,'Operating assumptions'!$G$31:$G$34),) -> 0.015 | FQ33: =IFERROR(LOOKUP(FQ1,'Operating assumptions'!$F$31:$F$34,'Operating assumptions'!$G$31:$G$34),) -> 0.015 | FR33: =IFERROR(LOOKUP(FR1,'Operating assumptions'!$F$31:$F$34,'Operating assumptions'!$G$31:$G$34),) -> 0.015 | FS33: =IFERROR(LOOKUP(FS1,'Operating assumptions'!$F$31:$F$34,'Operating assumptions'!$G$31:$G$34),) -> 0.015 | FT33: =IFERROR(LOOKUP(FT1,'Operating assumptions'!$F$31:$F$34,'Operating assumptions'!$G$31:$G$34),) -> 0.015 | FU33: =IFERROR(LOOKUP(FU1,'Operating assumptions'!$F$31:$F$34,'Operating assumptions'!$G$31:$G$34),) -> 0.015 | FV33: =IFERROR(LOOKUP(FV1,'Operating assumptions'!$F$31:$F$34,'Operating assumptions'!$G$31:$G$34),) -> 0.015 | FW33: =IFERROR(LOOKUP(FW1,'Operating assumptions'!$F$31:$F$34,'Operating assumptions'!$G$31:$G$34),) -> 0.015 | FX33: =IFERROR(LOOKUP(FX1,'Operating assumptions'!$F$31:$F$34,'Operating assumptions'!$G$31:$G$34),) -> 0.015 | FY33: =IFERROR(LOOKUP(FY1,'Operating assumptions'!$F$31:$F$34,'Operating assumptions'!$G$31:$G$34),) -> 0.015 | FZ33: =IFERROR(LOOKUP(FZ1,'Operating assumptions'!$F$31:$F$34,'Operating assumptions'!$G$31:$G$34),) -> 0.015 | GA33: =IFERROR(LOOKUP(GA1,'Operating assumptions'!$F$31:$F$34,'Operating assumptions'!$G$31:$G$34),) -> 0.015 | GB33: =IFERROR(LOOKUP(GB1,'Operating assumptions'!$F$31:$F$34,'Operating assumptions'!$G$31:$G$34),) -> 0.015 | GC33: =IFERROR(LOOKUP(GC1,'Operating assumptions'!$F$31:$F$34,'Operating assumptions'!$G$31:$G$34),) -> 0.015 | GD33: =IFERROR(LOOKUP(GD1,'Operating assumptions'!$F$31:$F$34,'Operating assumptions'!$G$31:$G$34),) -> 0.015 | GE33: =IFERROR(LOOKUP(GE1,'Operating assumptions'!$F$31:$F$34,'Operating assumptions'!$G$31:$G$34),) -> 0.015 | GF33: =IFERROR(LOOKUP(GF1,'Operating assumptions'!$F$31:$F$34,'Operating assumptions'!$G$31:$G$34),) -> 0.015 | GG33: =IFERROR(LOOKUP(GG1,'Operating assumptions'!$F$31:$F$34,'Operating assumptions'!$G$31:$G$34),) -> 0.015 | GH33: =IFERROR(LOOKUP(GH1,'Operating assumptions'!$F$31:$F$34,'Operating assumptions'!$G$31:$G$34),) -> 0.015 | GI33: =IFERROR(LOOKUP(GI1,'Operating assumptions'!$F$31:$F$34,'Operating assumptions'!$G$31:$G$34),) -> 0.015 | GJ33: =IFERROR(LOOKUP(GJ1,'Operating assumptions'!$F$31:$F$34,'Operating assumptions'!$G$31:$G$34),) -> 0.015 | GK33: =IFERROR(LOOKUP(GK1,'Operating assumptions'!$F$31:$F$34,'Operating assumptions'!$G$31:$G$34),) -> 0.015 | GL33: =IFERROR(LOOKUP(GL1,'Operating assumptions'!$F$31:$F$34,'Operating assumptions'!$G$31:$G$34),) -> 0.015 | GM33: =IFERROR(LOOKUP(GM1,'Operating assumptions'!$F$31:$F$34,'Operating assumptions'!$G$31:$G$34),) -> 0.015 | GN33: =IFERROR(LOOKUP(GN1,'Operating assumptions'!$F$31:$F$34,'Operating assumptions'!$G$31:$G$34),) -> 0.015 | GO33: =IFERROR(LOOKUP(GO1,'Operating assumptions'!$F$31:$F$34,'Operating assumptions'!$G$31:$G$34),) -> 0.015 | GP33: =IFERROR(LOOKUP(GP1,'Operating assumptions'!$F$31:$F$34,'Operating assumptions'!$G$31:$G$34),) -> 0.015 | GQ33: =IFERROR(LOOKUP(GQ1,'Operating assumptions'!$F$31:$F$34,'Operating assumptions'!$G$31:$G$34),) -> 0.015 | GR33: =IFERROR(LOOKUP(GR1,'Operating assumptions'!$F$31:$F$34,'Operating assumptions'!$G$31:$G$34),) -> 0.015 | GS33: =IFERROR(LOOKUP(GS1,'Operating assumptions'!$F$31:$F$34,'Operating assumptions'!$G$31:$G$34),) -> 0.015 | GT33: =IFERROR(LOOKUP(GT1,'Operating assumptions'!$F$31:$F$34,'Operating assumptions'!$G$31:$G$34),) -> 0.015 | GU33: =IFERROR(LOOKUP(GU1,'Operating assumptions'!$F$31:$F$34,'Operating assumptions'!$G$31:$G$34),) -> 0.015 | GV33: =IFERROR(LOOKUP(GV1,'Operating assumptions'!$F$31:$F$34,'Operating assumptions'!$G$31:$G$34),) -> 0.015 | GW33: =IFERROR(LOOKUP(GW1,'Operating assumptions'!$F$31:$F$34,'Operating assumptions'!$G$31:$G$34),) -> 0.015 | GX33: =IFERROR(LOOKUP(GX1,'Operating assumptions'!$F$31:$F$34,'Operating assumptions'!$G$31:$G$34),) -> 0.015 | GY33: =IFERROR(LOOKUP(GY1,'Operating assumptions'!$F$31:$F$34,'Operating assumptions'!$G$31:$G$34),) -> 0.015 | GZ33: =IFERROR(LOOKUP(GZ1,'Operating assumptions'!$F$31:$F$34,'Operating assumptions'!$G$31:$G$34),) -> 0.015 | HA33: =IFERROR(LOOKUP(HA1,'Operating assumptions'!$F$31:$F$34,'Operating assumptions'!$G$31:$G$34),) -> 0.015 | HB33: =IFERROR(LOOKUP(HB1,'Operating assumptions'!$F$31:$F$34,'Operating assumptions'!$G$31:$G$34),) -> 0.015 | HC33: =IFERROR(LOOKUP(HC1,'Operating assumptions'!$F$31:$F$34,'Operating assumptions'!$G$31:$G$34),) -> 0.015 | HD33: =IFERROR(LOOKUP(HD1,'Operating assumptions'!$F$31:$F$34,'Operating assumptions'!$G$31:$G$34),) -> 0.015 | HE33: =IFERROR(LOOKUP(HE1,'Operating assumptions'!$F$31:$F$34,'Operating assumptions'!$G$31:$G$34),) -> 0.015 | HF33: =IFERROR(LOOKUP(HF1,'Operating assumptions'!$F$31:$F$34,'Operating assumptions'!$G$31:$G$34),) -> 0.015 | HG33: =IFERROR(LOOKUP(HG1,'Operating assumptions'!$F$31:$F$34,'Operating assumptions'!$G$31:$G$34),) -> 0.015 | HH33: =IFERROR(LOOKUP(HH1,'Operating assumptions'!$F$31:$F$34,'Operating assumptions'!$G$31:$G$34),) -> 0.015 | HI33: =IFERROR(LOOKUP(HI1,'Operating assumptions'!$F$31:$F$34,'Operating assumptions'!$G$31:$G$34),) -> 0.015 | HJ33: =IFERROR(LOOKUP(HJ1,'Operating assumptions'!$F$31:$F$34,'Operating assumptions'!$G$31:$G$34),) -> 0.015 | HK33: =IFERROR(LOOKUP(HK1,'Operating assumptions'!$F$31:$F$34,'Operating assumptions'!$G$31:$G$34),) -> 0.015 | HL33: =IFERROR(LOOKUP(HL1,'Operating assumptions'!$F$31:$F$34,'Operating assumptions'!$G$31:$G$34),) -> 0.015 | HM33: =IFERROR(LOOKUP(HM1,'Operating assumptions'!$F$31:$F$34,'Operating assumptions'!$G$31:$G$34),) -> 0.015 | HN33: =IFERROR(LOOKUP(HN1,'Operating assumptions'!$F$31:$F$34,'Operating assumptions'!$G$31:$G$34),) -> 0.015 | HO33: =IFERROR(LOOKUP(HO1,'Operating assumptions'!$F$31:$F$34,'Operating assumptions'!$G$31:$G$34),) -> 0.015 | HP33: =IFERROR(LOOKUP(HP1,'Operating assumptions'!$F$31:$F$34,'Operating assumptions'!$G$31:$G$34),) -> 0.015 | HQ33: =IFERROR(LOOKUP(HQ1,'Operating assumptions'!$F$31:$F$34,'Operating assumptions'!$G$31:$G$34),) -> 0.015 | HR33: =IFERROR(LOOKUP(HR1,'Operating assumptions'!$F$31:$F$34,'Operating assumptions'!$G$31:$G$34),) -> 0.015 | HS33: =IFERROR(LOOKUP(HS1,'Operating assumptions'!$F$31:$F$34,'Operating assumptions'!$G$31:$G$34),) -> 0.015 | HT33: =IFERROR(LOOKUP(HT1,'Operating assumptions'!$F$31:$F$34,'Operating assumptions'!$G$31:$G$34),) -> 0.015 | HU33: =IFERROR(LOOKUP(HU1,'Operating assumptions'!$F$31:$F$34,'Operating assumptions'!$G$31:$G$34),) -> 0.015 | HV33: =IFERROR(LOOKUP(HV1,'Operating assumptions'!$F$31:$F$34,'Operating assumptions'!$G$31:$G$34),) -> 0.015 | HW33: =IFERROR(LOOKUP(HW1,'Operating assumptions'!$F$31:$F$34,'Operating assumptions'!$G$31:$G$34),) -> 0.015 | HX33: =IFERROR(LOOKUP(HX1,'Operating assumptions'!$F$31:$F$34,'Operating assumptions'!$G$31:$G$34),) -> 0.015 | HY33: =IFERROR(LOOKUP(HY1,'Operating assumptions'!$F$31:$F$34,'Operating assumptions'!$G$31:$G$34),) -> 0.015 | HZ33: =IFERROR(LOOKUP(HZ1,'Operating assumptions'!$F$31:$F$34,'Operating assumptions'!$G$31:$G$34),) -> 0.015 | IA33: =IFERROR(LOOKUP(IA1,'Operating assumptions'!$F$31:$F$34,'Operating assumptions'!$G$31:$G$34),) -> 0.015 | IB33: =IFERROR(LOOKUP(IB1,'Operating assumptions'!$F$31:$F$34,'Operating assumptions'!$G$31:$G$34),) -> 0.015 | IC33: =IFERROR(LOOKUP(IC1,'Operating assumptions'!$F$31:$F$34,'Operating assumptions'!$G$31:$G$34),) -> 0.015 | ID33: =IFERROR(LOOKUP(ID1,'Operating assumptions'!$F$31:$F$34,'Operating assumptions'!$G$31:$G$34),) -> 0.015 | IE33: =IFERROR(LOOKUP(IE1,'Operating assumptions'!$F$31:$F$34,'Operating assumptions'!$G$31:$G$34),) -> 0.015 | IF33: =IFERROR(LOOKUP(IF1,'Operating assumptions'!$F$31:$F$34,'Operating assumptions'!$G$31:$G$34),) -> 0.015 | IG33: =IFERROR(LOOKUP(IG1,'Operating assumptions'!$F$31:$F$34,'Operating assumptions'!$G$31:$G$34),) -> 0.015 | IH33: =IFERROR(LOOKUP(IH1,'Operating assumptions'!$F$31:$F$34,'Operating assumptions'!$G$31:$G$34),) -> 0.015 | II33: =IFERROR(LOOKUP(II1,'Operating assumptions'!$F$31:$F$34,'Operating assumptions'!$G$31:$G$34),) -> 0.015 | IJ33: =IFERROR(LOOKUP(IJ1,'Operating assumptions'!$F$31:$F$34,'Operating assumptions'!$G$31:$G$34),) -> 0.015 | IK33: =IFERROR(LOOKUP(IK1,'Operating assumptions'!$F$31:$F$34,'Operating assumptions'!$G$31:$G$34),) -> 0.015 | IL33: =IFERROR(LOOKUP(IL1,'Operating assumptions'!$F$31:$F$34,'Operating assumptions'!$G$31:$G$34),) -> 0.015 | IM33: =IFERROR(LOOKUP(IM1,'Operating assumptions'!$F$31:$F$34,'Operating assumptions'!$G$31:$G$34),) -> 0.015 | IN33: =IFERROR(LOOKUP(IN1,'Operating assumptions'!$F$31:$F$34,'Operating assumptions'!$G$31:$G$34),) -> 0.015 | IO33: =IFERROR(LOOKUP(IO1,'Operating assumptions'!$F$31:$F$34,'Operating assumptions'!$G$31:$G$34),) -> 0.015 | IP33: =IFERROR(LOOKUP(IP1,'Operating assumptions'!$F$31:$F$34,'Operating assumptions'!$G$31:$G$34),) -> 0.015 | IQ33: =IFERROR(LOOKUP(IQ1,'Operating assumptions'!$F$31:$F$34,'Operating assumptions'!$G$31:$G$34),) -> 0.015 | IR33: =IFERROR(LOOKUP(IR1,'Operating assumptions'!$F$31:$F$34,'Operating assumptions'!$G$31:$G$34),) -> 0.015 | IS33: =IFERROR(LOOKUP(IS1,'Operating assumptions'!$F$31:$F$34,'Operating assumptions'!$G$31:$G$34),) -> 0.015 | IT33: =IFERROR(LOOKUP(IT1,'Operating assumptions'!$F$31:$F$34,'Operating assumptions'!$G$31:$G$34),) -> 0.015 | IU33: =IFERROR(LOOKUP(IU1,'Operating assumptions'!$F$31:$F$34,'Operating assumptions'!$G$31:$G$34),) -> 0.015 | IV33: =IFERROR(LOOKUP(IV1,'Operating assumptions'!$F$31:$F$34,'Operating assumptions'!$G$31:$G$34),) -> 0.015 | IW33: =IFERROR(LOOKUP(IW1,'Operating assumptions'!$F$31:$F$34,'Operating assumptions'!$G$31:$G$34),) -> 0.015 | IX33: =IFERROR(LOOKUP(IX1,'Operating assumptions'!$F$31:$F$34,'Operating assumptions'!$G$31:$G$34),) -> 0.015 | IY33: =IFERROR(LOOKUP(IY1,'Operating assumptions'!$F$31:$F$34,'Operating assumptions'!$G$31:$G$34),) -> 0.015 | IZ33: =IFERROR(LOOKUP(IZ1,'Operating assumptions'!$F$31:$F$34,'Operating assumptions'!$G$31:$G$34),) -> 0.015 | JA33: =IFERROR(LOOKUP(JA1,'Operating assumptions'!$F$31:$F$34,'Operating assumptions'!$G$31:$G$34),) -> 0.015 | JB33: =IFERROR(LOOKUP(JB1,'Operating assumptions'!$F$31:$F$34,'Operating assumptions'!$G$31:$G$34),) -> 0.015 | JC33: =IFERROR(LOOKUP(JC1,'Operating assumptions'!$F$31:$F$34,'Operating assumptions'!$G$31:$G$34),) -> 0.015 | JD33: =IFERROR(LOOKUP(JD1,'Operating assumptions'!$F$31:$F$34,'Operating assumptions'!$G$31:$G$34),) -> 0.015 | JE33: =IFERROR(LOOKUP(JE1,'Operating assumptions'!$F$31:$F$34,'Operating assumptions'!$G$31:$G$34),) -> 0.015 | JF33: =IFERROR(LOOKUP(JF1,'Operating assumptions'!$F$31:$F$34,'Operating assumptions'!$G$31:$G$34),) -> 0.015 | JG33: =IFERROR(LOOKUP(JG1,'Operating assumptions'!$F$31:$F$34,'Operating assumptions'!$G$31:$G$34),) -> 0.015 | JH33: =IFERROR(LOOKUP(JH1,'Operating assumptions'!$F$31:$F$34,'Operating assumptions'!$G$31:$G$34),) -> 0.015 | JI33: =IFERROR(LOOKUP(JI1,'Operating assumptions'!$F$31:$F$34,'Operating assumptions'!$G$31:$G$34),) -> 0.015 | JJ33: =IFERROR(LOOKUP(JJ1,'Operating assumptions'!$F$31:$F$34,'Operating assumptions'!$G$31:$G$34),) -> 0.015 | JK33: =IFERROR(LOOKUP(JK1,'Operating assumptions'!$F$31:$F$34,'Operating assumptions'!$G$31:$G$34),) -> 0.015 | JL33: =IFERROR(LOOKUP(JL1,'Operating assumptions'!$F$31:$F$34,'Operating assumptions'!$G$31:$G$34),) -> 0.015 | JM33: =IFERROR(LOOKUP(JM1,'Operating assumptions'!$F$31:$F$34,'Operating assumptions'!$G$31:$G$34),) -> 0.015 | JN33: =IFERROR(LOOKUP(JN1,'Operating assumptions'!$F$31:$F$34,'Operating assumptions'!$G$31:$G$34),) -> 0.015 | JO33: =IFERROR(LOOKUP(JO1,'Operating assumptions'!$F$31:$F$34,'Operating assumptions'!$G$31:$G$34),) -> 0.015 | JP33: =IFERROR(LOOKUP(JP1,'Operating assumptions'!$F$31:$F$34,'Operating assumptions'!$G$31:$G$34),) -> 0.015 | JQ33: =IFERROR(LOOKUP(JQ1,'Operating assumptions'!$F$31:$F$34,'Operating assumptions'!$G$31:$G$34),) -> 0.015 | JR33: =IFERROR(LOOKUP(JR1,'Operating assumptions'!$F$31:$F$34,'Operating assumptions'!$G$31:$G$34),) -> 0.015 | JS33: =IFERROR(LOOKUP(JS1,'Operating assumptions'!$F$31:$F$34,'Operating assumptions'!$G$31:$G$34),) -> 0.015 | JT33: =IFERROR(LOOKUP(JT1,'Operating assumptions'!$F$31:$F$34,'Operating assumptions'!$G$31:$G$34),) -> 0.015 | JU33: =IFERROR(LOOKUP(JU1,'Operating assumptions'!$F$31:$F$34,'Operating assumptions'!$G$31:$G$34),) -> 0.015 | JV33: =IFERROR(LOOKUP(JV1,'Operating assumptions'!$F$31:$F$34,'Operating assumptions'!$G$31:$G$34),) -> 0.015 | JW33: =IFERROR(LOOKUP(JW1,'Operating assumptions'!$F$31:$F$34,'Operating assumptions'!$G$31:$G$34),) -> 0.015 | JX33: =IFERROR(LOOKUP(JX1,'Operating assumptions'!$F$31:$F$34,'Operating assumptions'!$G$31:$G$34),) -> 0.015 | JY33: =IFERROR(LOOKUP(JY1,'Operating assumptions'!$F$31:$F$34,'Operating assumptions'!$G$31:$G$34),) -> 0.015 | JZ33: =IFERROR(LOOKUP(JZ1,'Operating assumptions'!$F$31:$F$34,'Operating assumptions'!$G$31:$G$34),) -> 0.015 | KA33: =IFERROR(LOOKUP(KA1,'Operating assumptions'!$F$31:$F$34,'Operating assumptions'!$G$31:$G$34),) -> 0.015 | KB33: =IFERROR(LOOKUP(KB1,'Operating assumptions'!$F$31:$F$34,'Operating assumptions'!$G$31:$G$34),) -> 0.015 | KC33: =IFERROR(LOOKUP(KC1,'Operating assumptions'!$F$31:$F$34,'Operating assumptions'!$G$31:$G$34),) -> 0.015
C34: Traffic growth - Periodic | F34: Periodic % | L34: =(1+L33)^(1/L8)-1 -> 0 | M34: 0 | N34: 0 | O34: 0 | P34: 0 | Q34: 0 | R34: 0 | S34: 0 | T34: 0 | U34: 0 | V34: 0 | W34: 0 | X34: 0 | Y34: 0 | Z34: 0 | AA34: 0 | AB34: 0 | AC34: 0 | AD34: 0 | AE34: 0 | AF34: 0 | AG34: 0 | AH34: 0 | AI34: 0 | AJ34: 0 | AK34: 0 | AL34: 0 | AM34: 0 | AN34: 0 | AO34: 0 | AP34: 0 | AQ34: 0 | AR34: 0 | AS34: 0 | AT34: 0 | AU34: 0 | AV34: 0 | AW34: 0 | AX34: 0 | AY34: 0 | AZ34: 0 | BA34: 0 | BB34: 0 | BC34: 0 | BD34: 0 | BE34: 0 | BF34: 0 | BG34: 0 | BH34: 0 | BI34: 0 | BJ34: 0 | BK34: 0 | BL34: 0 | BM34: 0 | BN34: 0 | BO34: 0 | BP34: 0 | BQ34: 0 | BR34: 0 | BS34: 0 | BT34: 0 | BU34: 0 | BV34: 0 | BW34: 0 | BX34: =(1+BX33)^(1/BX8)-1 -> 0 | BY34: 0 | BZ34: 0 | CA34: 0 | CB34: 0 | CC34: 0 | CD34: 0 | CE34: 0 | CF34: 0 | CG34: 0 | CH34: 0 | CI34: 0 | CJ34: 0 | CK34: 0 | CL34: 0.0246950766 | CM34: 0.0246950766 | CN34: 0.0246950766 | CO34: 0.0246950766 | CP34: 0.01488915651 | CQ34: 0.01488915651 | CR34: 0.01488915651 | CS34: 0.01488915651 | CT34: 0.01488915651 | CU34: 0.01488915651 | CV34: 0.009950493836 | CW34: 0.009950493836 | CX34: 0.009950493836 | CY34: 0.009950493836 | CZ34: 0.009950493836 | DA34: 0.009950493836 | DB34: 0.009950493836 | DC34: 0.009950493836 | DD34: 0.009950493836 | DE34: 0.009950493836 | DF34: 0.00747208398 | DG34: 0.00747208398 | DH34: 0.00747208398 | DI34: 0.00747208398 | DJ34: 0.00747208398 | DK34: 0.00747208398 | DL34: 0.00747208398 | DM34: 0.00747208398 | DN34: 0.00747208398 | DO34: 0.00747208398 | DP34: 0.00747208398 | DQ34: 0.00747208398 | DR34: 0.00747208398 | DS34: 0.00747208398 | DT34: 0.00747208398 | DU34: 0.00747208398 | DV34: 0.00747208398 | DW34: 0.00747208398 | DX34: 0.00747208398 | DY34: 0.00747208398 | DZ34: 0.00747208398 | EA34: 0.00747208398 | EB34: 0.00747208398 | EC34: 0.00747208398 | ED34: 0.00747208398 | EE34: 0.00747208398 | EF34: 0.00747208398 | EG34: 0.00747208398 | EH34: 0.00747208398 | EI34: 0.00747208398 | EJ34: =(1+EJ33)^(1/EJ8)-1 -> 0.00747208398 | EK34: 0.00747208398 | EL34: 0.00747208398 | EM34: 0.00747208398 | EN34: 0.00747208398 | EO34: 0.00747208398 | EP34: 0.00747208398 | EQ34: 0.00747208398 | ER34: 0.00747208398 | ES34: 0.00747208398 | ET34: 0.00747208398 | EU34: 0.00747208398 | EV34: 0.00747208398 | EW34: 0.00747208398 | EX34: 0.00747208398 | EY34: 0.00747208398 | EZ34: 0.00747208398 | FA34: 0.00747208398 | FB34: 0.00747208398 | FC34: 0.00747208398 | FD34: 0.00747208398 | FE34: 0.00747208398 | FF34: 0.00747208398 | FG34: 0.00747208398 | FH34: 0.00747208398 | FI34: 0.00747208398 | FJ34: 0.00747208398 | FK34: 0.00747208398 | FL34: 0.00747208398 | FM34: 0.00747208398 | FN34: 0.00747208398 | FO34: 0.00747208398 | FP34: 0.00747208398 | FQ34: 0.00747208398 | FR34: 0.00747208398 | FS34: 0.00747208398 | FT34: 0.00747208398 | FU34: 0.00747208398 | FV34: 0.00747208398 | FW34: 0.00747208398 | FX34: 0.00747208398 | FY34: 0.00747208398 | FZ34: 0.00747208398 | GA34: 0.00747208398 | GB34: 0.00747208398 | GC34: 0.00747208398 | GD34: 0.00747208398 | GE34: 0.00747208398 | GF34: 0.00747208398 | GG34: 0.00747208398 | GH34: 0.00747208398 | GI34: 0.00747208398 | GJ34: 0.00747208398 | GK34: 0.00747208398 | GL34: 0.00747208398 | GM34: 0.00747208398 | GN34: 0.00747208398 | GO34: 0.00747208398 | GP34: 0.00747208398 | GQ34: 0.00747208398 | GR34: 0.00747208398 | GS34: 0.00747208398 | GT34: 0.00747208398 | GU34: 0.00747208398 | GV34: =(1+GV33)^(1/GV8)-1 -> 0.00747208398 | GW34: 0.00747208398 | GX34: 0.00747208398 | GY34: 0.00747208398 | GZ34: 0.00747208398 | HA34: 0.00747208398 | HB34: 0.00747208398 | HC34: 0.00747208398 | HD34: 0.00747208398 | HE34: 0.00747208398 | HF34: 0.00747208398 | HG34: 0.00747208398 | HH34: 0.00747208398 | HI34: 0.00747208398 | HJ34: 0.00747208398 | HK34: 0.00747208398 | HL34: 0.00747208398 | HM34: 0.00747208398 | HN34: 0.00747208398 | HO34: 0.00747208398 | HP34: 0.00747208398 | HQ34: 0.00747208398 | HR34: 0.00747208398 | HS34: 0.00747208398 | HT34: 0.00747208398 | HU34: 0.00747208398 | HV34: 0.00747208398 | HW34: 0.00747208398 | HX34: 0.00747208398 | HY34: 0.00747208398 | HZ34: 0.00747208398 | IA34: 0.00747208398 | IB34: 0.00747208398 | IC34: 0.00747208398 | ID34: 0.00747208398 | IE34: 0.00747208398 | IF34: 0.00747208398 | IG34: 0.00747208398 | IH34: 0.00747208398 | II34: 0.00747208398 | IJ34: 0.00747208398 | IK34: 0.00747208398 | IL34: 0.00747208398 | IM34: 0.00747208398 | IN34: 0.00747208398 | IO34: 0.00747208398 | IP34: 0.00747208398 | IQ34: 0.00747208398 | IR34: 0.00747208398 | IS34: 0.00747208398 | IT34: 0.00747208398 | IU34: 0.00747208398 | IV34: 0.00747208398 | IW34: 0.00747208398 | IX34: 0.00747208398 | IY34: 0.00747208398 | IZ34: 0.00747208398 | JA34: 0.00747208398 | JB34: 0.00747208398 | JC34: 0.00747208398 | JD34: 0.00747208398 | JE34: 0.00747208398 | JF34: 0.00747208398 | JG34: 0.00747208398 | JH34: =(1+JH33)^(1/JH8)-1 -> 0.00747208398 | JI34: 0.00747208398 | JJ34: 0.00747208398 | JK34: 0.00747208398 | JL34: 0.00747208398 | JM34: 0.00747208398 | JN34: 0.00747208398 | JO34: 0.00747208398 | JP34: 0.00747208398 | JQ34: 0.00747208398 | JR34: 0.00747208398 | JS34: 0.00747208398 | JT34: 0.00747208398 | JU34: 0.00747208398 | JV34: 0.00747208398 | JW34: 0.00747208398 | JX34: 0.00747208398 | JY34: 0.00747208398 | JZ34: 0.00747208398 | KA34: 0.00747208398 | KB34: 0.00747208398 | KC34: 0.00747208398
C35: Traffic index | F35: Index | K35: 1 | L35: =K35*(1+L34) -> 1 | M35: =L35*(1+M34) -> 1 | N35: 1 | O35: 1 | P35: 1 | Q35: 1 | R35: 1 | S35: 1 | T35: 1 | U35: 1 | V35: 1 | W35: 1 | X35: 1 | Y35: 1 | Z35: 1 | AA35: 1 | AB35: 1 | AC35: 1 | AD35: 1 | AE35: 1 | AF35: 1 | AG35: 1 | AH35: 1 | AI35: 1 | AJ35: 1 | AK35: 1 | AL35: 1 | AM35: 1 | AN35: 1 | AO35: 1 | AP35: 1 | AQ35: 1 | AR35: 1 | AS35: 1 | AT35: 1 | AU35: 1 | AV35: 1 | AW35: 1 | AX35: 1 | AY35: 1 | AZ35: 1 | BA35: 1 | BB35: 1 | BC35: 1 | BD35: 1 | BE35: 1 | BF35: 1 | BG35: 1 | BH35: 1 | BI35: 1 | BJ35: 1 | BK35: 1 | BL35: 1 | BM35: 1 | BN35: 1 | BO35: 1 | BP35: 1 | BQ35: 1 | BR35: 1 | BS35: 1 | BT35: 1 | BU35: 1 | BV35: 1 | BW35: 1 | BX35: 1 | BY35: =BX35*(1+BY34) -> 1 | BZ35: 1 | CA35: 1 | CB35: 1 | CC35: 1 | CD35: 1 | CE35: 1 | CF35: 1 | CG35: 1 | CH35: 1 | CI35: 1 | CJ35: 1 | CK35: 1 | CL35: 1.024695077 | CM35: 1.05 | CN35: 1.07592983 | CO35: 1.1025 | CP35: 1.118915295 | CQ35: 1.135575 | CR35: 1.152482754 | CS35: 1.16964225 | CT35: 1.187057237 | CU35: 1.204731518 | CV35: 1.216719191 | CW35: 1.228826148 | CX35: 1.241053575 | CY35: 1.253402671 | CZ35: 1.265874646 | DA35: 1.278470724 | DB35: 1.291192139 | DC35: 1.304040139 | DD35: 1.317015982 | DE35: 1.330120941 | DF35: 1.340059717 | DG35: 1.350072756 | DH35: 1.360160613 | DI35: 1.370323847 | DJ35: 1.380563022 | DK35: 1.390878705 | DL35: 1.401271467 | DM35: 1.411741885 | DN35: 1.422290539 | DO35: 1.432918013 | DP35: 1.443624897 | DQ35: 1.454411784 | DR35: 1.465279271 | DS35: 1.47622796 | DT35: 1.48725846 | DU35: 1.49837138 | DV35: 1.509567337 | DW35: 1.520846951 | DX35: 1.532210847 | DY35: 1.543659655 | DZ35: 1.555194009 | EA35: 1.56681455 | EB35: 1.57852192 | EC35: 1.590316768 | ED35: 1.602199748 | EE35: 1.614171519 | EF35: 1.626232745 | EG35: 1.638384092 | EH35: 1.650626236 | EI35: 1.662959854 | EJ35: 1.675385629 | EK35: =EJ35*(1+EK34) -> 1.687904251 | EL35: 1.700516414 | EM35: 1.713222815 | EN35: 1.72602416 | EO35: 1.738921157 | EP35: 1.751914522 | EQ35: 1.765004975 | ER35: 1.77819324 | ES35: 1.791480049 | ET35: 1.804866139 | EU35: 1.81835225 | EV35: 1.831939131 | EW35: 1.845627534 | EX35: 1.859418218 | EY35: 1.873311947 | EZ35: 1.887309491 | FA35: 1.901411626 | FB35: 1.915619133 | FC35: 1.9299328 | FD35: 1.94435342 | FE35: 1.958881792 | FF35: 1.973518722 | FG35: 1.988265019 | FH35: 2.003121503 | FI35: 2.018088995 | FJ35: 2.033168325 | FK35: 2.04836033 | FL35: 2.06366585 | FM35: 2.079085734 | FN35: 2.094620838 | FO35: 2.110272021 | FP35: 2.12604015 | FQ35: 2.141926101 | FR35: 2.157930753 | FS35: 2.174054992 | FT35: 2.190299714 | FU35: 2.206665817 | FV35: 2.22315421 | FW35: 2.239765804 | FX35: 2.256501523 | FY35: 2.273362292 | FZ35: 2.290349045 | GA35: 2.307462726 | GB35: 2.324704281 | GC35: 2.342074667 | GD35: 2.359574845 | GE35: 2.377205787 | GF35: 2.394968468 | GG35: 2.412863874 | GH35: 2.430892995 | GI35: 2.449056832 | GJ35: 2.46735639 | GK35: 2.485792684 | GL35: 2.504366736 | GM35: 2.523079574 | GN35: 2.541932237 | GO35: 2.560925768 | GP35: 2.58006122 | GQ35: 2.599339655 | GR35: 2.618762139 | GS35: 2.638329749 | GT35: 2.658043571 | GU35: 2.677904696 | GV35: 2.697914224 | GW35: =GV35*(1+GW34) -> 2.718073266 | GX35: 2.738382938 | GY35: 2.758844365 | GZ35: 2.779458682 | HA35: 2.800227031 | HB35: 2.821150562 | HC35: 2.842230436 | HD35: 2.863467821 | HE35: 2.884863893 | HF35: 2.906419838 | HG35: 2.928136851 | HH35: 2.950016135 | HI35: 2.972058904 | HJ35: 2.994266377 | HK35: 3.016639787 | HL35: 3.039180373 | HM35: 3.061889384 | HN35: 3.084768079 | HO35: 3.107817725 | HP35: 3.1310396 | HQ35: 3.154434991 | HR35: 3.178005194 | HS35: 3.201751516 | HT35: 3.225675272 | HU35: 3.249777788 | HV35: 3.274060401 | HW35: 3.298524455 | HX35: 3.323171307 | HY35: 3.348002322 | HZ35: 3.373018876 | IA35: 3.398222357 | IB35: 3.42361416 | IC35: 3.449195692 | ID35: 3.474968372 | IE35: 3.500933628 | IF35: 3.527092898 | IG35: 3.553447632 | IH35: 3.579999291 | II35: 3.606749346 | IJ35: 3.63369928 | IK35: 3.660850587 | IL35: 3.68820477 | IM35: 3.715763345 | IN35: 3.743527841 | IO35: 3.771499796 | IP35: 3.799680759 | IQ35: 3.828072293 | IR35: 3.85667597 | IS35: 3.885493377 | IT35: 3.91452611 | IU35: 3.943775778 | IV35: 3.973244001 | IW35: 4.002932414 | IX35: 4.032842661 | IY35: 4.0629764 | IZ35: 4.093335301 | JA35: 4.123921046 | JB35: 4.154735331 | JC35: 4.185779862 | JD35: 4.217056361 | JE35: 4.24856656 | JF35: 4.280312206 | JG35: 4.312295058 | JH35: 4.344516889 | JI35: =JH35*(1+JI34) -> 4.376979484 | JJ35: 4.409684643 | JK35: 4.442634177 | JL35: 4.475829912 | JM35: 4.509273689 | JN35: 4.542967361 | JO35: 4.576912795 | JP35: 4.611111871 | JQ35: 4.645566487 | JR35: 4.680278549 | JS35: 4.715249984 | JT35: 4.750482728 | JU35: 4.785978734 | JV35: 4.821739969 | JW35: 4.857768415 | JX35: 4.894066068 | JY35: 4.930634941 | JZ35: 4.967477059 | KA35: 5.004594465 | KB35: 5.041989215 | KC35: 5.079663382
C36: Traffic projections | F36: Vehicles | L36: =L32*L35 -> 0 | M36: =M32*M35 -> 0 | N36: 0 | O36: 0 | P36: 0 | Q36: 0 | R36: 0 | S36: 0 | T36: 0 | U36: 0 | V36: 0 | W36: 0 | X36: 0 | Y36: 0 | Z36: 0 | AA36: 0 | AB36: 0 | AC36: 0 | AD36: 0 | AE36: 0 | AF36: 0 | AG36: 0 | AH36: 0 | AI36: 0 | AJ36: 0 | AK36: 0 | AL36: 0 | AM36: 0 | AN36: 0 | AO36: 0 | AP36: 0 | AQ36: 0 | AR36: 0 | AS36: 0 | AT36: 0 | AU36: 0 | AV36: 0 | AW36: 0 | AX36: 0 | AY36: 0 | AZ36: 0 | BA36: 0 | BB36: 0 | BC36: 0 | BD36: 0 | BE36: 0 | BF36: 0 | BG36: 0 | BH36: 0 | BI36: 0 | BJ36: 0 | BK36: 0 | BL36: 0 | BM36: 0 | BN36: 0 | BO36: 0 | BP36: 0 | BQ36: 0 | BR36: 0 | BS36: 0 | BT36: 0 | BU36: 0 | BV36: 0 | BW36: 0 | BX36: 0 | BY36: =BY32*BY35 -> 0 | BZ36: 0 | CA36: 0 | CB36: 0 | CC36: 0 | CD36: 0 | CE36: 0 | CF36: 0 | CG36: 0 | CH36: 0 | CI36: 0 | CJ36: 0 | CK36: 0 | CL36: 839225.2677 | CM36: 869400 | CN36: 876344.8469 | CO36: 912870 | CP36: 911356.5078 | CQ36: 940256.1 | CR36: 938697.2031 | CS36: 968463.783 | CT36: 972199.8767 | CU36: 997517.6965 | CV36: 991017.7811 | CW36: 1017468.05 | CX36: 1010838.137 | CY36: 1037817.411 | CZ36: 1031054.899 | DA36: 1058573.76 | DB36: 1057486.362 | DC36: 1079745.235 | DD36: 1072709.517 | DE36: 1101340.14 | DF36: 1091478.639 | DG36: 1117860.242 | DH36: 1107850.819 | DI36: 1134628.145 | DJ36: 1130681.115 | DK36: 1151647.567 | DL36: 1141335.61 | DM36: 1168922.281 | DN36: 1158455.644 | DO36: 1186456.115 | DP36: 1175832.479 | DQ36: 1204252.957 | DR36: 1200063.723 | DS36: 1222316.751 | DT36: 1211372.015 | DU36: 1240651.503 | DV36: 1229542.596 | DW36: 1259261.275 | DX36: 1247985.735 | DY36: 1278150.194 | DZ36: 1273703.894 | EA36: 1297322.447 | EB36: 1285706.103 | EC36: 1316782.284 | ED36: 1304991.695 | EE36: 1336534.018 | EF36: 1324566.57 | EG36: 1356582.028 | EH36: 1351862.887 | EI36: 1376930.759 | EJ36: 1364601.595 | EK36: =EK32*EK35 -> 1397584.72 | EL36: 1385070.619 | EM36: 1418548.491 | EN36: 1405846.678 | EO36: 1439826.718 | EP36: 1434817.994 | EQ36: 1461424.119 | ER36: 1448338.394 | ES36: 1483345.481 | ET36: 1470063.47 | EU36: 1505595.663 | EV36: 1492114.422 | EW36: 1528179.598 | EX36: 1522863.52 | EY36: 1551102.292 | EZ36: 1537213.58 | FA36: 1574368.826 | FB36: 1560271.784 | FC36: 1597984.359 | FD36: 1583675.861 | FE36: 1621954.124 | FF36: 1616311.833 | FG36: 1646283.436 | FH36: 1631542.464 | FI36: 1670977.688 | FJ36: 1656015.601 | FK36: 1696042.353 | FL36: 1680855.835 | FM36: 1721482.988 | FN36: 1715494.466 | FO36: 1747305.233 | FP36: 0 | FQ36: 0 | FR36: 0 | FS36: 0 | FT36: 0 | FU36: 0 | FV36: 0 | FW36: 0 | FX36: 0 | FY36: 0 | FZ36: 0 | GA36: 0 | GB36: 0 | GC36: 0 | GD36: 0 | GE36: 0 | GF36: 0 | GG36: 0 | GH36: 0 | GI36: 0 | GJ36: 0 | GK36: 0 | GL36: 0 | GM36: 0 | GN36: 0 | GO36: 0 | GP36: 0 | GQ36: 0 | GR36: 0 | GS36: 0 | GT36: 0 | GU36: 0 | GV36: 0 | GW36: =GW32*GW35 -> 0 | GX36: 0 | GY36: 0 | GZ36: 0 | HA36: 0 | HB36: 0 | HC36: 0 | HD36: 0 | HE36: 0 | HF36: 0 | HG36: 0 | HH36: 0 | HI36: 0 | HJ36: 0 | HK36: 0 | HL36: 0 | HM36: 0 | HN36: 0 | HO36: 0 | HP36: 0 | HQ36: 0 | HR36: 0 | HS36: 0 | HT36: 0 | HU36: 0 | HV36: 0 | HW36: 0 | HX36: 0 | HY36: 0 | HZ36: 0 | IA36: 0 | IB36: 0 | IC36: 0 | ID36: 0 | IE36: 0 | IF36: 0 | IG36: 0 | IH36: 0 | II36: 0 | IJ36: 0 | IK36: 0 | IL36: 0 | IM36: 0 | IN36: 0 | IO36: 0 | IP36: 0 | IQ36: 0 | IR36: 0 | IS36: 0 | IT36: 0 | IU36: 0 | IV36: 0 | IW36: 0 | IX36: 0 | IY36: 0 | IZ36: 0 | JA36: 0 | JB36: 0 | JC36: 0 | JD36: 0 | JE36: 0 | JF36: 0 | JG36: 0 | JH36: 0 | JI36: =JI32*JI35 -> 0 | JJ36: 0 | JK36: 0 | JL36: 0 | JM36: 0 | JN36: 0 | JO36: 0 | JP36: 0 | JQ36: 0 | JR36: 0 | JS36: 0 | JT36: 0 | JU36: 0 | JV36: 0 | JW36: 0 | JX36: 0 | JY36: 0 | JZ36: 0 | KA36: 0 | KB36: 0 | KC36: 0
B38: Toll rates
C39: Base toll rate | F39: $/vehicle | G39: ='Operating assumptions'!G36 -> 2 | L39: =$G$39 -> 2 | M39: =$G$39 -> 2 | N39: 2 | O39: 2 | P39: 2 | Q39: 2 | R39: 2 | S39: 2 | T39: 2 | U39: 2 | V39: 2 | W39: 2 | X39: 2 | Y39: 2 | Z39: 2 | AA39: 2 | AB39: 2 | AC39: 2 | AD39: 2 | AE39: 2 | AF39: 2 | AG39: 2 | AH39: 2 | AI39: 2 | AJ39: 2 | AK39: 2 | AL39: 2 | AM39: 2 | AN39: 2 | AO39: 2 | AP39: 2 | AQ39: 2 | AR39: 2 | AS39: 2 | AT39: 2 | AU39: 2 | AV39: 2 | AW39: 2 | AX39: 2 | AY39: 2 | AZ39: 2 | BA39: 2 | BB39: 2 | BC39: 2 | BD39: 2 | BE39: 2 | BF39: 2 | BG39: 2 | BH39: 2 | BI39: 2 | BJ39: 2 | BK39: 2 | BL39: 2 | BM39: 2 | BN39: 2 | BO39: 2 | BP39: 2 | BQ39: 2 | BR39: 2 | BS39: 2 | BT39: 2 | BU39: 2 | BV39: 2 | BW39: 2 | BX39: 2 | BY39: =$G$39 -> 2 | BZ39: 2 | CA39: 2 | CB39: 2 | CC39: 2 | CD39: 2 | CE39: 2 | CF39: 2 | CG39: 2 | CH39: 2 | CI39: 2 | CJ39: 2 | CK39: 2 | CL39: 2 | CM39: 2 | CN39: 2 | CO39: 2 | CP39: 2 | CQ39: 2 | CR39: 2 | CS39: 2 | CT39: 2 | CU39: 2 | CV39: 2 | CW39: 2 | CX39: 2 | CY39: 2 | CZ39: 2 | DA39: 2 | DB39: 2 | DC39: 2 | DD39: 2 | DE39: 2 | DF39: 2 | DG39: 2 | DH39: 2 | DI39: 2 | DJ39: 2 | DK39: 2 | DL39: 2 | DM39: 2 | DN39: 2 | DO39: 2 | DP39: 2 | DQ39: 2 | DR39: 2 | DS39: 2 | DT39: 2 | DU39: 2 | DV39: 2 | DW39: 2 | DX39: 2 | DY39: 2 | DZ39: 2 | EA39: 2 | EB39: 2 | EC39: 2 | ED39: 2 | EE39: 2 | EF39: 2 | EG39: 2 | EH39: 2 | EI39: 2 | EJ39: 2 | EK39: =$G$39 -> 2 | EL39: 2 | EM39: 2 | EN39: 2 | EO39: 2 | EP39: 2 | EQ39: 2 | ER39: 2 | ES39: 2 | ET39: 2 | EU39: 2 | EV39: 2 | EW39: 2 | EX39: 2 | EY39: 2 | EZ39: 2 | FA39: 2 | FB39: 2 | FC39: 2 | FD39: 2 | FE39: 2 | FF39: 2 | FG39: 2 | FH39: 2 | FI39: 2 | FJ39: 2 | FK39: 2 | FL39: 2 | FM39: 2 | FN39: 2 | FO39: 2 | FP39: 2 | FQ39: 2 | FR39: 2 | FS39: 2 | FT39: 2 | FU39: 2 | FV39: 2 | FW39: 2 | FX39: 2 | FY39: 2 | FZ39: 2 | GA39: 2 | GB39: 2 | GC39: 2 | GD39: 2 | GE39: 2 | GF39: 2 | GG39: 2 | GH39: 2 | GI39: 2 | GJ39: 2 | GK39: 2 | GL39: 2 | GM39: 2 | GN39: 2 | GO39: 2 | GP39: 2 | GQ39: 2 | GR39: 2 | GS39: 2 | GT39: 2 | GU39: 2 | GV39: 2 | GW39: =$G$39 -> 2 | GX39: 2 | GY39: 2 | GZ39: 2 | HA39: 2 | HB39: 2 | HC39: 2 | HD39: 2 | HE39: 2 | HF39: 2 | HG39: 2 | HH39: 2 | HI39: 2 | HJ39: 2 | HK39: 2 | HL39: 2 | HM39: 2 | HN39: 2 | HO39: 2 | HP39: 2 | HQ39: 2 | HR39: 2 | HS39: 2 | HT39: 2 | HU39: 2 | HV39: 2 | HW39: 2 | HX39: 2 | HY39: 2 | HZ39: 2 | IA39: 2 | IB39: 2 | IC39: 2 | ID39: 2 | IE39: 2 | IF39: 2 | IG39: 2 | IH39: 2 | II39: 2 | IJ39: 2 | IK39: 2 | IL39: 2 | IM39: 2 | IN39: 2 | IO39: 2 | IP39: 2 | IQ39: 2 | IR39: 2 | IS39: 2 | IT39: 2 | IU39: 2 | IV39: 2 | IW39: 2 | IX39: 2 | IY39: 2 | IZ39: 2 | JA39: 2 | JB39: 2 | JC39: 2 | JD39: 2 | JE39: 2 | JF39: 2 | JG39: 2 | JH39: 2 | JI39: =$G$39 -> 2 | JJ39: 2 | JK39: 2 | JL39: 2 | JM39: 2 | JN39: 2 | JO39: 2 | JP39: 2 | JQ39: 2 | JR39: 2 | JS39: 2 | JT39: 2 | JU39: 2 | JV39: 2 | JW39: 2 | JX39: 2 | JY39: 2 | JZ39: 2 | KA39: 2 | KB39: 2 | KC39: 2
C40: Annual inflation rate | F40: Annual % | L40: =LOOKUP(L3,'Operating assumptions'!$G$19:$X$19,'Operating assumptions'!$G$25:$X$25) -> 0.01 | M40: =LOOKUP(M3,'Operating assumptions'!$G$19:$X$19,'Operating assumptions'!$G$25:$X$25) -> 0.01 | N40: =LOOKUP(N3,'Operating assumptions'!$G$19:$X$19,'Operating assumptions'!$G$25:$X$25) -> 0.01 | O40: =LOOKUP(O3,'Operating assumptions'!$G$19:$X$19,'Operating assumptions'!$G$25:$X$25) -> 0.01 | P40: =LOOKUP(P3,'Operating assumptions'!$G$19:$X$19,'Operating assumptions'!$G$25:$X$25) -> 0.01 | Q40: =LOOKUP(Q3,'Operating assumptions'!$G$19:$X$19,'Operating assumptions'!$G$25:$X$25) -> 0.01 | R40: =LOOKUP(R3,'Operating assumptions'!$G$19:$X$19,'Operating assumptions'!$G$25:$X$25) -> 0.015 | S40: =LOOKUP(S3,'Operating assumptions'!$G$19:$X$19,'Operating assumptions'!$G$25:$X$25) -> 0.015 | T40: =LOOKUP(T3,'Operating assumptions'!$G$19:$X$19,'Operating assumptions'!$G$25:$X$25) -> 0.015 | U40: =LOOKUP(U3,'Operating assumptions'!$G$19:$X$19,'Operating assumptions'!$G$25:$X$25) -> 0.015 | V40: =LOOKUP(V3,'Operating assumptions'!$G$19:$X$19,'Operating assumptions'!$G$25:$X$25) -> 0.015 | W40: =LOOKUP(W3,'Operating assumptions'!$G$19:$X$19,'Operating assumptions'!$G$25:$X$25) -> 0.015 | X40: =LOOKUP(X3,'Operating assumptions'!$G$19:$X$19,'Operating assumptions'!$G$25:$X$25) -> 0.015 | Y40: =LOOKUP(Y3,'Operating assumptions'!$G$19:$X$19,'Operating assumptions'!$G$25:$X$25) -> 0.015 | Z40: =LOOKUP(Z3,'Operating assumptions'!$G$19:$X$19,'Operating assumptions'!$G$25:$X$25) -> 0.015 | AA40: =LOOKUP(AA3,'Operating assumptions'!$G$19:$X$19,'Operating assumptions'!$G$25:$X$25) -> 0.015 | AB40: =LOOKUP(AB3,'Operating assumptions'!$G$19:$X$19,'Operating assumptions'!$G$25:$X$25) -> 0.015 | AC40: =LOOKUP(AC3,'Operating assumptions'!$G$19:$X$19,'Operating assumptions'!$G$25:$X$25) -> 0.015 | AD40: =LOOKUP(AD3,'Operating assumptions'!$G$19:$X$19,'Operating assumptions'!$G$25:$X$25) -> 0.015 | AE40: =LOOKUP(AE3,'Operating assumptions'!$G$19:$X$19,'Operating assumptions'!$G$25:$X$25) -> 0.015 | AF40: =LOOKUP(AF3,'Operating assumptions'!$G$19:$X$19,'Operating assumptions'!$G$25:$X$25) -> 0.015 | AG40: =LOOKUP(AG3,'Operating assumptions'!$G$19:$X$19,'Operating assumptions'!$G$25:$X$25) -> 0.015 | AH40: =LOOKUP(AH3,'Operating assumptions'!$G$19:$X$19,'Operating assumptions'!$G$25:$X$25) -> 0.015 | AI40: =LOOKUP(AI3,'Operating assumptions'!$G$19:$X$19,'Operating assumptions'!$G$25:$X$25) -> 0.015 | AJ40: =LOOKUP(AJ3,'Operating assumptions'!$G$19:$X$19,'Operating assumptions'!$G$25:$X$25) -> 0.015 | AK40: =LOOKUP(AK3,'Operating assumptions'!$G$19:$X$19,'Operating assumptions'!$G$25:$X$25) -> 0.015 | AL40: =LOOKUP(AL3,'Operating assumptions'!$G$19:$X$19,'Operating assumptions'!$G$25:$X$25) -> 0.015 | AM40: =LOOKUP(AM3,'Operating assumptions'!$G$19:$X$19,'Operating assumptions'!$G$25:$X$25) -> 0.015 | AN40: =LOOKUP(AN3,'Operating assumptions'!$G$19:$X$19,'Operating assumptions'!$G$25:$X$25) -> 0.015 | AO40: =LOOKUP(AO3,'Operating assumptions'!$G$19:$X$19,'Operating assumptions'!$G$25:$X$25) -> 0.015 | AP40: =LOOKUP(AP3,'Operating assumptions'!$G$19:$X$19,'Operating assumptions'!$G$25:$X$25) -> 0.02 | AQ40: =LOOKUP(AQ3,'Operating assumptions'!$G$19:$X$19,'Operating assumptions'!$G$25:$X$25) -> 0.02 | AR40: =LOOKUP(AR3,'Operating assumptions'!$G$19:$X$19,'Operating assumptions'!$G$25:$X$25) -> 0.02 | AS40: =LOOKUP(AS3,'Operating assumptions'!$G$19:$X$19,'Operating assumptions'!$G$25:$X$25) -> 0.02 | AT40: =LOOKUP(AT3,'Operating assumptions'!$G$19:$X$19,'Operating assumptions'!$G$25:$X$25) -> 0.02 | AU40: =LOOKUP(AU3,'Operating assumptions'!$G$19:$X$19,'Operating assumptions'!$G$25:$X$25) -> 0.02 | AV40: =LOOKUP(AV3,'Operating assumptions'!$G$19:$X$19,'Operating assumptions'!$G$25:$X$25) -> 0.02 | AW40: =LOOKUP(AW3,'Operating assumptions'!$G$19:$X$19,'Operating assumptions'!$G$25:$X$25) -> 0.02 | AX40: =LOOKUP(AX3,'Operating assumptions'!$G$19:$X$19,'Operating assumptions'!$G$25:$X$25) -> 0.02 | AY40: =LOOKUP(AY3,'Operating assumptions'!$G$19:$X$19,'Operating assumptions'!$G$25:$X$25) -> 0.02 | AZ40: =LOOKUP(AZ3,'Operating assumptions'!$G$19:$X$19,'Operating assumptions'!$G$25:$X$25) -> 0.02 | BA40: =LOOKUP(BA3,'Operating assumptions'!$G$19:$X$19,'Operating assumptions'!$G$25:$X$25) -> 0.02 | BB40: =LOOKUP(BB3,'Operating assumptions'!$G$19:$X$19,'Operating assumptions'!$G$25:$X$25) -> 0.02 | BC40: =LOOKUP(BC3,'Operating assumptions'!$G$19:$X$19,'Operating assumptions'!$G$25:$X$25) -> 0.02 | BD40: =LOOKUP(BD3,'Operating assumptions'!$G$19:$X$19,'Operating assumptions'!$G$25:$X$25) -> 0.02 | BE40: =LOOKUP(BE3,'Operating assumptions'!$G$19:$X$19,'Operating assumptions'!$G$25:$X$25) -> 0.02 | BF40: =LOOKUP(BF3,'Operating assumptions'!$G$19:$X$19,'Operating assumptions'!$G$25:$X$25) -> 0.02 | BG40: =LOOKUP(BG3,'Operating assumptions'!$G$19:$X$19,'Operating assumptions'!$G$25:$X$25) -> 0.02 | BH40: =LOOKUP(BH3,'Operating assumptions'!$G$19:$X$19,'Operating assumptions'!$G$25:$X$25) -> 0.02 | BI40: =LOOKUP(BI3,'Operating assumptions'!$G$19:$X$19,'Operating assumptions'!$G$25:$X$25) -> 0.02 | BJ40: =LOOKUP(BJ3,'Operating assumptions'!$G$19:$X$19,'Operating assumptions'!$G$25:$X$25) -> 0.02 | BK40: =LOOKUP(BK3,'Operating assumptions'!$G$19:$X$19,'Operating assumptions'!$G$25:$X$25) -> 0.02 | BL40: =LOOKUP(BL3,'Operating assumptions'!$G$19:$X$19,'Operating assumptions'!$G$25:$X$25) -> 0.02 | BM40: =LOOKUP(BM3,'Operating assumptions'!$G$19:$X$19,'Operating assumptions'!$G$25:$X$25) -> 0.02 | BN40: =LOOKUP(BN3,'Operating assumptions'!$G$19:$X$19,'Operating assumptions'!$G$25:$X$25) -> 0.02 | BO40: =LOOKUP(BO3,'Operating assumptions'!$G$19:$X$19,'Operating assumptions'!$G$25:$X$25) -> 0.02 | BP40: =LOOKUP(BP3,'Operating assumptions'!$G$19:$X$19,'Operating assumptions'!$G$25:$X$25) -> 0.02 | BQ40: =LOOKUP(BQ3,'Operating assumptions'!$G$19:$X$19,'Operating assumptions'!$G$25:$X$25) -> 0.02 | BR40: =LOOKUP(BR3,'Operating assumptions'!$G$19:$X$19,'Operating assumptions'!$G$25:$X$25) -> 0.02 | BS40: =LOOKUP(BS3,'Operating assumptions'!$G$19:$X$19,'Operating assumptions'!$G$25:$X$25) -> 0.02 | BT40: =LOOKUP(BT3,'Operating assumptions'!$G$19:$X$19,'Operating assumptions'!$G$25:$X$25) -> 0.02 | BU40: =LOOKUP(BU3,'Operating assumptions'!$G$19:$X$19,'Operating assumptions'!$G$25:$X$25) -> 0.02 | BV40: =LOOKUP(BV3,'Operating assumptions'!$G$19:$X$19,'Operating assumptions'!$G$25:$X$25) -> 0.02 | BW40: =LOOKUP(BW3,'Operating assumptions'!$G$19:$X$19,'Operating assumptions'!$G$25:$X$25) -> 0.02 | BX40: =LOOKUP(BX3,'Operating assumptions'!$G$19:$X$19,'Operating assumptions'!$G$25:$X$25) -> 0.02 | BY40: =LOOKUP(BY3,'Operating assumptions'!$G$19:$X$19,'Operating assumptions'!$G$25:$X$25) -> 0.02 | BZ40: =LOOKUP(BZ3,'Operating assumptions'!$G$19:$X$19,'Operating assumptions'!$G$25:$X$25) -> 0.02 | CA40: =LOOKUP(CA3,'Operating assumptions'!$G$19:$X$19,'Operating assumptions'!$G$25:$X$25) -> 0.02 | CB40: =LOOKUP(CB3,'Operating assumptions'!$G$19:$X$19,'Operating assumptions'!$G$25:$X$25) -> 0.02 | CC40: =LOOKUP(CC3,'Operating assumptions'!$G$19:$X$19,'Operating assumptions'!$G$25:$X$25) -> 0.02 | CD40: =LOOKUP(CD3,'Operating assumptions'!$G$19:$X$19,'Operating assumptions'!$G$25:$X$25) -> 0.02 | CE40: =LOOKUP(CE3,'Operating assumptions'!$G$19:$X$19,'Operating assumptions'!$G$25:$X$25) -> 0.02 | CF40: =LOOKUP(CF3,'Operating assumptions'!$G$19:$X$19,'Operating assumptions'!$G$25:$X$25) -> 0.02 | CG40: =LOOKUP(CG3,'Operating assumptions'!$G$19:$X$19,'Operating assumptions'!$G$25:$X$25) -> 0.02 | CH40: =LOOKUP(CH3,'Operating assumptions'!$G$19:$X$19,'Operating assumptions'!$G$25:$X$25) -> 0.02 | CI40: =LOOKUP(CI3,'Operating assumptions'!$G$19:$X$19,'Operating assumptions'!$G$25:$X$25) -> 0.02 | CJ40: =LOOKUP(CJ3,'Operating assumptions'!$G$19:$X$19,'Operating assumptions'!$G$25:$X$25) -> 0.02 | CK40: =LOOKUP(CK3,'Operating assumptions'!$G$19:$X$19,'Operating assumptions'!$G$25:$X$25) -> 0.02 | CL40: =LOOKUP(CL3,'Operating assumptions'!$G$19:$X$19,'Operating assumptions'!$G$25:$X$25) -> 0.02 | CM40: =LOOKUP(CM3,'Operating assumptions'!$G$19:$X$19,'Operating assumptions'!$G$25:$X$25) -> 0.02 | CN40: =LOOKUP(CN3,'Operating assumptions'!$G$19:$X$19,'Operating assumptions'!$G$25:$X$25) -> 0.02 | CO40: =LOOKUP(CO3,'Operating assumptions'!$G$19:$X$19,'Operating assumptions'!$G$25:$X$25) -> 0.02 | CP40: =LOOKUP(CP3,'Operating assumptions'!$G$19:$X$19,'Operating assumptions'!$G$25:$X$25) -> 0.02 | CQ40: =LOOKUP(CQ3,'Operating assumptions'!$G$19:$X$19,'Operating assumptions'!$G$25:$X$25) -> 0.02 | CR40: =LOOKUP(CR3,'Operating assumptions'!$G$19:$X$19,'Operating assumptions'!$G$25:$X$25) -> 0.02 | CS40: =LOOKUP(CS3,'Operating assumptions'!$G$19:$X$19,'Operating assumptions'!$G$25:$X$25) -> 0.02 | CT40: =LOOKUP(CT3,'Operating assumptions'!$G$19:$X$19,'Operating assumptions'!$G$25:$X$25) -> 0.02 | CU40: =LOOKUP(CU3,'Operating assumptions'!$G$19:$X$19,'Operating assumptions'!$G$25:$X$25) -> 0.02 | CV40: =LOOKUP(CV3,'Operating assumptions'!$G$19:$X$19,'Operating assumptions'!$G$25:$X$25) -> 0.02 | CW40: =LOOKUP(CW3,'Operating assumptions'!$G$19:$X$19,'Operating assumptions'!$G$25:$X$25) -> 0.02 | CX40: =LOOKUP(CX3,'Operating assumptions'!$G$19:$X$19,'Operating assumptions'!$G$25:$X$25) -> 0.02 | CY40: =LOOKUP(CY3,'Operating assumptions'!$G$19:$X$19,'Operating assumptions'!$G$25:$X$25) -> 0.02 | CZ40: =LOOKUP(CZ3,'Operating assumptions'!$G$19:$X$19,'Operating assumptions'!$G$25:$X$25) -> 0.02 | DA40: =LOOKUP(DA3,'Operating assumptions'!$G$19:$X$19,'Operating assumptions'!$G$25:$X$25) -> 0.02 | DB40: =LOOKUP(DB3,'Operating assumptions'!$G$19:$X$19,'Operating assumptions'!$G$25:$X$25) -> 0.02 | DC40: =LOOKUP(DC3,'Operating assumptions'!$G$19:$X$19,'Operating assumptions'!$G$25:$X$25) -> 0.02 | DD40: =LOOKUP(DD3,'Operating assumptions'!$G$19:$X$19,'Operating assumptions'!$G$25:$X$25) -> 0.02 | DE40: =LOOKUP(DE3,'Operating assumptions'!$G$19:$X$19,'Operating assumptions'!$G$25:$X$25) -> 0.02 | DF40: =LOOKUP(DF3,'Operating assumptions'!$G$19:$X$19,'Operating assumptions'!$G$25:$X$25) -> 0.02 | DG40: =LOOKUP(DG3,'Operating assumptions'!$G$19:$X$19,'Operating assumptions'!$G$25:$X$25) -> 0.02 | DH40: =LOOKUP(DH3,'Operating assumptions'!$G$19:$X$19,'Operating assumptions'!$G$25:$X$25) -> 0.02 | DI40: =LOOKUP(DI3,'Operating assumptions'!$G$19:$X$19,'Operating assumptions'!$G$25:$X$25) -> 0.02 | DJ40: =LOOKUP(DJ3,'Operating assumptions'!$G$19:$X$19,'Operating assumptions'!$G$25:$X$25) -> 0.02 | DK40: =LOOKUP(DK3,'Operating assumptions'!$G$19:$X$19,'Operating assumptions'!$G$25:$X$25) -> 0.02 | DL40: =LOOKUP(DL3,'Operating assumptions'!$G$19:$X$19,'Operating assumptions'!$G$25:$X$25) -> 0.02 | DM40: =LOOKUP(DM3,'Operating assumptions'!$G$19:$X$19,'Operating assumptions'!$G$25:$X$25) -> 0.02 | DN40: =LOOKUP(DN3,'Operating assumptions'!$G$19:$X$19,'Operating assumptions'!$G$25:$X$25) -> 0.02 | DO40: =LOOKUP(DO3,'Operating assumptions'!$G$19:$X$19,'Operating assumptions'!$G$25:$X$25) -> 0.02 | DP40: =LOOKUP(DP3,'Operating assumptions'!$G$19:$X$19,'Operating assumptions'!$G$25:$X$25) -> 0.02 | DQ40: =LOOKUP(DQ3,'Operating assumptions'!$G$19:$X$19,'Operating assumptions'!$G$25:$X$25) -> 0.02 | DR40: =LOOKUP(DR3,'Operating assumptions'!$G$19:$X$19,'Operating assumptions'!$G$25:$X$25) -> 0.02 | DS40: =LOOKUP(DS3,'Operating assumptions'!$G$19:$X$19,'Operating assumptions'!$G$25:$X$25) -> 0.02 | DT40: =LOOKUP(DT3,'Operating assumptions'!$G$19:$X$19,'Operating assumptions'!$G$25:$X$25) -> 0.02 | DU40: =LOOKUP(DU3,'Operating assumptions'!$G$19:$X$19,'Operating assumptions'!$G$25:$X$25) -> 0.02 | DV40: =LOOKUP(DV3,'Operating assumptions'!$G$19:$X$19,'Operating assumptions'!$G$25:$X$25) -> 0.02 | DW40: =LOOKUP(DW3,'Operating assumptions'!$G$19:$X$19,'Operating assumptions'!$G$25:$X$25) -> 0.02 | DX40: =LOOKUP(DX3,'Operating assumptions'!$G$19:$X$19,'Operating assumptions'!$G$25:$X$25) -> 0.02 | DY40: =LOOKUP(DY3,'Operating assumptions'!$G$19:$X$19,'Operating assumptions'!$G$25:$X$25) -> 0.02 | DZ40: =LOOKUP(DZ3,'Operating assumptions'!$G$19:$X$19,'Operating assumptions'!$G$25:$X$25) -> 0.02 | EA40: =LOOKUP(EA3,'Operating assumptions'!$G$19:$X$19,'Operating assumptions'!$G$25:$X$25) -> 0.02 | EB40: =LOOKUP(EB3,'Operating assumptions'!$G$19:$X$19,'Operating assumptions'!$G$25:$X$25) -> 0.02 | EC40: =LOOKUP(EC3,'Operating assumptions'!$G$19:$X$19,'Operating assumptions'!$G$25:$X$25) -> 0.02 | ED40: =LOOKUP(ED3,'Operating assumptions'!$G$19:$X$19,'Operating assumptions'!$G$25:$X$25) -> 0.02 | EE40: =LOOKUP(EE3,'Operating assumptions'!$G$19:$X$19,'Operating assumptions'!$G$25:$X$25) -> 0.02 | EF40: =LOOKUP(EF3,'Operating assumptions'!$G$19:$X$19,'Operating assumptions'!$G$25:$X$25) -> 0.02 | EG40: =LOOKUP(EG3,'Operating assumptions'!$G$19:$X$19,'Operating assumptions'!$G$25:$X$25) -> 0.02 | EH40: =LOOKUP(EH3,'Operating assumptions'!$G$19:$X$19,'Operating assumptions'!$G$25:$X$25) -> 0.02 | EI40: =LOOKUP(EI3,'Operating assumptions'!$G$19:$X$19,'Operating assumptions'!$G$25:$X$25) -> 0.02 | EJ40: =LOOKUP(EJ3,'Operating assumptions'!$G$19:$X$19,'Operating assumptions'!$G$25:$X$25) -> 0.02 | EK40: =LOOKUP(EK3,'Operating assumptions'!$G$19:$X$19,'Operating assumptions'!$G$25:$X$25) -> 0.02 | EL40: =LOOKUP(EL3,'Operating assumptions'!$G$19:$X$19,'Operating assumptions'!$G$25:$X$25) -> 0.02 | EM40: =LOOKUP(EM3,'Operating assumptions'!$G$19:$X$19,'Operating assumptions'!$G$25:$X$25) -> 0.02 | EN40: =LOOKUP(EN3,'Operating assumptions'!$G$19:$X$19,'Operating assumptions'!$G$25:$X$25) -> 0.02 | EO40: =LOOKUP(EO3,'Operating assumptions'!$G$19:$X$19,'Operating assumptions'!$G$25:$X$25) -> 0.02 | EP40: =LOOKUP(EP3,'Operating assumptions'!$G$19:$X$19,'Operating assumptions'!$G$25:$X$25) -> 0.02 | EQ40: =LOOKUP(EQ3,'Operating assumptions'!$G$19:$X$19,'Operating assumptions'!$G$25:$X$25) -> 0.02 | ER40: =LOOKUP(ER3,'Operating assumptions'!$G$19:$X$19,'Operating assumptions'!$G$25:$X$25) -> 0.02 | ES40: =LOOKUP(ES3,'Operating assumptions'!$G$19:$X$19,'Operating assumptions'!$G$25:$X$25) -> 0.02 | ET40: =LOOKUP(ET3,'Operating assumptions'!$G$19:$X$19,'Operating assumptions'!$G$25:$X$25) -> 0.02 | EU40: =LOOKUP(EU3,'Operating assumptions'!$G$19:$X$19,'Operating assumptions'!$G$25:$X$25) -> 0.02 | EV40: =LOOKUP(EV3,'Operating assumptions'!$G$19:$X$19,'Operating assumptions'!$G$25:$X$25) -> 0.02 | EW40: =LOOKUP(EW3,'Operating assumptions'!$G$19:$X$19,'Operating assumptions'!$G$25:$X$25) -> 0.02 | EX40: =LOOKUP(EX3,'Operating assumptions'!$G$19:$X$19,'Operating assumptions'!$G$25:$X$25) -> 0.02 | EY40: =LOOKUP(EY3,'Operating assumptions'!$G$19:$X$19,'Operating assumptions'!$G$25:$X$25) -> 0.02 | EZ40: =LOOKUP(EZ3,'Operating assumptions'!$G$19:$X$19,'Operating assumptions'!$G$25:$X$25) -> 0.02 | FA40: =LOOKUP(FA3,'Operating assumptions'!$G$19:$X$19,'Operating assumptions'!$G$25:$X$25) -> 0.02 | FB40: =LOOKUP(FB3,'Operating assumptions'!$G$19:$X$19,'Operating assumptions'!$G$25:$X$25) -> 0.02 | FC40: =LOOKUP(FC3,'Operating assumptions'!$G$19:$X$19,'Operating assumptions'!$G$25:$X$25) -> 0.02 | FD40: =LOOKUP(FD3,'Operating assumptions'!$G$19:$X$19,'Operating assumptions'!$G$25:$X$25) -> 0.02 | FE40: =LOOKUP(FE3,'Operating assumptions'!$G$19:$X$19,'Operating assumptions'!$G$25:$X$25) -> 0.02 | FF40: =LOOKUP(FF3,'Operating assumptions'!$G$19:$X$19,'Operating assumptions'!$G$25:$X$25) -> 0.02 | FG40: =LOOKUP(FG3,'Operating assumptions'!$G$19:$X$19,'Operating assumptions'!$G$25:$X$25) -> 0.02 | FH40: =LOOKUP(FH3,'Operating assumptions'!$G$19:$X$19,'Operating assumptions'!$G$25:$X$25) -> 0.02 | FI40: =LOOKUP(FI3,'Operating assumptions'!$G$19:$X$19,'Operating assumptions'!$G$25:$X$25) -> 0.02 | FJ40: =LOOKUP(FJ3,'Operating assumptions'!$G$19:$X$19,'Operating assumptions'!$G$25:$X$25) -> 0.02 | FK40: =LOOKUP(FK3,'Operating assumptions'!$G$19:$X$19,'Operating assumptions'!$G$25:$X$25) -> 0.02 | FL40: =LOOKUP(FL3,'Operating assumptions'!$G$19:$X$19,'Operating assumptions'!$G$25:$X$25) -> 0.02 | FM40: =LOOKUP(FM3,'Operating assumptions'!$G$19:$X$19,'Operating assumptions'!$G$25:$X$25) -> 0.02 | FN40: =LOOKUP(FN3,'Operating assumptions'!$G$19:$X$19,'Operating assumptions'!$G$25:$X$25) -> 0.02 | FO40: =LOOKUP(FO3,'Operating assumptions'!$G$19:$X$19,'Operating assumptions'!$G$25:$X$25) -> 0.02 | FP40: =LOOKUP(FP3,'Operating assumptions'!$G$19:$X$19,'Operating assumptions'!$G$25:$X$25) -> 0.02 | FQ40: =LOOKUP(FQ3,'Operating assumptions'!$G$19:$X$19,'Operating assumptions'!$G$25:$X$25) -> 0.02 | FR40: =LOOKUP(FR3,'Operating assumptions'!$G$19:$X$19,'Operating assumptions'!$G$25:$X$25) -> 0.02 | FS40: =LOOKUP(FS3,'Operating assumptions'!$G$19:$X$19,'Operating assumptions'!$G$25:$X$25) -> 0.02 | FT40: =LOOKUP(FT3,'Operating assumptions'!$G$19:$X$19,'Operating assumptions'!$G$25:$X$25) -> 0.02 | FU40: =LOOKUP(FU3,'Operating assumptions'!$G$19:$X$19,'Operating assumptions'!$G$25:$X$25) -> 0.02 | FV40: =LOOKUP(FV3,'Operating assumptions'!$G$19:$X$19,'Operating assumptions'!$G$25:$X$25) -> 0.02 | FW40: =LOOKUP(FW3,'Operating assumptions'!$G$19:$X$19,'Operating assumptions'!$G$25:$X$25) -> 0.02 | FX40: =LOOKUP(FX3,'Operating assumptions'!$G$19:$X$19,'Operating assumptions'!$G$25:$X$25) -> 0.02 | FY40: =LOOKUP(FY3,'Operating assumptions'!$G$19:$X$19,'Operating assumptions'!$G$25:$X$25) -> 0.02 | FZ40: =LOOKUP(FZ3,'Operating assumptions'!$G$19:$X$19,'Operating assumptions'!$G$25:$X$25) -> 0.02 | GA40: =LOOKUP(GA3,'Operating assumptions'!$G$19:$X$19,'Operating assumptions'!$G$25:$X$25) -> 0.02 | GB40: =LOOKUP(GB3,'Operating assumptions'!$G$19:$X$19,'Operating assumptions'!$G$25:$X$25) -> 0.02 | GC40: =LOOKUP(GC3,'Operating assumptions'!$G$19:$X$19,'Operating assumptions'!$G$25:$X$25) -> 0.02 | GD40: =LOOKUP(GD3,'Operating assumptions'!$G$19:$X$19,'Operating assumptions'!$G$25:$X$25) -> 0.02 | GE40: =LOOKUP(GE3,'Operating assumptions'!$G$19:$X$19,'Operating assumptions'!$G$25:$X$25) -> 0.02 | GF40: =LOOKUP(GF3,'Operating assumptions'!$G$19:$X$19,'Operating assumptions'!$G$25:$X$25) -> 0.02 | GG40: =LOOKUP(GG3,'Operating assumptions'!$G$19:$X$19,'Operating assumptions'!$G$25:$X$25) -> 0.02 | GH40: =LOOKUP(GH3,'Operating assumptions'!$G$19:$X$19,'Operating assumptions'!$G$25:$X$25) -> 0.02 | GI40: =LOOKUP(GI3,'Operating assumptions'!$G$19:$X$19,'Operating assumptions'!$G$25:$X$25) -> 0.02 | GJ40: =LOOKUP(GJ3,'Operating assumptions'!$G$19:$X$19,'Operating assumptions'!$G$25:$X$25) -> 0.02 | GK40: =LOOKUP(GK3,'Operating assumptions'!$G$19:$X$19,'Operating assumptions'!$G$25:$X$25) -> 0.02 | GL40: =LOOKUP(GL3,'Operating assumptions'!$G$19:$X$19,'Operating assumptions'!$G$25:$X$25) -> 0.02 | GM40: =LOOKUP(GM3,'Operating assumptions'!$G$19:$X$19,'Operating assumptions'!$G$25:$X$25) -> 0.02 | GN40: =LOOKUP(GN3,'Operating assumptions'!$G$19:$X$19,'Operating assumptions'!$G$25:$X$25) -> 0.02 | GO40: =LOOKUP(GO3,'Operating assumptions'!$G$19:$X$19,'Operating assumptions'!$G$25:$X$25) -> 0.02 | GP40: =LOOKUP(GP3,'Operating assumptions'!$G$19:$X$19,'Operating assumptions'!$G$25:$X$25) -> 0.02 | GQ40: =LOOKUP(GQ3,'Operating assumptions'!$G$19:$X$19,'Operating assumptions'!$G$25:$X$25) -> 0.02 | GR40: =LOOKUP(GR3,'Operating assumptions'!$G$19:$X$19,'Operating assumptions'!$G$25:$X$25) -> 0.02 | GS40: =LOOKUP(GS3,'Operating assumptions'!$G$19:$X$19,'Operating assumptions'!$G$25:$X$25) -> 0.02 | GT40: =LOOKUP(GT3,'Operating assumptions'!$G$19:$X$19,'Operating assumptions'!$G$25:$X$25) -> 0.02 | GU40: =LOOKUP(GU3,'Operating assumptions'!$G$19:$X$19,'Operating assumptions'!$G$25:$X$25) -> 0.02 | GV40: =LOOKUP(GV3,'Operating assumptions'!$G$19:$X$19,'Operating assumptions'!$G$25:$X$25) -> 0.02 | GW40: =LOOKUP(GW3,'Operating assumptions'!$G$19:$X$19,'Operating assumptions'!$G$25:$X$25) -> 0.02 | GX40: =LOOKUP(GX3,'Operating assumptions'!$G$19:$X$19,'Operating assumptions'!$G$25:$X$25) -> 0.02 | GY40: =LOOKUP(GY3,'Operating assumptions'!$G$19:$X$19,'Operating assumptions'!$G$25:$X$25) -> 0.02 | GZ40: =LOOKUP(GZ3,'Operating assumptions'!$G$19:$X$19,'Operating assumptions'!$G$25:$X$25) -> 0.02 | HA40: =LOOKUP(HA3,'Operating assumptions'!$G$19:$X$19,'Operating assumptions'!$G$25:$X$25) -> 0.02 | HB40: =LOOKUP(HB3,'Operating assumptions'!$G$19:$X$19,'Operating assumptions'!$G$25:$X$25) -> 0.02 | HC40: =LOOKUP(HC3,'Operating assumptions'!$G$19:$X$19,'Operating assumptions'!$G$25:$X$25) -> 0.02 | HD40: =LOOKUP(HD3,'Operating assumptions'!$G$19:$X$19,'Operating assumptions'!$G$25:$X$25) -> 0.02 | HE40: =LOOKUP(HE3,'Operating assumptions'!$G$19:$X$19,'Operating assumptions'!$G$25:$X$25) -> 0.02 | HF40: =LOOKUP(HF3,'Operating assumptions'!$G$19:$X$19,'Operating assumptions'!$G$25:$X$25) -> 0.02 | HG40: =LOOKUP(HG3,'Operating assumptions'!$G$19:$X$19,'Operating assumptions'!$G$25:$X$25) -> 0.02 | HH40: =LOOKUP(HH3,'Operating assumptions'!$G$19:$X$19,'Operating assumptions'!$G$25:$X$25) -> 0.02 | HI40: =LOOKUP(HI3,'Operating assumptions'!$G$19:$X$19,'Operating assumptions'!$G$25:$X$25) -> 0.02 | HJ40: =LOOKUP(HJ3,'Operating assumptions'!$G$19:$X$19,'Operating assumptions'!$G$25:$X$25) -> 0.02 | HK40: =LOOKUP(HK3,'Operating assumptions'!$G$19:$X$19,'Operating assumptions'!$G$25:$X$25) -> 0.02 | HL40: =LOOKUP(HL3,'Operating assumptions'!$G$19:$X$19,'Operating assumptions'!$G$25:$X$25) -> 0.02 | HM40: =LOOKUP(HM3,'Operating assumptions'!$G$19:$X$19,'Operating assumptions'!$G$25:$X$25) -> 0.02 | HN40: =LOOKUP(HN3,'Operating assumptions'!$G$19:$X$19,'Operating assumptions'!$G$25:$X$25) -> 0.02 | HO40: =LOOKUP(HO3,'Operating assumptions'!$G$19:$X$19,'Operating assumptions'!$G$25:$X$25) -> 0.02 | HP40: =LOOKUP(HP3,'Operating assumptions'!$G$19:$X$19,'Operating assumptions'!$G$25:$X$25) -> 0.02 | HQ40: =LOOKUP(HQ3,'Operating assumptions'!$G$19:$X$19,'Operating assumptions'!$G$25:$X$25) -> 0.02 | HR40: =LOOKUP(HR3,'Operating assumptions'!$G$19:$X$19,'Operating assumptions'!$G$25:$X$25) -> 0.02 | HS40: =LOOKUP(HS3,'Operating assumptions'!$G$19:$X$19,'Operating assumptions'!$G$25:$X$25) -> 0.02 | HT40: =LOOKUP(HT3,'Operating assumptions'!$G$19:$X$19,'Operating assumptions'!$G$25:$X$25) -> 0.02 | HU40: =LOOKUP(HU3,'Operating assumptions'!$G$19:$X$19,'Operating assumptions'!$G$25:$X$25) -> 0.02 | HV40: =LOOKUP(HV3,'Operating assumptions'!$G$19:$X$19,'Operating assumptions'!$G$25:$X$25) -> 0.02 | HW40: =LOOKUP(HW3,'Operating assumptions'!$G$19:$X$19,'Operating assumptions'!$G$25:$X$25) -> 0.02 | HX40: =LOOKUP(HX3,'Operating assumptions'!$G$19:$X$19,'Operating assumptions'!$G$25:$X$25) -> 0.02 | HY40: =LOOKUP(HY3,'Operating assumptions'!$G$19:$X$19,'Operating assumptions'!$G$25:$X$25) -> 0.02 | HZ40: =LOOKUP(HZ3,'Operating assumptions'!$G$19:$X$19,'Operating assumptions'!$G$25:$X$25) -> 0.02 | IA40: =LOOKUP(IA3,'Operating assumptions'!$G$19:$X$19,'Operating assumptions'!$G$25:$X$25) -> 0.02 | IB40: =LOOKUP(IB3,'Operating assumptions'!$G$19:$X$19,'Operating assumptions'!$G$25:$X$25) -> 0.02 | IC40: =LOOKUP(IC3,'Operating assumptions'!$G$19:$X$19,'Operating assumptions'!$G$25:$X$25) -> 0.02 | ID40: =LOOKUP(ID3,'Operating assumptions'!$G$19:$X$19,'Operating assumptions'!$G$25:$X$25) -> 0.02 | IE40: =LOOKUP(IE3,'Operating assumptions'!$G$19:$X$19,'Operating assumptions'!$G$25:$X$25) -> 0.02 | IF40: =LOOKUP(IF3,'Operating assumptions'!$G$19:$X$19,'Operating assumptions'!$G$25:$X$25) -> 0.02 | IG40: =LOOKUP(IG3,'Operating assumptions'!$G$19:$X$19,'Operating assumptions'!$G$25:$X$25) -> 0.02 | IH40: =LOOKUP(IH3,'Operating assumptions'!$G$19:$X$19,'Operating assumptions'!$G$25:$X$25) -> 0.02 | II40: =LOOKUP(II3,'Operating assumptions'!$G$19:$X$19,'Operating assumptions'!$G$25:$X$25) -> 0.02 | IJ40: =LOOKUP(IJ3,'Operating assumptions'!$G$19:$X$19,'Operating assumptions'!$G$25:$X$25) -> 0.02 | IK40: =LOOKUP(IK3,'Operating assumptions'!$G$19:$X$19,'Operating assumptions'!$G$25:$X$25) -> 0.02 | IL40: =LOOKUP(IL3,'Operating assumptions'!$G$19:$X$19,'Operating assumptions'!$G$25:$X$25) -> 0.02 | IM40: =LOOKUP(IM3,'Operating assumptions'!$G$19:$X$19,'Operating assumptions'!$G$25:$X$25) -> 0.02 | IN40: =LOOKUP(IN3,'Operating assumptions'!$G$19:$X$19,'Operating assumptions'!$G$25:$X$25) -> 0.02 | IO40: =LOOKUP(IO3,'Operating assumptions'!$G$19:$X$19,'Operating assumptions'!$G$25:$X$25) -> 0.02 | IP40: =LOOKUP(IP3,'Operating assumptions'!$G$19:$X$19,'Operating assumptions'!$G$25:$X$25) -> 0.02 | IQ40: =LOOKUP(IQ3,'Operating assumptions'!$G$19:$X$19,'Operating assumptions'!$G$25:$X$25) -> 0.02 | IR40: =LOOKUP(IR3,'Operating assumptions'!$G$19:$X$19,'Operating assumptions'!$G$25:$X$25) -> 0.02 | IS40: =LOOKUP(IS3,'Operating assumptions'!$G$19:$X$19,'Operating assumptions'!$G$25:$X$25) -> 0.02 | IT40: =LOOKUP(IT3,'Operating assumptions'!$G$19:$X$19,'Operating assumptions'!$G$25:$X$25) -> 0.02 | IU40: =LOOKUP(IU3,'Operating assumptions'!$G$19:$X$19,'Operating assumptions'!$G$25:$X$25) -> 0.02 | IV40: =LOOKUP(IV3,'Operating assumptions'!$G$19:$X$19,'Operating assumptions'!$G$25:$X$25) -> 0.02 | IW40: =LOOKUP(IW3,'Operating assumptions'!$G$19:$X$19,'Operating assumptions'!$G$25:$X$25) -> 0.02 | IX40: =LOOKUP(IX3,'Operating assumptions'!$G$19:$X$19,'Operating assumptions'!$G$25:$X$25) -> 0.02 | IY40: =LOOKUP(IY3,'Operating assumptions'!$G$19:$X$19,'Operating assumptions'!$G$25:$X$25) -> 0.02 | IZ40: =LOOKUP(IZ3,'Operating assumptions'!$G$19:$X$19,'Operating assumptions'!$G$25:$X$25) -> 0.02 | JA40: =LOOKUP(JA3,'Operating assumptions'!$G$19:$X$19,'Operating assumptions'!$G$25:$X$25) -> 0.02 | JB40: =LOOKUP(JB3,'Operating assumptions'!$G$19:$X$19,'Operating assumptions'!$G$25:$X$25) -> 0.02 | JC40: =LOOKUP(JC3,'Operating assumptions'!$G$19:$X$19,'Operating assumptions'!$G$25:$X$25) -> 0.02 | JD40: =LOOKUP(JD3,'Operating assumptions'!$G$19:$X$19,'Operating assumptions'!$G$25:$X$25) -> 0.02 | JE40: =LOOKUP(JE3,'Operating assumptions'!$G$19:$X$19,'Operating assumptions'!$G$25:$X$25) -> 0.02 | JF40: =LOOKUP(JF3,'Operating assumptions'!$G$19:$X$19,'Operating assumptions'!$G$25:$X$25) -> 0.02 | JG40: =LOOKUP(JG3,'Operating assumptions'!$G$19:$X$19,'Operating assumptions'!$G$25:$X$25) -> 0.02 | JH40: =LOOKUP(JH3,'Operating assumptions'!$G$19:$X$19,'Operating assumptions'!$G$25:$X$25) -> 0.02 | JI40: =LOOKUP(JI3,'Operating assumptions'!$G$19:$X$19,'Operating assumptions'!$G$25:$X$25) -> 0.02 | JJ40: =LOOKUP(JJ3,'Operating assumptions'!$G$19:$X$19,'Operating assumptions'!$G$25:$X$25) -> 0.02 | JK40: =LOOKUP(JK3,'Operating assumptions'!$G$19:$X$19,'Operating assumptions'!$G$25:$X$25) -> 0.02 | JL40: =LOOKUP(JL3,'Operating assumptions'!$G$19:$X$19,'Operating assumptions'!$G$25:$X$25) -> 0.02 | JM40: =LOOKUP(JM3,'Operating assumptions'!$G$19:$X$19,'Operating assumptions'!$G$25:$X$25) -> 0.02 | JN40: =LOOKUP(JN3,'Operating assumptions'!$G$19:$X$19,'Operating assumptions'!$G$25:$X$25) -> 0.02 | JO40: =LOOKUP(JO3,'Operating assumptions'!$G$19:$X$19,'Operating assumptions'!$G$25:$X$25) -> 0.02 | JP40: =LOOKUP(JP3,'Operating assumptions'!$G$19:$X$19,'Operating assumptions'!$G$25:$X$25) -> 0.02 | JQ40: =LOOKUP(JQ3,'Operating assumptions'!$G$19:$X$19,'Operating assumptions'!$G$25:$X$25) -> 0.02 | JR40: =LOOKUP(JR3,'Operating assumptions'!$G$19:$X$19,'Operating assumptions'!$G$25:$X$25) -> 0.02 | JS40: =LOOKUP(JS3,'Operating assumptions'!$G$19:$X$19,'Operating assumptions'!$G$25:$X$25) -> 0.02 | JT40: =LOOKUP(JT3,'Operating assumptions'!$G$19:$X$19,'Operating assumptions'!$G$25:$X$25) -> 0.02 | JU40: =LOOKUP(JU3,'Operating assumptions'!$G$19:$X$19,'Operating assumptions'!$G$25:$X$25) -> 0.02 | JV40: =LOOKUP(JV3,'Operating assumptions'!$G$19:$X$19,'Operating assumptions'!$G$25:$X$25) -> 0.02 | JW40: =LOOKUP(JW3,'Operating assumptions'!$G$19:$X$19,'Operating assumptions'!$G$25:$X$25) -> 0.02 | JX40: =LOOKUP(JX3,'Operating assumptions'!$G$19:$X$19,'Operating assumptions'!$G$25:$X$25) -> 0.02 | JY40: =LOOKUP(JY3,'Operating assumptions'!$G$19:$X$19,'Operating assumptions'!$G$25:$X$25) -> 0.02 | JZ40: =LOOKUP(JZ3,'Operating assumptions'!$G$19:$X$19,'Operating assumptions'!$G$25:$X$25) -> 0.02 | KA40: =LOOKUP(KA3,'Operating assumptions'!$G$19:$X$19,'Operating assumptions'!$G$25:$X$25) -> 0.02 | KB40: =LOOKUP(KB3,'Operating assumptions'!$G$19:$X$19,'Operating assumptions'!$G$25:$X$25) -> 0.02 | KC40: =LOOKUP(KC3,'Operating assumptions'!$G$19:$X$19,'Operating assumptions'!$G$25:$X$25) -> 0.02
C41: Periodic inflation | F41: Periodic % | G41: ='Operating assumptions'!G38 -> 2015-01-01 | L41: =(1+L40)^(1/L8)-1 -> 0.0008295381143 | M41: 0.0008295381143 | N41: 0.0008295381143 | O41: 0.0008295381143 | P41: 0.0008295381143 | Q41: 0.0008295381143 | R41: 0.001241487716 | S41: 0.001241487716 | T41: 0.001241487716 | U41: 0.001241487716 | V41: 0.001241487716 | W41: 0.001241487716 | X41: 0.001241487716 | Y41: 0.001241487716 | Z41: 0.001241487716 | AA41: 0.001241487716 | AB41: 0.001241487716 | AC41: 0.001241487716 | AD41: 0.001241487716 | AE41: 0.001241487716 | AF41: 0.001241487716 | AG41: 0.001241487716 | AH41: 0.001241487716 | AI41: 0.001241487716 | AJ41: 0.001241487716 | AK41: 0.001241487716 | AL41: 0.001241487716 | AM41: 0.001241487716 | AN41: 0.001241487716 | AO41: 0.001241487716 | AP41: 0.001651581302 | AQ41: 0.001651581302 | AR41: 0.001651581302 | AS41: 0.001651581302 | AT41: 0.001651581302 | AU41: 0.001651581302 | AV41: 0.001651581302 | AW41: 0.001651581302 | AX41: 0.001651581302 | AY41: 0.001651581302 | AZ41: 0.001651581302 | BA41: 0.001651581302 | BB41: 0.001651581302 | BC41: 0.001651581302 | BD41: 0.001651581302 | BE41: 0.001651581302 | BF41: 0.001651581302 | BG41: 0.001651581302 | BH41: 0.001651581302 | BI41: 0.001651581302 | BJ41: 0.001651581302 | BK41: 0.001651581302 | BL41: 0.001651581302 | BM41: 0.001651581302 | BN41: 0.001651581302 | BO41: 0.001651581302 | BP41: 0.001651581302 | BQ41: 0.001651581302 | BR41: 0.001651581302 | BS41: 0.001651581302 | BT41: 0.001651581302 | BU41: 0.001651581302 | BV41: 0.001651581302 | BW41: 0.001651581302 | BX41: =(1+BX40)^(1/BX8)-1 -> 0.001651581302 | BY41: 0.001651581302 | BZ41: 0.001651581302 | CA41: 0.001651581302 | CB41: 0.001651581302 | CC41: 0.001651581302 | CD41: 0.001651581302 | CE41: 0.001651581302 | CF41: 0.001651581302 | CG41: 0.001651581302 | CH41: 0.001651581302 | CI41: 0.001651581302 | CJ41: 0.001651581302 | CK41: 0.001651581302 | CL41: 0.009950493836 | CM41: 0.009950493836 | CN41: 0.009950493836 | CO41: 0.009950493836 | CP41: 0.009950493836 | CQ41: 0.009950493836 | CR41: 0.009950493836 | CS41: 0.009950493836 | CT41: 0.009950493836 | CU41: 0.009950493836 | CV41: 0.009950493836 | CW41: 0.009950493836 | CX41: 0.009950493836 | CY41: 0.009950493836 | CZ41: 0.009950493836 | DA41: 0.009950493836 | DB41: 0.009950493836 | DC41: 0.009950493836 | DD41: 0.009950493836 | DE41: 0.009950493836 | DF41: 0.009950493836 | DG41: 0.009950493836 | DH41: 0.009950493836 | DI41: 0.009950493836 | DJ41: 0.009950493836 | DK41: 0.009950493836 | DL41: 0.009950493836 | DM41: 0.009950493836 | DN41: 0.009950493836 | DO41: 0.009950493836 | DP41: 0.009950493836 | DQ41: 0.009950493836 | DR41: 0.009950493836 | DS41: 0.009950493836 | DT41: 0.009950493836 | DU41: 0.009950493836 | DV41: 0.009950493836 | DW41: 0.009950493836 | DX41: 0.009950493836 | DY41: 0.009950493836 | DZ41: 0.009950493836 | EA41: 0.009950493836 | EB41: 0.009950493836 | EC41: 0.009950493836 | ED41: 0.009950493836 | EE41: 0.009950493836 | EF41: 0.009950493836 | EG41: 0.009950493836 | EH41: 0.009950493836 | EI41: 0.009950493836 | EJ41: =(1+EJ40)^(1/EJ8)-1 -> 0.009950493836 | EK41: 0.009950493836 | EL41: 0.009950493836 | EM41: 0.009950493836 | EN41: 0.009950493836 | EO41: 0.009950493836 | EP41: 0.009950493836 | EQ41: 0.009950493836 | ER41: 0.009950493836 | ES41: 0.009950493836 | ET41: 0.009950493836 | EU41: 0.009950493836 | EV41: 0.009950493836 | EW41: 0.009950493836 | EX41: 0.009950493836 | EY41: 0.009950493836 | EZ41: 0.009950493836 | FA41: 0.009950493836 | FB41: 0.009950493836 | FC41: 0.009950493836 | FD41: 0.009950493836 | FE41: 0.009950493836 | FF41: 0.009950493836 | FG41: 0.009950493836 | FH41: 0.009950493836 | FI41: 0.009950493836 | FJ41: 0.009950493836 | FK41: 0.009950493836 | FL41: 0.009950493836 | FM41: 0.009950493836 | FN41: 0.009950493836 | FO41: 0.009950493836 | FP41: 0.009950493836 | FQ41: 0.009950493836 | FR41: 0.009950493836 | FS41: 0.009950493836 | FT41: 0.009950493836 | FU41: 0.009950493836 | FV41: 0.009950493836 | FW41: 0.009950493836 | FX41: 0.009950493836 | FY41: 0.009950493836 | FZ41: 0.009950493836 | GA41: 0.009950493836 | GB41: 0.009950493836 | GC41: 0.009950493836 | GD41: 0.009950493836 | GE41: 0.009950493836 | GF41: 0.009950493836 | GG41: 0.009950493836 | GH41: 0.009950493836 | GI41: 0.009950493836 | GJ41: 0.009950493836 | GK41: 0.009950493836 | GL41: 0.009950493836 | GM41: 0.009950493836 | GN41: 0.009950493836 | GO41: 0.009950493836 | GP41: 0.009950493836 | GQ41: 0.009950493836 | GR41: 0.009950493836 | GS41: 0.009950493836 | GT41: 0.009950493836 | GU41: 0.009950493836 | GV41: =(1+GV40)^(1/GV8)-1 -> 0.009950493836 | GW41: 0.009950493836 | GX41: 0.009950493836 | GY41: 0.009950493836 | GZ41: 0.009950493836 | HA41: 0.009950493836 | HB41: 0.009950493836 | HC41: 0.009950493836 | HD41: 0.009950493836 | HE41: 0.009950493836 | HF41: 0.009950493836 | HG41: 0.009950493836 | HH41: 0.009950493836 | HI41: 0.009950493836 | HJ41: 0.009950493836 | HK41: 0.009950493836 | HL41: 0.009950493836 | HM41: 0.009950493836 | HN41: 0.009950493836 | HO41: 0.009950493836 | HP41: 0.009950493836 | HQ41: 0.009950493836 | HR41: 0.009950493836 | HS41: 0.009950493836 | HT41: 0.009950493836 | HU41: 0.009950493836 | HV41: 0.009950493836 | HW41: 0.009950493836 | HX41: 0.009950493836 | HY41: 0.009950493836 | HZ41: 0.009950493836 | IA41: 0.009950493836 | IB41: 0.009950493836 | IC41: 0.009950493836 | ID41: 0.009950493836 | IE41: 0.009950493836 | IF41: 0.009950493836 | IG41: 0.009950493836 | IH41: 0.009950493836 | II41: 0.009950493836 | IJ41: 0.009950493836 | IK41: 0.009950493836 | IL41: 0.009950493836 | IM41: 0.009950493836 | IN41: 0.009950493836 | IO41: 0.009950493836 | IP41: 0.009950493836 | IQ41: 0.009950493836 | IR41: 0.009950493836 | IS41: 0.009950493836 | IT41: 0.009950493836 | IU41: 0.009950493836 | IV41: 0.009950493836 | IW41: 0.009950493836 | IX41: 0.009950493836 | IY41: 0.009950493836 | IZ41: 0.009950493836 | JA41: 0.009950493836 | JB41: 0.009950493836 | JC41: 0.009950493836 | JD41: 0.009950493836 | JE41: 0.009950493836 | JF41: 0.009950493836 | JG41: 0.009950493836 | JH41: =(1+JH40)^(1/JH8)-1 -> 0.009950493836 | JI41: 0.009950493836 | JJ41: 0.009950493836 | JK41: 0.009950493836 | JL41: 0.009950493836 | JM41: 0.009950493836 | JN41: 0.009950493836 | JO41: 0.009950493836 | JP41: 0.009950493836 | JQ41: 0.009950493836 | JR41: 0.009950493836 | JS41: 0.009950493836 | JT41: 0.009950493836 | JU41: 0.009950493836 | JV41: 0.009950493836 | JW41: 0.009950493836 | JX41: 0.009950493836 | JY41: 0.009950493836 | JZ41: 0.009950493836 | KA41: 0.009950493836 | KB41: 0.009950493836 | KC41: 0.009950493836
C42: Inflation index | F42: Rate | K42: 1 | L42: =K42*(1+L41*L18) -> 1 | M42: =L42*(1+M41*M18) -> 1 | N42: 1 | O42: 1 | P42: 1 | Q42: 1 | R42: 1 | S42: 1 | T42: 1 | U42: 1 | V42: 1 | W42: 1 | X42: 1 | Y42: 1 | Z42: 1 | AA42: 1 | AB42: 1 | AC42: 1 | AD42: 1.001241488 | AE42: 1.002484517 | AF42: 1.003729089 | AG42: 1.004975206 | AH42: 1.006222871 | AI42: 1.007472084 | AJ42: 1.008722848 | AK42: 1.009975165 | AL42: 1.011229037 | AM42: 1.012484465 | AN42: 1.013741452 | AO42: 1.015 | AP42: 1.016676355 | AQ42: 1.018355479 | AR42: 1.020037376 | AS42: 1.02172205 | AT42: 1.023409507 | AU42: 1.025099751 | AV42: 1.026792787 | AW42: 1.028488619 | AX42: 1.030187251 | AY42: 1.031888689 | AZ42: 1.033592937 | BA42: 1.0353 | BB42: 1.037009882 | BC42: 1.038722588 | BD42: 1.040438123 | BE42: 1.042156491 | BF42: 1.043877697 | BG42: 1.045601746 | BH42: 1.047328643 | BI42: 1.049058391 | BJ42: 1.050790996 | BK42: 1.052526463 | BL42: 1.054264796 | BM42: 1.056006 | BN42: 1.05775008 | BO42: 1.05949704 | BP42: 1.061246886 | BQ42: 1.062999621 | BR42: 1.064755251 | BS42: 1.066513781 | BT42: 1.068275215 | BU42: 1.070039559 | BV42: 1.071806816 | BW42: 1.073576992 | BX42: =BW42*(1+BX41*BX18) -> 1.075350092 | BY42: 1.07712612 | BZ42: 1.078905081 | CA42: 1.080686981 | CB42: 1.082471823 | CC42: 1.084259613 | CD42: 1.086050356 | CE42: 1.087844057 | CF42: 1.08964072 | CG42: 1.09144035 | CH42: 1.093242952 | CI42: 1.095048532 | CJ42: 1.096857094 | CK42: 1.098668642 | CL42: 1.109600938 | CM42: 1.120642015 | CN42: 1.131792957 | CO42: 1.143054856 | CP42: 1.154428816 | CQ42: 1.165915953 | CR42: 1.177517392 | CS42: 1.189234272 | CT42: 1.20106774 | CU42: 1.213018957 | CV42: 1.225089095 | CW42: 1.237279336 | CX42: 1.249590877 | CY42: 1.262024923 | CZ42: 1.274582694 | DA42: 1.287265421 | DB42: 1.300074348 | DC42: 1.31301073 | DD42: 1.326075835 | DE42: 1.339270945 | DF42: 1.352597352 | DG42: 1.366056363 | DH42: 1.379649299 | DI42: 1.393377491 | DJ42: 1.407242285 | DK42: 1.42124504 | DL42: 1.43538713 | DM42: 1.449669941 | DN42: 1.464094873 | DO42: 1.47866334 | DP42: 1.493376771 | DQ42: 1.508236607 | DR42: 1.523244306 | DS42: 1.538401339 | DT42: 1.553709192 | DU42: 1.569169366 | DV42: 1.584783376 | DW42: 1.600552753 | DX42: 1.616479043 | DY42: 1.632563808 | DZ42: 1.648808624 | EA42: 1.665215084 | EB42: 1.681784797 | EC42: 1.698519386 | ED42: 1.715420493 | EE42: 1.732489774 | EF42: 1.749728903 | EG42: 1.767139569 | EH42: 1.784723481 | EI42: 1.802482361 | EJ42: =EI42*(1+EJ41*EJ18) -> 1.82041795 | EK42: 1.838532008 | EL42: 1.856826309 | EM42: 1.875302648 | EN42: 1.893962835 | EO42: 1.912808701 | EP42: 1.931842092 | EQ42: 1.951064875 | ER42: 1.970478934 | ES42: 1.990086173 | ET42: 2.009888513 | EU42: 2.029887896 | EV42: 2.050086283 | EW42: 2.070485654 | EX42: 2.091088009 | EY42: 2.111895367 | EZ42: 2.132909769 | FA42: 2.154133274 | FB42: 2.175567964 | FC42: 2.19721594 | FD42: 2.219079323 | FE42: 2.241160259 | FF42: 2.26346091 | FG42: 2.285983464 | FH42: 2.308730128 | FI42: 2.331703133 | FJ42: 2.354904731 | FK42: 2.378337196 | FL42: 2.402002825 | FM42: 2.42590394 | FN42: 2.450042882 | FO42: 2.474422018 | FP42: 2.499043739 | FQ42: 2.523910459 | FR42: 2.549024614 | FS42: 2.574388668 | FT42: 2.600005106 | FU42: 2.625876441 | FV42: 2.652005209 | FW42: 2.67839397 | FX42: 2.705045313 | FY42: 2.73196185 | FZ42: 2.759146219 | GA42: 2.786601086 | GB42: 2.814329143 | GC42: 2.842333108 | GD42: 2.870615726 | GE42: 2.89917977 | GF42: 2.928028041 | GG42: 2.957163366 | GH42: 2.986588602 | GI42: 3.016306633 | GJ42: 3.046320374 | GK42: 3.076632766 | GL42: 3.107246781 | GM42: 3.138165421 | GN42: 3.169391717 | GO42: 3.20092873 | GP42: 3.232779551 | GQ42: 3.264947304 | GR42: 3.297435142 | GS42: 3.33024625 | GT42: 3.363383845 | GU42: 3.396851175 | GV42: =GU42*(1+GV41*GV18) -> 3.430651522 | GW42: 3.464788199 | GX42: 3.499264552 | GY42: 3.534083963 | GZ42: 3.569249843 | HA42: 3.604765642 | HB42: 3.64063484 | HC42: 3.676860955 | HD42: 3.713447537 | HE42: 3.750398174 | HF42: 3.787716488 | HG42: 3.825406137 | HH42: 3.863470818 | HI42: 3.90191426 | HJ42: 3.940740234 | HK42: 3.979952545 | HL42: 4.019555039 | HM42: 4.059551596 | HN42: 4.099946139 | HO42: 4.140742628 | HP42: 4.181945062 | HQ42: 4.223557481 | HR42: 4.265583963 | HS42: 4.30802863 | HT42: 4.350895643 | HU42: 4.394189203 | HV42: 4.437913555 | HW42: 4.482072987 | HX42: 4.526671827 | HY42: 4.571714447 | HZ42: 4.617205263 | IA42: 4.663148736 | IB42: 4.709549368 | IC42: 4.75641171 | ID42: 4.803740356 | IE42: 4.851539945 | IF42: 4.899815163 | IG42: 4.948570743 | IH42: 4.997811466 | II42: 5.047542158 | IJ42: 5.097767695 | IK42: 5.148493001 | IL42: 5.199723049 | IM42: 5.251462862 | IN42: 5.30371751 | IO42: 5.356492119 | IP42: 5.409791861 | IQ42: 5.463621961 | IR42: 5.517987698 | IS42: 5.5728944 | IT42: 5.628347452 | IU42: 5.684352288 | IV42: 5.740914401 | IW42: 5.798039334 | IX42: 5.855732689 | IY42: 5.914000121 | IZ42: 5.972847343 | JA42: 6.032280123 | JB42: 6.092304289 | JC42: 6.152925726 | JD42: 6.214150375 | JE42: 6.27598424 | JF42: 6.338433383 | JG42: 6.401503925 | JH42: =JG42*(1+JH41*JH18) -> 6.46520205 | JI42: 6.529534003 | JJ42: 6.594506091 | JK42: 6.660124684 | JL42: 6.726396213 | JM42: 6.793327177 | JN42: 6.860924137 | JO42: 6.929193721 | JP42: 6.99814262 | JQ42: 7.067777595 | JR42: 7.138105473 | JS42: 7.209133147 | JT42: 7.280867582 | JU42: 7.35331581 | JV42: 7.426484934 | JW42: 7.500382126 | JX42: 7.575014632 | JY42: 7.650389769 | JZ42: 7.726514925 | KA42: 7.803397564 | KB42: 7.881045223 | KC42: 7.959465515
C43: Inflation apply switch | F43: Switch | L43: =L20 -> FALSE | M43: FALSE | N43: FALSE | O43: FALSE | P43: FALSE | Q43: FALSE | R43: FALSE | S43: FALSE | T43: FALSE | U43: FALSE | V43: FALSE | W43: FALSE | X43: FALSE | Y43: FALSE | Z43: FALSE | AA43: FALSE | AB43: FALSE | AC43: FALSE | AD43: FALSE | AE43: FALSE | AF43: FALSE | AG43: FALSE | AH43: FALSE | AI43: FALSE | AJ43: FALSE | AK43: FALSE | AL43: FALSE | AM43: FALSE | AN43: FALSE | AO43: FALSE | AP43: FALSE | AQ43: FALSE | AR43: FALSE | AS43: FALSE | AT43: FALSE | AU43: FALSE | AV43: FALSE | AW43: FALSE | AX43: FALSE | AY43: FALSE | AZ43: FALSE | BA43: FALSE | BB43: FALSE | BC43: FALSE | BD43: FALSE | BE43: FALSE | BF43: FALSE | BG43: FALSE | BH43: FALSE | BI43: FALSE | BJ43: FALSE | BK43: FALSE | BL43: FALSE | BM43: FALSE | BN43: FALSE | BO43: FALSE | BP43: FALSE | BQ43: FALSE | BR43: FALSE | BS43: FALSE | BT43: FALSE | BU43: FALSE | BV43: FALSE | BW43: FALSE | BX43: =BX20 -> FALSE | BY43: FALSE | BZ43: FALSE | CA43: FALSE | CB43: FALSE | CC43: FALSE | CD43: FALSE | CE43: FALSE | CF43: FALSE | CG43: FALSE | CH43: FALSE | CI43: FALSE | CJ43: FALSE | CK43: FALSE | CL43: TRUE | CM43: FALSE | CN43: FALSE | CO43: TRUE | CP43: FALSE | CQ43: FALSE | CR43: FALSE | CS43: TRUE | CT43: FALSE | CU43: FALSE | CV43: FALSE | CW43: TRUE | CX43: FALSE | CY43: FALSE | CZ43: FALSE | DA43: TRUE | DB43: FALSE | DC43: FALSE | DD43: FALSE | DE43: TRUE | DF43: FALSE | DG43: FALSE | DH43: FALSE | DI43: TRUE | DJ43: FALSE | DK43: FALSE | DL43: FALSE | DM43: TRUE | DN43: FALSE | DO43: FALSE | DP43: FALSE | DQ43: TRUE | DR43: FALSE | DS43: FALSE | DT43: FALSE | DU43: TRUE | DV43: FALSE | DW43: FALSE | DX43: FALSE | DY43: TRUE | DZ43: FALSE | EA43: FALSE | EB43: FALSE | EC43: TRUE | ED43: FALSE | EE43: FALSE | EF43: FALSE | EG43: TRUE | EH43: FALSE | EI43: FALSE | EJ43: =EJ20 -> FALSE | EK43: TRUE | EL43: FALSE | EM43: FALSE | EN43: FALSE | EO43: TRUE | EP43: FALSE | EQ43: FALSE | ER43: FALSE | ES43: TRUE | ET43: FALSE | EU43: FALSE | EV43: FALSE | EW43: TRUE | EX43: FALSE | EY43: FALSE | EZ43: FALSE | FA43: TRUE | FB43: FALSE | FC43: FALSE | FD43: FALSE | FE43: TRUE | FF43: FALSE | FG43: FALSE | FH43: FALSE | FI43: TRUE | FJ43: FALSE | FK43: FALSE | FL43: FALSE | FM43: TRUE | FN43: FALSE | FO43: FALSE | FP43: FALSE | FQ43: FALSE | FR43: FALSE | FS43: FALSE | FT43: FALSE | FU43: FALSE | FV43: FALSE | FW43: FALSE | FX43: FALSE | FY43: FALSE | FZ43: FALSE | GA43: FALSE | GB43: FALSE | GC43: FALSE | GD43: FALSE | GE43: FALSE | GF43: FALSE | GG43: FALSE | GH43: FALSE | GI43: FALSE | GJ43: FALSE | GK43: FALSE | GL43: FALSE | GM43: FALSE | GN43: FALSE | GO43: FALSE | GP43: FALSE | GQ43: FALSE | GR43: FALSE | GS43: FALSE | GT43: FALSE | GU43: FALSE | GV43: =GV20 -> FALSE | GW43: FALSE | GX43: FALSE | GY43: FALSE | GZ43: FALSE | HA43: FALSE | HB43: FALSE | HC43: FALSE | HD43: FALSE | HE43: FALSE | HF43: FALSE | HG43: FALSE | HH43: FALSE | HI43: FALSE | HJ43: FALSE | HK43: FALSE | HL43: FALSE | HM43: FALSE | HN43: FALSE | HO43: FALSE | HP43: FALSE | HQ43: FALSE | HR43: FALSE | HS43: FALSE | HT43: FALSE | HU43: FALSE | HV43: FALSE | HW43: FALSE | HX43: FALSE | HY43: FALSE | HZ43: FALSE | IA43: FALSE | IB43: FALSE | IC43: FALSE | ID43: FALSE | IE43: FALSE | IF43: FALSE | IG43: FALSE | IH43: FALSE | II43: FALSE | IJ43: FALSE | IK43: FALSE | IL43: FALSE | IM43: FALSE | IN43: FALSE | IO43: FALSE | IP43: FALSE | IQ43: FALSE | IR43: FALSE | IS43: FALSE | IT43: FALSE | IU43: FALSE | IV43: FALSE | IW43: FALSE | IX43: FALSE | IY43: FALSE | IZ43: FALSE | JA43: FALSE | JB43: FALSE | JC43: FALSE | JD43: FALSE | JE43: FALSE | JF43: FALSE | JG43: FALSE | JH43: =JH20 -> FALSE | JI43: FALSE | JJ43: FALSE | JK43: FALSE | JL43: FALSE | JM43: FALSE | JN43: FALSE | JO43: FALSE | JP43: FALSE | JQ43: FALSE | JR43: FALSE | JS43: FALSE | JT43: FALSE | JU43: FALSE | JV43: FALSE | JW43: FALSE | JX43: FALSE | JY43: FALSE | JZ43: FALSE | KA43: FALSE | KB43: FALSE | KC43: FALSE
C44: Apply inflation | F44: $/vehicle | K44: 1 | L44: =IF(L43,L42,K44) -> 1 | M44: 1 | N44: 1 | O44: 1 | P44: 1 | Q44: 1 | R44: 1 | S44: 1 | T44: 1 | U44: =IF(U43,U42,T44) -> 1 | V44: 1 | W44: 1 | X44: 1 | Y44: 1 | Z44: 1 | AA44: 1 | AB44: 1 | AC44: 1 | AD44: 1 | AE44: 1 | AF44: 1 | AG44: 1 | AH44: 1 | AI44: 1 | AJ44: 1 | AK44: 1 | AL44: 1 | AM44: 1 | AN44: 1 | AO44: 1 | AP44: 1 | AQ44: 1 | AR44: 1 | AS44: 1 | AT44: 1 | AU44: 1 | AV44: 1 | AW44: 1 | AX44: 1 | AY44: 1 | AZ44: 1 | BA44: 1 | BB44: 1 | BC44: 1 | BD44: 1 | BE44: 1 | BF44: 1 | BG44: 1 | BH44: 1 | BI44: 1 | BJ44: 1 | BK44: 1 | BL44: 1 | BM44: 1 | BN44: 1 | BO44: 1 | BP44: 1 | BQ44: 1 | BR44: 1 | BS44: 1 | BT44: 1 | BU44: 1 | BV44: 1 | BW44: 1 | BX44: 1 | BY44: 1 | BZ44: 1 | CA44: 1 | CB44: 1 | CC44: 1 | CD44: 1 | CE44: 1 | CF44: 1 | CG44: =IF(CG43,CG42,CF44) -> 1 | CH44: 1 | CI44: 1 | CJ44: 1 | CK44: 1 | CL44: 1.109600938 | CM44: 1.109600938 | CN44: 1.109600938 | CO44: 1.143054856 | CP44: 1.143054856 | CQ44: 1.143054856 | CR44: 1.143054856 | CS44: 1.189234272 | CT44: 1.189234272 | CU44: 1.189234272 | CV44: 1.189234272 | CW44: 1.237279336 | CX44: 1.237279336 | CY44: 1.237279336 | CZ44: 1.237279336 | DA44: 1.287265421 | DB44: 1.287265421 | DC44: 1.287265421 | DD44: 1.287265421 | DE44: 1.339270945 | DF44: 1.339270945 | DG44: 1.339270945 | DH44: 1.339270945 | DI44: 1.393377491 | DJ44: 1.393377491 | DK44: 1.393377491 | DL44: 1.393377491 | DM44: 1.449669941 | DN44: 1.449669941 | DO44: 1.449669941 | DP44: 1.449669941 | DQ44: 1.508236607 | DR44: 1.508236607 | DS44: 1.508236607 | DT44: 1.508236607 | DU44: 1.569169366 | DV44: 1.569169366 | DW44: 1.569169366 | DX44: 1.569169366 | DY44: 1.632563808 | DZ44: 1.632563808 | EA44: 1.632563808 | EB44: 1.632563808 | EC44: 1.698519386 | ED44: 1.698519386 | EE44: 1.698519386 | EF44: 1.698519386 | EG44: 1.767139569 | EH44: 1.767139569 | EI44: 1.767139569 | EJ44: 1.767139569 | EK44: 1.838532008 | EL44: 1.838532008 | EM44: 1.838532008 | EN44: 1.838532008 | EO44: 1.912808701 | EP44: 1.912808701 | EQ44: 1.912808701 | ER44: 1.912808701 | ES44: =IF(ES43,ES42,ER44) -> 1.990086173 | ET44: 1.990086173 | EU44: 1.990086173 | EV44: 1.990086173 | EW44: 2.070485654 | EX44: 2.070485654 | EY44: 2.070485654 | EZ44: 2.070485654 | FA44: 2.154133274 | FB44: 2.154133274 | FC44: 2.154133274 | FD44: 2.154133274 | FE44: 2.241160259 | FF44: 2.241160259 | FG44: 2.241160259 | FH44: 2.241160259 | FI44: 2.331703133 | FJ44: 2.331703133 | FK44: 2.331703133 | FL44: 2.331703133 | FM44: 2.42590394 | FN44: 2.42590394 | FO44: 2.42590394 | FP44: 2.42590394 | FQ44: 2.42590394 | FR44: 2.42590394 | FS44: 2.42590394 | FT44: 2.42590394 | FU44: 2.42590394 | FV44: 2.42590394 | FW44: 2.42590394 | FX44: 2.42590394 | FY44: 2.42590394 | FZ44: 2.42590394 | GA44: 2.42590394 | GB44: 2.42590394 | GC44: 2.42590394 | GD44: 2.42590394 | GE44: 2.42590394 | GF44: 2.42590394 | GG44: 2.42590394 | GH44: 2.42590394 | GI44: 2.42590394 | GJ44: 2.42590394 | GK44: 2.42590394 | GL44: 2.42590394 | GM44: 2.42590394 | GN44: 2.42590394 | GO44: 2.42590394 | GP44: 2.42590394 | GQ44: 2.42590394 | GR44: 2.42590394 | GS44: 2.42590394 | GT44: 2.42590394 | GU44: 2.42590394 | GV44: 2.42590394 | GW44: 2.42590394 | GX44: 2.42590394 | GY44: 2.42590394 | GZ44: 2.42590394 | HA44: 2.42590394 | HB44: 2.42590394 | HC44: 2.42590394 | HD44: 2.42590394 | HE44: =IF(HE43,HE42,HD44) -> 2.42590394 | HF44: 2.42590394 | HG44: 2.42590394 | HH44: 2.42590394 | HI44: 2.42590394 | HJ44: 2.42590394 | HK44: 2.42590394 | HL44: 2.42590394 | HM44: 2.42590394 | HN44: 2.42590394 | HO44: 2.42590394 | HP44: 2.42590394 | HQ44: 2.42590394 | HR44: 2.42590394 | HS44: 2.42590394 | HT44: 2.42590394 | HU44: 2.42590394 | HV44: 2.42590394 | HW44: 2.42590394 | HX44: 2.42590394 | HY44: 2.42590394 | HZ44: 2.42590394 | IA44: 2.42590394 | IB44: 2.42590394 | IC44: 2.42590394 | ID44: 2.42590394 | IE44: 2.42590394 | IF44: 2.42590394 | IG44: 2.42590394 | IH44: 2.42590394 | II44: 2.42590394 | IJ44: 2.42590394 | IK44: 2.42590394 | IL44: 2.42590394 | IM44: 2.42590394 | IN44: 2.42590394 | IO44: 2.42590394 | IP44: 2.42590394 | IQ44: 2.42590394 | IR44: 2.42590394 | IS44: 2.42590394 | IT44: 2.42590394 | IU44: 2.42590394 | IV44: 2.42590394 | IW44: 2.42590394 | IX44: 2.42590394 | IY44: 2.42590394 | IZ44: 2.42590394 | JA44: 2.42590394 | JB44: 2.42590394 | JC44: 2.42590394 | JD44: 2.42590394 | JE44: 2.42590394 | JF44: 2.42590394 | JG44: 2.42590394 | JH44: 2.42590394 | JI44: 2.42590394 | JJ44: 2.42590394 | JK44: 2.42590394 | JL44: 2.42590394 | JM44: 2.42590394 | JN44: 2.42590394 | JO44: 2.42590394 | JP44: 2.42590394 | JQ44: =IF(JQ43,JQ42,JP44) -> 2.42590394 | JR44: 2.42590394 | JS44: 2.42590394 | JT44: 2.42590394 | JU44: 2.42590394 | JV44: 2.42590394 | JW44: 2.42590394 | JX44: 2.42590394 | JY44: 2.42590394 | JZ44: 2.42590394 | KA44: 2.42590394 | KB44: 2.42590394 | KC44: 2.42590394
C45: Adjusted toll rate | L45: =L44*L39 -> 2 | M45: =M44*M39 -> 2 | N45: 2 | O45: 2 | P45: 2 | Q45: 2 | R45: 2 | S45: 2 | T45: 2 | U45: 2 | V45: 2 | W45: 2 | X45: 2 | Y45: 2 | Z45: 2 | AA45: 2 | AB45: 2 | AC45: 2 | AD45: 2 | AE45: 2 | AF45: 2 | AG45: 2 | AH45: 2 | AI45: 2 | AJ45: 2 | AK45: 2 | AL45: 2 | AM45: 2 | AN45: 2 | AO45: 2 | AP45: 2 | AQ45: 2 | AR45: 2 | AS45: 2 | AT45: 2 | AU45: 2 | AV45: 2 | AW45: 2 | AX45: 2 | AY45: 2 | AZ45: 2 | BA45: 2 | BB45: 2 | BC45: 2 | BD45: 2 | BE45: 2 | BF45: 2 | BG45: 2 | BH45: 2 | BI45: 2 | BJ45: 2 | BK45: 2 | BL45: 2 | BM45: 2 | BN45: 2 | BO45: 2 | BP45: 2 | BQ45: 2 | BR45: 2 | BS45: 2 | BT45: 2 | BU45: 2 | BV45: 2 | BW45: 2 | BX45: 2 | BY45: =BY44*BY39 -> 2 | BZ45: 2 | CA45: 2 | CB45: 2 | CC45: 2 | CD45: 2 | CE45: 2 | CF45: 2 | CG45: 2 | CH45: 2 | CI45: 2 | CJ45: 2 | CK45: 2 | CL45: 2.219201876 | CM45: 2.219201876 | CN45: 2.219201876 | CO45: 2.286109711 | CP45: 2.286109711 | CQ45: 2.286109711 | CR45: 2.286109711 | CS45: 2.378468543 | CT45: 2.378468543 | CU45: 2.378468543 | CV45: 2.378468543 | CW45: 2.474558673 | CX45: 2.474558673 | CY45: 2.474558673 | CZ45: 2.474558673 | DA45: 2.574530843 | DB45: 2.574530843 | DC45: 2.574530843 | DD45: 2.574530843 | DE45: 2.678541889 | DF45: 2.678541889 | DG45: 2.678541889 | DH45: 2.678541889 | DI45: 2.786754981 | DJ45: 2.786754981 | DK45: 2.786754981 | DL45: 2.786754981 | DM45: 2.899339883 | DN45: 2.899339883 | DO45: 2.899339883 | DP45: 2.899339883 | DQ45: 3.016473214 | DR45: 3.016473214 | DS45: 3.016473214 | DT45: 3.016473214 | DU45: 3.138338732 | DV45: 3.138338732 | DW45: 3.138338732 | DX45: 3.138338732 | DY45: 3.265127616 | DZ45: 3.265127616 | EA45: 3.265127616 | EB45: 3.265127616 | EC45: 3.397038772 | ED45: 3.397038772 | EE45: 3.397038772 | EF45: 3.397038772 | EG45: 3.534279139 | EH45: 3.534279139 | EI45: 3.534279139 | EJ45: 3.534279139 | EK45: =EK44*EK39 -> 3.677064016 | EL45: 3.677064016 | EM45: 3.677064016 | EN45: 3.677064016 | EO45: 3.825617402 | EP45: 3.825617402 | EQ45: 3.825617402 | ER45: 3.825617402 | ES45: 3.980172345 | ET45: 3.980172345 | EU45: 3.980172345 | EV45: 3.980172345 | EW45: 4.140971308 | EX45: 4.140971308 | EY45: 4.140971308 | EZ45: 4.140971308 | FA45: 4.308266549 | FB45: 4.308266549 | FC45: 4.308266549 | FD45: 4.308266549 | FE45: 4.482320517 | FF45: 4.482320517 | FG45: 4.482320517 | FH45: 4.482320517 | FI45: 4.663406266 | FJ45: 4.663406266 | FK45: 4.663406266 | FL45: 4.663406266 | FM45: 4.851807879 | FN45: 4.851807879 | FO45: 4.851807879 | FP45: 4.851807879 | FQ45: 4.851807879 | FR45: 4.851807879 | FS45: 4.851807879 | FT45: 4.851807879 | FU45: 4.851807879 | FV45: 4.851807879 | FW45: 4.851807879 | FX45: 4.851807879 | FY45: 4.851807879 | FZ45: 4.851807879 | GA45: 4.851807879 | GB45: 4.851807879 | GC45: 4.851807879 | GD45: 4.851807879 | GE45: 4.851807879 | GF45: 4.851807879 | GG45: 4.851807879 | GH45: 4.851807879 | GI45: 4.851807879 | GJ45: 4.851807879 | GK45: 4.851807879 | GL45: 4.851807879 | GM45: 4.851807879 | GN45: 4.851807879 | GO45: 4.851807879 | GP45: 4.851807879 | GQ45: 4.851807879 | GR45: 4.851807879 | GS45: 4.851807879 | GT45: 4.851807879 | GU45: 4.851807879 | GV45: 4.851807879 | GW45: =GW44*GW39 -> 4.851807879 | GX45: 4.851807879 | GY45: 4.851807879 | GZ45: 4.851807879 | HA45: 4.851807879 | HB45: 4.851807879 | HC45: 4.851807879 | HD45: 4.851807879 | HE45: 4.851807879 | HF45: 4.851807879 | HG45: 4.851807879 | HH45: 4.851807879 | HI45: 4.851807879 | HJ45: 4.851807879 | HK45: 4.851807879 | HL45: 4.851807879 | HM45: 4.851807879 | HN45: 4.851807879 | HO45: 4.851807879 | HP45: 4.851807879 | HQ45: 4.851807879 | HR45: 4.851807879 | HS45: 4.851807879 | HT45: 4.851807879 | HU45: 4.851807879 | HV45: 4.851807879 | HW45: 4.851807879 | HX45: 4.851807879 | HY45: 4.851807879 | HZ45: 4.851807879 | IA45: 4.851807879 | IB45: 4.851807879 | IC45: 4.851807879 | ID45: 4.851807879 | IE45: 4.851807879 | IF45: 4.851807879 | IG45: 4.851807879 | IH45: 4.851807879 | II45: 4.851807879 | IJ45: 4.851807879 | IK45: 4.851807879 | IL45: 4.851807879 | IM45: 4.851807879 | IN45: 4.851807879 | IO45: 4.851807879 | IP45: 4.851807879 | IQ45: 4.851807879 | IR45: 4.851807879 | IS45: 4.851807879 | IT45: 4.851807879 | IU45: 4.851807879 | IV45: 4.851807879 | IW45: 4.851807879 | IX45: 4.851807879 | IY45: 4.851807879 | IZ45: 4.851807879 | JA45: 4.851807879 | JB45: 4.851807879 | JC45: 4.851807879 | JD45: 4.851807879 | JE45: 4.851807879 | JF45: 4.851807879 | JG45: 4.851807879 | JH45: 4.851807879 | JI45: =JI44*JI39 -> 4.851807879 | JJ45: 4.851807879 | JK45: 4.851807879 | JL45: 4.851807879 | JM45: 4.851807879 | JN45: 4.851807879 | JO45: 4.851807879 | JP45: 4.851807879 | JQ45: 4.851807879 | JR45: 4.851807879 | JS45: 4.851807879 | JT45: 4.851807879 | JU45: 4.851807879 | JV45: 4.851807879 | JW45: 4.851807879 | JX45: 4.851807879 | JY45: 4.851807879 | JZ45: 4.851807879 | KA45: 4.851807879 | KB45: 4.851807879 | KC45: 4.851807879
D46: Total revenues | F46: $ '000 | L46: =L45*L36/1000 -> 0 | M46: 0 | N46: 0 | O46: 0 | P46: 0 | Q46: 0 | R46: 0 | S46: 0 | T46: 0 | U46: 0 | V46: 0 | W46: 0 | X46: 0 | Y46: 0 | Z46: 0 | AA46: 0 | AB46: 0 | AC46: 0 | AD46: 0 | AE46: 0 | AF46: 0 | AG46: 0 | AH46: 0 | AI46: 0 | AJ46: 0 | AK46: 0 | AL46: 0 | AM46: 0 | AN46: 0 | AO46: 0 | AP46: 0 | AQ46: 0 | AR46: 0 | AS46: 0 | AT46: 0 | AU46: 0 | AV46: 0 | AW46: 0 | AX46: 0 | AY46: 0 | AZ46: 0 | BA46: 0 | BB46: 0 | BC46: 0 | BD46: 0 | BE46: 0 | BF46: 0 | BG46: 0 | BH46: 0 | BI46: 0 | BJ46: 0 | BK46: 0 | BL46: 0 | BM46: 0 | BN46: 0 | BO46: 0 | BP46: 0 | BQ46: 0 | BR46: 0 | BS46: 0 | BT46: 0 | BU46: 0 | BV46: 0 | BW46: 0 | BX46: =BX45*BX36/1000 -> 0 | BY46: 0 | BZ46: 0 | CA46: 0 | CB46: 0 | CC46: 0 | CD46: 0 | CE46: 0 | CF46: 0 | CG46: 0 | CH46: 0 | CI46: 0 | CJ46: 0 | CK46: 0 | CL46: 1862.410288 | CM46: 1929.374111 | CN46: 1944.786128 | CO46: 2086.920972 | CP46: 2083.460963 | CQ46: 2149.528601 | CR46: 2145.964792 | CS46: 2303.460643 | CT46: 2312.346825 | CU46: 2372.564463 | CV46: 2357.104618 | CW46: 2517.784388 | CX46: 2501.378278 | CY46: 2568.140076 | CZ46: 2551.405843 | DA46: 2725.330794 | DB46: 2722.531255 | DC46: 2779.83741 | DD46: 2761.723738 | DE46: 2949.985698 | DF46: 2923.571257 | DG46: 2994.235483 | DH46: 2967.424825 | DI46: 3161.930636 | DJ46: 3150.931229 | DK46: 3209.359595 | DL46: 3180.622696 | DM46: 3389.102989 | DN46: 3358.756651 | DO46: 3439.939534 | DP46: 3409.138001 | DQ46: 3632.596787 | DR46: 3619.960074 | DS46: 3687.085739 | DT46: 3654.071237 | DU46: 3893.584663 | DV46: 3858.72115 | DW46: 3951.988433 | DX46: 3916.601968 | DY46: 4173.323497 | DZ46: 4158.805758 | EA46: 4235.923349 | EB46: 4197.994505 | EC46: 4473.160473 | ED46: 4433.107385 | EE46: 4540.25788 | EF46: 4499.603996 | EG46: 4794.539562 | EH46: 4777.8608 | EI46: 4866.457656 | EJ46: =EJ45*EJ36/1000 -> 4822.88295 | EK46: 5139.008483 | EL46: 5092.993332 | EM46: 5216.093611 | EN46: 5169.388232 | EO46: 5508.226149 | EP46: 5489.064686 | EQ46: 5590.849542 | ER46: 5540.788564 | ES46: 5903.970661 | ET46: 5851.105969 | EU46: 5992.530221 | EV46: 5938.872558 | EW46: 6328.147868 | EX46: 6306.134143 | EY46: 6423.070087 | EZ46: 6365.557331 | FA46: 6782.80055 | FB46: 6722.066734 | FC46: 6884.542558 | FD46: 6822.897735 | FE46: 7270.118249 | FF46: 7244.827692 | FG46: 7379.170022 | FH46: 7313.09626 | FI46: 7792.447819 | FJ46: 7722.673529 | FK46: 7909.334536 | FL46: 7838.513632 | FM46: 8352.304726 | FN46: 8323.249567 | FO46: 8477.589297 | FP46: 0 | FQ46: 0 | FR46: 0 | FS46: 0 | FT46: 0 | FU46: 0 | FV46: 0 | FW46: 0 | FX46: 0 | FY46: 0 | FZ46: 0 | GA46: 0 | GB46: 0 | GC46: 0 | GD46: 0 | GE46: 0 | GF46: 0 | GG46: 0 | GH46: 0 | GI46: 0 | GJ46: 0 | GK46: 0 | GL46: 0 | GM46: 0 | GN46: 0 | GO46: 0 | GP46: 0 | GQ46: 0 | GR46: 0 | GS46: 0 | GT46: 0 | GU46: 0 | GV46: =GV45*GV36/1000 -> 0 | GW46: 0 | GX46: 0 | GY46: 0 | GZ46: 0 | HA46: 0 | HB46: 0 | HC46: 0 | HD46: 0 | HE46: 0 | HF46: 0 | HG46: 0 | HH46: 0 | HI46: 0 | HJ46: 0 | HK46: 0 | HL46: 0 | HM46: 0 | HN46: 0 | HO46: 0 | HP46: 0 | HQ46: 0 | HR46: 0 | HS46: 0 | HT46: 0 | HU46: 0 | HV46: 0 | HW46: 0 | HX46: 0 | HY46: 0 | HZ46: 0 | IA46: 0 | IB46: 0 | IC46: 0 | ID46: 0 | IE46: 0 | IF46: 0 | IG46: 0 | IH46: 0 | II46: 0 | IJ46: 0 | IK46: 0 | IL46: 0 | IM46: 0 | IN46: 0 | IO46: 0 | IP46: 0 | IQ46: 0 | IR46: 0 | IS46: 0 | IT46: 0 | IU46: 0 | IV46: 0 | IW46: 0 | IX46: 0 | IY46: 0 | IZ46: 0 | JA46: 0 | JB46: 0 | JC46: 0 | JD46: 0 | JE46: 0 | JF46: 0 | JG46: 0 | JH46: =JH45*JH36/1000 -> 0 | JI46: 0 | JJ46: 0 | JK46: 0 | JL46: 0 | JM46: 0 | JN46: 0 | JO46: 0 | JP46: 0 | JQ46: 0 | JR46: 0 | JS46: 0 | JT46: 0 | JU46: 0 | JV46: 0 | JW46: 0 | JX46: 0 | JY46: 0 | JZ46: 0 | KA46: 0 | KB46: 0 | KC46: 0
A48: Operating expenses
B49: Operating Expense Inflaion
C50: Periodic Inflation | L50: =L41 -> 0.0008295381143 | M50: =M41 -> 0.0008295381143 | N50: 0.0008295381143 | O50: 0.0008295381143 | P50: 0.0008295381143 | Q50: 0.0008295381143 | R50: 0.001241487716 | S50: 0.001241487716 | T50: 0.001241487716 | U50: 0.001241487716 | V50: 0.001241487716 | W50: 0.001241487716 | X50: 0.001241487716 | Y50: 0.001241487716 | Z50: 0.001241487716 | AA50: 0.001241487716 | AB50: 0.001241487716 | AC50: 0.001241487716 | AD50: 0.001241487716 | AE50: 0.001241487716 | AF50: 0.001241487716 | AG50: 0.001241487716 | AH50: 0.001241487716 | AI50: 0.001241487716 | AJ50: 0.001241487716 | AK50: 0.001241487716 | AL50: 0.001241487716 | AM50: 0.001241487716 | AN50: 0.001241487716 | AO50: 0.001241487716 | AP50: 0.001651581302 | AQ50: 0.001651581302 | AR50: 0.001651581302 | AS50: 0.001651581302 | AT50: 0.001651581302 | AU50: 0.001651581302 | AV50: 0.001651581302 | AW50: 0.001651581302 | AX50: 0.001651581302 | AY50: 0.001651581302 | AZ50: 0.001651581302 | BA50: 0.001651581302 | BB50: 0.001651581302 | BC50: 0.001651581302 | BD50: 0.001651581302 | BE50: 0.001651581302 | BF50: 0.001651581302 | BG50: 0.001651581302 | BH50: 0.001651581302 | BI50: 0.001651581302 | BJ50: 0.001651581302 | BK50: 0.001651581302 | BL50: 0.001651581302 | BM50: 0.001651581302 | BN50: 0.001651581302 | BO50: 0.001651581302 | BP50: 0.001651581302 | BQ50: 0.001651581302 | BR50: 0.001651581302 | BS50: 0.001651581302 | BT50: 0.001651581302 | BU50: 0.001651581302 | BV50: 0.001651581302 | BW50: 0.001651581302 | BX50: 0.001651581302 | BY50: =BY41 -> 0.001651581302 | BZ50: 0.001651581302 | CA50: 0.001651581302 | CB50: 0.001651581302 | CC50: 0.001651581302 | CD50: 0.001651581302 | CE50: 0.001651581302 | CF50: 0.001651581302 | CG50: 0.001651581302 | CH50: 0.001651581302 | CI50: 0.001651581302 | CJ50: 0.001651581302 | CK50: 0.001651581302 | CL50: 0.009950493836 | CM50: 0.009950493836 | CN50: 0.009950493836 | CO50: 0.009950493836 | CP50: 0.009950493836 | CQ50: 0.009950493836 | CR50: 0.009950493836 | CS50: 0.009950493836 | CT50: 0.009950493836 | CU50: 0.009950493836 | CV50: 0.009950493836 | CW50: 0.009950493836 | CX50: 0.009950493836 | CY50: 0.009950493836 | CZ50: 0.009950493836 | DA50: 0.009950493836 | DB50: 0.009950493836 | DC50: 0.009950493836 | DD50: 0.009950493836 | DE50: 0.009950493836 | DF50: 0.009950493836 | DG50: 0.009950493836 | DH50: 0.009950493836 | DI50: 0.009950493836 | DJ50: 0.009950493836 | DK50: 0.009950493836 | DL50: 0.009950493836 | DM50: 0.009950493836 | DN50: 0.009950493836 | DO50: 0.009950493836 | DP50: 0.009950493836 | DQ50: 0.009950493836 | DR50: 0.009950493836 | DS50: 0.009950493836 | DT50: 0.009950493836 | DU50: 0.009950493836 | DV50: 0.009950493836 | DW50: 0.009950493836 | DX50: 0.009950493836 | DY50: 0.009950493836 | DZ50: 0.009950493836 | EA50: 0.009950493836 | EB50: 0.009950493836 | EC50: 0.009950493836 | ED50: 0.009950493836 | EE50: 0.009950493836 | EF50: 0.009950493836 | EG50: 0.009950493836 | EH50: 0.009950493836 | EI50: 0.009950493836 | EJ50: 0.009950493836 | EK50: =EK41 -> 0.009950493836 | EL50: 0.009950493836 | EM50: 0.009950493836 | EN50: 0.009950493836 | EO50: 0.009950493836 | EP50: 0.009950493836 | EQ50: 0.009950493836 | ER50: 0.009950493836 | ES50: 0.009950493836 | ET50: 0.009950493836 | EU50: 0.009950493836 | EV50: 0.009950493836 | EW50: 0.009950493836 | EX50: 0.009950493836 | EY50: 0.009950493836 | EZ50: 0.009950493836 | FA50: 0.009950493836 | FB50: 0.009950493836 | FC50: 0.009950493836 | FD50: 0.009950493836 | FE50: 0.009950493836 | FF50: 0.009950493836 | FG50: 0.009950493836 | FH50: 0.009950493836 | FI50: 0.009950493836 | FJ50: 0.009950493836 | FK50: 0.009950493836 | FL50: 0.009950493836 | FM50: 0.009950493836 | FN50: 0.009950493836 | FO50: 0.009950493836 | FP50: 0.009950493836 | FQ50: 0.009950493836 | FR50: 0.009950493836 | FS50: 0.009950493836 | FT50: 0.009950493836 | FU50: 0.009950493836 | FV50: 0.009950493836 | FW50: 0.009950493836 | FX50: 0.009950493836 | FY50: 0.009950493836 | FZ50: 0.009950493836 | GA50: 0.009950493836 | GB50: 0.009950493836 | GC50: 0.009950493836 | GD50: 0.009950493836 | GE50: 0.009950493836 | GF50: 0.009950493836 | GG50: 0.009950493836 | GH50: 0.009950493836 | GI50: 0.009950493836 | GJ50: 0.009950493836 | GK50: 0.009950493836 | GL50: 0.009950493836 | GM50: 0.009950493836 | GN50: 0.009950493836 | GO50: 0.009950493836 | GP50: 0.009950493836 | GQ50: 0.009950493836 | GR50: 0.009950493836 | GS50: 0.009950493836 | GT50: 0.009950493836 | GU50: 0.009950493836 | GV50: 0.009950493836 | GW50: =GW41 -> 0.009950493836 | GX50: 0.009950493836 | GY50: 0.009950493836 | GZ50: 0.009950493836 | HA50: 0.009950493836 | HB50: 0.009950493836 | HC50: 0.009950493836 | HD50: 0.009950493836 | HE50: 0.009950493836 | HF50: 0.009950493836 | HG50: 0.009950493836 | HH50: 0.009950493836 | HI50: 0.009950493836 | HJ50: 0.009950493836 | HK50: 0.009950493836 | HL50: 0.009950493836 | HM50: 0.009950493836 | HN50: 0.009950493836 | HO50: 0.009950493836 | HP50: 0.009950493836 | HQ50: 0.009950493836 | HR50: 0.009950493836 | HS50: 0.009950493836 | HT50: 0.009950493836 | HU50: 0.009950493836 | HV50: 0.009950493836 | HW50: 0.009950493836 | HX50: 0.009950493836 | HY50: 0.009950493836 | HZ50: 0.009950493836 | IA50: 0.009950493836 | IB50: 0.009950493836 | IC50: 0.009950493836 | ID50: 0.009950493836 | IE50: 0.009950493836 | IF50: 0.009950493836 | IG50: 0.009950493836 | IH50: 0.009950493836 | II50: 0.009950493836 | IJ50: 0.009950493836 | IK50: 0.009950493836 | IL50: 0.009950493836 | IM50: 0.009950493836 | IN50: 0.009950493836 | IO50: 0.009950493836 | IP50: 0.009950493836 | IQ50: 0.009950493836 | IR50: 0.009950493836 | IS50: 0.009950493836 | IT50: 0.009950493836 | IU50: 0.009950493836 | IV50: 0.009950493836 | IW50: 0.009950493836 | IX50: 0.009950493836 | IY50: 0.009950493836 | IZ50: 0.009950493836 | JA50: 0.009950493836 | JB50: 0.009950493836 | JC50: 0.009950493836 | JD50: 0.009950493836 | JE50: 0.009950493836 | JF50: 0.009950493836 | JG50: 0.009950493836 | JH50: 0.009950493836 | JI50: =JI41 -> 0.009950493836 | JJ50: 0.009950493836 | JK50: 0.009950493836 | JL50: 0.009950493836 | JM50: 0.009950493836 | JN50: 0.009950493836 | JO50: 0.009950493836 | JP50: 0.009950493836 | JQ50: 0.009950493836 | JR50: 0.009950493836 | JS50: 0.009950493836 | JT50: 0.009950493836 | JU50: 0.009950493836 | JV50: 0.009950493836 | JW50: 0.009950493836 | JX50: 0.009950493836 | JY50: 0.009950493836 | JZ50: 0.009950493836 | KA50: 0.009950493836 | KB50: 0.009950493836 | KC50: 0.009950493836
C51: Inflation Index | K51: 1 | L51: =K51*(1+L50*L21) -> 1.000829538 | M51: 1.001659764 | N51: 1.002490679 | O51: 1.003322284 | P51: 1.004154578 | Q51: 1.004987562 | R51: 1.006235242 | S51: 1.007484471 | T51: 1.00873525 | U51: 1.009987583 | V51: 1.01124147 | W51: 1.012496914 | X51: 1.013753916 | Y51: 1.015012479 | Z51: 1.016272605 | AA51: 1.017534295 | AB51: 1.018797551 | AC51: 1.020062376 | AD51: 1.02132877 | AE51: 1.022596738 | AF51: 1.023866279 | AG51: 1.025137396 | AH51: 1.026410092 | AI51: 1.027684367 | AJ51: 1.028960225 | AK51: 1.030237666 | AL51: 1.031516694 | AM51: 1.032797309 | AN51: 1.034079514 | AO51: 1.035363311 | AP51: 1.037073298 | AQ51: 1.038786109 | AR51: 1.040501748 | AS51: 1.042220222 | AT51: 1.043941533 | AU51: 1.045665687 | AV51: 1.047392689 | AW51: 1.049122544 | AX51: 1.050855255 | AY51: 1.052590828 | AZ51: 1.054329267 | BA51: 1.056070577 | BB51: 1.057814764 | BC51: 1.059561831 | BD51: 1.061311783 | BE51: 1.063064626 | BF51: 1.064820364 | BG51: 1.066579001 | BH51: 1.068340543 | BI51: 1.070104994 | BJ51: 1.07187236 | BK51: 1.073642644 | BL51: 1.075415852 | BM51: 1.077191989 | BN51: 1.078971059 | BO51: 1.080753068 | BP51: 1.082538019 | BQ51: 1.084325919 | BR51: 1.086116771 | BS51: 1.087910581 | BT51: 1.089707354 | BU51: 1.091507094 | BV51: 1.093309807 | BW51: 1.095115497 | BX51: =BW51*(1+BX50*BX21) -> 1.096924169 | BY51: 1.098735829 | BZ51: 1.10055048 | CA51: 1.102368129 | CB51: 1.104188779 | CC51: 1.106012437 | CD51: 1.107839106 | CE51: 1.109668793 | CF51: 1.111501501 | CG51: 1.113337236 | CH51: 1.115176003 | CI51: 1.117017807 | CJ51: 1.118862653 | CK51: 1.120710545 | CL51: 1.131862169 | CM51: 1.143124756 | CN51: 1.154499412 | CO51: 1.165987251 | CP51: 1.1775894 | CQ51: 1.189306996 | CR51: 1.201141188 | CS51: 1.213093136 | CT51: 1.225164012 | CU51: 1.237354999 | CV51: 1.249667292 | CW51: 1.262102099 | CX51: 1.274660638 | CY51: 1.287344141 | CZ51: 1.300153851 | DA51: 1.313091024 | DB51: 1.326156928 | DC51: 1.339352844 | DD51: 1.352680066 | DE51: 1.366139901 | DF51: 1.379733668 | DG51: 1.393462699 | DH51: 1.407328341 | DI51: 1.421331953 | DJ51: 1.435474908 | DK51: 1.449758592 | DL51: 1.464184406 | DM51: 1.478753764 | DN51: 1.493468094 | DO51: 1.508328839 | DP51: 1.523337456 | DQ51: 1.538495416 | DR51: 1.553804205 | DS51: 1.569265324 | DT51: 1.584880289 | DU51: 1.600650631 | DV51: 1.616577895 | DW51: 1.632663644 | DX51: 1.648909453 | DY51: 1.665316916 | DZ51: 1.681887642 | EA51: 1.698623255 | EB51: 1.715525395 | EC51: 1.73259572 | ED51: 1.749835903 | EE51: 1.767247634 | EF51: 1.784832621 | EG51: 1.802592587 | EH51: 1.820529273 | EI51: 1.838644439 | EJ51: =EI51*(1+EJ50*EJ21) -> 1.856939859 | EK51: 1.875417327 | EL51: 1.894078656 | EM51: 1.912925674 | EN51: 1.931960229 | EO51: 1.951184187 | EP51: 1.970599434 | EQ51: 1.990207871 | ER51: 2.010011422 | ES51: 2.030012029 | ET51: 2.050211651 | EU51: 2.070612269 | EV51: 2.091215884 | EW51: 2.112024515 | EX51: 2.133040202 | EY51: 2.154265005 | EZ51: 2.175701006 | FA51: 2.197350305 | FB51: 2.219215026 | FC51: 2.241297311 | FD51: 2.263599326 | FE51: 2.286123257 | FF51: 2.308871313 | FG51: 2.331845722 | FH51: 2.355048739 | FI51: 2.378482637 | FJ51: 2.402149714 | FK51: 2.42605229 | FL51: 2.450192708 | FM51: 2.474573335 | FN51: 2.499196562 | FO51: 2.524064802 | FP51: 2.549180493 | FQ51: 2.574546098 | FR51: 2.600164103 | FS51: 2.62603702 | FT51: 2.652167385 | FU51: 2.678557761 | FV51: 2.705210733 | FW51: 2.732128916 | FX51: 2.759314948 | FY51: 2.786771494 | FZ51: 2.814501247 | GA51: 2.842506924 | GB51: 2.870791272 | GC51: 2.899357062 | GD51: 2.928207097 | GE51: 2.957344204 | GF51: 2.986771239 | GG51: 3.016491088 | GH51: 3.046506664 | GI51: 3.07682091 | GJ51: 3.107436797 | GK51: 3.138357328 | GL51: 3.169585533 | GM51: 3.201124474 | GN51: 3.232977244 | GO51: 3.265146964 | GP51: 3.297636789 | GQ51: 3.330449903 | GR51: 3.363589524 | GS51: 3.397058901 | GT51: 3.430861315 | GU51: 3.465000079 | GV51: =GU51*(1+GV50*GV21) -> 3.499478541 | GW51: 3.534300081 | GX51: 3.569468112 | GY51: 3.604986082 | GZ51: 3.640857474 | HA51: 3.677085804 | HB51: 3.713674624 | HC51: 3.75062752 | HD51: 3.787948116 | HE51: 3.82564007 | HF51: 3.863707078 | HG51: 3.902152872 | HH51: 3.94098122 | HI51: 3.980195929 | HJ51: 4.019800844 | HK51: 4.059799848 | HL51: 4.100196861 | HM51: 4.140995845 | HN51: 4.182200798 | HO51: 4.223815762 | HP51: 4.265844814 | HQ51: 4.308292077 | HR51: 4.351161711 | HS51: 4.394457919 | HT51: 4.438184945 | HU51: 4.482347077 | HV51: 4.526948644 | HW51: 4.571994018 | HX51: 4.617487617 | HY51: 4.663433899 | HZ51: 4.709837369 | IA51: 4.756702577 | IB51: 4.804034116 | IC51: 4.851836628 | ID51: 4.900114799 | IE51: 4.948873361 | IF51: 4.998117095 | IG51: 5.047850828 | IH51: 5.098079437 | II51: 5.148807845 | IJ51: 5.200041025 | IK51: 5.251784002 | IL51: 5.304041846 | IM51: 5.356819682 | IN51: 5.410122683 | IO51: 5.463956075 | IP51: 5.518325136 | IQ51: 5.573235197 | IR51: 5.628691639 | IS51: 5.684699901 | IT51: 5.741265472 | IU51: 5.798393899 | IV51: 5.856090781 | IW51: 5.914361777 | IX51: 5.973212597 | IY51: 6.032649012 | IZ51: 6.092676849 | JA51: 6.153301992 | JB51: 6.214530386 | JC51: 6.276368032 | JD51: 6.338820994 | JE51: 6.401895393 | JF51: 6.465597414 | JG51: 6.529933301 | JH51: =JG51*(1+JH50*JH21) -> 6.594909362 | JI51: 6.660531967 | JJ51: 6.726807549 | JK51: 6.793742606 | JL51: 6.8613437 | JM51: 6.929617458 | JN51: 6.998570574 | JO51: 7.068209807 | JP51: 7.138541986 | JQ51: 7.209574004 | JR51: 7.281312825 | JS51: 7.353765484 | JT51: 7.426939082 | JU51: 7.500840793 | JV51: 7.575477863 | JW51: 7.650857609 | JX51: 7.726987421 | JY51: 7.803874761 | JZ51: 7.881527169 | KA51: 7.959952257 | KB51: 8.039157712 | KC51: 8.119151302
C53: Fixed expenses | F53: $ '000 | G53: ='Operating assumptions'!G43 -> 300 | H53: Per Year | L53: =$G$53*L51*L13/L8 -> 0 | M53: =$G$53*M51*M13/M8 -> 0 | N53: 0 | O53: 0 | P53: 0 | Q53: 0 | R53: 0 | S53: 0 | T53: 0 | U53: 0 | V53: 0 | W53: 0 | X53: 0 | Y53: 0 | Z53: 0 | AA53: 0 | AB53: 0 | AC53: 0 | AD53: 0 | AE53: 0 | AF53: 0 | AG53: 0 | AH53: 0 | AI53: 0 | AJ53: 0 | AK53: 0 | AL53: 0 | AM53: 0 | AN53: 0 | AO53: 0 | AP53: 0 | AQ53: 0 | AR53: 0 | AS53: 0 | AT53: 0 | AU53: 0 | AV53: 0 | AW53: 0 | AX53: 0 | AY53: 0 | AZ53: 0 | BA53: 0 | BB53: 0 | BC53: 0 | BD53: 0 | BE53: 0 | BF53: 0 | BG53: 0 | BH53: 0 | BI53: 0 | BJ53: 0 | BK53: 0 | BL53: 0 | BM53: 0 | BN53: 0 | BO53: 0 | BP53: 0 | BQ53: 0 | BR53: 0 | BS53: 0 | BT53: 0 | BU53: 0 | BV53: 0 | BW53: 0 | BX53: 0 | BY53: =$G$53*BY51*BY13/BY8 -> 0 | BZ53: 0 | CA53: 0 | CB53: 0 | CC53: 0 | CD53: 0 | CE53: 0 | CF53: 0 | CG53: 0 | CH53: 0 | CI53: 0 | CJ53: 0 | CK53: 0 | CL53: 169.7793253 | CM53: 171.4687134 | CN53: 173.1749118 | CO53: 174.8980877 | CP53: 176.63841 | CQ53: 178.3960495 | CR53: 180.1711782 | CS53: 181.9639704 | CT53: 183.7746018 | CU53: 185.6032499 | CV53: 187.4500938 | CW53: 189.3153148 | CX53: 191.1990957 | CY53: 193.1016211 | CZ53: 195.0230776 | DA53: 196.9636536 | DB53: 198.9235392 | DC53: 200.9029266 | DD53: 202.90201 | DE53: 204.9209852 | DF53: 206.9600502 | DG53: 209.0194049 | DH53: 211.0992512 | DI53: 213.199793 | DJ53: 215.3212362 | DK53: 217.4637888 | DL53: 219.6276609 | DM53: 221.8130646 | DN53: 224.0202141 | DO53: 226.2493259 | DP53: 228.5006184 | DQ53: 230.7743124 | DR53: 233.0706308 | DS53: 235.3897987 | DT53: 237.7320434 | DU53: 240.0975946 | DV53: 242.4866843 | DW53: 244.8995465 | DX53: 247.336418 | DY53: 249.7975375 | DZ53: 252.2831463 | EA53: 254.7934882 | EB53: 257.3288092 | EC53: 259.889358 | ED53: 262.4753854 | EE53: 265.0871451 | EF53: 267.7248931 | EG53: 270.388888 | EH53: 273.079391 | EI53: 275.7966658 | EJ53: 278.5409788 | EK53: =$G$53*EK51*EK13/EK8 -> 281.3125991 | EL53: 284.1117984 | EM53: 286.9388511 | EN53: 289.7940344 | EO53: 292.6776281 | EP53: 295.5899151 | EQ53: 298.5311807 | ER53: 301.5017134 | ES53: 304.5018043 | ET53: 307.5317476 | EU53: 310.5918404 | EV53: 313.6823826 | EW53: 316.8036772 | EX53: 319.9560302 | EY53: 323.1397507 | EZ53: 326.3551508 | FA53: 329.6025458 | FB53: 332.8822539 | FC53: 336.1945967 | FD53: 339.5398989 | FE53: 342.9184886 | FF53: 346.3306969 | FG53: 349.7768584 | FH53: 353.2573108 | FI53: 356.7723955 | FJ53: 360.3224571 | FK53: 363.9078434 | FL53: 367.5289062 | FM53: 371.1860003 | FN53: 374.8794843 | FO53: 378.6097203 | FP53: 0 | FQ53: 0 | FR53: 0 | FS53: 0 | FT53: 0 | FU53: 0 | FV53: 0 | FW53: 0 | FX53: 0 | FY53: 0 | FZ53: 0 | GA53: 0 | GB53: 0 | GC53: 0 | GD53: 0 | GE53: 0 | GF53: 0 | GG53: 0 | GH53: 0 | GI53: 0 | GJ53: 0 | GK53: 0 | GL53: 0 | GM53: 0 | GN53: 0 | GO53: 0 | GP53: 0 | GQ53: 0 | GR53: 0 | GS53: 0 | GT53: 0 | GU53: 0 | GV53: 0 | GW53: =$G$53*GW51*GW13/GW8 -> 0 | GX53: 0 | GY53: 0 | GZ53: 0 | HA53: 0 | HB53: 0 | HC53: 0 | HD53: 0 | HE53: 0 | HF53: 0 | HG53: 0 | HH53: 0 | HI53: 0 | HJ53: 0 | HK53: 0 | HL53: 0 | HM53: 0 | HN53: 0 | HO53: 0 | HP53: 0 | HQ53: 0 | HR53: 0 | HS53: 0 | HT53: 0 | HU53: 0 | HV53: 0 | HW53: 0 | HX53: 0 | HY53: 0 | HZ53: 0 | IA53: 0 | IB53: 0 | IC53: 0 | ID53: 0 | IE53: 0 | IF53: 0 | IG53: 0 | IH53: 0 | II53: 0 | IJ53: 0 | IK53: 0 | IL53: 0 | IM53: 0 | IN53: 0 | IO53: 0 | IP53: 0 | IQ53: 0 | IR53: 0 | IS53: 0 | IT53: 0 | IU53: 0 | IV53: 0 | IW53: 0 | IX53: 0 | IY53: 0 | IZ53: 0 | JA53: 0 | JB53: 0 | JC53: 0 | JD53: 0 | JE53: 0 | JF53: 0 | JG53: 0 | JH53: 0 | JI53: =$G$53*JI51*JI13/JI8 -> 0 | JJ53: 0 | JK53: 0 | JL53: 0 | JM53: 0 | JN53: 0 | JO53: 0 | JP53: 0 | JQ53: 0 | JR53: 0 | JS53: 0 | JT53: 0 | JU53: 0 | JV53: 0 | JW53: 0 | JX53: 0 | JY53: 0 | JZ53: 0 | KA53: 0 | KB53: 0 | KC53: 0
C55: Variable Expenses per Unit | G55: ='Operating assumptions'!G44 -> 0.1 | L55: =$G$55*L51/1000 -> 0.0001000829538 | M55: =$G$55*M51/1000 -> 0.0001001659764 | N55: 0.0001002490679 | O55: 0.0001003322284 | P55: 0.0001004154578 | Q55: 0.0001004987562 | R55: 0.0001006235242 | S55: 0.0001007484471 | T55: 0.000100873525 | U55: 0.0001009987583 | V55: 0.000101124147 | W55: 0.0001012496914 | X55: 0.0001013753916 | Y55: 0.0001015012479 | Z55: 0.0001016272605 | AA55: 0.0001017534295 | AB55: 0.0001018797551 | AC55: 0.0001020062376 | AD55: 0.000102132877 | AE55: 0.0001022596738 | AF55: 0.0001023866279 | AG55: 0.0001025137396 | AH55: 0.0001026410092 | AI55: 0.0001027684367 | AJ55: 0.0001028960225 | AK55: 0.0001030237666 | AL55: 0.0001031516694 | AM55: 0.0001032797309 | AN55: 0.0001034079514 | AO55: 0.0001035363311 | AP55: 0.0001037073298 | AQ55: 0.0001038786109 | AR55: 0.0001040501748 | AS55: 0.0001042220222 | AT55: 0.0001043941533 | AU55: 0.0001045665687 | AV55: 0.0001047392689 | AW55: 0.0001049122544 | AX55: 0.0001050855255 | AY55: 0.0001052590828 | AZ55: 0.0001054329267 | BA55: 0.0001056070577 | BB55: 0.0001057814764 | BC55: 0.0001059561831 | BD55: 0.0001061311783 | BE55: 0.0001063064626 | BF55: 0.0001064820364 | BG55: 0.0001066579001 | BH55: 0.0001068340543 | BI55: 0.0001070104994 | BJ55: 0.000107187236 | BK55: 0.0001073642644 | BL55: 0.0001075415852 | BM55: 0.0001077191989 | BN55: 0.0001078971059 | BO55: 0.0001080753068 | BP55: 0.0001082538019 | BQ55: 0.0001084325919 | BR55: 0.0001086116771 | BS55: 0.0001087910581 | BT55: 0.0001089707354 | BU55: 0.0001091507094 | BV55: 0.0001093309807 | BW55: 0.0001095115497 | BX55: 0.0001096924169 | BY55: =$G$55*BY51/1000 -> 0.0001098735829 | BZ55: 0.000110055048 | CA55: 0.0001102368129 | CB55: 0.0001104188779 | CC55: 0.0001106012437 | CD55: 0.0001107839106 | CE55: 0.0001109668793 | CF55: 0.0001111501501 | CG55: 0.0001113337236 | CH55: 0.0001115176003 | CI55: 0.0001117017807 | CJ55: 0.0001118862653 | CK55: 0.0001120710545 | CL55: 0.0001131862169 | CM55: 0.0001143124756 | CN55: 0.0001154499412 | CO55: 0.0001165987251 | CP55: 0.00011775894 | CQ55: 0.0001189306996 | CR55: 0.0001201141188 | CS55: 0.0001213093136 | CT55: 0.0001225164012 | CU55: 0.0001237354999 | CV55: 0.0001249667292 | CW55: 0.0001262102099 | CX55: 0.0001274660638 | CY55: 0.0001287344141 | CZ55: 0.0001300153851 | DA55: 0.0001313091024 | DB55: 0.0001326156928 | DC55: 0.0001339352844 | DD55: 0.0001352680066 | DE55: 0.0001366139901 | DF55: 0.0001379733668 | DG55: 0.0001393462699 | DH55: 0.0001407328341 | DI55: 0.0001421331953 | DJ55: 0.0001435474908 | DK55: 0.0001449758592 | DL55: 0.0001464184406 | DM55: 0.0001478753764 | DN55: 0.0001493468094 | DO55: 0.0001508328839 | DP55: 0.0001523337456 | DQ55: 0.0001538495416 | DR55: 0.0001553804205 | DS55: 0.0001569265324 | DT55: 0.0001584880289 | DU55: 0.0001600650631 | DV55: 0.0001616577895 | DW55: 0.0001632663644 | DX55: 0.0001648909453 | DY55: 0.0001665316916 | DZ55: 0.0001681887642 | EA55: 0.0001698623255 | EB55: 0.0001715525395 | EC55: 0.000173259572 | ED55: 0.0001749835903 | EE55: 0.0001767247634 | EF55: 0.0001784832621 | EG55: 0.0001802592587 | EH55: 0.0001820529273 | EI55: 0.0001838644439 | EJ55: 0.0001856939859 | EK55: =$G$55*EK51/1000 -> 0.0001875417327 | EL55: 0.0001894078656 | EM55: 0.0001912925674 | EN55: 0.0001931960229 | EO55: 0.0001951184187 | EP55: 0.0001970599434 | EQ55: 0.0001990207871 | ER55: 0.0002010011422 | ES55: 0.0002030012029 | ET55: 0.0002050211651 | EU55: 0.0002070612269 | EV55: 0.0002091215884 | EW55: 0.0002112024515 | EX55: 0.0002133040202 | EY55: 0.0002154265005 | EZ55: 0.0002175701006 | FA55: 0.0002197350305 | FB55: 0.0002219215026 | FC55: 0.0002241297311 | FD55: 0.0002263599326 | FE55: 0.0002286123257 | FF55: 0.0002308871313 | FG55: 0.0002331845722 | FH55: 0.0002355048739 | FI55: 0.0002378482637 | FJ55: 0.0002402149714 | FK55: 0.000242605229 | FL55: 0.0002450192708 | FM55: 0.0002474573335 | FN55: 0.0002499196562 | FO55: 0.0002524064802 | FP55: 0.0002549180493 | FQ55: 0.0002574546098 | FR55: 0.0002600164103 | FS55: 0.000262603702 | FT55: 0.0002652167385 | FU55: 0.0002678557761 | FV55: 0.0002705210733 | FW55: 0.0002732128916 | FX55: 0.0002759314948 | FY55: 0.0002786771494 | FZ55: 0.0002814501247 | GA55: 0.0002842506924 | GB55: 0.0002870791272 | GC55: 0.0002899357062 | GD55: 0.0002928207097 | GE55: 0.0002957344204 | GF55: 0.0002986771239 | GG55: 0.0003016491088 | GH55: 0.0003046506664 | GI55: 0.000307682091 | GJ55: 0.0003107436797 | GK55: 0.0003138357328 | GL55: 0.0003169585533 | GM55: 0.0003201124474 | GN55: 0.0003232977244 | GO55: 0.0003265146964 | GP55: 0.0003297636789 | GQ55: 0.0003330449903 | GR55: 0.0003363589524 | GS55: 0.0003397058901 | GT55: 0.0003430861315 | GU55: 0.0003465000079 | GV55: 0.0003499478541 | GW55: =$G$55*GW51/1000 -> 0.0003534300081 | GX55: 0.0003569468112 | GY55: 0.0003604986082 | GZ55: 0.0003640857474 | HA55: 0.0003677085804 | HB55: 0.0003713674624 | HC55: 0.000375062752 | HD55: 0.0003787948116 | HE55: 0.000382564007 | HF55: 0.0003863707078 | HG55: 0.0003902152872 | HH55: 0.000394098122 | HI55: 0.0003980195929 | HJ55: 0.0004019800844 | HK55: 0.0004059799848 | HL55: 0.0004100196861 | HM55: 0.0004140995845 | HN55: 0.0004182200798 | HO55: 0.0004223815762 | HP55: 0.0004265844814 | HQ55: 0.0004308292077 | HR55: 0.0004351161711 | HS55: 0.0004394457919 | HT55: 0.0004438184945 | HU55: 0.0004482347077 | HV55: 0.0004526948644 | HW55: 0.0004571994018 | HX55: 0.0004617487617 | HY55: 0.0004663433899 | HZ55: 0.0004709837369 | IA55: 0.0004756702577 | IB55: 0.0004804034116 | IC55: 0.0004851836628 | ID55: 0.0004900114799 | IE55: 0.0004948873361 | IF55: 0.0004998117095 | IG55: 0.0005047850828 | IH55: 0.0005098079437 | II55: 0.0005148807845 | IJ55: 0.0005200041025 | IK55: 0.0005251784002 | IL55: 0.0005304041846 | IM55: 0.0005356819682 | IN55: 0.0005410122683 | IO55: 0.0005463956075 | IP55: 0.0005518325136 | IQ55: 0.0005573235197 | IR55: 0.0005628691639 | IS55: 0.0005684699901 | IT55: 0.0005741265472 | IU55: 0.0005798393899 | IV55: 0.0005856090781 | IW55: 0.0005914361777 | IX55: 0.0005973212597 | IY55: 0.0006032649012 | IZ55: 0.0006092676849 | JA55: 0.0006153301992 | JB55: 0.0006214530386 | JC55: 0.0006276368032 | JD55: 0.0006338820994 | JE55: 0.0006401895393 | JF55: 0.0006465597414 | JG55: 0.0006529933301 | JH55: 0.0006594909362 | JI55: =$G$55*JI51/1000 -> 0.0006660531967 | JJ55: 0.0006726807549 | JK55: 0.0006793742606 | JL55: 0.00068613437 | JM55: 0.0006929617458 | JN55: 0.0006998570574 | JO55: 0.0007068209807 | JP55: 0.0007138541986 | JQ55: 0.0007209574004 | JR55: 0.0007281312825 | JS55: 0.0007353765484 | JT55: 0.0007426939082 | JU55: 0.0007500840793 | JV55: 0.0007575477863 | JW55: 0.0007650857609 | JX55: 0.0007726987421 | JY55: 0.0007803874761 | JZ55: 0.0007881527169 | KA55: 0.0007959952257 | KB55: 0.0008039157712 | KC55: 0.0008119151302
C56: Total Variable Expenses | F56: $ '000 | L56: =L55*L36 -> 0 | M56: =M55*M36 -> 0 | N56: 0 | O56: 0 | P56: 0 | Q56: 0 | R56: 0 | S56: 0 | T56: 0 | U56: 0 | V56: 0 | W56: 0 | X56: 0 | Y56: 0 | Z56: 0 | AA56: 0 | AB56: 0 | AC56: 0 | AD56: 0 | AE56: 0 | AF56: 0 | AG56: 0 | AH56: 0 | AI56: 0 | AJ56: 0 | AK56: 0 | AL56: 0 | AM56: 0 | AN56: 0 | AO56: 0 | AP56: 0 | AQ56: 0 | AR56: 0 | AS56: 0 | AT56: 0 | AU56: 0 | AV56: 0 | AW56: 0 | AX56: 0 | AY56: 0 | AZ56: 0 | BA56: 0 | BB56: 0 | BC56: 0 | BD56: 0 | BE56: 0 | BF56: 0 | BG56: 0 | BH56: 0 | BI56: 0 | BJ56: 0 | BK56: 0 | BL56: 0 | BM56: 0 | BN56: 0 | BO56: 0 | BP56: 0 | BQ56: 0 | BR56: 0 | BS56: 0 | BT56: 0 | BU56: 0 | BV56: 0 | BW56: 0 | BX56: 0 | BY56: =BY55*BY36 -> 0 | BZ56: 0 | CA56: 0 | CB56: 0 | CC56: 0 | CD56: 0 | CE56: 0 | CF56: 0 | CG56: 0 | CH56: 0 | CI56: 0 | CJ56: 0 | CK56: 0 | CL56: 94.98873315 | CM56: 99.3832663 | CN56: 101.173961 | CO56: 106.4394782 | CP56: 107.3203763 | CQ56: 111.8253158 | CR56: 112.7507874 | CS56: 117.4836768 | CT56: 119.1104301 | CU56: 123.4283508 | CV56: 123.8442507 | CW56: 128.4148562 | CX56: 128.8475584 | CY56: 133.6028164 | CZ56: 134.0529998 | DA56: 139.0003702 | DB56: 140.2392865 | DC56: 144.6159851 | DD56: 145.1032781 | DE56: 150.4584709 | DF56: 150.5949826 | DG56: 155.769655 | DH56: 155.9109855 | DI56: 161.2683238 | DJ56: 162.3064369 | DK56: 166.9610956 | DL56: 167.1125802 | DM56: 172.8548223 | DN56: 173.0116543 | DO56: 178.9565975 | DP56: 179.1189657 | DQ56: 185.2737654 | DR56: 186.4664059 | DS56: 191.8139293 | DT56: 191.987963 | DU56: 198.584961 | DV56: 198.7651381 | DW56: 205.5950102 | DX56: 205.7815475 | DY56: 212.852514 | DZ56: 214.2226839 | EA56: 220.3662078 | EB56: 220.5661471 | EC56: 228.1451349 | ED56: 228.3521321 | EE56: 236.1986582 | EF56: 236.4129624 | EG56: 244.5364708 | EH56: 246.1105959 | EI56: 253.1686082 | EJ56: 253.3983093 | EK56: =EK55*EK36 -> 262.1054601 | EL56: 262.3432696 | EM56: 271.3577828 | EN56: 271.6039871 | EO56: 280.9367125 | EP56: 282.7451526 | EQ56: 290.8537785 | ER56: 291.1176716 | ES56: 301.1209169 | ET56: 301.3941254 | EU56: 311.7504852 | EV56: 312.033338 | EW56: 322.7552774 | EX56: 324.832911 | EY56: 334.1485387 | EZ56: 334.4517133 | FA56: 345.9439821 | FB56: 346.2578588 | FC56: 358.1558046 | FD56: 358.4807612 | FE56: 370.7987046 | FF56: 373.1856024 | FG56: 383.8878988 | FH56: 384.2362022 | FI56: 397.4391417 | FJ56: 397.7997401 | FK56: 411.4687434 | FL56: 411.842071 | FM56: 425.99359 | FN56: 428.7357872 | FO56: 441.0311637 | FP56: 0 | FQ56: 0 | FR56: 0 | FS56: 0 | FT56: 0 | FU56: 0 | FV56: 0 | FW56: 0 | FX56: 0 | FY56: 0 | FZ56: 0 | GA56: 0 | GB56: 0 | GC56: 0 | GD56: 0 | GE56: 0 | GF56: 0 | GG56: 0 | GH56: 0 | GI56: 0 | GJ56: 0 | GK56: 0 | GL56: 0 | GM56: 0 | GN56: 0 | GO56: 0 | GP56: 0 | GQ56: 0 | GR56: 0 | GS56: 0 | GT56: 0 | GU56: 0 | GV56: 0 | GW56: =GW55*GW36 -> 0 | GX56: 0 | GY56: 0 | GZ56: 0 | HA56: 0 | HB56: 0 | HC56: 0 | HD56: 0 | HE56: 0 | HF56: 0 | HG56: 0 | HH56: 0 | HI56: 0 | HJ56: 0 | HK56: 0 | HL56: 0 | HM56: 0 | HN56: 0 | HO56: 0 | HP56: 0 | HQ56: 0 | HR56: 0 | HS56: 0 | HT56: 0 | HU56: 0 | HV56: 0 | HW56: 0 | HX56: 0 | HY56: 0 | HZ56: 0 | IA56: 0 | IB56: 0 | IC56: 0 | ID56: 0 | IE56: 0 | IF56: 0 | IG56: 0 | IH56: 0 | II56: 0 | IJ56: 0 | IK56: 0 | IL56: 0 | IM56: 0 | IN56: 0 | IO56: 0 | IP56: 0 | IQ56: 0 | IR56: 0 | IS56: 0 | IT56: 0 | IU56: 0 | IV56: 0 | IW56: 0 | IX56: 0 | IY56: 0 | IZ56: 0 | JA56: 0 | JB56: 0 | JC56: 0 | JD56: 0 | JE56: 0 | JF56: 0 | JG56: 0 | JH56: 0 | JI56: =JI55*JI36 -> 0 | JJ56: 0 | JK56: 0 | JL56: 0 | JM56: 0 | JN56: 0 | JO56: 0 | JP56: 0 | JQ56: 0 | JR56: 0 | JS56: 0 | JT56: 0 | JU56: 0 | JV56: 0 | JW56: 0 | JX56: 0 | JY56: 0 | JZ56: 0 | KA56: 0 | KB56: 0 | KC56: 0
